Workbook

Sheet Menu
H1: Single | I1: 1 | K1: Cashback options
H2: Joint | I2: 2 | K2: Yes
H3: Min value | I3: 70000 | K3: No | L3: =IF($M$15="No",INDEX(#REF!,MATCH(1,#REF!,0))," ") -> 
H4: Max value | I4: 100000000
H5: Youngest | I5: 55 | J5: =YEAR(TODAY())-I5 -> 1964
H6: Oldest | I6: 90 | J6: =YEAR(TODAY())-I6 -> 1929
H7: Age1 | I7: =IF(LEN($I$13)>2,DATEDIF($I$13,TODAY(),"y"),$I$13) -> 0 | J7: =AND(_xlfn.NUMBERVALUE(app1Age)>=$I$5,_xlfn.NUMBERVALUE(app1Age)<=$I$6) -> FALSE
H8: Age2 | I8: =IF(LEN($I$14)>2,DATEDIF($I$14,TODAY(),"y"),$I$14) -> 0 | J8: =AND(_xlfn.NUMBERVALUE(app2Age)>=$I$5,_xlfn.NUMBERVALUE(app2Age)<=$I$6) -> FALSE
H9: Youngest age: | I9: =IF(AND(App_type="Joint",J8=TRUE,app1Age>=app2Age),app2Age, IF(AND(App_type="Joint",J7=TRUE,app2Age>app1Age),app1Age,IF(App_type="Single",app1Age, IF(AND(app1Age=0,app2Age=0),"True")))) -> True
H10: Zero | I10: 0
H11: About your client and their needs | K11: About the products and their features | O11: Information
H12: Joint or Single? | K12: Drawdown required? | O12: =IF(AND(ISBLANK(App_type),ISBLANK(M12),ISBLANK(M15),ISBLANK(M17),ISBLANK(M18))," ", IF(AND(App_type>0,M12>0,M15>0,M17>0,M18>0)," ", IF(propertyValue>6000000,HYPERLINK("mailto:info@pureretirement.co.uk","Click HERE to reffer the property to us prior creating a KFI"), IF(AND($I$12="Single",OR(ISBLANK($M$12),ISBLANK($M$15),ISBLANK($M$17),ISBLANK($M$18))),"To find the best product that fits your customer's needs please apply secondary filters in 'About the products and their features' section", IF(AND($I$12="Joint",OR(ISBLANK($M$12),ISBLANK($M$15),ISBLANK($M$17),ISBLANK($M$18))),"To find the best product that fits your customers' needs please apply secondary filters in 'About the products and their features' section" ))))) -> 
H13: Age or DOB of App1 | J13: =IF(LEN(I13)>2,DATEDIF(I13,TODAY(),"y")&" yrs "&DATEDIF(I13,TODAY(),"ym")& " mnths"," ") ->  | K13: Amount of Drawdown Required:
H14: Age or DOB of App2 | J14: =IF(LEN(I14)>2,DATEDIF(I14,TODAY(),"y")&" yrs "&DATEDIF(I14,TODAY(),"ym")& " mnths"," ") -> 
H15: Gender of App1
H16: Gender of App2
H17: Property value | K17: Contribution to advice fee & Cashback?
H18: Loan priority | J18: =IF(I18="Lowest interest rate","Rate","Release") -> Release
H19: Loan required | K19: =IF(OR(ISBLANK(App_type),ISBLANK(propertyValue),youngestAge=0)," ","Maximum loan: ") ->  | M19: =IF(OR(ISBLANK(App_type),ISBLANK(propertyValue),youngestAge=0)," ",MAX(Products[Max loan])) -> 
D21: Product name | H21: MER | I21: =IF(ISBLANK(initialAdvance),"Minimum advance","Loan Required") -> Minimum advance | J21: Max LTV | K21: Maximum loan | L21: Required drawdown amount (if applicable) | M21: Maximum drawdown amount | N21: Arrangement fee | O21: Contribution to advice fees | P21: Contribution to solicitors fees | Q21: Single / Joint | R21: Cashback | S21: Total release (incl. contributions & cashback)
A22: LTV Band | B22: Pack | C22: DD Cap | D22: Product name | H22: Rate | I22: Loan reqrd / Min adv. | J22: LTV | K22: Max loan | L22: DD Reqrd | M22: Drawdown cap | N22: Arr` Fee | O22: Cont to Adv. Fees | P22: Cont to Sols Fees | Q22: Single / Joint | R22: Cashback | S22: Total release | T22: Loan required | U22: Display CB | V22: Base rate | W22: Elite | X22: Standard | Y22: Fees Package | Z22: x1 | AA22: x1.5 | AB22: x0
A23: A | B23: Standard | C23: LS | D23: =IF(Products[[#This Row],[DD Cap]]="LS", IF(Products[[#This Row],[Pack]]="Standard","SOVEREIGN "&Products[[#This Row],[Pack]]&" Lump Sum "&Products[[#This Row],[LTV Band]]&"_"&Products[[#This Row],[Rate]]*100&"% £10k+ "&LOWER(Products[[#This Row],[Single / Joint]])& " ("&SUM(Products[[#This Row],[Cont to Adv. Fees]:[Cont to Sols Fees]])&" cont to fees, "&"Arr Fee "&Products[[#This Row],[Arr` Fee]]&")", IF(Products[[#This Row],[Pack]]="Elite","SOVEREIGN "&Products[[#This Row],[Pack]]&" Lump Sum "&Products[[#This Row],[LTV Band]]&"_"&Products[[#This Row],[Rate]]*100&"% £10k+ "&LOWER(Products[[#This Row],[Single / Joint]])& " ("&SUM(Products[[#This Row],[Cont to Adv. Fees]:[Cont to Sols Fees]])&" cont to fees, "&"Arr Fee "&Products[[#This Row],[Arr` Fee]]&")", IF(Products[[#This Row],[Pack]]="Fees Package","SOVEREIGN "&Products[[#This Row],[Pack]]&" Lump Sum "&Products[[#This Row],[LTV Band]]&"_"&Products[[#This Row],[Rate]]*100&"% £10k+ "&LOWER(Products[[#This Row],[Single / Joint]])& " ("&SUM(Products[[#This Row],[Cont to Adv. Fees]:[Cont to Sols Fees]])&" cont to fees, "&"Arr Fee "&Products[[#This Row],[Arr` Fee]]&")(3% cash)"," "))), IF(AND(Products[[#This Row],[Pack]]="Standard",Products[[#This Row],[DD Cap]]<>0),"SOVEREIGN "&Products[[#This Row],[Pack]]&" DRAWDOWN "&Products[[#This Row],[LTV Band]]&"_"&Products[[#This Row],[Rate]]*100&"% £10k+ "&LOWER(Products[[#This Row],[Single / Joint]])& " ("&SUM(Products[[#This Row],[Cont to Adv. Fees]:[Cont to Sols Fees]])&" cont to fees, Arr Fee "&Products[[#This Row],[Arr` Fee]]&") Facility cap "&Products[[#This Row],[DD Cap]]&"x initial", IF(AND(Products[[#This Row],[Pack]]="Standard",Products[[#This Row],[DD Cap]]=0),"SOVEREIGN "&Products[[#This Row],[Pack]]&" DRAWDOWN "&Products[[#This Row],[LTV Band]]&"_"&Products[[#This Row],[Rate]]*100&"% £10k+ "&LOWER(Products[[#This Row],[Single / Joint]])& " ("&SUM(Products[[#This Row],[Cont to Adv. Fees]:[Cont to Sols Fees]])&" cont to fees, Arr Fee "&Products[[#This Row],[Arr` Fee]]&") No facility cap ", IF(AND(Products[[#This Row],[Pack]]="Elite",Products[[#This Row],[DD Cap]]<>0),"SOVEREIGN "&Products[[#This Row],[Pack]]&" DRAWDOWN "&Products[[#This Row],[LTV Band]]&"_"&Products[[#This Row],[Rate]]*100&"% £10k+ "&LOWER(Products[[#This Row],[Single / Joint]])& " ("&SUM(Products[[#This Row],[Cont to Adv. Fees]:[Cont to Sols Fees]])&" cont to fees, Arr Fee "&Products[[#This Row],[Arr` Fee]]&") Facility cap "&Products[[#This Row],[DD Cap]]&"x initial", IF(AND(Products[[#This Row],[Pack]]="Elite",Products[[#This Row],[DD Cap]]=0),"SOVEREIGN "&Products[[#This Row],[Pack]]&" DRAWDOWN "&Products[[#This Row],[LTV Band]]&"_"&Products[[#This Row],[Rate]]*100&"% £10k+ "&LOWER(Products[[#This Row],[Single / Joint]])& " ("&SUM(Products[[#This Row],[Cont to Adv. Fees]:[Cont to Sols Fees]])&" cont to fees, Arr Fee "&Products[[#This Row],[Arr` Fee]]&") No facility cap ", IF(AND(Products[[#This Row],[Pack]]="Fees Package",Products[[#This Row],[DD Cap]]<>0),"SOVEREIGN "&Products[[#This Row],[Pack]]&" DRAWDOWN "&Products[[#This Row],[LTV Band]]&"_"&Products[[#This Row],[Rate]]*100&"% £10k+ "&LOWER(Products[[#This Row],[Single / Joint]])& " ("&SUM(Products[[#This Row],[Cont to Adv. Fees]:[Cont to Sols Fees]])&" cont to fees, Arr Fee "&Products[[#This Row],[Arr` Fee]]&")(3% cash) Facility cap "&Products[[#This Row],[DD Cap]]&"x initial", IF(AND(Products[[#This Row],[Pack]]="Fees Package",Products[[#This Row],[DD Cap]]=0),"SOVEREIGN "&Products[[#This Row],[Pack]]&" DRAWDOWN "&Products[[#This Row],[LTV Band]]&"_"&Products[[#This Row],[Rate]]*100&"% £10k+ "&LOWER(Products[[#This Row],[Single / Joint]])& " ("&SUM(Products[[#This Row],[Cont to Adv. Fees]:[Cont to Sols Fees]])&" cont to fees, Arr Fee "&Products[[#This Row],[Arr` Fee]]&")(3% cash) No facility cap ", " "))))))) -> SOVEREIGN Standard Lump Sum A_2.91% £10k+ 0 (600 cont to fees, Arr Fee 895) | H23: =SUM(Products[[#This Row],[Base rate]:[x0]]) -> 0.0291 | I23: =IF(AND(ISBLANK(initialAdvance),Products[[#This Row],[Pack]]="Fees Package"),20000, IF(AND(ISBLANK(initialAdvance),Products[[#This Row],[Pack]]="Elite"),725001, IF(AND(ISBLANK(initialAdvance),Products[[#This Row],[Pack]]="Standard"),10000,IF(AND(initialAdvance<725001,Products[[#This Row],[Pack]]="Elite"),725001,initialAdvance)))) -> 10000 | J23: =IF(AND(Products[[#This Row],[LTV Band]]="A",Products[[#This Row],[Single / Joint]]="Single"), SUMIF(LTVs!$A$3:$A$38,Menu!$I$9,LTVs!$C$3:$C$38), IF(AND(Products[[#This Row],[LTV Band]]="A",Products[[#This Row],[Single / Joint]]="Joint"), SUMIF(LTVs!$A$3:$A$38,Menu!$I$9,LTVs!$D$3:$D$38), IF(AND(Products[[#This Row],[LTV Band]]="B",Products[[#This Row],[Single / Joint]]="Single"), SUMIF(LTVs!$A$3:$A$38,Menu!$I$9,LTVs!$E$3:$E$38), IF(AND(Products[[#This Row],[LTV Band]]="B",Products[[#This Row],[Single / Joint]]="Joint"), SUMIF(LTVs!$A$3:$A$38,Menu!$I$9,LTVs!$F$3:$F$38), IF(AND(Products[[#This Row],[LTV Band]]="C",Products[[#This Row],[Single / Joint]]="Single"), SUMIF(LTVs!$A$3:$A$38,Menu!$I$9,LTVs!$G$3:$G$38), IF(AND(Products[[#This Row],[LTV Band]]="C",Products[[#This Row],[Single / Joint]]="Joint"), SUMIF(LTVs!$A$3:$A$38,Menu!$I$9,LTVs!$H$3:$H$38), IF(AND(Products[[#This Row],[LTV Band]]="D",Products[[#This Row],[Single / Joint]]="Single"), SUMIF(LTVs!$A$3:$A$38,Menu!$I$9,LTVs!$I$3:$I$38), IF(AND(Products[[#This Row],[LTV Band]]="D",Products[[#This Row],[Single / Joint]]="Joint"), SUMIF(LTVs!$A$3:$A$38,Menu!$I$9,LTVs!$J$3:$J$38), IF(AND(Products[[#This Row],[LTV Band]]="E",Products[[#This Row],[Single / Joint]]="Single"), SUMIF(LTVs!$A$3:$A$38,Menu!$I$9,LTVs!$K$3:$K$38), IF(AND(Products[[#This Row],[LTV Band]]="E",Products[[#This Row],[Single / Joint]]="Joint"), SUMIF(LTVs!$A$3:$A$38,Menu!$I$9,LTVs!$L$3:$L$38), IF(AND(Products[[#This Row],[LTV Band]]="F",Products[[#This Row],[Single / Joint]]="Single"), SUMIF(LTVs!$A$3:$A$38,Menu!$I$9,LTVs!$M$3:$M$38), IF(AND(Products[[#This Row],[LTV Band]]="F",Products[[#This Row],[Single / Joint]]="Joint"), SUMIF(LTVs!$A$3:$A$38,Menu!$I$9,LTVs!$N$3:$N$38), " ")))))))))))) ->  | K23: =IF(AND(propertyValue*Products[[#This Row],[LTV ]]>725000,Products[[#This Row],[Pack]]<>"Elite"),725000,propertyValue*Products[[#This Row],[LTV ]]) ->  | L23: =IF(Products[[#This Row],[DD Cap]]="LS"," ",IF(reqrdDDamt<2000,"N/A",IF(reqrdDDamt<=Products[[#This Row],[Drawdown cap]],reqrdDDamt,"N/A"))) ->  | M23: =IF(Products[[#This Row],[DD Cap]]="LS"," ",IF(IF(Products[[#This Row],[DD Cap]]>=1,initialAdvance*Products[[#This Row],[DD Cap]],Products[[#This Row],[Max loan]]-initialAdvance)<Products[[#This Row],[Max loan]]-initialAdvance,IF(Products[[#This Row],[DD Cap]]>0,initialAdvance*Products[[#This Row],[DD Cap]],Products[[#This Row],[Max loan]]-initialAdvance),Products[[#This Row],[Max loan]]-initialAdvance)) ->  | N23: =IF(Products[[#This Row],[Pack]]="FP",895,895) -> 895 | O23: =IF(Products[[#This Row],[Pack]]="Fees Package",300,0) -> 0 | P23: 600 | Q23: =App_type -> 0 | R23: =IF(AND(ISBLANK(initialAdvance),Products[[#This Row],[Pack]]="Fees Package"),Products[[#This Row],[Max loan]]*3%, IF(AND(ISBLANK(initialAdvance),Products[[#This Row],[Pack]]="Fees Package"),Products[[#This Row],[Max loan]]*3%, IF(AND(initialAdvance>0,Products[[#This Row],[Pack]]="Fees Package"),initialAdvance*3%, IF(AND(initialAdvance>0,Products[[#This Row],[Pack]]="Fees Package"),initialAdvance*3%,0)))) -> 0 | S23: =IF(OR(ISBLANK(App_type),$I$9=0)," ", IF(ISBLANK(initialAdvance),Products[[#This Row],[Max loan]]+Products[[#This Row],[Cont to Adv. Fees]]+Products[[#This Row],[Cont to Sols Fees]]+Products[[#This Row],[Cashback]], initialAdvance+Products[[#This Row],[Cont to Adv. Fees]]+Products[[#This Row],[Cont to Sols Fees]]+Products[[#This Row],[Cashback]])) ->  | T23: =IF(AND(ISBLANK(initialAdvance),Products[[#This Row],[Pack]]="Fees Package",Products[[#This Row],[Max loan]]>=20000),1, IF(AND(ISBLANK(initialAdvance),Products[[#This Row],[Pack]]="Elite",Products[[#This Row],[Max loan]]>725000),1, IF(AND(ISBLANK(initialAdvance),Products[[#This Row],[Pack]]="Standard",Products[[#This Row],[Max loan]]>=10000),1, IF(AND(initialAdvance>0,Products[[#This Row],[Pack]]="Fees Package",initialAdvance>=20000,Products[[#This Row],[Max loan]]>=initialAdvance),1, IF(AND(initialAdvance>0,Products[[#This Row],[Pack]]="Elite",initialAdvance>725000,Products[[#This Row],[Max loan]]>=initialAdvance),1, IF(AND(initialAdvance>0,Products[[#This Row],[Pack]]="Standard",initialAdvance>=10000,Products[[#This Row],[Max loan]]>=initialAdvance),1,0)))))) ->  | U23: =IF(Products[[#This Row],[Cashback]]>0,1,0) -> 0 | V23: =INDEX(Rates!$B$2:$B$7,MATCH(Products[[#This Row],[LTV Band]],Rates!$A$2:$A$7,0)) -> 0.0291 | W23: =IF(Products[[#This Row],[Pack]]="Elite",IFERROR(INDEX(Rates!$C$2:$C$7,MATCH(Products[[#This Row],[LTV Band]],Rates!$A$2:$A$7,0)),0),0) -> 0 | X23: =IFERROR(INDEX(Rates!$D$2:$D$7,MATCH(Products[[#This Row],[Pack]],Rates!$D$1,0)),) -> 0 | Y23: =IFERROR(INDEX(Rates!$E$2:$E$7,MATCH(Products[[#This Row],[Pack]],Rates!$E$1,0)),) -> 0 | Z23: =IFERROR(INDEX(Rates!$F$2:$F$7,MATCH(Products[[#This Row],[DD Cap]],Rates!$F$1,0)),0) -> 0 | AA23: =IFERROR(INDEX(Rates!$G$2:$G$7,MATCH(Products[[#This Row],[DD Cap]],Rates!$G$1,0)),0) -> 0 | AB23: =IFERROR(INDEX(Rates!$H$2:$H$7,MATCH(Products[[#This Row],[DD Cap]],Rates!$H$1,0)),0) -> 0
A24: A | B24: Standard | C24: 1 | D24: =IF(Products[[#This Row],[DD Cap]]="LS", IF(Products[[#This Row],[Pack]]="Standard","SOVEREIGN "&Products[[#This Row],[Pack]]&" Lump Sum "&Products[[#This Row],[LTV Band]]&"_"&Products[[#This Row],[Rate]]*100&"% £10k+ "&LOWER(Products[[#This Row],[Single / Joint]])& " ("&SUM(Products[[#This Row],[Cont to Adv. Fees]:[Cont to Sols Fees]])&" cont to fees, "&"Arr Fee "&Products[[#This Row],[Arr` Fee]]&")", IF(Products[[#This Row],[Pack]]="Elite","SOVEREIGN "&Products[[#This Row],[Pack]]&" Lump Sum "&Products[[#This Row],[LTV Band]]&"_"&Products[[#This Row],[Rate]]*100&"% £10k+ "&LOWER(Products[[#This Row],[Single / Joint]])& " ("&SUM(Products[[#This Row],[Cont to Adv. Fees]:[Cont to Sols Fees]])&" cont to fees, "&"Arr Fee "&Products[[#This Row],[Arr` Fee]]&")", IF(Products[[#This Row],[Pack]]="Fees Package","SOVEREIGN "&Products[[#This Row],[Pack]]&" Lump Sum "&Products[[#This Row],[LTV Band]]&"_"&Products[[#This Row],[Rate]]*100&"% £10k+ "&LOWER(Products[[#This Row],[Single / Joint]])& " ("&SUM(Products[[#This Row],[Cont to Adv. Fees]:[Cont to Sols Fees]])&" cont to fees, "&"Arr Fee "&Products[[#This Row],[Arr` Fee]]&")(3% cash)"," "))), IF(AND(Products[[#This Row],[Pack]]="Standard",Products[[#This Row],[DD Cap]]<>0),"SOVEREIGN "&Products[[#This Row],[Pack]]&" DRAWDOWN "&Products[[#This Row],[LTV Band]]&"_"&Products[[#This Row],[Rate]]*100&"% £10k+ "&LOWER(Products[[#This Row],[Single / Joint]])& " ("&SUM(Products[[#This Row],[Cont to Adv. Fees]:[Cont to Sols Fees]])&" cont to fees, Arr Fee "&Products[[#This Row],[Arr` Fee]]&") Facility cap "&Products[[#This Row],[DD Cap]]&"x initial", IF(AND(Products[[#This Row],[Pack]]="Standard",Products[[#This Row],[DD Cap]]=0),"SOVEREIGN "&Products[[#This Row],[Pack]]&" DRAWDOWN "&Products[[#This Row],[LTV Band]]&"_"&Products[[#This Row],[Rate]]*100&"% £10k+ "&LOWER(Products[[#This Row],[Single / Joint]])& " ("&SUM(Products[[#This Row],[Cont to Adv. Fees]:[Cont to Sols Fees]])&" cont to fees, Arr Fee "&Products[[#This Row],[Arr` Fee]]&") No facility cap ", IF(AND(Products[[#This Row],[Pack]]="Elite",Products[[#This Row],[DD Cap]]<>0),"SOVEREIGN "&Products[[#This Row],[Pack]]&" DRAWDOWN "&Products[[#This Row],[LTV Band]]&"_"&Products[[#This Row],[Rate]]*100&"% £10k+ "&LOWER(Products[[#This Row],[Single / Joint]])& " ("&SUM(Products[[#This Row],[Cont to Adv. Fees]:[Cont to Sols Fees]])&" cont to fees, Arr Fee "&Products[[#This Row],[Arr` Fee]]&") Facility cap "&Products[[#This Row],[DD Cap]]&"x initial", IF(AND(Products[[#This Row],[Pack]]="Elite",Products[[#This Row],[DD Cap]]=0),"SOVEREIGN "&Products[[#This Row],[Pack]]&" DRAWDOWN "&Products[[#This Row],[LTV Band]]&"_"&Products[[#This Row],[Rate]]*100&"% £10k+ "&LOWER(Products[[#This Row],[Single / Joint]])& " ("&SUM(Products[[#This Row],[Cont to Adv. Fees]:[Cont to Sols Fees]])&" cont to fees, Arr Fee "&Products[[#This Row],[Arr` Fee]]&") No facility cap ", IF(AND(Products[[#This Row],[Pack]]="Fees Package",Products[[#This Row],[DD Cap]]<>0),"SOVEREIGN "&Products[[#This Row],[Pack]]&" DRAWDOWN "&Products[[#This Row],[LTV Band]]&"_"&Products[[#This Row],[Rate]]*100&"% £10k+ "&LOWER(Products[[#This Row],[Single / Joint]])& " ("&SUM(Products[[#This Row],[Cont to Adv. Fees]:[Cont to Sols Fees]])&" cont to fees, Arr Fee "&Products[[#This Row],[Arr` Fee]]&")(3% cash) Facility cap "&Products[[#This Row],[DD Cap]]&"x initial", IF(AND(Products[[#This Row],[Pack]]="Fees Package",Products[[#This Row],[DD Cap]]=0),"SOVEREIGN "&Products[[#This Row],[Pack]]&" DRAWDOWN "&Products[[#This Row],[LTV Band]]&"_"&Products[[#This Row],[Rate]]*100&"% £10k+ "&LOWER(Products[[#This Row],[Single / Joint]])& " ("&SUM(Products[[#This Row],[Cont to Adv. Fees]:[Cont to Sols Fees]])&" cont to fees, Arr Fee "&Products[[#This Row],[Arr` Fee]]&")(3% cash) No facility cap ", " "))))))) -> SOVEREIGN Standard DRAWDOWN A_3.01% £10k+ 0 (600 cont to fees, Arr Fee 895) Facility cap 1x initial | H24: =SUM(Products[[#This Row],[Base rate]:[x0]]) -> 0.0301 | I24: =IF(AND(ISBLANK(initialAdvance),Products[[#This Row],[Pack]]="Fees Package"),20000, IF(AND(ISBLANK(initialAdvance),Products[[#This Row],[Pack]]="Elite"),725001, IF(AND(ISBLANK(initialAdvance),Products[[#This Row],[Pack]]="Standard"),10000,IF(AND(initialAdvance<725001,Products[[#This Row],[Pack]]="Elite"),725001,initialAdvance)))) -> 10000 | J24: =IF(AND(Products[[#This Row],[LTV Band]]="A",Products[[#This Row],[Single / Joint]]="Single"), SUMIF(LTVs!$A$3:$A$38,Menu!$I$9,LTVs!$C$3:$C$38), IF(AND(Products[[#This Row],[LTV Band]]="A",Products[[#This Row],[Single / Joint]]="Joint"), SUMIF(LTVs!$A$3:$A$38,Menu!$I$9,LTVs!$D$3:$D$38), IF(AND(Products[[#This Row],[LTV Band]]="B",Products[[#This Row],[Single / Joint]]="Single"), SUMIF(LTVs!$A$3:$A$38,Menu!$I$9,LTVs!$E$3:$E$38), IF(AND(Products[[#This Row],[LTV Band]]="B",Products[[#This Row],[Single / Joint]]="Joint"), SUMIF(LTVs!$A$3:$A$38,Menu!$I$9,LTVs!$F$3:$F$38), IF(AND(Products[[#This Row],[LTV Band]]="C",Products[[#This Row],[Single / Joint]]="Single"), SUMIF(LTVs!$A$3:$A$38,Menu!$I$9,LTVs!$G$3:$G$38), IF(AND(Products[[#This Row],[LTV Band]]="C",Products[[#This Row],[Single / Joint]]="Joint"), SUMIF(LTVs!$A$3:$A$38,Menu!$I$9,LTVs!$H$3:$H$38), IF(AND(Products[[#This Row],[LTV Band]]="D",Products[[#This Row],[Single / Joint]]="Single"), SUMIF(LTVs!$A$3:$A$38,Menu!$I$9,LTVs!$I$3:$I$38), IF(AND(Products[[#This Row],[LTV Band]]="D",Products[[#This Row],[Single / Joint]]="Joint"), SUMIF(LTVs!$A$3:$A$38,Menu!$I$9,LTVs!$J$3:$J$38), IF(AND(Products[[#This Row],[LTV Band]]="E",Products[[#This Row],[Single / Joint]]="Single"), SUMIF(LTVs!$A$3:$A$38,Menu!$I$9,LTVs!$K$3:$K$38), IF(AND(Products[[#This Row],[LTV Band]]="E",Products[[#This Row],[Single / Joint]]="Joint"), SUMIF(LTVs!$A$3:$A$38,Menu!$I$9,LTVs!$L$3:$L$38), IF(AND(Products[[#This Row],[LTV Band]]="F",Products[[#This Row],[Single / Joint]]="Single"), SUMIF(LTVs!$A$3:$A$38,Menu!$I$9,LTVs!$M$3:$M$38), IF(AND(Products[[#This Row],[LTV Band]]="F",Products[[#This Row],[Single / Joint]]="Joint"), SUMIF(LTVs!$A$3:$A$38,Menu!$I$9,LTVs!$N$3:$N$38), " ")))))))))))) ->  | K24: =IF(AND(propertyValue*Products[[#This Row],[LTV ]]>725000,Products[[#This Row],[Pack]]<>"Elite"),725000,propertyValue*Products[[#This Row],[LTV ]]) ->  | L24: =IF(Products[[#This Row],[DD Cap]]="LS"," ",IF(reqrdDDamt<2000,"N/A",IF(reqrdDDamt<=Products[[#This Row],[Drawdown cap]],reqrdDDamt,"N/A"))) -> N/A | M24: =IF(Products[[#This Row],[DD Cap]]="LS"," ",IF(IF(Products[[#This Row],[DD Cap]]>=1,initialAdvance*Products[[#This Row],[DD Cap]],Products[[#This Row],[Max loan]]-initialAdvance)<Products[[#This Row],[Max loan]]-initialAdvance,IF(Products[[#This Row],[DD Cap]]>0,initialAdvance*Products[[#This Row],[DD Cap]],Products[[#This Row],[Max loan]]-initialAdvance),Products[[#This Row],[Max loan]]-initialAdvance)) ->  | N24: =IF(Products[[#This Row],[Pack]]="FP",895,895) -> 895 | O24: =IF(Products[[#This Row],[Pack]]="Fees Package",300,0) -> 0 | P24: 600 | Q24: =App_type -> 0 | R24: =IF(AND(ISBLANK(initialAdvance),Products[[#This Row],[Pack]]="Fees Package"),Products[[#This Row],[Max loan]]*3%, IF(AND(ISBLANK(initialAdvance),Products[[#This Row],[Pack]]="Fees Package"),Products[[#This Row],[Max loan]]*3%, IF(AND(initialAdvance>0,Products[[#This Row],[Pack]]="Fees Package"),initialAdvance*3%, IF(AND(initialAdvance>0,Products[[#This Row],[Pack]]="Fees Package"),initialAdvance*3%,0)))) -> 0 | S24: =IF(OR(ISBLANK(App_type),$I$9=0)," ", IF(ISBLANK(initialAdvance),Products[[#This Row],[Max loan]]+Products[[#This Row],[Cont to Adv. Fees]]+Products[[#This Row],[Cont to Sols Fees]]+Products[[#This Row],[Cashback]], initialAdvance+Products[[#This Row],[Cont to Adv. Fees]]+Products[[#This Row],[Cont to Sols Fees]]+Products[[#This Row],[Cashback]])) ->  | T24: =IF(AND(ISBLANK(initialAdvance),Products[[#This Row],[Pack]]="Fees Package",Products[[#This Row],[Max loan]]>=20000),1, IF(AND(ISBLANK(initialAdvance),Products[[#This Row],[Pack]]="Elite",Products[[#This Row],[Max loan]]>725000),1, IF(AND(ISBLANK(initialAdvance),Products[[#This Row],[Pack]]="Standard",Products[[#This Row],[Max loan]]>=10000),1, IF(AND(initialAdvance>0,Products[[#This Row],[Pack]]="Fees Package",initialAdvance>=20000,Products[[#This Row],[Max loan]]>=initialAdvance),1, IF(AND(initialAdvance>0,Products[[#This Row],[Pack]]="Elite",initialAdvance>725000,Products[[#This Row],[Max loan]]>=initialAdvance),1, IF(AND(initialAdvance>0,Products[[#This Row],[Pack]]="Standard",initialAdvance>=10000,Products[[#This Row],[Max loan]]>=initialAdvance),1,0)))))) ->  | U24: =IF(Products[[#This Row],[Cashback]]>0,1,0) -> 0 | V24: =INDEX(Rates!$B$2:$B$7,MATCH(Products[[#This Row],[LTV Band]],Rates!$A$2:$A$7,0)) -> 0.0291 | W24: =IF(Products[[#This Row],[Pack]]="Elite",IFERROR(INDEX(Rates!$C$2:$C$7,MATCH(Products[[#This Row],[LTV Band]],Rates!$A$2:$A$7,0)),0),0) -> 0 | X24: =IFERROR(INDEX(Rates!$D$2:$D$7,MATCH(Products[[#This Row],[Pack]],Rates!$D$1,0)),) -> 0 | Y24: =IFERROR(INDEX(Rates!$E$2:$E$7,MATCH(Products[[#This Row],[Pack]],Rates!$E$1,0)),) -> 0 | Z24: =IFERROR(INDEX(Rates!$F$2:$F$7,MATCH(Products[[#This Row],[DD Cap]],Rates!$F$1,0)),0) -> 0.001 | AA24: =IFERROR(INDEX(Rates!$G$2:$G$7,MATCH(Products[[#This Row],[DD Cap]],Rates!$G$1,0)),0) -> 0 | AB24: =IFERROR(INDEX(Rates!$H$2:$H$7,MATCH(Products[[#This Row],[DD Cap]],Rates!$H$1,0)),0) -> 0
A25: B | B25: Standard | C25: LS | D25: =IF(Products[[#This Row],[DD Cap]]="LS", IF(Products[[#This Row],[Pack]]="Standard","SOVEREIGN "&Products[[#This Row],[Pack]]&" Lump Sum "&Products[[#This Row],[LTV Band]]&"_"&Products[[#This Row],[Rate]]*100&"% £10k+ "&LOWER(Products[[#This Row],[Single / Joint]])& " ("&SUM(Products[[#This Row],[Cont to Adv. Fees]:[Cont to Sols Fees]])&" cont to fees, "&"Arr Fee "&Products[[#This Row],[Arr` Fee]]&")", IF(Products[[#This Row],[Pack]]="Elite","SOVEREIGN "&Products[[#This Row],[Pack]]&" Lump Sum "&Products[[#This Row],[LTV Band]]&"_"&Products[[#This Row],[Rate]]*100&"% £10k+ "&LOWER(Products[[#This Row],[Single / Joint]])& " ("&SUM(Products[[#This Row],[Cont to Adv. Fees]:[Cont to Sols Fees]])&" cont to fees, "&"Arr Fee "&Products[[#This Row],[Arr` Fee]]&")", IF(Products[[#This Row],[Pack]]="Fees Package","SOVEREIGN "&Products[[#This Row],[Pack]]&" Lump Sum "&Products[[#This Row],[LTV Band]]&"_"&Products[[#This Row],[Rate]]*100&"% £10k+ "&LOWER(Products[[#This Row],[Single / Joint]])& " ("&SUM(Products[[#This Row],[Cont to Adv. Fees]:[Cont to Sols Fees]])&" cont to fees, "&"Arr Fee "&Products[[#This Row],[Arr` Fee]]&")(3% cash)"," "))), IF(AND(Products[[#This Row],[Pack]]="Standard",Products[[#This Row],[DD Cap]]<>0),"SOVEREIGN "&Products[[#This Row],[Pack]]&" DRAWDOWN "&Products[[#This Row],[LTV Band]]&"_"&Products[[#This Row],[Rate]]*100&"% £10k+ "&LOWER(Products[[#This Row],[Single / Joint]])& " ("&SUM(Products[[#This Row],[Cont to Adv. Fees]:[Cont to Sols Fees]])&" cont to fees, Arr Fee "&Products[[#This Row],[Arr` Fee]]&") Facility cap "&Products[[#This Row],[DD Cap]]&"x initial", IF(AND(Products[[#This Row],[Pack]]="Standard",Products[[#This Row],[DD Cap]]=0),"SOVEREIGN "&Products[[#This Row],[Pack]]&" DRAWDOWN "&Products[[#This Row],[LTV Band]]&"_"&Products[[#This Row],[Rate]]*100&"% £10k+ "&LOWER(Products[[#This Row],[Single / Joint]])& " ("&SUM(Products[[#This Row],[Cont to Adv. Fees]:[Cont to Sols Fees]])&" cont to fees, Arr Fee "&Products[[#This Row],[Arr` Fee]]&") No facility cap ", IF(AND(Products[[#This Row],[Pack]]="Elite",Products[[#This Row],[DD Cap]]<>0),"SOVEREIGN "&Products[[#This Row],[Pack]]&" DRAWDOWN "&Products[[#This Row],[LTV Band]]&"_"&Products[[#This Row],[Rate]]*100&"% £10k+ "&LOWER(Products[[#This Row],[Single / Joint]])& " ("&SUM(Products[[#This Row],[Cont to Adv. Fees]:[Cont to Sols Fees]])&" cont to fees, Arr Fee "&Products[[#This Row],[Arr` Fee]]&") Facility cap "&Products[[#This Row],[DD Cap]]&"x initial", IF(AND(Products[[#This Row],[Pack]]="Elite",Products[[#This Row],[DD Cap]]=0),"SOVEREIGN "&Products[[#This Row],[Pack]]&" DRAWDOWN "&Products[[#This Row],[LTV Band]]&"_"&Products[[#This Row],[Rate]]*100&"% £10k+ "&LOWER(Products[[#This Row],[Single / Joint]])& " ("&SUM(Products[[#This Row],[Cont to Adv. Fees]:[Cont to Sols Fees]])&" cont to fees, Arr Fee "&Products[[#This Row],[Arr` Fee]]&") No facility cap ", IF(AND(Products[[#This Row],[Pack]]="Fees Package",Products[[#This Row],[DD Cap]]<>0),"SOVEREIGN "&Products[[#This Row],[Pack]]&" DRAWDOWN "&Products[[#This Row],[LTV Band]]&"_"&Products[[#This Row],[Rate]]*100&"% £10k+ "&LOWER(Products[[#This Row],[Single / Joint]])& " ("&SUM(Products[[#This Row],[Cont to Adv. Fees]:[Cont to Sols Fees]])&" cont to fees, Arr Fee "&Products[[#This Row],[Arr` Fee]]&")(3% cash) Facility cap "&Products[[#This Row],[DD Cap]]&"x initial", IF(AND(Products[[#This Row],[Pack]]="Fees Package",Products[[#This Row],[DD Cap]]=0),"SOVEREIGN "&Products[[#This Row],[Pack]]&" DRAWDOWN "&Products[[#This Row],[LTV Band]]&"_"&Products[[#This Row],[Rate]]*100&"% £10k+ "&LOWER(Products[[#This Row],[Single / Joint]])& " ("&SUM(Products[[#This Row],[Cont to Adv. Fees]:[Cont to Sols Fees]])&" cont to fees, Arr Fee "&Products[[#This Row],[Arr` Fee]]&")(3% cash) No facility cap ", " "))))))) -> SOVEREIGN Standard Lump Sum B_3.02% £10k+ 0 (600 cont to fees, Arr Fee 895) | H25: =SUM(Products[[#This Row],[Base rate]:[x0]]) -> 0.0302 | I25: =IF(AND(ISBLANK(initialAdvance),Products[[#This Row],[Pack]]="Fees Package"),20000, IF(AND(ISBLANK(initialAdvance),Products[[#This Row],[Pack]]="Elite"),725001, IF(AND(ISBLANK(initialAdvance),Products[[#This Row],[Pack]]="Standard"),10000,IF(AND(initialAdvance<725001,Products[[#This Row],[Pack]]="Elite"),725001,initialAdvance)))) -> 10000 | J25: =IF(AND(Products[[#This Row],[LTV Band]]="A",Products[[#This Row],[Single / Joint]]="Single"), SUMIF(LTVs!$A$3:$A$38,Menu!$I$9,LTVs!$C$3:$C$38), IF(AND(Products[[#This Row],[LTV Band]]="A",Products[[#This Row],[Single / Joint]]="Joint"), SUMIF(LTVs!$A$3:$A$38,Menu!$I$9,LTVs!$D$3:$D$38), IF(AND(Products[[#This Row],[LTV Band]]="B",Products[[#This Row],[Single / Joint]]="Single"), SUMIF(LTVs!$A$3:$A$38,Menu!$I$9,LTVs!$E$3:$E$38), IF(AND(Products[[#This Row],[LTV Band]]="B",Products[[#This Row],[Single / Joint]]="Joint"), SUMIF(LTVs!$A$3:$A$38,Menu!$I$9,LTVs!$F$3:$F$38), IF(AND(Products[[#This Row],[LTV Band]]="C",Products[[#This Row],[Single / Joint]]="Single"), SUMIF(LTVs!$A$3:$A$38,Menu!$I$9,LTVs!$G$3:$G$38), IF(AND(Products[[#This Row],[LTV Band]]="C",Products[[#This Row],[Single / Joint]]="Joint"), SUMIF(LTVs!$A$3:$A$38,Menu!$I$9,LTVs!$H$3:$H$38), IF(AND(Products[[#This Row],[LTV Band]]="D",Products[[#This Row],[Single / Joint]]="Single"), SUMIF(LTVs!$A$3:$A$38,Menu!$I$9,LTVs!$I$3:$I$38), IF(AND(Products[[#This Row],[LTV Band]]="D",Products[[#This Row],[Single / Joint]]="Joint"), SUMIF(LTVs!$A$3:$A$38,Menu!$I$9,LTVs!$J$3:$J$38), IF(AND(Products[[#This Row],[LTV Band]]="E",Products[[#This Row],[Single / Joint]]="Single"), SUMIF(LTVs!$A$3:$A$38,Menu!$I$9,LTVs!$K$3:$K$38), IF(AND(Products[[#This Row],[LTV Band]]="E",Products[[#This Row],[Single / Joint]]="Joint"), SUMIF(LTVs!$A$3:$A$38,Menu!$I$9,LTVs!$L$3:$L$38), IF(AND(Products[[#This Row],[LTV Band]]="F",Products[[#This Row],[Single / Joint]]="Single"), SUMIF(LTVs!$A$3:$A$38,Menu!$I$9,LTVs!$M$3:$M$38), IF(AND(Products[[#This Row],[LTV Band]]="F",Products[[#This Row],[Single / Joint]]="Joint"), SUMIF(LTVs!$A$3:$A$38,Menu!$I$9,LTVs!$N$3:$N$38), " ")))))))))))) ->  | K25: =IF(AND(propertyValue*Products[[#This Row],[LTV ]]>725000,Products[[#This Row],[Pack]]<>"Elite"),725000,propertyValue*Products[[#This Row],[LTV ]]) ->  | L25: =IF(Products[[#This Row],[DD Cap]]="LS"," ",IF(reqrdDDamt<2000,"N/A",IF(reqrdDDamt<=Products[[#This Row],[Drawdown cap]],reqrdDDamt,"N/A"))) ->  | M25: =IF(Products[[#This Row],[DD Cap]]="LS"," ",IF(IF(Products[[#This Row],[DD Cap]]>=1,initialAdvance*Products[[#This Row],[DD Cap]],Products[[#This Row],[Max loan]]-initialAdvance)<Products[[#This Row],[Max loan]]-initialAdvance,IF(Products[[#This Row],[DD Cap]]>0,initialAdvance*Products[[#This Row],[DD Cap]],Products[[#This Row],[Max loan]]-initialAdvance),Products[[#This Row],[Max loan]]-initialAdvance)) ->  | N25: =IF(Products[[#This Row],[Pack]]="FP",895,895) -> 895 | O25: =IF(Products[[#This Row],[Pack]]="Fees Package",300,0) -> 0 | P25: 600 | Q25: =App_type -> 0 | R25: =IF(AND(ISBLANK(initialAdvance),Products[[#This Row],[Pack]]="Fees Package"),Products[[#This Row],[Max loan]]*3%, IF(AND(ISBLANK(initialAdvance),Products[[#This Row],[Pack]]="Fees Package"),Products[[#This Row],[Max loan]]*3%, IF(AND(initialAdvance>0,Products[[#This Row],[Pack]]="Fees Package"),initialAdvance*3%, IF(AND(initialAdvance>0,Products[[#This Row],[Pack]]="Fees Package"),initialAdvance*3%,0)))) -> 0 | S25: =IF(OR(ISBLANK(App_type),$I$9=0)," ", IF(ISBLANK(initialAdvance),Products[[#This Row],[Max loan]]+Products[[#This Row],[Cont to Adv. Fees]]+Products[[#This Row],[Cont to Sols Fees]]+Products[[#This Row],[Cashback]], initialAdvance+Products[[#This Row],[Cont to Adv. Fees]]+Products[[#This Row],[Cont to Sols Fees]]+Products[[#This Row],[Cashback]])) ->  | T25: =IF(AND(ISBLANK(initialAdvance),Products[[#This Row],[Pack]]="Fees Package",Products[[#This Row],[Max loan]]>=20000),1, IF(AND(ISBLANK(initialAdvance),Products[[#This Row],[Pack]]="Elite",Products[[#This Row],[Max loan]]>725000),1, IF(AND(ISBLANK(initialAdvance),Products[[#This Row],[Pack]]="Standard",Products[[#This Row],[Max loan]]>=10000),1, IF(AND(initialAdvance>0,Products[[#This Row],[Pack]]="Fees Package",initialAdvance>=20000,Products[[#This Row],[Max loan]]>=initialAdvance),1, IF(AND(initialAdvance>0,Products[[#This Row],[Pack]]="Elite",initialAdvance>725000,Products[[#This Row],[Max loan]]>=initialAdvance),1, IF(AND(initialAdvance>0,Products[[#This Row],[Pack]]="Standard",initialAdvance>=10000,Products[[#This Row],[Max loan]]>=initialAdvance),1,0)))))) ->  | U25: =IF(Products[[#This Row],[Cashback]]>0,1,0) -> 0 | V25: =INDEX(Rates!$B$2:$B$7,MATCH(Products[[#This Row],[LTV Band]],Rates!$A$2:$A$7,0)) -> 0.0302 | W25: =IF(Products[[#This Row],[Pack]]="Elite",IFERROR(INDEX(Rates!$C$2:$C$7,MATCH(Products[[#This Row],[LTV Band]],Rates!$A$2:$A$7,0)),0),0) -> 0 | X25: =IFERROR(INDEX(Rates!$D$2:$D$7,MATCH(Products[[#This Row],[Pack]],Rates!$D$1,0)),) -> 0 | Y25: =IFERROR(INDEX(Rates!$E$2:$E$7,MATCH(Products[[#This Row],[Pack]],Rates!$E$1,0)),) -> 0 | Z25: =IFERROR(INDEX(Rates!$F$2:$F$7,MATCH(Products[[#This Row],[DD Cap]],Rates!$F$1,0)),0) -> 0 | AA25: =IFERROR(INDEX(Rates!$G$2:$G$7,MATCH(Products[[#This Row],[DD Cap]],Rates!$G$1,0)),0) -> 0 | AB25: =IFERROR(INDEX(Rates!$H$2:$H$7,MATCH(Products[[#This Row],[DD Cap]],Rates!$H$1,0)),0) -> 0
A26: A | B26: Standard | C26: 1.5 | D26: =IF(Products[[#This Row],[DD Cap]]="LS", IF(Products[[#This Row],[Pack]]="Standard","SOVEREIGN "&Products[[#This Row],[Pack]]&" Lump Sum "&Products[[#This Row],[LTV Band]]&"_"&Products[[#This Row],[Rate]]*100&"% £10k+ "&LOWER(Products[[#This Row],[Single / Joint]])& " ("&SUM(Products[[#This Row],[Cont to Adv. Fees]:[Cont to Sols Fees]])&" cont to fees, "&"Arr Fee "&Products[[#This Row],[Arr` Fee]]&")", IF(Products[[#This Row],[Pack]]="Elite","SOVEREIGN "&Products[[#This Row],[Pack]]&" Lump Sum "&Products[[#This Row],[LTV Band]]&"_"&Products[[#This Row],[Rate]]*100&"% £10k+ "&LOWER(Products[[#This Row],[Single / Joint]])& " ("&SUM(Products[[#This Row],[Cont to Adv. Fees]:[Cont to Sols Fees]])&" cont to fees, "&"Arr Fee "&Products[[#This Row],[Arr` Fee]]&")", IF(Products[[#This Row],[Pack]]="Fees Package","SOVEREIGN "&Products[[#This Row],[Pack]]&" Lump Sum "&Products[[#This Row],[LTV Band]]&"_"&Products[[#This Row],[Rate]]*100&"% £10k+ "&LOWER(Products[[#This Row],[Single / Joint]])& " ("&SUM(Products[[#This Row],[Cont to Adv. Fees]:[Cont to Sols Fees]])&" cont to fees, "&"Arr Fee "&Products[[#This Row],[Arr` Fee]]&")(3% cash)"," "))), IF(AND(Products[[#This Row],[Pack]]="Standard",Products[[#This Row],[DD Cap]]<>0),"SOVEREIGN "&Products[[#This Row],[Pack]]&" DRAWDOWN "&Products[[#This Row],[LTV Band]]&"_"&Products[[#This Row],[Rate]]*100&"% £10k+ "&LOWER(Products[[#This Row],[Single / Joint]])& " ("&SUM(Products[[#This Row],[Cont to Adv. Fees]:[Cont to Sols Fees]])&" cont to fees, Arr Fee "&Products[[#This Row],[Arr` Fee]]&") Facility cap "&Products[[#This Row],[DD Cap]]&"x initial", IF(AND(Products[[#This Row],[Pack]]="Standard",Products[[#This Row],[DD Cap]]=0),"SOVEREIGN "&Products[[#This Row],[Pack]]&" DRAWDOWN "&Products[[#This Row],[LTV Band]]&"_"&Products[[#This Row],[Rate]]*100&"% £10k+ "&LOWER(Products[[#This Row],[Single / Joint]])& " ("&SUM(Products[[#This Row],[Cont to Adv. Fees]:[Cont to Sols Fees]])&" cont to fees, Arr Fee "&Products[[#This Row],[Arr` Fee]]&") No facility cap ", IF(AND(Products[[#This Row],[Pack]]="Elite",Products[[#This Row],[DD Cap]]<>0),"SOVEREIGN "&Products[[#This Row],[Pack]]&" DRAWDOWN "&Products[[#This Row],[LTV Band]]&"_"&Products[[#This Row],[Rate]]*100&"% £10k+ "&LOWER(Products[[#This Row],[Single / Joint]])& " ("&SUM(Products[[#This Row],[Cont to Adv. Fees]:[Cont to Sols Fees]])&" cont to fees, Arr Fee "&Products[[#This Row],[Arr` Fee]]&") Facility cap "&Products[[#This Row],[DD Cap]]&"x initial", IF(AND(Products[[#This Row],[Pack]]="Elite",Products[[#This Row],[DD Cap]]=0),"SOVEREIGN "&Products[[#This Row],[Pack]]&" DRAWDOWN "&Products[[#This Row],[LTV Band]]&"_"&Products[[#This Row],[Rate]]*100&"% £10k+ "&LOWER(Products[[#This Row],[Single / Joint]])& " ("&SUM(Products[[#This Row],[Cont to Adv. Fees]:[Cont to Sols Fees]])&" cont to fees, Arr Fee "&Products[[#This Row],[Arr` Fee]]&") No facility cap ", IF(AND(Products[[#This Row],[Pack]]="Fees Package",Products[[#This Row],[DD Cap]]<>0),"SOVEREIGN "&Products[[#This Row],[Pack]]&" DRAWDOWN "&Products[[#This Row],[LTV Band]]&"_"&Products[[#This Row],[Rate]]*100&"% £10k+ "&LOWER(Products[[#This Row],[Single / Joint]])& " ("&SUM(Products[[#This Row],[Cont to Adv. Fees]:[Cont to Sols Fees]])&" cont to fees, Arr Fee "&Products[[#This Row],[Arr` Fee]]&")(3% cash) Facility cap "&Products[[#This Row],[DD Cap]]&"x initial", IF(AND(Products[[#This Row],[Pack]]="Fees Package",Products[[#This Row],[DD Cap]]=0),"SOVEREIGN "&Products[[#This Row],[Pack]]&" DRAWDOWN "&Products[[#This Row],[LTV Band]]&"_"&Products[[#This Row],[Rate]]*100&"% £10k+ "&LOWER(Products[[#This Row],[Single / Joint]])& " ("&SUM(Products[[#This Row],[Cont to Adv. Fees]:[Cont to Sols Fees]])&" cont to fees, Arr Fee "&Products[[#This Row],[Arr` Fee]]&")(3% cash) No facility cap ", " "))))))) -> SOVEREIGN Standard DRAWDOWN A_3.06% £10k+ 0 (600 cont to fees, Arr Fee 895) Facility cap 1.5x initial | H26: =SUM(Products[[#This Row],[Base rate]:[x0]]) -> 0.0306 | I26: =IF(AND(ISBLANK(initialAdvance),Products[[#This Row],[Pack]]="Fees Package"),20000, IF(AND(ISBLANK(initialAdvance),Products[[#This Row],[Pack]]="Elite"),725001, IF(AND(ISBLANK(initialAdvance),Products[[#This Row],[Pack]]="Standard"),10000,IF(AND(initialAdvance<725001,Products[[#This Row],[Pack]]="Elite"),725001,initialAdvance)))) -> 10000 | J26: =IF(AND(Products[[#This Row],[LTV Band]]="A",Products[[#This Row],[Single / Joint]]="Single"), SUMIF(LTVs!$A$3:$A$38,Menu!$I$9,LTVs!$C$3:$C$38), IF(AND(Products[[#This Row],[LTV Band]]="A",Products[[#This Row],[Single / Joint]]="Joint"), SUMIF(LTVs!$A$3:$A$38,Menu!$I$9,LTVs!$D$3:$D$38), IF(AND(Products[[#This Row],[LTV Band]]="B",Products[[#This Row],[Single / Joint]]="Single"), SUMIF(LTVs!$A$3:$A$38,Menu!$I$9,LTVs!$E$3:$E$38), IF(AND(Products[[#This Row],[LTV Band]]="B",Products[[#This Row],[Single / Joint]]="Joint"), SUMIF(LTVs!$A$3:$A$38,Menu!$I$9,LTVs!$F$3:$F$38), IF(AND(Products[[#This Row],[LTV Band]]="C",Products[[#This Row],[Single / Joint]]="Single"), SUMIF(LTVs!$A$3:$A$38,Menu!$I$9,LTVs!$G$3:$G$38), IF(AND(Products[[#This Row],[LTV Band]]="C",Products[[#This Row],[Single / Joint]]="Joint"), SUMIF(LTVs!$A$3:$A$38,Menu!$I$9,LTVs!$H$3:$H$38), IF(AND(Products[[#This Row],[LTV Band]]="D",Products[[#This Row],[Single / Joint]]="Single"), SUMIF(LTVs!$A$3:$A$38,Menu!$I$9,LTVs!$I$3:$I$38), IF(AND(Products[[#This Row],[LTV Band]]="D",Products[[#This Row],[Single / Joint]]="Joint"), SUMIF(LTVs!$A$3:$A$38,Menu!$I$9,LTVs!$J$3:$J$38), IF(AND(Products[[#This Row],[LTV Band]]="E",Products[[#This Row],[Single / Joint]]="Single"), SUMIF(LTVs!$A$3:$A$38,Menu!$I$9,LTVs!$K$3:$K$38), IF(AND(Products[[#This Row],[LTV Band]]="E",Products[[#This Row],[Single / Joint]]="Joint"), SUMIF(LTVs!$A$3:$A$38,Menu!$I$9,LTVs!$L$3:$L$38), IF(AND(Products[[#This Row],[LTV Band]]="F",Products[[#This Row],[Single / Joint]]="Single"), SUMIF(LTVs!$A$3:$A$38,Menu!$I$9,LTVs!$M$3:$M$38), IF(AND(Products[[#This Row],[LTV Band]]="F",Products[[#This Row],[Single / Joint]]="Joint"), SUMIF(LTVs!$A$3:$A$38,Menu!$I$9,LTVs!$N$3:$N$38), " ")))))))))))) ->  | K26: =IF(AND(propertyValue*Products[[#This Row],[LTV ]]>725000,Products[[#This Row],[Pack]]<>"Elite"),725000,propertyValue*Products[[#This Row],[LTV ]]) ->  | L26: =IF(Products[[#This Row],[DD Cap]]="LS"," ",IF(reqrdDDamt<2000,"N/A",IF(reqrdDDamt<=Products[[#This Row],[Drawdown cap]],reqrdDDamt,"N/A"))) -> N/A | M26: =IF(Products[[#This Row],[DD Cap]]="LS"," ",IF(IF(Products[[#This Row],[DD Cap]]>=1,initialAdvance*Products[[#This Row],[DD Cap]],Products[[#This Row],[Max loan]]-initialAdvance)<Products[[#This Row],[Max loan]]-initialAdvance,IF(Products[[#This Row],[DD Cap]]>0,initialAdvance*Products[[#This Row],[DD Cap]],Products[[#This Row],[Max loan]]-initialAdvance),Products[[#This Row],[Max loan]]-initialAdvance)) ->  | N26: =IF(Products[[#This Row],[Pack]]="FP",895,895) -> 895 | O26: =IF(Products[[#This Row],[Pack]]="Fees Package",300,0) -> 0 | P26: 600 | Q26: =App_type -> 0 | R26: =IF(AND(ISBLANK(initialAdvance),Products[[#This Row],[Pack]]="Fees Package"),Products[[#This Row],[Max loan]]*3%, IF(AND(ISBLANK(initialAdvance),Products[[#This Row],[Pack]]="Fees Package"),Products[[#This Row],[Max loan]]*3%, IF(AND(initialAdvance>0,Products[[#This Row],[Pack]]="Fees Package"),initialAdvance*3%, IF(AND(initialAdvance>0,Products[[#This Row],[Pack]]="Fees Package"),initialAdvance*3%,0)))) -> 0 | S26: =IF(OR(ISBLANK(App_type),$I$9=0)," ", IF(ISBLANK(initialAdvance),Products[[#This Row],[Max loan]]+Products[[#This Row],[Cont to Adv. Fees]]+Products[[#This Row],[Cont to Sols Fees]]+Products[[#This Row],[Cashback]], initialAdvance+Products[[#This Row],[Cont to Adv. Fees]]+Products[[#This Row],[Cont to Sols Fees]]+Products[[#This Row],[Cashback]])) ->  | T26: =IF(AND(ISBLANK(initialAdvance),Products[[#This Row],[Pack]]="Fees Package",Products[[#This Row],[Max loan]]>=20000),1, IF(AND(ISBLANK(initialAdvance),Products[[#This Row],[Pack]]="Elite",Products[[#This Row],[Max loan]]>725000),1, IF(AND(ISBLANK(initialAdvance),Products[[#This Row],[Pack]]="Standard",Products[[#This Row],[Max loan]]>=10000),1, IF(AND(initialAdvance>0,Products[[#This Row],[Pack]]="Fees Package",initialAdvance>=20000,Products[[#This Row],[Max loan]]>=initialAdvance),1, IF(AND(initialAdvance>0,Products[[#This Row],[Pack]]="Elite",initialAdvance>725000,Products[[#This Row],[Max loan]]>=initialAdvance),1, IF(AND(initialAdvance>0,Products[[#This Row],[Pack]]="Standard",initialAdvance>=10000,Products[[#This Row],[Max loan]]>=initialAdvance),1,0)))))) ->  | U26: =IF(Products[[#This Row],[Cashback]]>0,1,0) -> 0 | V26: =INDEX(Rates!$B$2:$B$7,MATCH(Products[[#This Row],[LTV Band]],Rates!$A$2:$A$7,0)) -> 0.0291 | W26: =IF(Products[[#This Row],[Pack]]="Elite",IFERROR(INDEX(Rates!$C$2:$C$7,MATCH(Products[[#This Row],[LTV Band]],Rates!$A$2:$A$7,0)),0),0) -> 0 | X26: =IFERROR(INDEX(Rates!$D$2:$D$7,MATCH(Products[[#This Row],[Pack]],Rates!$D$1,0)),) -> 0 | Y26: =IFERROR(INDEX(Rates!$E$2:$E$7,MATCH(Products[[#This Row],[Pack]],Rates!$E$1,0)),) -> 0 | Z26: =IFERROR(INDEX(Rates!$F$2:$F$7,MATCH(Products[[#This Row],[DD Cap]],Rates!$F$1,0)),0) -> 0 | AA26: =IFERROR(INDEX(Rates!$G$2:$G$7,MATCH(Products[[#This Row],[DD Cap]],Rates!$G$1,0)),0) -> 0.0015 | AB26: =IFERROR(INDEX(Rates!$H$2:$H$7,MATCH(Products[[#This Row],[DD Cap]],Rates!$H$1,0)),0) -> 0
A27: A | B27: Standard | C27: 0 | D27: =IF(Products[[#This Row],[DD Cap]]="LS", IF(Products[[#This Row],[Pack]]="Standard","SOVEREIGN "&Products[[#This Row],[Pack]]&" Lump Sum "&Products[[#This Row],[LTV Band]]&"_"&Products[[#This Row],[Rate]]*100&"% £10k+ "&LOWER(Products[[#This Row],[Single / Joint]])& " ("&SUM(Products[[#This Row],[Cont to Adv. Fees]:[Cont to Sols Fees]])&" cont to fees, "&"Arr Fee "&Products[[#This Row],[Arr` Fee]]&")", IF(Products[[#This Row],[Pack]]="Elite","SOVEREIGN "&Products[[#This Row],[Pack]]&" Lump Sum "&Products[[#This Row],[LTV Band]]&"_"&Products[[#This Row],[Rate]]*100&"% £10k+ "&LOWER(Products[[#This Row],[Single / Joint]])& " ("&SUM(Products[[#This Row],[Cont to Adv. Fees]:[Cont to Sols Fees]])&" cont to fees, "&"Arr Fee "&Products[[#This Row],[Arr` Fee]]&")", IF(Products[[#This Row],[Pack]]="Fees Package","SOVEREIGN "&Products[[#This Row],[Pack]]&" Lump Sum "&Products[[#This Row],[LTV Band]]&"_"&Products[[#This Row],[Rate]]*100&"% £10k+ "&LOWER(Products[[#This Row],[Single / Joint]])& " ("&SUM(Products[[#This Row],[Cont to Adv. Fees]:[Cont to Sols Fees]])&" cont to fees, "&"Arr Fee "&Products[[#This Row],[Arr` Fee]]&")(3% cash)"," "))), IF(AND(Products[[#This Row],[Pack]]="Standard",Products[[#This Row],[DD Cap]]<>0),"SOVEREIGN "&Products[[#This Row],[Pack]]&" DRAWDOWN "&Products[[#This Row],[LTV Band]]&"_"&Products[[#This Row],[Rate]]*100&"% £10k+ "&LOWER(Products[[#This Row],[Single / Joint]])& " ("&SUM(Products[[#This Row],[Cont to Adv. Fees]:[Cont to Sols Fees]])&" cont to fees, Arr Fee "&Products[[#This Row],[Arr` Fee]]&") Facility cap "&Products[[#This Row],[DD Cap]]&"x initial", IF(AND(Products[[#This Row],[Pack]]="Standard",Products[[#This Row],[DD Cap]]=0),"SOVEREIGN "&Products[[#This Row],[Pack]]&" DRAWDOWN "&Products[[#This Row],[LTV Band]]&"_"&Products[[#This Row],[Rate]]*100&"% £10k+ "&LOWER(Products[[#This Row],[Single / Joint]])& " ("&SUM(Products[[#This Row],[Cont to Adv. Fees]:[Cont to Sols Fees]])&" cont to fees, Arr Fee "&Products[[#This Row],[Arr` Fee]]&") No facility cap ", IF(AND(Products[[#This Row],[Pack]]="Elite",Products[[#This Row],[DD Cap]]<>0),"SOVEREIGN "&Products[[#This Row],[Pack]]&" DRAWDOWN "&Products[[#This Row],[LTV Band]]&"_"&Products[[#This Row],[Rate]]*100&"% £10k+ "&LOWER(Products[[#This Row],[Single / Joint]])& " ("&SUM(Products[[#This Row],[Cont to Adv. Fees]:[Cont to Sols Fees]])&" cont to fees, Arr Fee "&Products[[#This Row],[Arr` Fee]]&") Facility cap "&Products[[#This Row],[DD Cap]]&"x initial", IF(AND(Products[[#This Row],[Pack]]="Elite",Products[[#This Row],[DD Cap]]=0),"SOVEREIGN "&Products[[#This Row],[Pack]]&" DRAWDOWN "&Products[[#This Row],[LTV Band]]&"_"&Products[[#This Row],[Rate]]*100&"% £10k+ "&LOWER(Products[[#This Row],[Single / Joint]])& " ("&SUM(Products[[#This Row],[Cont to Adv. Fees]:[Cont to Sols Fees]])&" cont to fees, Arr Fee "&Products[[#This Row],[Arr` Fee]]&") No facility cap ", IF(AND(Products[[#This Row],[Pack]]="Fees Package",Products[[#This Row],[DD Cap]]<>0),"SOVEREIGN "&Products[[#This Row],[Pack]]&" DRAWDOWN "&Products[[#This Row],[LTV Band]]&"_"&Products[[#This Row],[Rate]]*100&"% £10k+ "&LOWER(Products[[#This Row],[Single / Joint]])& " ("&SUM(Products[[#This Row],[Cont to Adv. Fees]:[Cont to Sols Fees]])&" cont to fees, Arr Fee "&Products[[#This Row],[Arr` Fee]]&")(3% cash) Facility cap "&Products[[#This Row],[DD Cap]]&"x initial", IF(AND(Products[[#This Row],[Pack]]="Fees Package",Products[[#This Row],[DD Cap]]=0),"SOVEREIGN "&Products[[#This Row],[Pack]]&" DRAWDOWN "&Products[[#This Row],[LTV Band]]&"_"&Products[[#This Row],[Rate]]*100&"% £10k+ "&LOWER(Products[[#This Row],[Single / Joint]])& " ("&SUM(Products[[#This Row],[Cont to Adv. Fees]:[Cont to Sols Fees]])&" cont to fees, Arr Fee "&Products[[#This Row],[Arr` Fee]]&")(3% cash) No facility cap ", " "))))))) -> SOVEREIGN Standard DRAWDOWN A_3.11% £10k+ 0 (600 cont to fees, Arr Fee 895) No facility cap | H27: =SUM(Products[[#This Row],[Base rate]:[x0]]) -> 0.0311 | I27: =IF(AND(ISBLANK(initialAdvance),Products[[#This Row],[Pack]]="Fees Package"),20000, IF(AND(ISBLANK(initialAdvance),Products[[#This Row],[Pack]]="Elite"),725001, IF(AND(ISBLANK(initialAdvance),Products[[#This Row],[Pack]]="Standard"),10000,IF(AND(initialAdvance<725001,Products[[#This Row],[Pack]]="Elite"),725001,initialAdvance)))) -> 10000 | J27: =IF(AND(Products[[#This Row],[LTV Band]]="A",Products[[#This Row],[Single / Joint]]="Single"), SUMIF(LTVs!$A$3:$A$38,Menu!$I$9,LTVs!$C$3:$C$38), IF(AND(Products[[#This Row],[LTV Band]]="A",Products[[#This Row],[Single / Joint]]="Joint"), SUMIF(LTVs!$A$3:$A$38,Menu!$I$9,LTVs!$D$3:$D$38), IF(AND(Products[[#This Row],[LTV Band]]="B",Products[[#This Row],[Single / Joint]]="Single"), SUMIF(LTVs!$A$3:$A$38,Menu!$I$9,LTVs!$E$3:$E$38), IF(AND(Products[[#This Row],[LTV Band]]="B",Products[[#This Row],[Single / Joint]]="Joint"), SUMIF(LTVs!$A$3:$A$38,Menu!$I$9,LTVs!$F$3:$F$38), IF(AND(Products[[#This Row],[LTV Band]]="C",Products[[#This Row],[Single / Joint]]="Single"), SUMIF(LTVs!$A$3:$A$38,Menu!$I$9,LTVs!$G$3:$G$38), IF(AND(Products[[#This Row],[LTV Band]]="C",Products[[#This Row],[Single / Joint]]="Joint"), SUMIF(LTVs!$A$3:$A$38,Menu!$I$9,LTVs!$H$3:$H$38), IF(AND(Products[[#This Row],[LTV Band]]="D",Products[[#This Row],[Single / Joint]]="Single"), SUMIF(LTVs!$A$3:$A$38,Menu!$I$9,LTVs!$I$3:$I$38), IF(AND(Products[[#This Row],[LTV Band]]="D",Products[[#This Row],[Single / Joint]]="Joint"), SUMIF(LTVs!$A$3:$A$38,Menu!$I$9,LTVs!$J$3:$J$38), IF(AND(Products[[#This Row],[LTV Band]]="E",Products[[#This Row],[Single / Joint]]="Single"), SUMIF(LTVs!$A$3:$A$38,Menu!$I$9,LTVs!$K$3:$K$38), IF(AND(Products[[#This Row],[LTV Band]]="E",Products[[#This Row],[Single / Joint]]="Joint"), SUMIF(LTVs!$A$3:$A$38,Menu!$I$9,LTVs!$L$3:$L$38), IF(AND(Products[[#This Row],[LTV Band]]="F",Products[[#This Row],[Single / Joint]]="Single"), SUMIF(LTVs!$A$3:$A$38,Menu!$I$9,LTVs!$M$3:$M$38), IF(AND(Products[[#This Row],[LTV Band]]="F",Products[[#This Row],[Single / Joint]]="Joint"), SUMIF(LTVs!$A$3:$A$38,Menu!$I$9,LTVs!$N$3:$N$38), " ")))))))))))) ->  | K27: =IF(AND(propertyValue*Products[[#This Row],[LTV ]]>725000,Products[[#This Row],[Pack]]<>"Elite"),725000,propertyValue*Products[[#This Row],[LTV ]]) ->  | L27: =IF(Products[[#This Row],[DD Cap]]="LS"," ",IF(reqrdDDamt<2000,"N/A",IF(reqrdDDamt<=Products[[#This Row],[Drawdown cap]],reqrdDDamt,"N/A"))) -> N/A | M27: =IF(Products[[#This Row],[DD Cap]]="LS"," ",IF(IF(Products[[#This Row],[DD Cap]]>=1,initialAdvance*Products[[#This Row],[DD Cap]],Products[[#This Row],[Max loan]]-initialAdvance)<Products[[#This Row],[Max loan]]-initialAdvance,IF(Products[[#This Row],[DD Cap]]>0,initialAdvance*Products[[#This Row],[DD Cap]],Products[[#This Row],[Max loan]]-initialAdvance),Products[[#This Row],[Max loan]]-initialAdvance)) ->  | N27: =IF(Products[[#This Row],[Pack]]="FP",895,895) -> 895 | O27: =IF(Products[[#This Row],[Pack]]="Fees Package",300,0) -> 0 | P27: 600 | Q27: =App_type -> 0 | R27: =IF(AND(ISBLANK(initialAdvance),Products[[#This Row],[Pack]]="Fees Package"),Products[[#This Row],[Max loan]]*3%, IF(AND(ISBLANK(initialAdvance),Products[[#This Row],[Pack]]="Fees Package"),Products[[#This Row],[Max loan]]*3%, IF(AND(initialAdvance>0,Products[[#This Row],[Pack]]="Fees Package"),initialAdvance*3%, IF(AND(initialAdvance>0,Products[[#This Row],[Pack]]="Fees Package"),initialAdvance*3%,0)))) -> 0 | S27: =IF(OR(ISBLANK(App_type),$I$9=0)," ", IF(ISBLANK(initialAdvance),Products[[#This Row],[Max loan]]+Products[[#This Row],[Cont to Adv. Fees]]+Products[[#This Row],[Cont to Sols Fees]]+Products[[#This Row],[Cashback]], initialAdvance+Products[[#This Row],[Cont to Adv. Fees]]+Products[[#This Row],[Cont to Sols Fees]]+Products[[#This Row],[Cashback]])) ->  | T27: =IF(AND(ISBLANK(initialAdvance),Products[[#This Row],[Pack]]="Fees Package",Products[[#This Row],[Max loan]]>=20000),1, IF(AND(ISBLANK(initialAdvance),Products[[#This Row],[Pack]]="Elite",Products[[#This Row],[Max loan]]>725000),1, IF(AND(ISBLANK(initialAdvance),Products[[#This Row],[Pack]]="Standard",Products[[#This Row],[Max loan]]>=10000),1, IF(AND(initialAdvance>0,Products[[#This Row],[Pack]]="Fees Package",initialAdvance>=20000,Products[[#This Row],[Max loan]]>=initialAdvance),1, IF(AND(initialAdvance>0,Products[[#This Row],[Pack]]="Elite",initialAdvance>725000,Products[[#This Row],[Max loan]]>=initialAdvance),1, IF(AND(initialAdvance>0,Products[[#This Row],[Pack]]="Standard",initialAdvance>=10000,Products[[#This Row],[Max loan]]>=initialAdvance),1,0)))))) ->  | U27: =IF(Products[[#This Row],[Cashback]]>0,1,0) -> 0 | V27: =INDEX(Rates!$B$2:$B$7,MATCH(Products[[#This Row],[LTV Band]],Rates!$A$2:$A$7,0)) -> 0.0291 | W27: =IF(Products[[#This Row],[Pack]]="Elite",IFERROR(INDEX(Rates!$C$2:$C$7,MATCH(Products[[#This Row],[LTV Band]],Rates!$A$2:$A$7,0)),0),0) -> 0 | X27: =IFERROR(INDEX(Rates!$D$2:$D$7,MATCH(Products[[#This Row],[Pack]],Rates!$D$1,0)),) -> 0 | Y27: =IFERROR(INDEX(Rates!$E$2:$E$7,MATCH(Products[[#This Row],[Pack]],Rates!$E$1,0)),) -> 0 | Z27: =IFERROR(INDEX(Rates!$F$2:$F$7,MATCH(Products[[#This Row],[DD Cap]],Rates!$F$1,0)),0) -> 0 | AA27: =IFERROR(INDEX(Rates!$G$2:$G$7,MATCH(Products[[#This Row],[DD Cap]],Rates!$G$1,0)),0) -> 0 | AB27: =IFERROR(INDEX(Rates!$H$2:$H$7,MATCH(Products[[#This Row],[DD Cap]],Rates!$H$1,0)),0) -> 0.002
A28: B | B28: Standard | C28: 1 | D28: =IF(Products[[#This Row],[DD Cap]]="LS", IF(Products[[#This Row],[Pack]]="Standard","SOVEREIGN "&Products[[#This Row],[Pack]]&" Lump Sum "&Products[[#This Row],[LTV Band]]&"_"&Products[[#This Row],[Rate]]*100&"% £10k+ "&LOWER(Products[[#This Row],[Single / Joint]])& " ("&SUM(Products[[#This Row],[Cont to Adv. Fees]:[Cont to Sols Fees]])&" cont to fees, "&"Arr Fee "&Products[[#This Row],[Arr` Fee]]&")", IF(Products[[#This Row],[Pack]]="Elite","SOVEREIGN "&Products[[#This Row],[Pack]]&" Lump Sum "&Products[[#This Row],[LTV Band]]&"_"&Products[[#This Row],[Rate]]*100&"% £10k+ "&LOWER(Products[[#This Row],[Single / Joint]])& " ("&SUM(Products[[#This Row],[Cont to Adv. Fees]:[Cont to Sols Fees]])&" cont to fees, "&"Arr Fee "&Products[[#This Row],[Arr` Fee]]&")", IF(Products[[#This Row],[Pack]]="Fees Package","SOVEREIGN "&Products[[#This Row],[Pack]]&" Lump Sum "&Products[[#This Row],[LTV Band]]&"_"&Products[[#This Row],[Rate]]*100&"% £10k+ "&LOWER(Products[[#This Row],[Single / Joint]])& " ("&SUM(Products[[#This Row],[Cont to Adv. Fees]:[Cont to Sols Fees]])&" cont to fees, "&"Arr Fee "&Products[[#This Row],[Arr` Fee]]&")(3% cash)"," "))), IF(AND(Products[[#This Row],[Pack]]="Standard",Products[[#This Row],[DD Cap]]<>0),"SOVEREIGN "&Products[[#This Row],[Pack]]&" DRAWDOWN "&Products[[#This Row],[LTV Band]]&"_"&Products[[#This Row],[Rate]]*100&"% £10k+ "&LOWER(Products[[#This Row],[Single / Joint]])& " ("&SUM(Products[[#This Row],[Cont to Adv. Fees]:[Cont to Sols Fees]])&" cont to fees, Arr Fee "&Products[[#This Row],[Arr` Fee]]&") Facility cap "&Products[[#This Row],[DD Cap]]&"x initial", IF(AND(Products[[#This Row],[Pack]]="Standard",Products[[#This Row],[DD Cap]]=0),"SOVEREIGN "&Products[[#This Row],[Pack]]&" DRAWDOWN "&Products[[#This Row],[LTV Band]]&"_"&Products[[#This Row],[Rate]]*100&"% £10k+ "&LOWER(Products[[#This Row],[Single / Joint]])& " ("&SUM(Products[[#This Row],[Cont to Adv. Fees]:[Cont to Sols Fees]])&" cont to fees, Arr Fee "&Products[[#This Row],[Arr` Fee]]&") No facility cap ", IF(AND(Products[[#This Row],[Pack]]="Elite",Products[[#This Row],[DD Cap]]<>0),"SOVEREIGN "&Products[[#This Row],[Pack]]&" DRAWDOWN "&Products[[#This Row],[LTV Band]]&"_"&Products[[#This Row],[Rate]]*100&"% £10k+ "&LOWER(Products[[#This Row],[Single / Joint]])& " ("&SUM(Products[[#This Row],[Cont to Adv. Fees]:[Cont to Sols Fees]])&" cont to fees, Arr Fee "&Products[[#This Row],[Arr` Fee]]&") Facility cap "&Products[[#This Row],[DD Cap]]&"x initial", IF(AND(Products[[#This Row],[Pack]]="Elite",Products[[#This Row],[DD Cap]]=0),"SOVEREIGN "&Products[[#This Row],[Pack]]&" DRAWDOWN "&Products[[#This Row],[LTV Band]]&"_"&Products[[#This Row],[Rate]]*100&"% £10k+ "&LOWER(Products[[#This Row],[Single / Joint]])& " ("&SUM(Products[[#This Row],[Cont to Adv. Fees]:[Cont to Sols Fees]])&" cont to fees, Arr Fee "&Products[[#This Row],[Arr` Fee]]&") No facility cap ", IF(AND(Products[[#This Row],[Pack]]="Fees Package",Products[[#This Row],[DD Cap]]<>0),"SOVEREIGN "&Products[[#This Row],[Pack]]&" DRAWDOWN "&Products[[#This Row],[LTV Band]]&"_"&Products[[#This Row],[Rate]]*100&"% £10k+ "&LOWER(Products[[#This Row],[Single / Joint]])& " ("&SUM(Products[[#This Row],[Cont to Adv. Fees]:[Cont to Sols Fees]])&" cont to fees, Arr Fee "&Products[[#This Row],[Arr` Fee]]&")(3% cash) Facility cap "&Products[[#This Row],[DD Cap]]&"x initial", IF(AND(Products[[#This Row],[Pack]]="Fees Package",Products[[#This Row],[DD Cap]]=0),"SOVEREIGN "&Products[[#This Row],[Pack]]&" DRAWDOWN "&Products[[#This Row],[LTV Band]]&"_"&Products[[#This Row],[Rate]]*100&"% £10k+ "&LOWER(Products[[#This Row],[Single / Joint]])& " ("&SUM(Products[[#This Row],[Cont to Adv. Fees]:[Cont to Sols Fees]])&" cont to fees, Arr Fee "&Products[[#This Row],[Arr` Fee]]&")(3% cash) No facility cap ", " "))))))) -> SOVEREIGN Standard DRAWDOWN B_3.12% £10k+ 0 (600 cont to fees, Arr Fee 895) Facility cap 1x initial | H28: =SUM(Products[[#This Row],[Base rate]:[x0]]) -> 0.0312 | I28: =IF(AND(ISBLANK(initialAdvance),Products[[#This Row],[Pack]]="Fees Package"),20000, IF(AND(ISBLANK(initialAdvance),Products[[#This Row],[Pack]]="Elite"),725001, IF(AND(ISBLANK(initialAdvance),Products[[#This Row],[Pack]]="Standard"),10000,IF(AND(initialAdvance<725001,Products[[#This Row],[Pack]]="Elite"),725001,initialAdvance)))) -> 10000 | J28: =IF(AND(Products[[#This Row],[LTV Band]]="A",Products[[#This Row],[Single / Joint]]="Single"), SUMIF(LTVs!$A$3:$A$38,Menu!$I$9,LTVs!$C$3:$C$38), IF(AND(Products[[#This Row],[LTV Band]]="A",Products[[#This Row],[Single / Joint]]="Joint"), SUMIF(LTVs!$A$3:$A$38,Menu!$I$9,LTVs!$D$3:$D$38), IF(AND(Products[[#This Row],[LTV Band]]="B",Products[[#This Row],[Single / Joint]]="Single"), SUMIF(LTVs!$A$3:$A$38,Menu!$I$9,LTVs!$E$3:$E$38), IF(AND(Products[[#This Row],[LTV Band]]="B",Products[[#This Row],[Single / Joint]]="Joint"), SUMIF(LTVs!$A$3:$A$38,Menu!$I$9,LTVs!$F$3:$F$38), IF(AND(Products[[#This Row],[LTV Band]]="C",Products[[#This Row],[Single / Joint]]="Single"), SUMIF(LTVs!$A$3:$A$38,Menu!$I$9,LTVs!$G$3:$G$38), IF(AND(Products[[#This Row],[LTV Band]]="C",Products[[#This Row],[Single / Joint]]="Joint"), SUMIF(LTVs!$A$3:$A$38,Menu!$I$9,LTVs!$H$3:$H$38), IF(AND(Products[[#This Row],[LTV Band]]="D",Products[[#This Row],[Single / Joint]]="Single"), SUMIF(LTVs!$A$3:$A$38,Menu!$I$9,LTVs!$I$3:$I$38), IF(AND(Products[[#This Row],[LTV Band]]="D",Products[[#This Row],[Single / Joint]]="Joint"), SUMIF(LTVs!$A$3:$A$38,Menu!$I$9,LTVs!$J$3:$J$38), IF(AND(Products[[#This Row],[LTV Band]]="E",Products[[#This Row],[Single / Joint]]="Single"), SUMIF(LTVs!$A$3:$A$38,Menu!$I$9,LTVs!$K$3:$K$38), IF(AND(Products[[#This Row],[LTV Band]]="E",Products[[#This Row],[Single / Joint]]="Joint"), SUMIF(LTVs!$A$3:$A$38,Menu!$I$9,LTVs!$L$3:$L$38), IF(AND(Products[[#This Row],[LTV Band]]="F",Products[[#This Row],[Single / Joint]]="Single"), SUMIF(LTVs!$A$3:$A$38,Menu!$I$9,LTVs!$M$3:$M$38), IF(AND(Products[[#This Row],[LTV Band]]="F",Products[[#This Row],[Single / Joint]]="Joint"), SUMIF(LTVs!$A$3:$A$38,Menu!$I$9,LTVs!$N$3:$N$38), " ")))))))))))) ->  | K28: =IF(AND(propertyValue*Products[[#This Row],[LTV ]]>725000,Products[[#This Row],[Pack]]<>"Elite"),725000,propertyValue*Products[[#This Row],[LTV ]]) ->  | L28: =IF(Products[[#This Row],[DD Cap]]="LS"," ",IF(reqrdDDamt<2000,"N/A",IF(reqrdDDamt<=Products[[#This Row],[Drawdown cap]],reqrdDDamt,"N/A"))) -> N/A | M28: =IF(Products[[#This Row],[DD Cap]]="LS"," ",IF(IF(Products[[#This Row],[DD Cap]]>=1,initialAdvance*Products[[#This Row],[DD Cap]],Products[[#This Row],[Max loan]]-initialAdvance)<Products[[#This Row],[Max loan]]-initialAdvance,IF(Products[[#This Row],[DD Cap]]>0,initialAdvance*Products[[#This Row],[DD Cap]],Products[[#This Row],[Max loan]]-initialAdvance),Products[[#This Row],[Max loan]]-initialAdvance)) ->  | N28: =IF(Products[[#This Row],[Pack]]="FP",895,895) -> 895 | O28: =IF(Products[[#This Row],[Pack]]="Fees Package",300,0) -> 0 | P28: 600 | Q28: =App_type -> 0 | R28: =IF(AND(ISBLANK(initialAdvance),Products[[#This Row],[Pack]]="Fees Package"),Products[[#This Row],[Max loan]]*3%, IF(AND(ISBLANK(initialAdvance),Products[[#This Row],[Pack]]="Fees Package"),Products[[#This Row],[Max loan]]*3%, IF(AND(initialAdvance>0,Products[[#This Row],[Pack]]="Fees Package"),initialAdvance*3%, IF(AND(initialAdvance>0,Products[[#This Row],[Pack]]="Fees Package"),initialAdvance*3%,0)))) -> 0 | S28: =IF(OR(ISBLANK(App_type),$I$9=0)," ", IF(ISBLANK(initialAdvance),Products[[#This Row],[Max loan]]+Products[[#This Row],[Cont to Adv. Fees]]+Products[[#This Row],[Cont to Sols Fees]]+Products[[#This Row],[Cashback]], initialAdvance+Products[[#This Row],[Cont to Adv. Fees]]+Products[[#This Row],[Cont to Sols Fees]]+Products[[#This Row],[Cashback]])) ->  | T28: =IF(AND(ISBLANK(initialAdvance),Products[[#This Row],[Pack]]="Fees Package",Products[[#This Row],[Max loan]]>=20000),1, IF(AND(ISBLANK(initialAdvance),Products[[#This Row],[Pack]]="Elite",Products[[#This Row],[Max loan]]>725000),1, IF(AND(ISBLANK(initialAdvance),Products[[#This Row],[Pack]]="Standard",Products[[#This Row],[Max loan]]>=10000),1, IF(AND(initialAdvance>0,Products[[#This Row],[Pack]]="Fees Package",initialAdvance>=20000,Products[[#This Row],[Max loan]]>=initialAdvance),1, IF(AND(initialAdvance>0,Products[[#This Row],[Pack]]="Elite",initialAdvance>725000,Products[[#This Row],[Max loan]]>=initialAdvance),1, IF(AND(initialAdvance>0,Products[[#This Row],[Pack]]="Standard",initialAdvance>=10000,Products[[#This Row],[Max loan]]>=initialAdvance),1,0)))))) ->  | U28: =IF(Products[[#This Row],[Cashback]]>0,1,0) -> 0 | V28: =INDEX(Rates!$B$2:$B$7,MATCH(Products[[#This Row],[LTV Band]],Rates!$A$2:$A$7,0)) -> 0.0302 | W28: =IF(Products[[#This Row],[Pack]]="Elite",IFERROR(INDEX(Rates!$C$2:$C$7,MATCH(Products[[#This Row],[LTV Band]],Rates!$A$2:$A$7,0)),0),0) -> 0 | X28: =IFERROR(INDEX(Rates!$D$2:$D$7,MATCH(Products[[#This Row],[Pack]],Rates!$D$1,0)),) -> 0 | Y28: =IFERROR(INDEX(Rates!$E$2:$E$7,MATCH(Products[[#This Row],[Pack]],Rates!$E$1,0)),) -> 0 | Z28: =IFERROR(INDEX(Rates!$F$2:$F$7,MATCH(Products[[#This Row],[DD Cap]],Rates!$F$1,0)),0) -> 0.001 | AA28: =IFERROR(INDEX(Rates!$G$2:$G$7,MATCH(Products[[#This Row],[DD Cap]],Rates!$G$1,0)),0) -> 0 | AB28: =IFERROR(INDEX(Rates!$H$2:$H$7,MATCH(Products[[#This Row],[DD Cap]],Rates!$H$1,0)),0) -> 0
A29: B | B29: Standard | C29: 1.5 | D29: =IF(Products[[#This Row],[DD Cap]]="LS", IF(Products[[#This Row],[Pack]]="Standard","SOVEREIGN "&Products[[#This Row],[Pack]]&" Lump Sum "&Products[[#This Row],[LTV Band]]&"_"&Products[[#This Row],[Rate]]*100&"% £10k+ "&LOWER(Products[[#This Row],[Single / Joint]])& " ("&SUM(Products[[#This Row],[Cont to Adv. Fees]:[Cont to Sols Fees]])&" cont to fees, "&"Arr Fee "&Products[[#This Row],[Arr` Fee]]&")", IF(Products[[#This Row],[Pack]]="Elite","SOVEREIGN "&Products[[#This Row],[Pack]]&" Lump Sum "&Products[[#This Row],[LTV Band]]&"_"&Products[[#This Row],[Rate]]*100&"% £10k+ "&LOWER(Products[[#This Row],[Single / Joint]])& " ("&SUM(Products[[#This Row],[Cont to Adv. Fees]:[Cont to Sols Fees]])&" cont to fees, "&"Arr Fee "&Products[[#This Row],[Arr` Fee]]&")", IF(Products[[#This Row],[Pack]]="Fees Package","SOVEREIGN "&Products[[#This Row],[Pack]]&" Lump Sum "&Products[[#This Row],[LTV Band]]&"_"&Products[[#This Row],[Rate]]*100&"% £10k+ "&LOWER(Products[[#This Row],[Single / Joint]])& " ("&SUM(Products[[#This Row],[Cont to Adv. Fees]:[Cont to Sols Fees]])&" cont to fees, "&"Arr Fee "&Products[[#This Row],[Arr` Fee]]&")(3% cash)"," "))), IF(AND(Products[[#This Row],[Pack]]="Standard",Products[[#This Row],[DD Cap]]<>0),"SOVEREIGN "&Products[[#This Row],[Pack]]&" DRAWDOWN "&Products[[#This Row],[LTV Band]]&"_"&Products[[#This Row],[Rate]]*100&"% £10k+ "&LOWER(Products[[#This Row],[Single / Joint]])& " ("&SUM(Products[[#This Row],[Cont to Adv. Fees]:[Cont to Sols Fees]])&" cont to fees, Arr Fee "&Products[[#This Row],[Arr` Fee]]&") Facility cap "&Products[[#This Row],[DD Cap]]&"x initial", IF(AND(Products[[#This Row],[Pack]]="Standard",Products[[#This Row],[DD Cap]]=0),"SOVEREIGN "&Products[[#This Row],[Pack]]&" DRAWDOWN "&Products[[#This Row],[LTV Band]]&"_"&Products[[#This Row],[Rate]]*100&"% £10k+ "&LOWER(Products[[#This Row],[Single / Joint]])& " ("&SUM(Products[[#This Row],[Cont to Adv. Fees]:[Cont to Sols Fees]])&" cont to fees, Arr Fee "&Products[[#This Row],[Arr` Fee]]&") No facility cap ", IF(AND(Products[[#This Row],[Pack]]="Elite",Products[[#This Row],[DD Cap]]<>0),"SOVEREIGN "&Products[[#This Row],[Pack]]&" DRAWDOWN "&Products[[#This Row],[LTV Band]]&"_"&Products[[#This Row],[Rate]]*100&"% £10k+ "&LOWER(Products[[#This Row],[Single / Joint]])& " ("&SUM(Products[[#This Row],[Cont to Adv. Fees]:[Cont to Sols Fees]])&" cont to fees, Arr Fee "&Products[[#This Row],[Arr` Fee]]&") Facility cap "&Products[[#This Row],[DD Cap]]&"x initial", IF(AND(Products[[#This Row],[Pack]]="Elite",Products[[#This Row],[DD Cap]]=0),"SOVEREIGN "&Products[[#This Row],[Pack]]&" DRAWDOWN "&Products[[#This Row],[LTV Band]]&"_"&Products[[#This Row],[Rate]]*100&"% £10k+ "&LOWER(Products[[#This Row],[Single / Joint]])& " ("&SUM(Products[[#This Row],[Cont to Adv. Fees]:[Cont to Sols Fees]])&" cont to fees, Arr Fee "&Products[[#This Row],[Arr` Fee]]&") No facility cap ", IF(AND(Products[[#This Row],[Pack]]="Fees Package",Products[[#This Row],[DD Cap]]<>0),"SOVEREIGN "&Products[[#This Row],[Pack]]&" DRAWDOWN "&Products[[#This Row],[LTV Band]]&"_"&Products[[#This Row],[Rate]]*100&"% £10k+ "&LOWER(Products[[#This Row],[Single / Joint]])& " ("&SUM(Products[[#This Row],[Cont to Adv. Fees]:[Cont to Sols Fees]])&" cont to fees, Arr Fee "&Products[[#This Row],[Arr` Fee]]&")(3% cash) Facility cap "&Products[[#This Row],[DD Cap]]&"x initial", IF(AND(Products[[#This Row],[Pack]]="Fees Package",Products[[#This Row],[DD Cap]]=0),"SOVEREIGN "&Products[[#This Row],[Pack]]&" DRAWDOWN "&Products[[#This Row],[LTV Band]]&"_"&Products[[#This Row],[Rate]]*100&"% £10k+ "&LOWER(Products[[#This Row],[Single / Joint]])& " ("&SUM(Products[[#This Row],[Cont to Adv. Fees]:[Cont to Sols Fees]])&" cont to fees, Arr Fee "&Products[[#This Row],[Arr` Fee]]&")(3% cash) No facility cap ", " "))))))) -> SOVEREIGN Standard DRAWDOWN B_3.17% £10k+ 0 (600 cont to fees, Arr Fee 895) Facility cap 1.5x initial | H29: =SUM(Products[[#This Row],[Base rate]:[x0]]) -> 0.0317 | I29: =IF(AND(ISBLANK(initialAdvance),Products[[#This Row],[Pack]]="Fees Package"),20000, IF(AND(ISBLANK(initialAdvance),Products[[#This Row],[Pack]]="Elite"),725001, IF(AND(ISBLANK(initialAdvance),Products[[#This Row],[Pack]]="Standard"),10000,IF(AND(initialAdvance<725001,Products[[#This Row],[Pack]]="Elite"),725001,initialAdvance)))) -> 10000 | J29: =IF(AND(Products[[#This Row],[LTV Band]]="A",Products[[#This Row],[Single / Joint]]="Single"), SUMIF(LTVs!$A$3:$A$38,Menu!$I$9,LTVs!$C$3:$C$38), IF(AND(Products[[#This Row],[LTV Band]]="A",Products[[#This Row],[Single / Joint]]="Joint"), SUMIF(LTVs!$A$3:$A$38,Menu!$I$9,LTVs!$D$3:$D$38), IF(AND(Products[[#This Row],[LTV Band]]="B",Products[[#This Row],[Single / Joint]]="Single"), SUMIF(LTVs!$A$3:$A$38,Menu!$I$9,LTVs!$E$3:$E$38), IF(AND(Products[[#This Row],[LTV Band]]="B",Products[[#This Row],[Single / Joint]]="Joint"), SUMIF(LTVs!$A$3:$A$38,Menu!$I$9,LTVs!$F$3:$F$38), IF(AND(Products[[#This Row],[LTV Band]]="C",Products[[#This Row],[Single / Joint]]="Single"), SUMIF(LTVs!$A$3:$A$38,Menu!$I$9,LTVs!$G$3:$G$38), IF(AND(Products[[#This Row],[LTV Band]]="C",Products[[#This Row],[Single / Joint]]="Joint"), SUMIF(LTVs!$A$3:$A$38,Menu!$I$9,LTVs!$H$3:$H$38), IF(AND(Products[[#This Row],[LTV Band]]="D",Products[[#This Row],[Single / Joint]]="Single"), SUMIF(LTVs!$A$3:$A$38,Menu!$I$9,LTVs!$I$3:$I$38), IF(AND(Products[[#This Row],[LTV Band]]="D",Products[[#This Row],[Single / Joint]]="Joint"), SUMIF(LTVs!$A$3:$A$38,Menu!$I$9,LTVs!$J$3:$J$38), IF(AND(Products[[#This Row],[LTV Band]]="E",Products[[#This Row],[Single / Joint]]="Single"), SUMIF(LTVs!$A$3:$A$38,Menu!$I$9,LTVs!$K$3:$K$38), IF(AND(Products[[#This Row],[LTV Band]]="E",Products[[#This Row],[Single / Joint]]="Joint"), SUMIF(LTVs!$A$3:$A$38,Menu!$I$9,LTVs!$L$3:$L$38), IF(AND(Products[[#This Row],[LTV Band]]="F",Products[[#This Row],[Single / Joint]]="Single"), SUMIF(LTVs!$A$3:$A$38,Menu!$I$9,LTVs!$M$3:$M$38), IF(AND(Products[[#This Row],[LTV Band]]="F",Products[[#This Row],[Single / Joint]]="Joint"), SUMIF(LTVs!$A$3:$A$38,Menu!$I$9,LTVs!$N$3:$N$38), " ")))))))))))) ->  | K29: =IF(AND(propertyValue*Products[[#This Row],[LTV ]]>725000,Products[[#This Row],[Pack]]<>"Elite"),725000,propertyValue*Products[[#This Row],[LTV ]]) ->  | L29: =IF(Products[[#This Row],[DD Cap]]="LS"," ",IF(reqrdDDamt<2000,"N/A",IF(reqrdDDamt<=Products[[#This Row],[Drawdown cap]],reqrdDDamt,"N/A"))) -> N/A | M29: =IF(Products[[#This Row],[DD Cap]]="LS"," ",IF(IF(Products[[#This Row],[DD Cap]]>=1,initialAdvance*Products[[#This Row],[DD Cap]],Products[[#This Row],[Max loan]]-initialAdvance)<Products[[#This Row],[Max loan]]-initialAdvance,IF(Products[[#This Row],[DD Cap]]>0,initialAdvance*Products[[#This Row],[DD Cap]],Products[[#This Row],[Max loan]]-initialAdvance),Products[[#This Row],[Max loan]]-initialAdvance)) ->  | N29: =IF(Products[[#This Row],[Pack]]="FP",895,895) -> 895 | O29: =IF(Products[[#This Row],[Pack]]="Fees Package",300,0) -> 0 | P29: 600 | Q29: =App_type -> 0 | R29: =IF(AND(ISBLANK(initialAdvance),Products[[#This Row],[Pack]]="Fees Package"),Products[[#This Row],[Max loan]]*3%, IF(AND(ISBLANK(initialAdvance),Products[[#This Row],[Pack]]="Fees Package"),Products[[#This Row],[Max loan]]*3%, IF(AND(initialAdvance>0,Products[[#This Row],[Pack]]="Fees Package"),initialAdvance*3%, IF(AND(initialAdvance>0,Products[[#This Row],[Pack]]="Fees Package"),initialAdvance*3%,0)))) -> 0 | S29: =IF(OR(ISBLANK(App_type),$I$9=0)," ", IF(ISBLANK(initialAdvance),Products[[#This Row],[Max loan]]+Products[[#This Row],[Cont to Adv. Fees]]+Products[[#This Row],[Cont to Sols Fees]]+Products[[#This Row],[Cashback]], initialAdvance+Products[[#This Row],[Cont to Adv. Fees]]+Products[[#This Row],[Cont to Sols Fees]]+Products[[#This Row],[Cashback]])) ->  | T29: =IF(AND(ISBLANK(initialAdvance),Products[[#This Row],[Pack]]="Fees Package",Products[[#This Row],[Max loan]]>=20000),1, IF(AND(ISBLANK(initialAdvance),Products[[#This Row],[Pack]]="Elite",Products[[#This Row],[Max loan]]>725000),1, IF(AND(ISBLANK(initialAdvance),Products[[#This Row],[Pack]]="Standard",Products[[#This Row],[Max loan]]>=10000),1, IF(AND(initialAdvance>0,Products[[#This Row],[Pack]]="Fees Package",initialAdvance>=20000,Products[[#This Row],[Max loan]]>=initialAdvance),1, IF(AND(initialAdvance>0,Products[[#This Row],[Pack]]="Elite",initialAdvance>725000,Products[[#This Row],[Max loan]]>=initialAdvance),1, IF(AND(initialAdvance>0,Products[[#This Row],[Pack]]="Standard",initialAdvance>=10000,Products[[#This Row],[Max loan]]>=initialAdvance),1,0)))))) ->  | U29: =IF(Products[[#This Row],[Cashback]]>0,1,0) -> 0 | V29: =INDEX(Rates!$B$2:$B$7,MATCH(Products[[#This Row],[LTV Band]],Rates!$A$2:$A$7,0)) -> 0.0302 | W29: =IF(Products[[#This Row],[Pack]]="Elite",IFERROR(INDEX(Rates!$C$2:$C$7,MATCH(Products[[#This Row],[LTV Band]],Rates!$A$2:$A$7,0)),0),0) -> 0 | X29: =IFERROR(INDEX(Rates!$D$2:$D$7,MATCH(Products[[#This Row],[Pack]],Rates!$D$1,0)),) -> 0 | Y29: =IFERROR(INDEX(Rates!$E$2:$E$7,MATCH(Products[[#This Row],[Pack]],Rates!$E$1,0)),) -> 0 | Z29: =IFERROR(INDEX(Rates!$F$2:$F$7,MATCH(Products[[#This Row],[DD Cap]],Rates!$F$1,0)),0) -> 0 | AA29: =IFERROR(INDEX(Rates!$G$2:$G$7,MATCH(Products[[#This Row],[DD Cap]],Rates!$G$1,0)),0) -> 0.0015 | AB29: =IFERROR(INDEX(Rates!$H$2:$H$7,MATCH(Products[[#This Row],[DD Cap]],Rates!$H$1,0)),0) -> 0
A30: A | B30: Fees Package | C30: LS | D30: =IF(Products[[#This Row],[DD Cap]]="LS", IF(Products[[#This Row],[Pack]]="Standard","SOVEREIGN "&Products[[#This Row],[Pack]]&" Lump Sum "&Products[[#This Row],[LTV Band]]&"_"&Products[[#This Row],[Rate]]*100&"% £10k+ "&LOWER(Products[[#This Row],[Single / Joint]])& " ("&SUM(Products[[#This Row],[Cont to Adv. Fees]:[Cont to Sols Fees]])&" cont to fees, "&"Arr Fee "&Products[[#This Row],[Arr` Fee]]&")", IF(Products[[#This Row],[Pack]]="Elite","SOVEREIGN "&Products[[#This Row],[Pack]]&" Lump Sum "&Products[[#This Row],[LTV Band]]&"_"&Products[[#This Row],[Rate]]*100&"% £10k+ "&LOWER(Products[[#This Row],[Single / Joint]])& " ("&SUM(Products[[#This Row],[Cont to Adv. Fees]:[Cont to Sols Fees]])&" cont to fees, "&"Arr Fee "&Products[[#This Row],[Arr` Fee]]&")", IF(Products[[#This Row],[Pack]]="Fees Package","SOVEREIGN "&Products[[#This Row],[Pack]]&" Lump Sum "&Products[[#This Row],[LTV Band]]&"_"&Products[[#This Row],[Rate]]*100&"% £10k+ "&LOWER(Products[[#This Row],[Single / Joint]])& " ("&SUM(Products[[#This Row],[Cont to Adv. Fees]:[Cont to Sols Fees]])&" cont to fees, "&"Arr Fee "&Products[[#This Row],[Arr` Fee]]&")(3% cash)"," "))), IF(AND(Products[[#This Row],[Pack]]="Standard",Products[[#This Row],[DD Cap]]<>0),"SOVEREIGN "&Products[[#This Row],[Pack]]&" DRAWDOWN "&Products[[#This Row],[LTV Band]]&"_"&Products[[#This Row],[Rate]]*100&"% £10k+ "&LOWER(Products[[#This Row],[Single / Joint]])& " ("&SUM(Products[[#This Row],[Cont to Adv. Fees]:[Cont to Sols Fees]])&" cont to fees, Arr Fee "&Products[[#This Row],[Arr` Fee]]&") Facility cap "&Products[[#This Row],[DD Cap]]&"x initial", IF(AND(Products[[#This Row],[Pack]]="Standard",Products[[#This Row],[DD Cap]]=0),"SOVEREIGN "&Products[[#This Row],[Pack]]&" DRAWDOWN "&Products[[#This Row],[LTV Band]]&"_"&Products[[#This Row],[Rate]]*100&"% £10k+ "&LOWER(Products[[#This Row],[Single / Joint]])& " ("&SUM(Products[[#This Row],[Cont to Adv. Fees]:[Cont to Sols Fees]])&" cont to fees, Arr Fee "&Products[[#This Row],[Arr` Fee]]&") No facility cap ", IF(AND(Products[[#This Row],[Pack]]="Elite",Products[[#This Row],[DD Cap]]<>0),"SOVEREIGN "&Products[[#This Row],[Pack]]&" DRAWDOWN "&Products[[#This Row],[LTV Band]]&"_"&Products[[#This Row],[Rate]]*100&"% £10k+ "&LOWER(Products[[#This Row],[Single / Joint]])& " ("&SUM(Products[[#This Row],[Cont to Adv. Fees]:[Cont to Sols Fees]])&" cont to fees, Arr Fee "&Products[[#This Row],[Arr` Fee]]&") Facility cap "&Products[[#This Row],[DD Cap]]&"x initial", IF(AND(Products[[#This Row],[Pack]]="Elite",Products[[#This Row],[DD Cap]]=0),"SOVEREIGN "&Products[[#This Row],[Pack]]&" DRAWDOWN "&Products[[#This Row],[LTV Band]]&"_"&Products[[#This Row],[Rate]]*100&"% £10k+ "&LOWER(Products[[#This Row],[Single / Joint]])& " ("&SUM(Products[[#This Row],[Cont to Adv. Fees]:[Cont to Sols Fees]])&" cont to fees, Arr Fee "&Products[[#This Row],[Arr` Fee]]&") No facility cap ", IF(AND(Products[[#This Row],[Pack]]="Fees Package",Products[[#This Row],[DD Cap]]<>0),"SOVEREIGN "&Products[[#This Row],[Pack]]&" DRAWDOWN "&Products[[#This Row],[LTV Band]]&"_"&Products[[#This Row],[Rate]]*100&"% £10k+ "&LOWER(Products[[#This Row],[Single / Joint]])& " ("&SUM(Products[[#This Row],[Cont to Adv. Fees]:[Cont to Sols Fees]])&" cont to fees, Arr Fee "&Products[[#This Row],[Arr` Fee]]&")(3% cash) Facility cap "&Products[[#This Row],[DD Cap]]&"x initial", IF(AND(Products[[#This Row],[Pack]]="Fees Package",Products[[#This Row],[DD Cap]]=0),"SOVEREIGN "&Products[[#This Row],[Pack]]&" DRAWDOWN "&Products[[#This Row],[LTV Band]]&"_"&Products[[#This Row],[Rate]]*100&"% £10k+ "&LOWER(Products[[#This Row],[Single / Joint]])& " ("&SUM(Products[[#This Row],[Cont to Adv. Fees]:[Cont to Sols Fees]])&" cont to fees, Arr Fee "&Products[[#This Row],[Arr` Fee]]&")(3% cash) No facility cap ", " "))))))) -> SOVEREIGN Fees Package Lump Sum A_3.21% £10k+ 0 (900 cont to fees, Arr Fee 895)(3% cash) | H30: =SUM(Products[[#This Row],[Base rate]:[x0]]) -> 0.0321 | I30: =IF(AND(ISBLANK(initialAdvance),Products[[#This Row],[Pack]]="Fees Package"),20000, IF(AND(ISBLANK(initialAdvance),Products[[#This Row],[Pack]]="Elite"),725001, IF(AND(ISBLANK(initialAdvance),Products[[#This Row],[Pack]]="Standard"),10000,IF(AND(initialAdvance<725001,Products[[#This Row],[Pack]]="Elite"),725001,initialAdvance)))) -> 20000 | J30: =IF(AND(Products[[#This Row],[LTV Band]]="A",Products[[#This Row],[Single / Joint]]="Single"), SUMIF(LTVs!$A$3:$A$38,Menu!$I$9,LTVs!$C$3:$C$38), IF(AND(Products[[#This Row],[LTV Band]]="A",Products[[#This Row],[Single / Joint]]="Joint"), SUMIF(LTVs!$A$3:$A$38,Menu!$I$9,LTVs!$D$3:$D$38), IF(AND(Products[[#This Row],[LTV Band]]="B",Products[[#This Row],[Single / Joint]]="Single"), SUMIF(LTVs!$A$3:$A$38,Menu!$I$9,LTVs!$E$3:$E$38), IF(AND(Products[[#This Row],[LTV Band]]="B",Products[[#This Row],[Single / Joint]]="Joint"), SUMIF(LTVs!$A$3:$A$38,Menu!$I$9,LTVs!$F$3:$F$38), IF(AND(Products[[#This Row],[LTV Band]]="C",Products[[#This Row],[Single / Joint]]="Single"), SUMIF(LTVs!$A$3:$A$38,Menu!$I$9,LTVs!$G$3:$G$38), IF(AND(Products[[#This Row],[LTV Band]]="C",Products[[#This Row],[Single / Joint]]="Joint"), SUMIF(LTVs!$A$3:$A$38,Menu!$I$9,LTVs!$H$3:$H$38), IF(AND(Products[[#This Row],[LTV Band]]="D",Products[[#This Row],[Single / Joint]]="Single"), SUMIF(LTVs!$A$3:$A$38,Menu!$I$9,LTVs!$I$3:$I$38), IF(AND(Products[[#This Row],[LTV Band]]="D",Products[[#This Row],[Single / Joint]]="Joint"), SUMIF(LTVs!$A$3:$A$38,Menu!$I$9,LTVs!$J$3:$J$38), IF(AND(Products[[#This Row],[LTV Band]]="E",Products[[#This Row],[Single / Joint]]="Single"), SUMIF(LTVs!$A$3:$A$38,Menu!$I$9,LTVs!$K$3:$K$38), IF(AND(Products[[#This Row],[LTV Band]]="E",Products[[#This Row],[Single / Joint]]="Joint"), SUMIF(LTVs!$A$3:$A$38,Menu!$I$9,LTVs!$L$3:$L$38), IF(AND(Products[[#This Row],[LTV Band]]="F",Products[[#This Row],[Single / Joint]]="Single"), SUMIF(LTVs!$A$3:$A$38,Menu!$I$9,LTVs!$M$3:$M$38), IF(AND(Products[[#This Row],[LTV Band]]="F",Products[[#This Row],[Single / Joint]]="Joint"), SUMIF(LTVs!$A$3:$A$38,Menu!$I$9,LTVs!$N$3:$N$38), " ")))))))))))) ->  | K30: =IF(AND(propertyValue*Products[[#This Row],[LTV ]]>725000,Products[[#This Row],[Pack]]<>"Elite"),725000,propertyValue*Products[[#This Row],[LTV ]]) ->  | L30: =IF(Products[[#This Row],[DD Cap]]="LS"," ",IF(reqrdDDamt<2000,"N/A",IF(reqrdDDamt<=Products[[#This Row],[Drawdown cap]],reqrdDDamt,"N/A"))) ->  | M30: =IF(Products[[#This Row],[DD Cap]]="LS"," ",IF(IF(Products[[#This Row],[DD Cap]]>=1,initialAdvance*Products[[#This Row],[DD Cap]],Products[[#This Row],[Max loan]]-initialAdvance)<Products[[#This Row],[Max loan]]-initialAdvance,IF(Products[[#This Row],[DD Cap]]>0,initialAdvance*Products[[#This Row],[DD Cap]],Products[[#This Row],[Max loan]]-initialAdvance),Products[[#This Row],[Max loan]]-initialAdvance)) ->  | N30: =IF(Products[[#This Row],[Pack]]="FP",895,895) -> 895 | O30: =IF(Products[[#This Row],[Pack]]="Fees Package",300,0) -> 300 | P30: 600 | Q30: =App_type -> 0 | R30: =IF(AND(ISBLANK(initialAdvance),Products[[#This Row],[Pack]]="Fees Package"),Products[[#This Row],[Max loan]]*3%, IF(AND(ISBLANK(initialAdvance),Products[[#This Row],[Pack]]="Fees Package"),Products[[#This Row],[Max loan]]*3%, IF(AND(initialAdvance>0,Products[[#This Row],[Pack]]="Fees Package"),initialAdvance*3%, IF(AND(initialAdvance>0,Products[[#This Row],[Pack]]="Fees Package"),initialAdvance*3%,0)))) ->  | S30: =IF(OR(ISBLANK(App_type),$I$9=0)," ", IF(ISBLANK(initialAdvance),Products[[#This Row],[Max loan]]+Products[[#This Row],[Cont to Adv. Fees]]+Products[[#This Row],[Cont to Sols Fees]]+Products[[#This Row],[Cashback]], initialAdvance+Products[[#This Row],[Cont to Adv. Fees]]+Products[[#This Row],[Cont to Sols Fees]]+Products[[#This Row],[Cashback]])) ->  | T30: =IF(AND(ISBLANK(initialAdvance),Products[[#This Row],[Pack]]="Fees Package",Products[[#This Row],[Max loan]]>=20000),1, IF(AND(ISBLANK(initialAdvance),Products[[#This Row],[Pack]]="Elite",Products[[#This Row],[Max loan]]>725000),1, IF(AND(ISBLANK(initialAdvance),Products[[#This Row],[Pack]]="Standard",Products[[#This Row],[Max loan]]>=10000),1, IF(AND(initialAdvance>0,Products[[#This Row],[Pack]]="Fees Package",initialAdvance>=20000,Products[[#This Row],[Max loan]]>=initialAdvance),1, IF(AND(initialAdvance>0,Products[[#This Row],[Pack]]="Elite",initialAdvance>725000,Products[[#This Row],[Max loan]]>=initialAdvance),1, IF(AND(initialAdvance>0,Products[[#This Row],[Pack]]="Standard",initialAdvance>=10000,Products[[#This Row],[Max loan]]>=initialAdvance),1,0)))))) ->  | U30: =IF(Products[[#This Row],[Cashback]]>0,1,0) ->  | V30: =INDEX(Rates!$B$2:$B$7,MATCH(Products[[#This Row],[LTV Band]],Rates!$A$2:$A$7,0)) -> 0.0291 | W30: =IF(Products[[#This Row],[Pack]]="Elite",IFERROR(INDEX(Rates!$C$2:$C$7,MATCH(Products[[#This Row],[LTV Band]],Rates!$A$2:$A$7,0)),0),0) -> 0 | X30: =IFERROR(INDEX(Rates!$D$2:$D$7,MATCH(Products[[#This Row],[Pack]],Rates!$D$1,0)),) -> 0 | Y30: =IFERROR(INDEX(Rates!$E$2:$E$7,MATCH(Products[[#This Row],[Pack]],Rates!$E$1,0)),) -> 0.003 | Z30: =IFERROR(INDEX(Rates!$F$2:$F$7,MATCH(Products[[#This Row],[DD Cap]],Rates!$F$1,0)),0) -> 0 | AA30: =IFERROR(INDEX(Rates!$G$2:$G$7,MATCH(Products[[#This Row],[DD Cap]],Rates!$G$1,0)),0) -> 0 | AB30: =IFERROR(INDEX(Rates!$H$2:$H$7,MATCH(Products[[#This Row],[DD Cap]],Rates!$H$1,0)),0) -> 0
A31: B | B31: Standard | C31: 0 | D31: =IF(Products[[#This Row],[DD Cap]]="LS", IF(Products[[#This Row],[Pack]]="Standard","SOVEREIGN "&Products[[#This Row],[Pack]]&" Lump Sum "&Products[[#This Row],[LTV Band]]&"_"&Products[[#This Row],[Rate]]*100&"% £10k+ "&LOWER(Products[[#This Row],[Single / Joint]])& " ("&SUM(Products[[#This Row],[Cont to Adv. Fees]:[Cont to Sols Fees]])&" cont to fees, "&"Arr Fee "&Products[[#This Row],[Arr` Fee]]&")", IF(Products[[#This Row],[Pack]]="Elite","SOVEREIGN "&Products[[#This Row],[Pack]]&" Lump Sum "&Products[[#This Row],[LTV Band]]&"_"&Products[[#This Row],[Rate]]*100&"% £10k+ "&LOWER(Products[[#This Row],[Single / Joint]])& " ("&SUM(Products[[#This Row],[Cont to Adv. Fees]:[Cont to Sols Fees]])&" cont to fees, "&"Arr Fee "&Products[[#This Row],[Arr` Fee]]&")", IF(Products[[#This Row],[Pack]]="Fees Package","SOVEREIGN "&Products[[#This Row],[Pack]]&" Lump Sum "&Products[[#This Row],[LTV Band]]&"_"&Products[[#This Row],[Rate]]*100&"% £10k+ "&LOWER(Products[[#This Row],[Single / Joint]])& " ("&SUM(Products[[#This Row],[Cont to Adv. Fees]:[Cont to Sols Fees]])&" cont to fees, "&"Arr Fee "&Products[[#This Row],[Arr` Fee]]&")(3% cash)"," "))), IF(AND(Products[[#This Row],[Pack]]="Standard",Products[[#This Row],[DD Cap]]<>0),"SOVEREIGN "&Products[[#This Row],[Pack]]&" DRAWDOWN "&Products[[#This Row],[LTV Band]]&"_"&Products[[#This Row],[Rate]]*100&"% £10k+ "&LOWER(Products[[#This Row],[Single / Joint]])& " ("&SUM(Products[[#This Row],[Cont to Adv. Fees]:[Cont to Sols Fees]])&" cont to fees, Arr Fee "&Products[[#This Row],[Arr` Fee]]&") Facility cap "&Products[[#This Row],[DD Cap]]&"x initial", IF(AND(Products[[#This Row],[Pack]]="Standard",Products[[#This Row],[DD Cap]]=0),"SOVEREIGN "&Products[[#This Row],[Pack]]&" DRAWDOWN "&Products[[#This Row],[LTV Band]]&"_"&Products[[#This Row],[Rate]]*100&"% £10k+ "&LOWER(Products[[#This Row],[Single / Joint]])& " ("&SUM(Products[[#This Row],[Cont to Adv. Fees]:[Cont to Sols Fees]])&" cont to fees, Arr Fee "&Products[[#This Row],[Arr` Fee]]&") No facility cap ", IF(AND(Products[[#This Row],[Pack]]="Elite",Products[[#This Row],[DD Cap]]<>0),"SOVEREIGN "&Products[[#This Row],[Pack]]&" DRAWDOWN "&Products[[#This Row],[LTV Band]]&"_"&Products[[#This Row],[Rate]]*100&"% £10k+ "&LOWER(Products[[#This Row],[Single / Joint]])& " ("&SUM(Products[[#This Row],[Cont to Adv. Fees]:[Cont to Sols Fees]])&" cont to fees, Arr Fee "&Products[[#This Row],[Arr` Fee]]&") Facility cap "&Products[[#This Row],[DD Cap]]&"x initial", IF(AND(Products[[#This Row],[Pack]]="Elite",Products[[#This Row],[DD Cap]]=0),"SOVEREIGN "&Products[[#This Row],[Pack]]&" DRAWDOWN "&Products[[#This Row],[LTV Band]]&"_"&Products[[#This Row],[Rate]]*100&"% £10k+ "&LOWER(Products[[#This Row],[Single / Joint]])& " ("&SUM(Products[[#This Row],[Cont to Adv. Fees]:[Cont to Sols Fees]])&" cont to fees, Arr Fee "&Products[[#This Row],[Arr` Fee]]&") No facility cap ", IF(AND(Products[[#This Row],[Pack]]="Fees Package",Products[[#This Row],[DD Cap]]<>0),"SOVEREIGN "&Products[[#This Row],[Pack]]&" DRAWDOWN "&Products[[#This Row],[LTV Band]]&"_"&Products[[#This Row],[Rate]]*100&"% £10k+ "&LOWER(Products[[#This Row],[Single / Joint]])& " ("&SUM(Products[[#This Row],[Cont to Adv. Fees]:[Cont to Sols Fees]])&" cont to fees, Arr Fee "&Products[[#This Row],[Arr` Fee]]&")(3% cash) Facility cap "&Products[[#This Row],[DD Cap]]&"x initial", IF(AND(Products[[#This Row],[Pack]]="Fees Package",Products[[#This Row],[DD Cap]]=0),"SOVEREIGN "&Products[[#This Row],[Pack]]&" DRAWDOWN "&Products[[#This Row],[LTV Band]]&"_"&Products[[#This Row],[Rate]]*100&"% £10k+ "&LOWER(Products[[#This Row],[Single / Joint]])& " ("&SUM(Products[[#This Row],[Cont to Adv. Fees]:[Cont to Sols Fees]])&" cont to fees, Arr Fee "&Products[[#This Row],[Arr` Fee]]&")(3% cash) No facility cap ", " "))))))) -> SOVEREIGN Standard DRAWDOWN B_3.22% £10k+ 0 (600 cont to fees, Arr Fee 895) No facility cap | H31: =SUM(Products[[#This Row],[Base rate]:[x0]]) -> 0.0322 | I31: =IF(AND(ISBLANK(initialAdvance),Products[[#This Row],[Pack]]="Fees Package"),20000, IF(AND(ISBLANK(initialAdvance),Products[[#This Row],[Pack]]="Elite"),725001, IF(AND(ISBLANK(initialAdvance),Products[[#This Row],[Pack]]="Standard"),10000,IF(AND(initialAdvance<725001,Products[[#This Row],[Pack]]="Elite"),725001,initialAdvance)))) -> 10000 | J31: =IF(AND(Products[[#This Row],[LTV Band]]="A",Products[[#This Row],[Single / Joint]]="Single"), SUMIF(LTVs!$A$3:$A$38,Menu!$I$9,LTVs!$C$3:$C$38), IF(AND(Products[[#This Row],[LTV Band]]="A",Products[[#This Row],[Single / Joint]]="Joint"), SUMIF(LTVs!$A$3:$A$38,Menu!$I$9,LTVs!$D$3:$D$38), IF(AND(Products[[#This Row],[LTV Band]]="B",Products[[#This Row],[Single / Joint]]="Single"), SUMIF(LTVs!$A$3:$A$38,Menu!$I$9,LTVs!$E$3:$E$38), IF(AND(Products[[#This Row],[LTV Band]]="B",Products[[#This Row],[Single / Joint]]="Joint"), SUMIF(LTVs!$A$3:$A$38,Menu!$I$9,LTVs!$F$3:$F$38), IF(AND(Products[[#This Row],[LTV Band]]="C",Products[[#This Row],[Single / Joint]]="Single"), SUMIF(LTVs!$A$3:$A$38,Menu!$I$9,LTVs!$G$3:$G$38), IF(AND(Products[[#This Row],[LTV Band]]="C",Products[[#This Row],[Single / Joint]]="Joint"), SUMIF(LTVs!$A$3:$A$38,Menu!$I$9,LTVs!$H$3:$H$38), IF(AND(Products[[#This Row],[LTV Band]]="D",Products[[#This Row],[Single / Joint]]="Single"), SUMIF(LTVs!$A$3:$A$38,Menu!$I$9,LTVs!$I$3:$I$38), IF(AND(Products[[#This Row],[LTV Band]]="D",Products[[#This Row],[Single / Joint]]="Joint"), SUMIF(LTVs!$A$3:$A$38,Menu!$I$9,LTVs!$J$3:$J$38), IF(AND(Products[[#This Row],[LTV Band]]="E",Products[[#This Row],[Single / Joint]]="Single"), SUMIF(LTVs!$A$3:$A$38,Menu!$I$9,LTVs!$K$3:$K$38), IF(AND(Products[[#This Row],[LTV Band]]="E",Products[[#This Row],[Single / Joint]]="Joint"), SUMIF(LTVs!$A$3:$A$38,Menu!$I$9,LTVs!$L$3:$L$38), IF(AND(Products[[#This Row],[LTV Band]]="F",Products[[#This Row],[Single / Joint]]="Single"), SUMIF(LTVs!$A$3:$A$38,Menu!$I$9,LTVs!$M$3:$M$38), IF(AND(Products[[#This Row],[LTV Band]]="F",Products[[#This Row],[Single / Joint]]="Joint"), SUMIF(LTVs!$A$3:$A$38,Menu!$I$9,LTVs!$N$3:$N$38), " ")))))))))))) ->  | K31: =IF(AND(propertyValue*Products[[#This Row],[LTV ]]>725000,Products[[#This Row],[Pack]]<>"Elite"),725000,propertyValue*Products[[#This Row],[LTV ]]) ->  | L31: =IF(Products[[#This Row],[DD Cap]]="LS"," ",IF(reqrdDDamt<2000,"N/A",IF(reqrdDDamt<=Products[[#This Row],[Drawdown cap]],reqrdDDamt,"N/A"))) -> N/A | M31: =IF(Products[[#This Row],[DD Cap]]="LS"," ",IF(IF(Products[[#This Row],[DD Cap]]>=1,initialAdvance*Products[[#This Row],[DD Cap]],Products[[#This Row],[Max loan]]-initialAdvance)<Products[[#This Row],[Max loan]]-initialAdvance,IF(Products[[#This Row],[DD Cap]]>0,initialAdvance*Products[[#This Row],[DD Cap]],Products[[#This Row],[Max loan]]-initialAdvance),Products[[#This Row],[Max loan]]-initialAdvance)) ->  | N31: =IF(Products[[#This Row],[Pack]]="FP",895,895) -> 895 | O31: =IF(Products[[#This Row],[Pack]]="Fees Package",300,0) -> 0 | P31: 600 | Q31: =App_type -> 0 | R31: =IF(AND(ISBLANK(initialAdvance),Products[[#This Row],[Pack]]="Fees Package"),Products[[#This Row],[Max loan]]*3%, IF(AND(ISBLANK(initialAdvance),Products[[#This Row],[Pack]]="Fees Package"),Products[[#This Row],[Max loan]]*3%, IF(AND(initialAdvance>0,Products[[#This Row],[Pack]]="Fees Package"),initialAdvance*3%, IF(AND(initialAdvance>0,Products[[#This Row],[Pack]]="Fees Package"),initialAdvance*3%,0)))) -> 0 | S31: =IF(OR(ISBLANK(App_type),$I$9=0)," ", IF(ISBLANK(initialAdvance),Products[[#This Row],[Max loan]]+Products[[#This Row],[Cont to Adv. Fees]]+Products[[#This Row],[Cont to Sols Fees]]+Products[[#This Row],[Cashback]], initialAdvance+Products[[#This Row],[Cont to Adv. Fees]]+Products[[#This Row],[Cont to Sols Fees]]+Products[[#This Row],[Cashback]])) ->  | T31: =IF(AND(ISBLANK(initialAdvance),Products[[#This Row],[Pack]]="Fees Package",Products[[#This Row],[Max loan]]>=20000),1, IF(AND(ISBLANK(initialAdvance),Products[[#This Row],[Pack]]="Elite",Products[[#This Row],[Max loan]]>725000),1, IF(AND(ISBLANK(initialAdvance),Products[[#This Row],[Pack]]="Standard",Products[[#This Row],[Max loan]]>=10000),1, IF(AND(initialAdvance>0,Products[[#This Row],[Pack]]="Fees Package",initialAdvance>=20000,Products[[#This Row],[Max loan]]>=initialAdvance),1, IF(AND(initialAdvance>0,Products[[#This Row],[Pack]]="Elite",initialAdvance>725000,Products[[#This Row],[Max loan]]>=initialAdvance),1, IF(AND(initialAdvance>0,Products[[#This Row],[Pack]]="Standard",initialAdvance>=10000,Products[[#This Row],[Max loan]]>=initialAdvance),1,0)))))) ->  | U31: =IF(Products[[#This Row],[Cashback]]>0,1,0) -> 0 | V31: =INDEX(Rates!$B$2:$B$7,MATCH(Products[[#This Row],[LTV Band]],Rates!$A$2:$A$7,0)) -> 0.0302 | W31: =IF(Products[[#This Row],[Pack]]="Elite",IFERROR(INDEX(Rates!$C$2:$C$7,MATCH(Products[[#This Row],[LTV Band]],Rates!$A$2:$A$7,0)),0),0) -> 0 | X31: =IFERROR(INDEX(Rates!$D$2:$D$7,MATCH(Products[[#This Row],[Pack]],Rates!$D$1,0)),) -> 0 | Y31: =IFERROR(INDEX(Rates!$E$2:$E$7,MATCH(Products[[#This Row],[Pack]],Rates!$E$1,0)),) -> 0 | Z31: =IFERROR(INDEX(Rates!$F$2:$F$7,MATCH(Products[[#This Row],[DD Cap]],Rates!$F$1,0)),0) -> 0 | AA31: =IFERROR(INDEX(Rates!$G$2:$G$7,MATCH(Products[[#This Row],[DD Cap]],Rates!$G$1,0)),0) -> 0 | AB31: =IFERROR(INDEX(Rates!$H$2:$H$7,MATCH(Products[[#This Row],[DD Cap]],Rates!$H$1,0)),0) -> 0.002
A32: A | B32: Fees Package | C32: 1 | D32: =IF(Products[[#This Row],[DD Cap]]="LS", IF(Products[[#This Row],[Pack]]="Standard","SOVEREIGN "&Products[[#This Row],[Pack]]&" Lump Sum "&Products[[#This Row],[LTV Band]]&"_"&Products[[#This Row],[Rate]]*100&"% £10k+ "&LOWER(Products[[#This Row],[Single / Joint]])& " ("&SUM(Products[[#This Row],[Cont to Adv. Fees]:[Cont to Sols Fees]])&" cont to fees, "&"Arr Fee "&Products[[#This Row],[Arr` Fee]]&")", IF(Products[[#This Row],[Pack]]="Elite","SOVEREIGN "&Products[[#This Row],[Pack]]&" Lump Sum "&Products[[#This Row],[LTV Band]]&"_"&Products[[#This Row],[Rate]]*100&"% £10k+ "&LOWER(Products[[#This Row],[Single / Joint]])& " ("&SUM(Products[[#This Row],[Cont to Adv. Fees]:[Cont to Sols Fees]])&" cont to fees, "&"Arr Fee "&Products[[#This Row],[Arr` Fee]]&")", IF(Products[[#This Row],[Pack]]="Fees Package","SOVEREIGN "&Products[[#This Row],[Pack]]&" Lump Sum "&Products[[#This Row],[LTV Band]]&"_"&Products[[#This Row],[Rate]]*100&"% £10k+ "&LOWER(Products[[#This Row],[Single / Joint]])& " ("&SUM(Products[[#This Row],[Cont to Adv. Fees]:[Cont to Sols Fees]])&" cont to fees, "&"Arr Fee "&Products[[#This Row],[Arr` Fee]]&")(3% cash)"," "))), IF(AND(Products[[#This Row],[Pack]]="Standard",Products[[#This Row],[DD Cap]]<>0),"SOVEREIGN "&Products[[#This Row],[Pack]]&" DRAWDOWN "&Products[[#This Row],[LTV Band]]&"_"&Products[[#This Row],[Rate]]*100&"% £10k+ "&LOWER(Products[[#This Row],[Single / Joint]])& " ("&SUM(Products[[#This Row],[Cont to Adv. Fees]:[Cont to Sols Fees]])&" cont to fees, Arr Fee "&Products[[#This Row],[Arr` Fee]]&") Facility cap "&Products[[#This Row],[DD Cap]]&"x initial", IF(AND(Products[[#This Row],[Pack]]="Standard",Products[[#This Row],[DD Cap]]=0),"SOVEREIGN "&Products[[#This Row],[Pack]]&" DRAWDOWN "&Products[[#This Row],[LTV Band]]&"_"&Products[[#This Row],[Rate]]*100&"% £10k+ "&LOWER(Products[[#This Row],[Single / Joint]])& " ("&SUM(Products[[#This Row],[Cont to Adv. Fees]:[Cont to Sols Fees]])&" cont to fees, Arr Fee "&Products[[#This Row],[Arr` Fee]]&") No facility cap ", IF(AND(Products[[#This Row],[Pack]]="Elite",Products[[#This Row],[DD Cap]]<>0),"SOVEREIGN "&Products[[#This Row],[Pack]]&" DRAWDOWN "&Products[[#This Row],[LTV Band]]&"_"&Products[[#This Row],[Rate]]*100&"% £10k+ "&LOWER(Products[[#This Row],[Single / Joint]])& " ("&SUM(Products[[#This Row],[Cont to Adv. Fees]:[Cont to Sols Fees]])&" cont to fees, Arr Fee "&Products[[#This Row],[Arr` Fee]]&") Facility cap "&Products[[#This Row],[DD Cap]]&"x initial", IF(AND(Products[[#This Row],[Pack]]="Elite",Products[[#This Row],[DD Cap]]=0),"SOVEREIGN "&Products[[#This Row],[Pack]]&" DRAWDOWN "&Products[[#This Row],[LTV Band]]&"_"&Products[[#This Row],[Rate]]*100&"% £10k+ "&LOWER(Products[[#This Row],[Single / Joint]])& " ("&SUM(Products[[#This Row],[Cont to Adv. Fees]:[Cont to Sols Fees]])&" cont to fees, Arr Fee "&Products[[#This Row],[Arr` Fee]]&") No facility cap ", IF(AND(Products[[#This Row],[Pack]]="Fees Package",Products[[#This Row],[DD Cap]]<>0),"SOVEREIGN "&Products[[#This Row],[Pack]]&" DRAWDOWN "&Products[[#This Row],[LTV Band]]&"_"&Products[[#This Row],[Rate]]*100&"% £10k+ "&LOWER(Products[[#This Row],[Single / Joint]])& " ("&SUM(Products[[#This Row],[Cont to Adv. Fees]:[Cont to Sols Fees]])&" cont to fees, Arr Fee "&Products[[#This Row],[Arr` Fee]]&")(3% cash) Facility cap "&Products[[#This Row],[DD Cap]]&"x initial", IF(AND(Products[[#This Row],[Pack]]="Fees Package",Products[[#This Row],[DD Cap]]=0),"SOVEREIGN "&Products[[#This Row],[Pack]]&" DRAWDOWN "&Products[[#This Row],[LTV Band]]&"_"&Products[[#This Row],[Rate]]*100&"% £10k+ "&LOWER(Products[[#This Row],[Single / Joint]])& " ("&SUM(Products[[#This Row],[Cont to Adv. Fees]:[Cont to Sols Fees]])&" cont to fees, Arr Fee "&Products[[#This Row],[Arr` Fee]]&")(3% cash) No facility cap ", " "))))))) -> SOVEREIGN Fees Package DRAWDOWN A_3.31% £10k+ 0 (900 cont to fees, Arr Fee 895)(3% cash) Facility cap 1x initial | H32: =SUM(Products[[#This Row],[Base rate]:[x0]]) -> 0.0331 | I32: =IF(AND(ISBLANK(initialAdvance),Products[[#This Row],[Pack]]="Fees Package"),20000, IF(AND(ISBLANK(initialAdvance),Products[[#This Row],[Pack]]="Elite"),725001, IF(AND(ISBLANK(initialAdvance),Products[[#This Row],[Pack]]="Standard"),10000,IF(AND(initialAdvance<725001,Products[[#This Row],[Pack]]="Elite"),725001,initialAdvance)))) -> 20000 | J32: =IF(AND(Products[[#This Row],[LTV Band]]="A",Products[[#This Row],[Single / Joint]]="Single"), SUMIF(LTVs!$A$3:$A$38,Menu!$I$9,LTVs!$C$3:$C$38), IF(AND(Products[[#This Row],[LTV Band]]="A",Products[[#This Row],[Single / Joint]]="Joint"), SUMIF(LTVs!$A$3:$A$38,Menu!$I$9,LTVs!$D$3:$D$38), IF(AND(Products[[#This Row],[LTV Band]]="B",Products[[#This Row],[Single / Joint]]="Single"), SUMIF(LTVs!$A$3:$A$38,Menu!$I$9,LTVs!$E$3:$E$38), IF(AND(Products[[#This Row],[LTV Band]]="B",Products[[#This Row],[Single / Joint]]="Joint"), SUMIF(LTVs!$A$3:$A$38,Menu!$I$9,LTVs!$F$3:$F$38), IF(AND(Products[[#This Row],[LTV Band]]="C",Products[[#This Row],[Single / Joint]]="Single"), SUMIF(LTVs!$A$3:$A$38,Menu!$I$9,LTVs!$G$3:$G$38), IF(AND(Products[[#This Row],[LTV Band]]="C",Products[[#This Row],[Single / Joint]]="Joint"), SUMIF(LTVs!$A$3:$A$38,Menu!$I$9,LTVs!$H$3:$H$38), IF(AND(Products[[#This Row],[LTV Band]]="D",Products[[#This Row],[Single / Joint]]="Single"), SUMIF(LTVs!$A$3:$A$38,Menu!$I$9,LTVs!$I$3:$I$38), IF(AND(Products[[#This Row],[LTV Band]]="D",Products[[#This Row],[Single / Joint]]="Joint"), SUMIF(LTVs!$A$3:$A$38,Menu!$I$9,LTVs!$J$3:$J$38), IF(AND(Products[[#This Row],[LTV Band]]="E",Products[[#This Row],[Single / Joint]]="Single"), SUMIF(LTVs!$A$3:$A$38,Menu!$I$9,LTVs!$K$3:$K$38), IF(AND(Products[[#This Row],[LTV Band]]="E",Products[[#This Row],[Single / Joint]]="Joint"), SUMIF(LTVs!$A$3:$A$38,Menu!$I$9,LTVs!$L$3:$L$38), IF(AND(Products[[#This Row],[LTV Band]]="F",Products[[#This Row],[Single / Joint]]="Single"), SUMIF(LTVs!$A$3:$A$38,Menu!$I$9,LTVs!$M$3:$M$38), IF(AND(Products[[#This Row],[LTV Band]]="F",Products[[#This Row],[Single / Joint]]="Joint"), SUMIF(LTVs!$A$3:$A$38,Menu!$I$9,LTVs!$N$3:$N$38), " ")))))))))))) ->  | K32: =IF(AND(propertyValue*Products[[#This Row],[LTV ]]>725000,Products[[#This Row],[Pack]]<>"Elite"),725000,propertyValue*Products[[#This Row],[LTV ]]) ->  | L32: =IF(Products[[#This Row],[DD Cap]]="LS"," ",IF(reqrdDDamt<2000,"N/A",IF(reqrdDDamt<=Products[[#This Row],[Drawdown cap]],reqrdDDamt,"N/A"))) -> N/A | M32: =IF(Products[[#This Row],[DD Cap]]="LS"," ",IF(IF(Products[[#This Row],[DD Cap]]>=1,initialAdvance*Products[[#This Row],[DD Cap]],Products[[#This Row],[Max loan]]-initialAdvance)<Products[[#This Row],[Max loan]]-initialAdvance,IF(Products[[#This Row],[DD Cap]]>0,initialAdvance*Products[[#This Row],[DD Cap]],Products[[#This Row],[Max loan]]-initialAdvance),Products[[#This Row],[Max loan]]-initialAdvance)) ->  | N32: =IF(Products[[#This Row],[Pack]]="FP",895,895) -> 895 | O32: =IF(Products[[#This Row],[Pack]]="Fees Package",300,0) -> 300 | P32: 600 | Q32: =App_type -> 0 | R32: =IF(AND(ISBLANK(initialAdvance),Products[[#This Row],[Pack]]="Fees Package"),Products[[#This Row],[Max loan]]*3%, IF(AND(ISBLANK(initialAdvance),Products[[#This Row],[Pack]]="Fees Package"),Products[[#This Row],[Max loan]]*3%, IF(AND(initialAdvance>0,Products[[#This Row],[Pack]]="Fees Package"),initialAdvance*3%, IF(AND(initialAdvance>0,Products[[#This Row],[Pack]]="Fees Package"),initialAdvance*3%,0)))) ->  | S32: =IF(OR(ISBLANK(App_type),$I$9=0)," ", IF(ISBLANK(initialAdvance),Products[[#This Row],[Max loan]]+Products[[#This Row],[Cont to Adv. Fees]]+Products[[#This Row],[Cont to Sols Fees]]+Products[[#This Row],[Cashback]], initialAdvance+Products[[#This Row],[Cont to Adv. Fees]]+Products[[#This Row],[Cont to Sols Fees]]+Products[[#This Row],[Cashback]])) ->  | T32: =IF(AND(ISBLANK(initialAdvance),Products[[#This Row],[Pack]]="Fees Package",Products[[#This Row],[Max loan]]>=20000),1, IF(AND(ISBLANK(initialAdvance),Products[[#This Row],[Pack]]="Elite",Products[[#This Row],[Max loan]]>725000),1, IF(AND(ISBLANK(initialAdvance),Products[[#This Row],[Pack]]="Standard",Products[[#This Row],[Max loan]]>=10000),1, IF(AND(initialAdvance>0,Products[[#This Row],[Pack]]="Fees Package",initialAdvance>=20000,Products[[#This Row],[Max loan]]>=initialAdvance),1, IF(AND(initialAdvance>0,Products[[#This Row],[Pack]]="Elite",initialAdvance>725000,Products[[#This Row],[Max loan]]>=initialAdvance),1, IF(AND(initialAdvance>0,Products[[#This Row],[Pack]]="Standard",initialAdvance>=10000,Products[[#This Row],[Max loan]]>=initialAdvance),1,0)))))) ->  | U32: =IF(Products[[#This Row],[Cashback]]>0,1,0) ->  | V32: =INDEX(Rates!$B$2:$B$7,MATCH(Products[[#This Row],[LTV Band]],Rates!$A$2:$A$7,0)) -> 0.0291 | W32: =IF(Products[[#This Row],[Pack]]="Elite",IFERROR(INDEX(Rates!$C$2:$C$7,MATCH(Products[[#This Row],[LTV Band]],Rates!$A$2:$A$7,0)),0),0) -> 0 | X32: =IFERROR(INDEX(Rates!$D$2:$D$7,MATCH(Products[[#This Row],[Pack]],Rates!$D$1,0)),) -> 0 | Y32: =IFERROR(INDEX(Rates!$E$2:$E$7,MATCH(Products[[#This Row],[Pack]],Rates!$E$1,0)),) -> 0.003 | Z32: =IFERROR(INDEX(Rates!$F$2:$F$7,MATCH(Products[[#This Row],[DD Cap]],Rates!$F$1,0)),0) -> 0.001 | AA32: =IFERROR(INDEX(Rates!$G$2:$G$7,MATCH(Products[[#This Row],[DD Cap]],Rates!$G$1,0)),0) -> 0 | AB32: =IFERROR(INDEX(Rates!$H$2:$H$7,MATCH(Products[[#This Row],[DD Cap]],Rates!$H$1,0)),0) -> 0
A33: B | B33: Fees Package | C33: LS | D33: =IF(Products[[#This Row],[DD Cap]]="LS", IF(Products[[#This Row],[Pack]]="Standard","SOVEREIGN "&Products[[#This Row],[Pack]]&" Lump Sum "&Products[[#This Row],[LTV Band]]&"_"&Products[[#This Row],[Rate]]*100&"% £10k+ "&LOWER(Products[[#This Row],[Single / Joint]])& " ("&SUM(Products[[#This Row],[Cont to Adv. Fees]:[Cont to Sols Fees]])&" cont to fees, "&"Arr Fee "&Products[[#This Row],[Arr` Fee]]&")", IF(Products[[#This Row],[Pack]]="Elite","SOVEREIGN "&Products[[#This Row],[Pack]]&" Lump Sum "&Products[[#This Row],[LTV Band]]&"_"&Products[[#This Row],[Rate]]*100&"% £10k+ "&LOWER(Products[[#This Row],[Single / Joint]])& " ("&SUM(Products[[#This Row],[Cont to Adv. Fees]:[Cont to Sols Fees]])&" cont to fees, "&"Arr Fee "&Products[[#This Row],[Arr` Fee]]&")", IF(Products[[#This Row],[Pack]]="Fees Package","SOVEREIGN "&Products[[#This Row],[Pack]]&" Lump Sum "&Products[[#This Row],[LTV Band]]&"_"&Products[[#This Row],[Rate]]*100&"% £10k+ "&LOWER(Products[[#This Row],[Single / Joint]])& " ("&SUM(Products[[#This Row],[Cont to Adv. Fees]:[Cont to Sols Fees]])&" cont to fees, "&"Arr Fee "&Products[[#This Row],[Arr` Fee]]&")(3% cash)"," "))), IF(AND(Products[[#This Row],[Pack]]="Standard",Products[[#This Row],[DD Cap]]<>0),"SOVEREIGN "&Products[[#This Row],[Pack]]&" DRAWDOWN "&Products[[#This Row],[LTV Band]]&"_"&Products[[#This Row],[Rate]]*100&"% £10k+ "&LOWER(Products[[#This Row],[Single / Joint]])& " ("&SUM(Products[[#This Row],[Cont to Adv. Fees]:[Cont to Sols Fees]])&" cont to fees, Arr Fee "&Products[[#This Row],[Arr` Fee]]&") Facility cap "&Products[[#This Row],[DD Cap]]&"x initial", IF(AND(Products[[#This Row],[Pack]]="Standard",Products[[#This Row],[DD Cap]]=0),"SOVEREIGN "&Products[[#This Row],[Pack]]&" DRAWDOWN "&Products[[#This Row],[LTV Band]]&"_"&Products[[#This Row],[Rate]]*100&"% £10k+ "&LOWER(Products[[#This Row],[Single / Joint]])& " ("&SUM(Products[[#This Row],[Cont to Adv. Fees]:[Cont to Sols Fees]])&" cont to fees, Arr Fee "&Products[[#This Row],[Arr` Fee]]&") No facility cap ", IF(AND(Products[[#This Row],[Pack]]="Elite",Products[[#This Row],[DD Cap]]<>0),"SOVEREIGN "&Products[[#This Row],[Pack]]&" DRAWDOWN "&Products[[#This Row],[LTV Band]]&"_"&Products[[#This Row],[Rate]]*100&"% £10k+ "&LOWER(Products[[#This Row],[Single / Joint]])& " ("&SUM(Products[[#This Row],[Cont to Adv. Fees]:[Cont to Sols Fees]])&" cont to fees, Arr Fee "&Products[[#This Row],[Arr` Fee]]&") Facility cap "&Products[[#This Row],[DD Cap]]&"x initial", IF(AND(Products[[#This Row],[Pack]]="Elite",Products[[#This Row],[DD Cap]]=0),"SOVEREIGN "&Products[[#This Row],[Pack]]&" DRAWDOWN "&Products[[#This Row],[LTV Band]]&"_"&Products[[#This Row],[Rate]]*100&"% £10k+ "&LOWER(Products[[#This Row],[Single / Joint]])& " ("&SUM(Products[[#This Row],[Cont to Adv. Fees]:[Cont to Sols Fees]])&" cont to fees, Arr Fee "&Products[[#This Row],[Arr` Fee]]&") No facility cap ", IF(AND(Products[[#This Row],[Pack]]="Fees Package",Products[[#This Row],[DD Cap]]<>0),"SOVEREIGN "&Products[[#This Row],[Pack]]&" DRAWDOWN "&Products[[#This Row],[LTV Band]]&"_"&Products[[#This Row],[Rate]]*100&"% £10k+ "&LOWER(Products[[#This Row],[Single / Joint]])& " ("&SUM(Products[[#This Row],[Cont to Adv. Fees]:[Cont to Sols Fees]])&" cont to fees, Arr Fee "&Products[[#This Row],[Arr` Fee]]&")(3% cash) Facility cap "&Products[[#This Row],[DD Cap]]&"x initial", IF(AND(Products[[#This Row],[Pack]]="Fees Package",Products[[#This Row],[DD Cap]]=0),"SOVEREIGN "&Products[[#This Row],[Pack]]&" DRAWDOWN "&Products[[#This Row],[LTV Band]]&"_"&Products[[#This Row],[Rate]]*100&"% £10k+ "&LOWER(Products[[#This Row],[Single / Joint]])& " ("&SUM(Products[[#This Row],[Cont to Adv. Fees]:[Cont to Sols Fees]])&" cont to fees, Arr Fee "&Products[[#This Row],[Arr` Fee]]&")(3% cash) No facility cap ", " "))))))) -> SOVEREIGN Fees Package Lump Sum B_3.32% £10k+ 0 (900 cont to fees, Arr Fee 895)(3% cash) | H33: =SUM(Products[[#This Row],[Base rate]:[x0]]) -> 0.0332 | I33: =IF(AND(ISBLANK(initialAdvance),Products[[#This Row],[Pack]]="Fees Package"),20000, IF(AND(ISBLANK(initialAdvance),Products[[#This Row],[Pack]]="Elite"),725001, IF(AND(ISBLANK(initialAdvance),Products[[#This Row],[Pack]]="Standard"),10000,IF(AND(initialAdvance<725001,Products[[#This Row],[Pack]]="Elite"),725001,initialAdvance)))) -> 20000 | J33: =IF(AND(Products[[#This Row],[LTV Band]]="A",Products[[#This Row],[Single / Joint]]="Single"), SUMIF(LTVs!$A$3:$A$38,Menu!$I$9,LTVs!$C$3:$C$38), IF(AND(Products[[#This Row],[LTV Band]]="A",Products[[#This Row],[Single / Joint]]="Joint"), SUMIF(LTVs!$A$3:$A$38,Menu!$I$9,LTVs!$D$3:$D$38), IF(AND(Products[[#This Row],[LTV Band]]="B",Products[[#This Row],[Single / Joint]]="Single"), SUMIF(LTVs!$A$3:$A$38,Menu!$I$9,LTVs!$E$3:$E$38), IF(AND(Products[[#This Row],[LTV Band]]="B",Products[[#This Row],[Single / Joint]]="Joint"), SUMIF(LTVs!$A$3:$A$38,Menu!$I$9,LTVs!$F$3:$F$38), IF(AND(Products[[#This Row],[LTV Band]]="C",Products[[#This Row],[Single / Joint]]="Single"), SUMIF(LTVs!$A$3:$A$38,Menu!$I$9,LTVs!$G$3:$G$38), IF(AND(Products[[#This Row],[LTV Band]]="C",Products[[#This Row],[Single / Joint]]="Joint"), SUMIF(LTVs!$A$3:$A$38,Menu!$I$9,LTVs!$H$3:$H$38), IF(AND(Products[[#This Row],[LTV Band]]="D",Products[[#This Row],[Single / Joint]]="Single"), SUMIF(LTVs!$A$3:$A$38,Menu!$I$9,LTVs!$I$3:$I$38), IF(AND(Products[[#This Row],[LTV Band]]="D",Products[[#This Row],[Single / Joint]]="Joint"), SUMIF(LTVs!$A$3:$A$38,Menu!$I$9,LTVs!$J$3:$J$38), IF(AND(Products[[#This Row],[LTV Band]]="E",Products[[#This Row],[Single / Joint]]="Single"), SUMIF(LTVs!$A$3:$A$38,Menu!$I$9,LTVs!$K$3:$K$38), IF(AND(Products[[#This Row],[LTV Band]]="E",Products[[#This Row],[Single / Joint]]="Joint"), SUMIF(LTVs!$A$3:$A$38,Menu!$I$9,LTVs!$L$3:$L$38), IF(AND(Products[[#This Row],[LTV Band]]="F",Products[[#This Row],[Single / Joint]]="Single"), SUMIF(LTVs!$A$3:$A$38,Menu!$I$9,LTVs!$M$3:$M$38), IF(AND(Products[[#This Row],[LTV Band]]="F",Products[[#This Row],[Single / Joint]]="Joint"), SUMIF(LTVs!$A$3:$A$38,Menu!$I$9,LTVs!$N$3:$N$38), " ")))))))))))) ->  | K33: =IF(AND(propertyValue*Products[[#This Row],[LTV ]]>725000,Products[[#This Row],[Pack]]<>"Elite"),725000,propertyValue*Products[[#This Row],[LTV ]]) ->  | L33: =IF(Products[[#This Row],[DD Cap]]="LS"," ",IF(reqrdDDamt<2000,"N/A",IF(reqrdDDamt<=Products[[#This Row],[Drawdown cap]],reqrdDDamt,"N/A"))) ->  | M33: =IF(Products[[#This Row],[DD Cap]]="LS"," ",IF(IF(Products[[#This Row],[DD Cap]]>=1,initialAdvance*Products[[#This Row],[DD Cap]],Products[[#This Row],[Max loan]]-initialAdvance)<Products[[#This Row],[Max loan]]-initialAdvance,IF(Products[[#This Row],[DD Cap]]>0,initialAdvance*Products[[#This Row],[DD Cap]],Products[[#This Row],[Max loan]]-initialAdvance),Products[[#This Row],[Max loan]]-initialAdvance)) ->  | N33: =IF(Products[[#This Row],[Pack]]="FP",895,895) -> 895 | O33: =IF(Products[[#This Row],[Pack]]="Fees Package",300,0) -> 300 | P33: 600 | Q33: =App_type -> 0 | R33: =IF(AND(ISBLANK(initialAdvance),Products[[#This Row],[Pack]]="Fees Package"),Products[[#This Row],[Max loan]]*3%, IF(AND(ISBLANK(initialAdvance),Products[[#This Row],[Pack]]="Fees Package"),Products[[#This Row],[Max loan]]*3%, IF(AND(initialAdvance>0,Products[[#This Row],[Pack]]="Fees Package"),initialAdvance*3%, IF(AND(initialAdvance>0,Products[[#This Row],[Pack]]="Fees Package"),initialAdvance*3%,0)))) ->  | S33: =IF(OR(ISBLANK(App_type),$I$9=0)," ", IF(ISBLANK(initialAdvance),Products[[#This Row],[Max loan]]+Products[[#This Row],[Cont to Adv. Fees]]+Products[[#This Row],[Cont to Sols Fees]]+Products[[#This Row],[Cashback]], initialAdvance+Products[[#This Row],[Cont to Adv. Fees]]+Products[[#This Row],[Cont to Sols Fees]]+Products[[#This Row],[Cashback]])) ->  | T33: =IF(AND(ISBLANK(initialAdvance),Products[[#This Row],[Pack]]="Fees Package",Products[[#This Row],[Max loan]]>=20000),1, IF(AND(ISBLANK(initialAdvance),Products[[#This Row],[Pack]]="Elite",Products[[#This Row],[Max loan]]>725000),1, IF(AND(ISBLANK(initialAdvance),Products[[#This Row],[Pack]]="Standard",Products[[#This Row],[Max loan]]>=10000),1, IF(AND(initialAdvance>0,Products[[#This Row],[Pack]]="Fees Package",initialAdvance>=20000,Products[[#This Row],[Max loan]]>=initialAdvance),1, IF(AND(initialAdvance>0,Products[[#This Row],[Pack]]="Elite",initialAdvance>725000,Products[[#This Row],[Max loan]]>=initialAdvance),1, IF(AND(initialAdvance>0,Products[[#This Row],[Pack]]="Standard",initialAdvance>=10000,Products[[#This Row],[Max loan]]>=initialAdvance),1,0)))))) ->  | U33: =IF(Products[[#This Row],[Cashback]]>0,1,0) ->  | V33: =INDEX(Rates!$B$2:$B$7,MATCH(Products[[#This Row],[LTV Band]],Rates!$A$2:$A$7,0)) -> 0.0302 | W33: =IF(Products[[#This Row],[Pack]]="Elite",IFERROR(INDEX(Rates!$C$2:$C$7,MATCH(Products[[#This Row],[LTV Band]],Rates!$A$2:$A$7,0)),0),0) -> 0 | X33: =IFERROR(INDEX(Rates!$D$2:$D$7,MATCH(Products[[#This Row],[Pack]],Rates!$D$1,0)),) -> 0 | Y33: =IFERROR(INDEX(Rates!$E$2:$E$7,MATCH(Products[[#This Row],[Pack]],Rates!$E$1,0)),) -> 0.003 | Z33: =IFERROR(INDEX(Rates!$F$2:$F$7,MATCH(Products[[#This Row],[DD Cap]],Rates!$F$1,0)),0) -> 0 | AA33: =IFERROR(INDEX(Rates!$G$2:$G$7,MATCH(Products[[#This Row],[DD Cap]],Rates!$G$1,0)),0) -> 0 | AB33: =IFERROR(INDEX(Rates!$H$2:$H$7,MATCH(Products[[#This Row],[DD Cap]],Rates!$H$1,0)),0) -> 0
A34: A | B34: Fees Package | C34: 1.5 | D34: =IF(Products[[#This Row],[DD Cap]]="LS", IF(Products[[#This Row],[Pack]]="Standard","SOVEREIGN "&Products[[#This Row],[Pack]]&" Lump Sum "&Products[[#This Row],[LTV Band]]&"_"&Products[[#This Row],[Rate]]*100&"% £10k+ "&LOWER(Products[[#This Row],[Single / Joint]])& " ("&SUM(Products[[#This Row],[Cont to Adv. Fees]:[Cont to Sols Fees]])&" cont to fees, "&"Arr Fee "&Products[[#This Row],[Arr` Fee]]&")", IF(Products[[#This Row],[Pack]]="Elite","SOVEREIGN "&Products[[#This Row],[Pack]]&" Lump Sum "&Products[[#This Row],[LTV Band]]&"_"&Products[[#This Row],[Rate]]*100&"% £10k+ "&LOWER(Products[[#This Row],[Single / Joint]])& " ("&SUM(Products[[#This Row],[Cont to Adv. Fees]:[Cont to Sols Fees]])&" cont to fees, "&"Arr Fee "&Products[[#This Row],[Arr` Fee]]&")", IF(Products[[#This Row],[Pack]]="Fees Package","SOVEREIGN "&Products[[#This Row],[Pack]]&" Lump Sum "&Products[[#This Row],[LTV Band]]&"_"&Products[[#This Row],[Rate]]*100&"% £10k+ "&LOWER(Products[[#This Row],[Single / Joint]])& " ("&SUM(Products[[#This Row],[Cont to Adv. Fees]:[Cont to Sols Fees]])&" cont to fees, "&"Arr Fee "&Products[[#This Row],[Arr` Fee]]&")(3% cash)"," "))), IF(AND(Products[[#This Row],[Pack]]="Standard",Products[[#This Row],[DD Cap]]<>0),"SOVEREIGN "&Products[[#This Row],[Pack]]&" DRAWDOWN "&Products[[#This Row],[LTV Band]]&"_"&Products[[#This Row],[Rate]]*100&"% £10k+ "&LOWER(Products[[#This Row],[Single / Joint]])& " ("&SUM(Products[[#This Row],[Cont to Adv. Fees]:[Cont to Sols Fees]])&" cont to fees, Arr Fee "&Products[[#This Row],[Arr` Fee]]&") Facility cap "&Products[[#This Row],[DD Cap]]&"x initial", IF(AND(Products[[#This Row],[Pack]]="Standard",Products[[#This Row],[DD Cap]]=0),"SOVEREIGN "&Products[[#This Row],[Pack]]&" DRAWDOWN "&Products[[#This Row],[LTV Band]]&"_"&Products[[#This Row],[Rate]]*100&"% £10k+ "&LOWER(Products[[#This Row],[Single / Joint]])& " ("&SUM(Products[[#This Row],[Cont to Adv. Fees]:[Cont to Sols Fees]])&" cont to fees, Arr Fee "&Products[[#This Row],[Arr` Fee]]&") No facility cap ", IF(AND(Products[[#This Row],[Pack]]="Elite",Products[[#This Row],[DD Cap]]<>0),"SOVEREIGN "&Products[[#This Row],[Pack]]&" DRAWDOWN "&Products[[#This Row],[LTV Band]]&"_"&Products[[#This Row],[Rate]]*100&"% £10k+ "&LOWER(Products[[#This Row],[Single / Joint]])& " ("&SUM(Products[[#This Row],[Cont to Adv. Fees]:[Cont to Sols Fees]])&" cont to fees, Arr Fee "&Products[[#This Row],[Arr` Fee]]&") Facility cap "&Products[[#This Row],[DD Cap]]&"x initial", IF(AND(Products[[#This Row],[Pack]]="Elite",Products[[#This Row],[DD Cap]]=0),"SOVEREIGN "&Products[[#This Row],[Pack]]&" DRAWDOWN "&Products[[#This Row],[LTV Band]]&"_"&Products[[#This Row],[Rate]]*100&"% £10k+ "&LOWER(Products[[#This Row],[Single / Joint]])& " ("&SUM(Products[[#This Row],[Cont to Adv. Fees]:[Cont to Sols Fees]])&" cont to fees, Arr Fee "&Products[[#This Row],[Arr` Fee]]&") No facility cap ", IF(AND(Products[[#This Row],[Pack]]="Fees Package",Products[[#This Row],[DD Cap]]<>0),"SOVEREIGN "&Products[[#This Row],[Pack]]&" DRAWDOWN "&Products[[#This Row],[LTV Band]]&"_"&Products[[#This Row],[Rate]]*100&"% £10k+ "&LOWER(Products[[#This Row],[Single / Joint]])& " ("&SUM(Products[[#This Row],[Cont to Adv. Fees]:[Cont to Sols Fees]])&" cont to fees, Arr Fee "&Products[[#This Row],[Arr` Fee]]&")(3% cash) Facility cap "&Products[[#This Row],[DD Cap]]&"x initial", IF(AND(Products[[#This Row],[Pack]]="Fees Package",Products[[#This Row],[DD Cap]]=0),"SOVEREIGN "&Products[[#This Row],[Pack]]&" DRAWDOWN "&Products[[#This Row],[LTV Band]]&"_"&Products[[#This Row],[Rate]]*100&"% £10k+ "&LOWER(Products[[#This Row],[Single / Joint]])& " ("&SUM(Products[[#This Row],[Cont to Adv. Fees]:[Cont to Sols Fees]])&" cont to fees, Arr Fee "&Products[[#This Row],[Arr` Fee]]&")(3% cash) No facility cap ", " "))))))) -> SOVEREIGN Fees Package DRAWDOWN A_3.36% £10k+ 0 (900 cont to fees, Arr Fee 895)(3% cash) Facility cap 1.5x initial | H34: =SUM(Products[[#This Row],[Base rate]:[x0]]) -> 0.0336 | I34: =IF(AND(ISBLANK(initialAdvance),Products[[#This Row],[Pack]]="Fees Package"),20000, IF(AND(ISBLANK(initialAdvance),Products[[#This Row],[Pack]]="Elite"),725001, IF(AND(ISBLANK(initialAdvance),Products[[#This Row],[Pack]]="Standard"),10000,IF(AND(initialAdvance<725001,Products[[#This Row],[Pack]]="Elite"),725001,initialAdvance)))) -> 20000 | J34: =IF(AND(Products[[#This Row],[LTV Band]]="A",Products[[#This Row],[Single / Joint]]="Single"), SUMIF(LTVs!$A$3:$A$38,Menu!$I$9,LTVs!$C$3:$C$38), IF(AND(Products[[#This Row],[LTV Band]]="A",Products[[#This Row],[Single / Joint]]="Joint"), SUMIF(LTVs!$A$3:$A$38,Menu!$I$9,LTVs!$D$3:$D$38), IF(AND(Products[[#This Row],[LTV Band]]="B",Products[[#This Row],[Single / Joint]]="Single"), SUMIF(LTVs!$A$3:$A$38,Menu!$I$9,LTVs!$E$3:$E$38), IF(AND(Products[[#This Row],[LTV Band]]="B",Products[[#This Row],[Single / Joint]]="Joint"), SUMIF(LTVs!$A$3:$A$38,Menu!$I$9,LTVs!$F$3:$F$38), IF(AND(Products[[#This Row],[LTV Band]]="C",Products[[#This Row],[Single / Joint]]="Single"), SUMIF(LTVs!$A$3:$A$38,Menu!$I$9,LTVs!$G$3:$G$38), IF(AND(Products[[#This Row],[LTV Band]]="C",Products[[#This Row],[Single / Joint]]="Joint"), SUMIF(LTVs!$A$3:$A$38,Menu!$I$9,LTVs!$H$3:$H$38), IF(AND(Products[[#This Row],[LTV Band]]="D",Products[[#This Row],[Single / Joint]]="Single"), SUMIF(LTVs!$A$3:$A$38,Menu!$I$9,LTVs!$I$3:$I$38), IF(AND(Products[[#This Row],[LTV Band]]="D",Products[[#This Row],[Single / Joint]]="Joint"), SUMIF(LTVs!$A$3:$A$38,Menu!$I$9,LTVs!$J$3:$J$38), IF(AND(Products[[#This Row],[LTV Band]]="E",Products[[#This Row],[Single / Joint]]="Single"), SUMIF(LTVs!$A$3:$A$38,Menu!$I$9,LTVs!$K$3:$K$38), IF(AND(Products[[#This Row],[LTV Band]]="E",Products[[#This Row],[Single / Joint]]="Joint"), SUMIF(LTVs!$A$3:$A$38,Menu!$I$9,LTVs!$L$3:$L$38), IF(AND(Products[[#This Row],[LTV Band]]="F",Products[[#This Row],[Single / Joint]]="Single"), SUMIF(LTVs!$A$3:$A$38,Menu!$I$9,LTVs!$M$3:$M$38), IF(AND(Products[[#This Row],[LTV Band]]="F",Products[[#This Row],[Single / Joint]]="Joint"), SUMIF(LTVs!$A$3:$A$38,Menu!$I$9,LTVs!$N$3:$N$38), " ")))))))))))) ->  | K34: =IF(AND(propertyValue*Products[[#This Row],[LTV ]]>725000,Products[[#This Row],[Pack]]<>"Elite"),725000,propertyValue*Products[[#This Row],[LTV ]]) ->  | L34: =IF(Products[[#This Row],[DD Cap]]="LS"," ",IF(reqrdDDamt<2000,"N/A",IF(reqrdDDamt<=Products[[#This Row],[Drawdown cap]],reqrdDDamt,"N/A"))) -> N/A | M34: =IF(Products[[#This Row],[DD Cap]]="LS"," ",IF(IF(Products[[#This Row],[DD Cap]]>=1,initialAdvance*Products[[#This Row],[DD Cap]],Products[[#This Row],[Max loan]]-initialAdvance)<Products[[#This Row],[Max loan]]-initialAdvance,IF(Products[[#This Row],[DD Cap]]>0,initialAdvance*Products[[#This Row],[DD Cap]],Products[[#This Row],[Max loan]]-initialAdvance),Products[[#This Row],[Max loan]]-initialAdvance)) ->  | N34: =IF(Products[[#This Row],[Pack]]="FP",895,895) -> 895 | O34: =IF(Products[[#This Row],[Pack]]="Fees Package",300,0) -> 300 | P34: 600 | Q34: =App_type -> 0 | R34: =IF(AND(ISBLANK(initialAdvance),Products[[#This Row],[Pack]]="Fees Package"),Products[[#This Row],[Max loan]]*3%, IF(AND(ISBLANK(initialAdvance),Products[[#This Row],[Pack]]="Fees Package"),Products[[#This Row],[Max loan]]*3%, IF(AND(initialAdvance>0,Products[[#This Row],[Pack]]="Fees Package"),initialAdvance*3%, IF(AND(initialAdvance>0,Products[[#This Row],[Pack]]="Fees Package"),initialAdvance*3%,0)))) ->  | S34: =IF(OR(ISBLANK(App_type),$I$9=0)," ", IF(ISBLANK(initialAdvance),Products[[#This Row],[Max loan]]+Products[[#This Row],[Cont to Adv. Fees]]+Products[[#This Row],[Cont to Sols Fees]]+Products[[#This Row],[Cashback]], initialAdvance+Products[[#This Row],[Cont to Adv. Fees]]+Products[[#This Row],[Cont to Sols Fees]]+Products[[#This Row],[Cashback]])) ->  | T34: =IF(AND(ISBLANK(initialAdvance),Products[[#This Row],[Pack]]="Fees Package",Products[[#This Row],[Max loan]]>=20000),1, IF(AND(ISBLANK(initialAdvance),Products[[#This Row],[Pack]]="Elite",Products[[#This Row],[Max loan]]>725000),1, IF(AND(ISBLANK(initialAdvance),Products[[#This Row],[Pack]]="Standard",Products[[#This Row],[Max loan]]>=10000),1, IF(AND(initialAdvance>0,Products[[#This Row],[Pack]]="Fees Package",initialAdvance>=20000,Products[[#This Row],[Max loan]]>=initialAdvance),1, IF(AND(initialAdvance>0,Products[[#This Row],[Pack]]="Elite",initialAdvance>725000,Products[[#This Row],[Max loan]]>=initialAdvance),1, IF(AND(initialAdvance>0,Products[[#This Row],[Pack]]="Standard",initialAdvance>=10000,Products[[#This Row],[Max loan]]>=initialAdvance),1,0)))))) ->  | U34: =IF(Products[[#This Row],[Cashback]]>0,1,0) ->  | V34: =INDEX(Rates!$B$2:$B$7,MATCH(Products[[#This Row],[LTV Band]],Rates!$A$2:$A$7,0)) -> 0.0291 | W34: =IF(Products[[#This Row],[Pack]]="Elite",IFERROR(INDEX(Rates!$C$2:$C$7,MATCH(Products[[#This Row],[LTV Band]],Rates!$A$2:$A$7,0)),0),0) -> 0 | X34: =IFERROR(INDEX(Rates!$D$2:$D$7,MATCH(Products[[#This Row],[Pack]],Rates!$D$1,0)),) -> 0 | Y34: =IFERROR(INDEX(Rates!$E$2:$E$7,MATCH(Products[[#This Row],[Pack]],Rates!$E$1,0)),) -> 0.003 | Z34: =IFERROR(INDEX(Rates!$F$2:$F$7,MATCH(Products[[#This Row],[DD Cap]],Rates!$F$1,0)),0) -> 0 | AA34: =IFERROR(INDEX(Rates!$G$2:$G$7,MATCH(Products[[#This Row],[DD Cap]],Rates!$G$1,0)),0) -> 0.0015 | AB34: =IFERROR(INDEX(Rates!$H$2:$H$7,MATCH(Products[[#This Row],[DD Cap]],Rates!$H$1,0)),0) -> 0
A35: A | B35: Elite | C35: LS | D35: =IF(Products[[#This Row],[DD Cap]]="LS", IF(Products[[#This Row],[Pack]]="Standard","SOVEREIGN "&Products[[#This Row],[Pack]]&" Lump Sum "&Products[[#This Row],[LTV Band]]&"_"&Products[[#This Row],[Rate]]*100&"% £10k+ "&LOWER(Products[[#This Row],[Single / Joint]])& " ("&SUM(Products[[#This Row],[Cont to Adv. Fees]:[Cont to Sols Fees]])&" cont to fees, "&"Arr Fee "&Products[[#This Row],[Arr` Fee]]&")", IF(Products[[#This Row],[Pack]]="Elite","SOVEREIGN "&Products[[#This Row],[Pack]]&" Lump Sum "&Products[[#This Row],[LTV Band]]&"_"&Products[[#This Row],[Rate]]*100&"% £10k+ "&LOWER(Products[[#This Row],[Single / Joint]])& " ("&SUM(Products[[#This Row],[Cont to Adv. Fees]:[Cont to Sols Fees]])&" cont to fees, "&"Arr Fee "&Products[[#This Row],[Arr` Fee]]&")", IF(Products[[#This Row],[Pack]]="Fees Package","SOVEREIGN "&Products[[#This Row],[Pack]]&" Lump Sum "&Products[[#This Row],[LTV Band]]&"_"&Products[[#This Row],[Rate]]*100&"% £10k+ "&LOWER(Products[[#This Row],[Single / Joint]])& " ("&SUM(Products[[#This Row],[Cont to Adv. Fees]:[Cont to Sols Fees]])&" cont to fees, "&"Arr Fee "&Products[[#This Row],[Arr` Fee]]&")(3% cash)"," "))), IF(AND(Products[[#This Row],[Pack]]="Standard",Products[[#This Row],[DD Cap]]<>0),"SOVEREIGN "&Products[[#This Row],[Pack]]&" DRAWDOWN "&Products[[#This Row],[LTV Band]]&"_"&Products[[#This Row],[Rate]]*100&"% £10k+ "&LOWER(Products[[#This Row],[Single / Joint]])& " ("&SUM(Products[[#This Row],[Cont to Adv. Fees]:[Cont to Sols Fees]])&" cont to fees, Arr Fee "&Products[[#This Row],[Arr` Fee]]&") Facility cap "&Products[[#This Row],[DD Cap]]&"x initial", IF(AND(Products[[#This Row],[Pack]]="Standard",Products[[#This Row],[DD Cap]]=0),"SOVEREIGN "&Products[[#This Row],[Pack]]&" DRAWDOWN "&Products[[#This Row],[LTV Band]]&"_"&Products[[#This Row],[Rate]]*100&"% £10k+ "&LOWER(Products[[#This Row],[Single / Joint]])& " ("&SUM(Products[[#This Row],[Cont to Adv. Fees]:[Cont to Sols Fees]])&" cont to fees, Arr Fee "&Products[[#This Row],[Arr` Fee]]&") No facility cap ", IF(AND(Products[[#This Row],[Pack]]="Elite",Products[[#This Row],[DD Cap]]<>0),"SOVEREIGN "&Products[[#This Row],[Pack]]&" DRAWDOWN "&Products[[#This Row],[LTV Band]]&"_"&Products[[#This Row],[Rate]]*100&"% £10k+ "&LOWER(Products[[#This Row],[Single / Joint]])& " ("&SUM(Products[[#This Row],[Cont to Adv. Fees]:[Cont to Sols Fees]])&" cont to fees, Arr Fee "&Products[[#This Row],[Arr` Fee]]&") Facility cap "&Products[[#This Row],[DD Cap]]&"x initial", IF(AND(Products[[#This Row],[Pack]]="Elite",Products[[#This Row],[DD Cap]]=0),"SOVEREIGN "&Products[[#This Row],[Pack]]&" DRAWDOWN "&Products[[#This Row],[LTV Band]]&"_"&Products[[#This Row],[Rate]]*100&"% £10k+ "&LOWER(Products[[#This Row],[Single / Joint]])& " ("&SUM(Products[[#This Row],[Cont to Adv. Fees]:[Cont to Sols Fees]])&" cont to fees, Arr Fee "&Products[[#This Row],[Arr` Fee]]&") No facility cap ", IF(AND(Products[[#This Row],[Pack]]="Fees Package",Products[[#This Row],[DD Cap]]<>0),"SOVEREIGN "&Products[[#This Row],[Pack]]&" DRAWDOWN "&Products[[#This Row],[LTV Band]]&"_"&Products[[#This Row],[Rate]]*100&"% £10k+ "&LOWER(Products[[#This Row],[Single / Joint]])& " ("&SUM(Products[[#This Row],[Cont to Adv. Fees]:[Cont to Sols Fees]])&" cont to fees, Arr Fee "&Products[[#This Row],[Arr` Fee]]&")(3% cash) Facility cap "&Products[[#This Row],[DD Cap]]&"x initial", IF(AND(Products[[#This Row],[Pack]]="Fees Package",Products[[#This Row],[DD Cap]]=0),"SOVEREIGN "&Products[[#This Row],[Pack]]&" DRAWDOWN "&Products[[#This Row],[LTV Band]]&"_"&Products[[#This Row],[Rate]]*100&"% £10k+ "&LOWER(Products[[#This Row],[Single / Joint]])& " ("&SUM(Products[[#This Row],[Cont to Adv. Fees]:[Cont to Sols Fees]])&" cont to fees, Arr Fee "&Products[[#This Row],[Arr` Fee]]&")(3% cash) No facility cap ", " "))))))) -> SOVEREIGN Elite Lump Sum A_3.41% £10k+ 0 (600 cont to fees, Arr Fee 895) | H35: =SUM(Products[[#This Row],[Base rate]:[x0]]) -> 0.0341 | I35: =IF(AND(ISBLANK(initialAdvance),Products[[#This Row],[Pack]]="Fees Package"),20000, IF(AND(ISBLANK(initialAdvance),Products[[#This Row],[Pack]]="Elite"),725001, IF(AND(ISBLANK(initialAdvance),Products[[#This Row],[Pack]]="Standard"),10000,IF(AND(initialAdvance<725001,Products[[#This Row],[Pack]]="Elite"),725001,initialAdvance)))) -> 725001 | J35: =IF(AND(Products[[#This Row],[LTV Band]]="A",Products[[#This Row],[Single / Joint]]="Single"), SUMIF(LTVs!$A$3:$A$38,Menu!$I$9,LTVs!$C$3:$C$38), IF(AND(Products[[#This Row],[LTV Band]]="A",Products[[#This Row],[Single / Joint]]="Joint"), SUMIF(LTVs!$A$3:$A$38,Menu!$I$9,LTVs!$D$3:$D$38), IF(AND(Products[[#This Row],[LTV Band]]="B",Products[[#This Row],[Single / Joint]]="Single"), SUMIF(LTVs!$A$3:$A$38,Menu!$I$9,LTVs!$E$3:$E$38), IF(AND(Products[[#This Row],[LTV Band]]="B",Products[[#This Row],[Single / Joint]]="Joint"), SUMIF(LTVs!$A$3:$A$38,Menu!$I$9,LTVs!$F$3:$F$38), IF(AND(Products[[#This Row],[LTV Band]]="C",Products[[#This Row],[Single / Joint]]="Single"), SUMIF(LTVs!$A$3:$A$38,Menu!$I$9,LTVs!$G$3:$G$38), IF(AND(Products[[#This Row],[LTV Band]]="C",Products[[#This Row],[Single / Joint]]="Joint"), SUMIF(LTVs!$A$3:$A$38,Menu!$I$9,LTVs!$H$3:$H$38), IF(AND(Products[[#This Row],[LTV Band]]="D",Products[[#This Row],[Single / Joint]]="Single"), SUMIF(LTVs!$A$3:$A$38,Menu!$I$9,LTVs!$I$3:$I$38), IF(AND(Products[[#This Row],[LTV Band]]="D",Products[[#This Row],[Single / Joint]]="Joint"), SUMIF(LTVs!$A$3:$A$38,Menu!$I$9,LTVs!$J$3:$J$38), IF(AND(Products[[#This Row],[LTV Band]]="E",Products[[#This Row],[Single / Joint]]="Single"), SUMIF(LTVs!$A$3:$A$38,Menu!$I$9,LTVs!$K$3:$K$38), IF(AND(Products[[#This Row],[LTV Band]]="E",Products[[#This Row],[Single / Joint]]="Joint"), SUMIF(LTVs!$A$3:$A$38,Menu!$I$9,LTVs!$L$3:$L$38), IF(AND(Products[[#This Row],[LTV Band]]="F",Products[[#This Row],[Single / Joint]]="Single"), SUMIF(LTVs!$A$3:$A$38,Menu!$I$9,LTVs!$M$3:$M$38), IF(AND(Products[[#This Row],[LTV Band]]="F",Products[[#This Row],[Single / Joint]]="Joint"), SUMIF(LTVs!$A$3:$A$38,Menu!$I$9,LTVs!$N$3:$N$38), " ")))))))))))) ->  | K35: =IF(AND(propertyValue*Products[[#This Row],[LTV ]]>725000,Products[[#This Row],[Pack]]<>"Elite"),725000,propertyValue*Products[[#This Row],[LTV ]]) ->  | L35: =IF(Products[[#This Row],[DD Cap]]="LS"," ",IF(reqrdDDamt<2000,"N/A",IF(reqrdDDamt<=Products[[#This Row],[Drawdown cap]],reqrdDDamt,"N/A"))) ->  | M35: =IF(Products[[#This Row],[DD Cap]]="LS"," ",IF(IF(Products[[#This Row],[DD Cap]]>=1,initialAdvance*Products[[#This Row],[DD Cap]],Products[[#This Row],[Max loan]]-initialAdvance)<Products[[#This Row],[Max loan]]-initialAdvance,IF(Products[[#This Row],[DD Cap]]>0,initialAdvance*Products[[#This Row],[DD Cap]],Products[[#This Row],[Max loan]]-initialAdvance),Products[[#This Row],[Max loan]]-initialAdvance)) ->  | N35: =IF(Products[[#This Row],[Pack]]="FP",895,895) -> 895 | O35: =IF(Products[[#This Row],[Pack]]="Fees Package",300,0) -> 0 | P35: 600 | Q35: =App_type -> 0 | R35: =IF(AND(ISBLANK(initialAdvance),Products[[#This Row],[Pack]]="Fees Package"),Products[[#This Row],[Max loan]]*3%, IF(AND(ISBLANK(initialAdvance),Products[[#This Row],[Pack]]="Fees Package"),Products[[#This Row],[Max loan]]*3%, IF(AND(initialAdvance>0,Products[[#This Row],[Pack]]="Fees Package"),initialAdvance*3%, IF(AND(initialAdvance>0,Products[[#This Row],[Pack]]="Fees Package"),initialAdvance*3%,0)))) -> 0 | S35: =IF(OR(ISBLANK(App_type),$I$9=0)," ", IF(ISBLANK(initialAdvance),Products[[#This Row],[Max loan]]+Products[[#This Row],[Cont to Adv. Fees]]+Products[[#This Row],[Cont to Sols Fees]]+Products[[#This Row],[Cashback]], initialAdvance+Products[[#This Row],[Cont to Adv. Fees]]+Products[[#This Row],[Cont to Sols Fees]]+Products[[#This Row],[Cashback]])) ->  | T35: =IF(AND(ISBLANK(initialAdvance),Products[[#This Row],[Pack]]="Fees Package",Products[[#This Row],[Max loan]]>=20000),1, IF(AND(ISBLANK(initialAdvance),Products[[#This Row],[Pack]]="Elite",Products[[#This Row],[Max loan]]>725000),1, IF(AND(ISBLANK(initialAdvance),Products[[#This Row],[Pack]]="Standard",Products[[#This Row],[Max loan]]>=10000),1, IF(AND(initialAdvance>0,Products[[#This Row],[Pack]]="Fees Package",initialAdvance>=20000,Products[[#This Row],[Max loan]]>=initialAdvance),1, IF(AND(initialAdvance>0,Products[[#This Row],[Pack]]="Elite",initialAdvance>725000,Products[[#This Row],[Max loan]]>=initialAdvance),1, IF(AND(initialAdvance>0,Products[[#This Row],[Pack]]="Standard",initialAdvance>=10000,Products[[#This Row],[Max loan]]>=initialAdvance),1,0)))))) ->  | U35: =IF(Products[[#This Row],[Cashback]]>0,1,0) -> 0 | V35: =INDEX(Rates!$B$2:$B$7,MATCH(Products[[#This Row],[LTV Band]],Rates!$A$2:$A$7,0)) -> 0.0291 | W35: =IF(Products[[#This Row],[Pack]]="Elite",IFERROR(INDEX(Rates!$C$2:$C$7,MATCH(Products[[#This Row],[LTV Band]],Rates!$A$2:$A$7,0)),0),0) -> 0.005 | X35: =IFERROR(INDEX(Rates!$D$2:$D$7,MATCH(Products[[#This Row],[Pack]],Rates!$D$1,0)),) -> 0 | Y35: =IFERROR(INDEX(Rates!$E$2:$E$7,MATCH(Products[[#This Row],[Pack]],Rates!$E$1,0)),) -> 0 | Z35: =IFERROR(INDEX(Rates!$F$2:$F$7,MATCH(Products[[#This Row],[DD Cap]],Rates!$F$1,0)),0) -> 0 | AA35: =IFERROR(INDEX(Rates!$G$2:$G$7,MATCH(Products[[#This Row],[DD Cap]],Rates!$G$1,0)),0) -> 0 | AB35: =IFERROR(INDEX(Rates!$H$2:$H$7,MATCH(Products[[#This Row],[DD Cap]],Rates!$H$1,0)),0) -> 0
A36: A | B36: Fees Package | C36: 0 | D36: =IF(Products[[#This Row],[DD Cap]]="LS", IF(Products[[#This Row],[Pack]]="Standard","SOVEREIGN "&Products[[#This Row],[Pack]]&" Lump Sum "&Products[[#This Row],[LTV Band]]&"_"&Products[[#This Row],[Rate]]*100&"% £10k+ "&LOWER(Products[[#This Row],[Single / Joint]])& " ("&SUM(Products[[#This Row],[Cont to Adv. Fees]:[Cont to Sols Fees]])&" cont to fees, "&"Arr Fee "&Products[[#This Row],[Arr` Fee]]&")", IF(Products[[#This Row],[Pack]]="Elite","SOVEREIGN "&Products[[#This Row],[Pack]]&" Lump Sum "&Products[[#This Row],[LTV Band]]&"_"&Products[[#This Row],[Rate]]*100&"% £10k+ "&LOWER(Products[[#This Row],[Single / Joint]])& " ("&SUM(Products[[#This Row],[Cont to Adv. Fees]:[Cont to Sols Fees]])&" cont to fees, "&"Arr Fee "&Products[[#This Row],[Arr` Fee]]&")", IF(Products[[#This Row],[Pack]]="Fees Package","SOVEREIGN "&Products[[#This Row],[Pack]]&" Lump Sum "&Products[[#This Row],[LTV Band]]&"_"&Products[[#This Row],[Rate]]*100&"% £10k+ "&LOWER(Products[[#This Row],[Single / Joint]])& " ("&SUM(Products[[#This Row],[Cont to Adv. Fees]:[Cont to Sols Fees]])&" cont to fees, "&"Arr Fee "&Products[[#This Row],[Arr` Fee]]&")(3% cash)"," "))), IF(AND(Products[[#This Row],[Pack]]="Standard",Products[[#This Row],[DD Cap]]<>0),"SOVEREIGN "&Products[[#This Row],[Pack]]&" DRAWDOWN "&Products[[#This Row],[LTV Band]]&"_"&Products[[#This Row],[Rate]]*100&"% £10k+ "&LOWER(Products[[#This Row],[Single / Joint]])& " ("&SUM(Products[[#This Row],[Cont to Adv. Fees]:[Cont to Sols Fees]])&" cont to fees, Arr Fee "&Products[[#This Row],[Arr` Fee]]&") Facility cap "&Products[[#This Row],[DD Cap]]&"x initial", IF(AND(Products[[#This Row],[Pack]]="Standard",Products[[#This Row],[DD Cap]]=0),"SOVEREIGN "&Products[[#This Row],[Pack]]&" DRAWDOWN "&Products[[#This Row],[LTV Band]]&"_"&Products[[#This Row],[Rate]]*100&"% £10k+ "&LOWER(Products[[#This Row],[Single / Joint]])& " ("&SUM(Products[[#This Row],[Cont to Adv. Fees]:[Cont to Sols Fees]])&" cont to fees, Arr Fee "&Products[[#This Row],[Arr` Fee]]&") No facility cap ", IF(AND(Products[[#This Row],[Pack]]="Elite",Products[[#This Row],[DD Cap]]<>0),"SOVEREIGN "&Products[[#This Row],[Pack]]&" DRAWDOWN "&Products[[#This Row],[LTV Band]]&"_"&Products[[#This Row],[Rate]]*100&"% £10k+ "&LOWER(Products[[#This Row],[Single / Joint]])& " ("&SUM(Products[[#This Row],[Cont to Adv. Fees]:[Cont to Sols Fees]])&" cont to fees, Arr Fee "&Products[[#This Row],[Arr` Fee]]&") Facility cap "&Products[[#This Row],[DD Cap]]&"x initial", IF(AND(Products[[#This Row],[Pack]]="Elite",Products[[#This Row],[DD Cap]]=0),"SOVEREIGN "&Products[[#This Row],[Pack]]&" DRAWDOWN "&Products[[#This Row],[LTV Band]]&"_"&Products[[#This Row],[Rate]]*100&"% £10k+ "&LOWER(Products[[#This Row],[Single / Joint]])& " ("&SUM(Products[[#This Row],[Cont to Adv. Fees]:[Cont to Sols Fees]])&" cont to fees, Arr Fee "&Products[[#This Row],[Arr` Fee]]&") No facility cap ", IF(AND(Products[[#This Row],[Pack]]="Fees Package",Products[[#This Row],[DD Cap]]<>0),"SOVEREIGN "&Products[[#This Row],[Pack]]&" DRAWDOWN "&Products[[#This Row],[LTV Band]]&"_"&Products[[#This Row],[Rate]]*100&"% £10k+ "&LOWER(Products[[#This Row],[Single / Joint]])& " ("&SUM(Products[[#This Row],[Cont to Adv. Fees]:[Cont to Sols Fees]])&" cont to fees, Arr Fee "&Products[[#This Row],[Arr` Fee]]&")(3% cash) Facility cap "&Products[[#This Row],[DD Cap]]&"x initial", IF(AND(Products[[#This Row],[Pack]]="Fees Package",Products[[#This Row],[DD Cap]]=0),"SOVEREIGN "&Products[[#This Row],[Pack]]&" DRAWDOWN "&Products[[#This Row],[LTV Band]]&"_"&Products[[#This Row],[Rate]]*100&"% £10k+ "&LOWER(Products[[#This Row],[Single / Joint]])& " ("&SUM(Products[[#This Row],[Cont to Adv. Fees]:[Cont to Sols Fees]])&" cont to fees, Arr Fee "&Products[[#This Row],[Arr` Fee]]&")(3% cash) No facility cap ", " "))))))) -> SOVEREIGN Fees Package DRAWDOWN A_3.41% £10k+ 0 (900 cont to fees, Arr Fee 895)(3% cash) No facility cap | H36: =SUM(Products[[#This Row],[Base rate]:[x0]]) -> 0.0341 | I36: =IF(AND(ISBLANK(initialAdvance),Products[[#This Row],[Pack]]="Fees Package"),20000, IF(AND(ISBLANK(initialAdvance),Products[[#This Row],[Pack]]="Elite"),725001, IF(AND(ISBLANK(initialAdvance),Products[[#This Row],[Pack]]="Standard"),10000,IF(AND(initialAdvance<725001,Products[[#This Row],[Pack]]="Elite"),725001,initialAdvance)))) -> 20000 | J36: =IF(AND(Products[[#This Row],[LTV Band]]="A",Products[[#This Row],[Single / Joint]]="Single"), SUMIF(LTVs!$A$3:$A$38,Menu!$I$9,LTVs!$C$3:$C$38), IF(AND(Products[[#This Row],[LTV Band]]="A",Products[[#This Row],[Single / Joint]]="Joint"), SUMIF(LTVs!$A$3:$A$38,Menu!$I$9,LTVs!$D$3:$D$38), IF(AND(Products[[#This Row],[LTV Band]]="B",Products[[#This Row],[Single / Joint]]="Single"), SUMIF(LTVs!$A$3:$A$38,Menu!$I$9,LTVs!$E$3:$E$38), IF(AND(Products[[#This Row],[LTV Band]]="B",Products[[#This Row],[Single / Joint]]="Joint"), SUMIF(LTVs!$A$3:$A$38,Menu!$I$9,LTVs!$F$3:$F$38), IF(AND(Products[[#This Row],[LTV Band]]="C",Products[[#This Row],[Single / Joint]]="Single"), SUMIF(LTVs!$A$3:$A$38,Menu!$I$9,LTVs!$G$3:$G$38), IF(AND(Products[[#This Row],[LTV Band]]="C",Products[[#This Row],[Single / Joint]]="Joint"), SUMIF(LTVs!$A$3:$A$38,Menu!$I$9,LTVs!$H$3:$H$38), IF(AND(Products[[#This Row],[LTV Band]]="D",Products[[#This Row],[Single / Joint]]="Single"), SUMIF(LTVs!$A$3:$A$38,Menu!$I$9,LTVs!$I$3:$I$38), IF(AND(Products[[#This Row],[LTV Band]]="D",Products[[#This Row],[Single / Joint]]="Joint"), SUMIF(LTVs!$A$3:$A$38,Menu!$I$9,LTVs!$J$3:$J$38), IF(AND(Products[[#This Row],[LTV Band]]="E",Products[[#This Row],[Single / Joint]]="Single"), SUMIF(LTVs!$A$3:$A$38,Menu!$I$9,LTVs!$K$3:$K$38), IF(AND(Products[[#This Row],[LTV Band]]="E",Products[[#This Row],[Single / Joint]]="Joint"), SUMIF(LTVs!$A$3:$A$38,Menu!$I$9,LTVs!$L$3:$L$38), IF(AND(Products[[#This Row],[LTV Band]]="F",Products[[#This Row],[Single / Joint]]="Single"), SUMIF(LTVs!$A$3:$A$38,Menu!$I$9,LTVs!$M$3:$M$38), IF(AND(Products[[#This Row],[LTV Band]]="F",Products[[#This Row],[Single / Joint]]="Joint"), SUMIF(LTVs!$A$3:$A$38,Menu!$I$9,LTVs!$N$3:$N$38), " ")))))))))))) ->  | K36: =IF(AND(propertyValue*Products[[#This Row],[LTV ]]>725000,Products[[#This Row],[Pack]]<>"Elite"),725000,propertyValue*Products[[#This Row],[LTV ]]) ->  | L36: =IF(Products[[#This Row],[DD Cap]]="LS"," ",IF(reqrdDDamt<2000,"N/A",IF(reqrdDDamt<=Products[[#This Row],[Drawdown cap]],reqrdDDamt,"N/A"))) -> N/A | M36: =IF(Products[[#This Row],[DD Cap]]="LS"," ",IF(IF(Products[[#This Row],[DD Cap]]>=1,initialAdvance*Products[[#This Row],[DD Cap]],Products[[#This Row],[Max loan]]-initialAdvance)<Products[[#This Row],[Max loan]]-initialAdvance,IF(Products[[#This Row],[DD Cap]]>0,initialAdvance*Products[[#This Row],[DD Cap]],Products[[#This Row],[Max loan]]-initialAdvance),Products[[#This Row],[Max loan]]-initialAdvance)) ->  | N36: =IF(Products[[#This Row],[Pack]]="FP",895,895) -> 895 | O36: =IF(Products[[#This Row],[Pack]]="Fees Package",300,0) -> 300 | P36: 600 | Q36: =App_type -> 0 | R36: =IF(AND(ISBLANK(initialAdvance),Products[[#This Row],[Pack]]="Fees Package"),Products[[#This Row],[Max loan]]*3%, IF(AND(ISBLANK(initialAdvance),Products[[#This Row],[Pack]]="Fees Package"),Products[[#This Row],[Max loan]]*3%, IF(AND(initialAdvance>0,Products[[#This Row],[Pack]]="Fees Package"),initialAdvance*3%, IF(AND(initialAdvance>0,Products[[#This Row],[Pack]]="Fees Package"),initialAdvance*3%,0)))) ->  | S36: =IF(OR(ISBLANK(App_type),$I$9=0)," ", IF(ISBLANK(initialAdvance),Products[[#This Row],[Max loan]]+Products[[#This Row],[Cont to Adv. Fees]]+Products[[#This Row],[Cont to Sols Fees]]+Products[[#This Row],[Cashback]], initialAdvance+Products[[#This Row],[Cont to Adv. Fees]]+Products[[#This Row],[Cont to Sols Fees]]+Products[[#This Row],[Cashback]])) ->  | T36: =IF(AND(ISBLANK(initialAdvance),Products[[#This Row],[Pack]]="Fees Package",Products[[#This Row],[Max loan]]>=20000),1, IF(AND(ISBLANK(initialAdvance),Products[[#This Row],[Pack]]="Elite",Products[[#This Row],[Max loan]]>725000),1, IF(AND(ISBLANK(initialAdvance),Products[[#This Row],[Pack]]="Standard",Products[[#This Row],[Max loan]]>=10000),1, IF(AND(initialAdvance>0,Products[[#This Row],[Pack]]="Fees Package",initialAdvance>=20000,Products[[#This Row],[Max loan]]>=initialAdvance),1, IF(AND(initialAdvance>0,Products[[#This Row],[Pack]]="Elite",initialAdvance>725000,Products[[#This Row],[Max loan]]>=initialAdvance),1, IF(AND(initialAdvance>0,Products[[#This Row],[Pack]]="Standard",initialAdvance>=10000,Products[[#This Row],[Max loan]]>=initialAdvance),1,0)))))) ->  | U36: =IF(Products[[#This Row],[Cashback]]>0,1,0) ->  | V36: =INDEX(Rates!$B$2:$B$7,MATCH(Products[[#This Row],[LTV Band]],Rates!$A$2:$A$7,0)) -> 0.0291 | W36: =IF(Products[[#This Row],[Pack]]="Elite",IFERROR(INDEX(Rates!$C$2:$C$7,MATCH(Products[[#This Row],[LTV Band]],Rates!$A$2:$A$7,0)),0),0) -> 0 | X36: =IFERROR(INDEX(Rates!$D$2:$D$7,MATCH(Products[[#This Row],[Pack]],Rates!$D$1,0)),) -> 0 | Y36: =IFERROR(INDEX(Rates!$E$2:$E$7,MATCH(Products[[#This Row],[Pack]],Rates!$E$1,0)),) -> 0.003 | Z36: =IFERROR(INDEX(Rates!$F$2:$F$7,MATCH(Products[[#This Row],[DD Cap]],Rates!$F$1,0)),0) -> 0 | AA36: =IFERROR(INDEX(Rates!$G$2:$G$7,MATCH(Products[[#This Row],[DD Cap]],Rates!$G$1,0)),0) -> 0 | AB36: =IFERROR(INDEX(Rates!$H$2:$H$7,MATCH(Products[[#This Row],[DD Cap]],Rates!$H$1,0)),0) -> 0.002
A37: B | B37: Fees Package | C37: 1 | D37: =IF(Products[[#This Row],[DD Cap]]="LS", IF(Products[[#This Row],[Pack]]="Standard","SOVEREIGN "&Products[[#This Row],[Pack]]&" Lump Sum "&Products[[#This Row],[LTV Band]]&"_"&Products[[#This Row],[Rate]]*100&"% £10k+ "&LOWER(Products[[#This Row],[Single / Joint]])& " ("&SUM(Products[[#This Row],[Cont to Adv. Fees]:[Cont to Sols Fees]])&" cont to fees, "&"Arr Fee "&Products[[#This Row],[Arr` Fee]]&")", IF(Products[[#This Row],[Pack]]="Elite","SOVEREIGN "&Products[[#This Row],[Pack]]&" Lump Sum "&Products[[#This Row],[LTV Band]]&"_"&Products[[#This Row],[Rate]]*100&"% £10k+ "&LOWER(Products[[#This Row],[Single / Joint]])& " ("&SUM(Products[[#This Row],[Cont to Adv. Fees]:[Cont to Sols Fees]])&" cont to fees, "&"Arr Fee "&Products[[#This Row],[Arr` Fee]]&")", IF(Products[[#This Row],[Pack]]="Fees Package","SOVEREIGN "&Products[[#This Row],[Pack]]&" Lump Sum "&Products[[#This Row],[LTV Band]]&"_"&Products[[#This Row],[Rate]]*100&"% £10k+ "&LOWER(Products[[#This Row],[Single / Joint]])& " ("&SUM(Products[[#This Row],[Cont to Adv. Fees]:[Cont to Sols Fees]])&" cont to fees, "&"Arr Fee "&Products[[#This Row],[Arr` Fee]]&")(3% cash)"," "))), IF(AND(Products[[#This Row],[Pack]]="Standard",Products[[#This Row],[DD Cap]]<>0),"SOVEREIGN "&Products[[#This Row],[Pack]]&" DRAWDOWN "&Products[[#This Row],[LTV Band]]&"_"&Products[[#This Row],[Rate]]*100&"% £10k+ "&LOWER(Products[[#This Row],[Single / Joint]])& " ("&SUM(Products[[#This Row],[Cont to Adv. Fees]:[Cont to Sols Fees]])&" cont to fees, Arr Fee "&Products[[#This Row],[Arr` Fee]]&") Facility cap "&Products[[#This Row],[DD Cap]]&"x initial", IF(AND(Products[[#This Row],[Pack]]="Standard",Products[[#This Row],[DD Cap]]=0),"SOVEREIGN "&Products[[#This Row],[Pack]]&" DRAWDOWN "&Products[[#This Row],[LTV Band]]&"_"&Products[[#This Row],[Rate]]*100&"% £10k+ "&LOWER(Products[[#This Row],[Single / Joint]])& " ("&SUM(Products[[#This Row],[Cont to Adv. Fees]:[Cont to Sols Fees]])&" cont to fees, Arr Fee "&Products[[#This Row],[Arr` Fee]]&") No facility cap ", IF(AND(Products[[#This Row],[Pack]]="Elite",Products[[#This Row],[DD Cap]]<>0),"SOVEREIGN "&Products[[#This Row],[Pack]]&" DRAWDOWN "&Products[[#This Row],[LTV Band]]&"_"&Products[[#This Row],[Rate]]*100&"% £10k+ "&LOWER(Products[[#This Row],[Single / Joint]])& " ("&SUM(Products[[#This Row],[Cont to Adv. Fees]:[Cont to Sols Fees]])&" cont to fees, Arr Fee "&Products[[#This Row],[Arr` Fee]]&") Facility cap "&Products[[#This Row],[DD Cap]]&"x initial", IF(AND(Products[[#This Row],[Pack]]="Elite",Products[[#This Row],[DD Cap]]=0),"SOVEREIGN "&Products[[#This Row],[Pack]]&" DRAWDOWN "&Products[[#This Row],[LTV Band]]&"_"&Products[[#This Row],[Rate]]*100&"% £10k+ "&LOWER(Products[[#This Row],[Single / Joint]])& " ("&SUM(Products[[#This Row],[Cont to Adv. Fees]:[Cont to Sols Fees]])&" cont to fees, Arr Fee "&Products[[#This Row],[Arr` Fee]]&") No facility cap ", IF(AND(Products[[#This Row],[Pack]]="Fees Package",Products[[#This Row],[DD Cap]]<>0),"SOVEREIGN "&Products[[#This Row],[Pack]]&" DRAWDOWN "&Products[[#This Row],[LTV Band]]&"_"&Products[[#This Row],[Rate]]*100&"% £10k+ "&LOWER(Products[[#This Row],[Single / Joint]])& " ("&SUM(Products[[#This Row],[Cont to Adv. Fees]:[Cont to Sols Fees]])&" cont to fees, Arr Fee "&Products[[#This Row],[Arr` Fee]]&")(3% cash) Facility cap "&Products[[#This Row],[DD Cap]]&"x initial", IF(AND(Products[[#This Row],[Pack]]="Fees Package",Products[[#This Row],[DD Cap]]=0),"SOVEREIGN "&Products[[#This Row],[Pack]]&" DRAWDOWN "&Products[[#This Row],[LTV Band]]&"_"&Products[[#This Row],[Rate]]*100&"% £10k+ "&LOWER(Products[[#This Row],[Single / Joint]])& " ("&SUM(Products[[#This Row],[Cont to Adv. Fees]:[Cont to Sols Fees]])&" cont to fees, Arr Fee "&Products[[#This Row],[Arr` Fee]]&")(3% cash) No facility cap ", " "))))))) -> SOVEREIGN Fees Package DRAWDOWN B_3.42% £10k+ 0 (900 cont to fees, Arr Fee 895)(3% cash) Facility cap 1x initial | H37: =SUM(Products[[#This Row],[Base rate]:[x0]]) -> 0.0342 | I37: =IF(AND(ISBLANK(initialAdvance),Products[[#This Row],[Pack]]="Fees Package"),20000, IF(AND(ISBLANK(initialAdvance),Products[[#This Row],[Pack]]="Elite"),725001, IF(AND(ISBLANK(initialAdvance),Products[[#This Row],[Pack]]="Standard"),10000,IF(AND(initialAdvance<725001,Products[[#This Row],[Pack]]="Elite"),725001,initialAdvance)))) -> 20000 | J37: =IF(AND(Products[[#This Row],[LTV Band]]="A",Products[[#This Row],[Single / Joint]]="Single"), SUMIF(LTVs!$A$3:$A$38,Menu!$I$9,LTVs!$C$3:$C$38), IF(AND(Products[[#This Row],[LTV Band]]="A",Products[[#This Row],[Single / Joint]]="Joint"), SUMIF(LTVs!$A$3:$A$38,Menu!$I$9,LTVs!$D$3:$D$38), IF(AND(Products[[#This Row],[LTV Band]]="B",Products[[#This Row],[Single / Joint]]="Single"), SUMIF(LTVs!$A$3:$A$38,Menu!$I$9,LTVs!$E$3:$E$38), IF(AND(Products[[#This Row],[LTV Band]]="B",Products[[#This Row],[Single / Joint]]="Joint"), SUMIF(LTVs!$A$3:$A$38,Menu!$I$9,LTVs!$F$3:$F$38), IF(AND(Products[[#This Row],[LTV Band]]="C",Products[[#This Row],[Single / Joint]]="Single"), SUMIF(LTVs!$A$3:$A$38,Menu!$I$9,LTVs!$G$3:$G$38), IF(AND(Products[[#This Row],[LTV Band]]="C",Products[[#This Row],[Single / Joint]]="Joint"), SUMIF(LTVs!$A$3:$A$38,Menu!$I$9,LTVs!$H$3:$H$38), IF(AND(Products[[#This Row],[LTV Band]]="D",Products[[#This Row],[Single / Joint]]="Single"), SUMIF(LTVs!$A$3:$A$38,Menu!$I$9,LTVs!$I$3:$I$38), IF(AND(Products[[#This Row],[LTV Band]]="D",Products[[#This Row],[Single / Joint]]="Joint"), SUMIF(LTVs!$A$3:$A$38,Menu!$I$9,LTVs!$J$3:$J$38), IF(AND(Products[[#This Row],[LTV Band]]="E",Products[[#This Row],[Single / Joint]]="Single"), SUMIF(LTVs!$A$3:$A$38,Menu!$I$9,LTVs!$K$3:$K$38), IF(AND(Products[[#This Row],[LTV Band]]="E",Products[[#This Row],[Single / Joint]]="Joint"), SUMIF(LTVs!$A$3:$A$38,Menu!$I$9,LTVs!$L$3:$L$38), IF(AND(Products[[#This Row],[LTV Band]]="F",Products[[#This Row],[Single / Joint]]="Single"), SUMIF(LTVs!$A$3:$A$38,Menu!$I$9,LTVs!$M$3:$M$38), IF(AND(Products[[#This Row],[LTV Band]]="F",Products[[#This Row],[Single / Joint]]="Joint"), SUMIF(LTVs!$A$3:$A$38,Menu!$I$9,LTVs!$N$3:$N$38), " ")))))))))))) ->  | K37: =IF(AND(propertyValue*Products[[#This Row],[LTV ]]>725000,Products[[#This Row],[Pack]]<>"Elite"),725000,propertyValue*Products[[#This Row],[LTV ]]) ->  | L37: =IF(Products[[#This Row],[DD Cap]]="LS"," ",IF(reqrdDDamt<2000,"N/A",IF(reqrdDDamt<=Products[[#This Row],[Drawdown cap]],reqrdDDamt,"N/A"))) -> N/A | M37: =IF(Products[[#This Row],[DD Cap]]="LS"," ",IF(IF(Products[[#This Row],[DD Cap]]>=1,initialAdvance*Products[[#This Row],[DD Cap]],Products[[#This Row],[Max loan]]-initialAdvance)<Products[[#This Row],[Max loan]]-initialAdvance,IF(Products[[#This Row],[DD Cap]]>0,initialAdvance*Products[[#This Row],[DD Cap]],Products[[#This Row],[Max loan]]-initialAdvance),Products[[#This Row],[Max loan]]-initialAdvance)) ->  | N37: =IF(Products[[#This Row],[Pack]]="FP",895,895) -> 895 | O37: =IF(Products[[#This Row],[Pack]]="Fees Package",300,0) -> 300 | P37: 600 | Q37: =App_type -> 0 | R37: =IF(AND(ISBLANK(initialAdvance),Products[[#This Row],[Pack]]="Fees Package"),Products[[#This Row],[Max loan]]*3%, IF(AND(ISBLANK(initialAdvance),Products[[#This Row],[Pack]]="Fees Package"),Products[[#This Row],[Max loan]]*3%, IF(AND(initialAdvance>0,Products[[#This Row],[Pack]]="Fees Package"),initialAdvance*3%, IF(AND(initialAdvance>0,Products[[#This Row],[Pack]]="Fees Package"),initialAdvance*3%,0)))) ->  | S37: =IF(OR(ISBLANK(App_type),$I$9=0)," ", IF(ISBLANK(initialAdvance),Products[[#This Row],[Max loan]]+Products[[#This Row],[Cont to Adv. Fees]]+Products[[#This Row],[Cont to Sols Fees]]+Products[[#This Row],[Cashback]], initialAdvance+Products[[#This Row],[Cont to Adv. Fees]]+Products[[#This Row],[Cont to Sols Fees]]+Products[[#This Row],[Cashback]])) ->  | T37: =IF(AND(ISBLANK(initialAdvance),Products[[#This Row],[Pack]]="Fees Package",Products[[#This Row],[Max loan]]>=20000),1, IF(AND(ISBLANK(initialAdvance),Products[[#This Row],[Pack]]="Elite",Products[[#This Row],[Max loan]]>725000),1, IF(AND(ISBLANK(initialAdvance),Products[[#This Row],[Pack]]="Standard",Products[[#This Row],[Max loan]]>=10000),1, IF(AND(initialAdvance>0,Products[[#This Row],[Pack]]="Fees Package",initialAdvance>=20000,Products[[#This Row],[Max loan]]>=initialAdvance),1, IF(AND(initialAdvance>0,Products[[#This Row],[Pack]]="Elite",initialAdvance>725000,Products[[#This Row],[Max loan]]>=initialAdvance),1, IF(AND(initialAdvance>0,Products[[#This Row],[Pack]]="Standard",initialAdvance>=10000,Products[[#This Row],[Max loan]]>=initialAdvance),1,0)))))) ->  | U37: =IF(Products[[#This Row],[Cashback]]>0,1,0) ->  | V37: =INDEX(Rates!$B$2:$B$7,MATCH(Products[[#This Row],[LTV Band]],Rates!$A$2:$A$7,0)) -> 0.0302 | W37: =IF(Products[[#This Row],[Pack]]="Elite",IFERROR(INDEX(Rates!$C$2:$C$7,MATCH(Products[[#This Row],[LTV Band]],Rates!$A$2:$A$7,0)),0),0) -> 0 | X37: =IFERROR(INDEX(Rates!$D$2:$D$7,MATCH(Products[[#This Row],[Pack]],Rates!$D$1,0)),) -> 0 | Y37: =IFERROR(INDEX(Rates!$E$2:$E$7,MATCH(Products[[#This Row],[Pack]],Rates!$E$1,0)),) -> 0.003 | Z37: =IFERROR(INDEX(Rates!$F$2:$F$7,MATCH(Products[[#This Row],[DD Cap]],Rates!$F$1,0)),0) -> 0.001 | AA37: =IFERROR(INDEX(Rates!$G$2:$G$7,MATCH(Products[[#This Row],[DD Cap]],Rates!$G$1,0)),0) -> 0 | AB37: =IFERROR(INDEX(Rates!$H$2:$H$7,MATCH(Products[[#This Row],[DD Cap]],Rates!$H$1,0)),0) -> 0
A38: B | B38: Fees Package | C38: 1.5 | D38: =IF(Products[[#This Row],[DD Cap]]="LS", IF(Products[[#This Row],[Pack]]="Standard","SOVEREIGN "&Products[[#This Row],[Pack]]&" Lump Sum "&Products[[#This Row],[LTV Band]]&"_"&Products[[#This Row],[Rate]]*100&"% £10k+ "&LOWER(Products[[#This Row],[Single / Joint]])& " ("&SUM(Products[[#This Row],[Cont to Adv. Fees]:[Cont to Sols Fees]])&" cont to fees, "&"Arr Fee "&Products[[#This Row],[Arr` Fee]]&")", IF(Products[[#This Row],[Pack]]="Elite","SOVEREIGN "&Products[[#This Row],[Pack]]&" Lump Sum "&Products[[#This Row],[LTV Band]]&"_"&Products[[#This Row],[Rate]]*100&"% £10k+ "&LOWER(Products[[#This Row],[Single / Joint]])& " ("&SUM(Products[[#This Row],[Cont to Adv. Fees]:[Cont to Sols Fees]])&" cont to fees, "&"Arr Fee "&Products[[#This Row],[Arr` Fee]]&")", IF(Products[[#This Row],[Pack]]="Fees Package","SOVEREIGN "&Products[[#This Row],[Pack]]&" Lump Sum "&Products[[#This Row],[LTV Band]]&"_"&Products[[#This Row],[Rate]]*100&"% £10k+ "&LOWER(Products[[#This Row],[Single / Joint]])& " ("&SUM(Products[[#This Row],[Cont to Adv. Fees]:[Cont to Sols Fees]])&" cont to fees, "&"Arr Fee "&Products[[#This Row],[Arr` Fee]]&")(3% cash)"," "))), IF(AND(Products[[#This Row],[Pack]]="Standard",Products[[#This Row],[DD Cap]]<>0),"SOVEREIGN "&Products[[#This Row],[Pack]]&" DRAWDOWN "&Products[[#This Row],[LTV Band]]&"_"&Products[[#This Row],[Rate]]*100&"% £10k+ "&LOWER(Products[[#This Row],[Single / Joint]])& " ("&SUM(Products[[#This Row],[Cont to Adv. Fees]:[Cont to Sols Fees]])&" cont to fees, Arr Fee "&Products[[#This Row],[Arr` Fee]]&") Facility cap "&Products[[#This Row],[DD Cap]]&"x initial", IF(AND(Products[[#This Row],[Pack]]="Standard",Products[[#This Row],[DD Cap]]=0),"SOVEREIGN "&Products[[#This Row],[Pack]]&" DRAWDOWN "&Products[[#This Row],[LTV Band]]&"_"&Products[[#This Row],[Rate]]*100&"% £10k+ "&LOWER(Products[[#This Row],[Single / Joint]])& " ("&SUM(Products[[#This Row],[Cont to Adv. Fees]:[Cont to Sols Fees]])&" cont to fees, Arr Fee "&Products[[#This Row],[Arr` Fee]]&") No facility cap ", IF(AND(Products[[#This Row],[Pack]]="Elite",Products[[#This Row],[DD Cap]]<>0),"SOVEREIGN "&Products[[#This Row],[Pack]]&" DRAWDOWN "&Products[[#This Row],[LTV Band]]&"_"&Products[[#This Row],[Rate]]*100&"% £10k+ "&LOWER(Products[[#This Row],[Single / Joint]])& " ("&SUM(Products[[#This Row],[Cont to Adv. Fees]:[Cont to Sols Fees]])&" cont to fees, Arr Fee "&Products[[#This Row],[Arr` Fee]]&") Facility cap "&Products[[#This Row],[DD Cap]]&"x initial", IF(AND(Products[[#This Row],[Pack]]="Elite",Products[[#This Row],[DD Cap]]=0),"SOVEREIGN "&Products[[#This Row],[Pack]]&" DRAWDOWN "&Products[[#This Row],[LTV Band]]&"_"&Products[[#This Row],[Rate]]*100&"% £10k+ "&LOWER(Products[[#This Row],[Single / Joint]])& " ("&SUM(Products[[#This Row],[Cont to Adv. Fees]:[Cont to Sols Fees]])&" cont to fees, Arr Fee "&Products[[#This Row],[Arr` Fee]]&") No facility cap ", IF(AND(Products[[#This Row],[Pack]]="Fees Package",Products[[#This Row],[DD Cap]]<>0),"SOVEREIGN "&Products[[#This Row],[Pack]]&" DRAWDOWN "&Products[[#This Row],[LTV Band]]&"_"&Products[[#This Row],[Rate]]*100&"% £10k+ "&LOWER(Products[[#This Row],[Single / Joint]])& " ("&SUM(Products[[#This Row],[Cont to Adv. Fees]:[Cont to Sols Fees]])&" cont to fees, Arr Fee "&Products[[#This Row],[Arr` Fee]]&")(3% cash) Facility cap "&Products[[#This Row],[DD Cap]]&"x initial", IF(AND(Products[[#This Row],[Pack]]="Fees Package",Products[[#This Row],[DD Cap]]=0),"SOVEREIGN "&Products[[#This Row],[Pack]]&" DRAWDOWN "&Products[[#This Row],[LTV Band]]&"_"&Products[[#This Row],[Rate]]*100&"% £10k+ "&LOWER(Products[[#This Row],[Single / Joint]])& " ("&SUM(Products[[#This Row],[Cont to Adv. Fees]:[Cont to Sols Fees]])&" cont to fees, Arr Fee "&Products[[#This Row],[Arr` Fee]]&")(3% cash) No facility cap ", " "))))))) -> SOVEREIGN Fees Package DRAWDOWN B_3.47% £10k+ 0 (900 cont to fees, Arr Fee 895)(3% cash) Facility cap 1.5x initial | H38: =SUM(Products[[#This Row],[Base rate]:[x0]]) -> 0.0347 | I38: =IF(AND(ISBLANK(initialAdvance),Products[[#This Row],[Pack]]="Fees Package"),20000, IF(AND(ISBLANK(initialAdvance),Products[[#This Row],[Pack]]="Elite"),725001, IF(AND(ISBLANK(initialAdvance),Products[[#This Row],[Pack]]="Standard"),10000,IF(AND(initialAdvance<725001,Products[[#This Row],[Pack]]="Elite"),725001,initialAdvance)))) -> 20000 | J38: =IF(AND(Products[[#This Row],[LTV Band]]="A",Products[[#This Row],[Single / Joint]]="Single"), SUMIF(LTVs!$A$3:$A$38,Menu!$I$9,LTVs!$C$3:$C$38), IF(AND(Products[[#This Row],[LTV Band]]="A",Products[[#This Row],[Single / Joint]]="Joint"), SUMIF(LTVs!$A$3:$A$38,Menu!$I$9,LTVs!$D$3:$D$38), IF(AND(Products[[#This Row],[LTV Band]]="B",Products[[#This Row],[Single / Joint]]="Single"), SUMIF(LTVs!$A$3:$A$38,Menu!$I$9,LTVs!$E$3:$E$38), IF(AND(Products[[#This Row],[LTV Band]]="B",Products[[#This Row],[Single / Joint]]="Joint"), SUMIF(LTVs!$A$3:$A$38,Menu!$I$9,LTVs!$F$3:$F$38), IF(AND(Products[[#This Row],[LTV Band]]="C",Products[[#This Row],[Single / Joint]]="Single"), SUMIF(LTVs!$A$3:$A$38,Menu!$I$9,LTVs!$G$3:$G$38), IF(AND(Products[[#This Row],[LTV Band]]="C",Products[[#This Row],[Single / Joint]]="Joint"), SUMIF(LTVs!$A$3:$A$38,Menu!$I$9,LTVs!$H$3:$H$38), IF(AND(Products[[#This Row],[LTV Band]]="D",Products[[#This Row],[Single / Joint]]="Single"), SUMIF(LTVs!$A$3:$A$38,Menu!$I$9,LTVs!$I$3:$I$38), IF(AND(Products[[#This Row],[LTV Band]]="D",Products[[#This Row],[Single / Joint]]="Joint"), SUMIF(LTVs!$A$3:$A$38,Menu!$I$9,LTVs!$J$3:$J$38), IF(AND(Products[[#This Row],[LTV Band]]="E",Products[[#This Row],[Single / Joint]]="Single"), SUMIF(LTVs!$A$3:$A$38,Menu!$I$9,LTVs!$K$3:$K$38), IF(AND(Products[[#This Row],[LTV Band]]="E",Products[[#This Row],[Single / Joint]]="Joint"), SUMIF(LTVs!$A$3:$A$38,Menu!$I$9,LTVs!$L$3:$L$38), IF(AND(Products[[#This Row],[LTV Band]]="F",Products[[#This Row],[Single / Joint]]="Single"), SUMIF(LTVs!$A$3:$A$38,Menu!$I$9,LTVs!$M$3:$M$38), IF(AND(Products[[#This Row],[LTV Band]]="F",Products[[#This Row],[Single / Joint]]="Joint"), SUMIF(LTVs!$A$3:$A$38,Menu!$I$9,LTVs!$N$3:$N$38), " ")))))))))))) ->  | K38: =IF(AND(propertyValue*Products[[#This Row],[LTV ]]>725000,Products[[#This Row],[Pack]]<>"Elite"),725000,propertyValue*Products[[#This Row],[LTV ]]) ->  | L38: =IF(Products[[#This Row],[DD Cap]]="LS"," ",IF(reqrdDDamt<2000,"N/A",IF(reqrdDDamt<=Products[[#This Row],[Drawdown cap]],reqrdDDamt,"N/A"))) -> N/A | M38: =IF(Products[[#This Row],[DD Cap]]="LS"," ",IF(IF(Products[[#This Row],[DD Cap]]>=1,initialAdvance*Products[[#This Row],[DD Cap]],Products[[#This Row],[Max loan]]-initialAdvance)<Products[[#This Row],[Max loan]]-initialAdvance,IF(Products[[#This Row],[DD Cap]]>0,initialAdvance*Products[[#This Row],[DD Cap]],Products[[#This Row],[Max loan]]-initialAdvance),Products[[#This Row],[Max loan]]-initialAdvance)) ->  | N38: =IF(Products[[#This Row],[Pack]]="FP",895,895) -> 895 | O38: =IF(Products[[#This Row],[Pack]]="Fees Package",300,0) -> 300 | P38: 600 | Q38: =App_type -> 0 | R38: =IF(AND(ISBLANK(initialAdvance),Products[[#This Row],[Pack]]="Fees Package"),Products[[#This Row],[Max loan]]*3%, IF(AND(ISBLANK(initialAdvance),Products[[#This Row],[Pack]]="Fees Package"),Products[[#This Row],[Max loan]]*3%, IF(AND(initialAdvance>0,Products[[#This Row],[Pack]]="Fees Package"),initialAdvance*3%, IF(AND(initialAdvance>0,Products[[#This Row],[Pack]]="Fees Package"),initialAdvance*3%,0)))) ->  | S38: =IF(OR(ISBLANK(App_type),$I$9=0)," ", IF(ISBLANK(initialAdvance),Products[[#This Row],[Max loan]]+Products[[#This Row],[Cont to Adv. Fees]]+Products[[#This Row],[Cont to Sols Fees]]+Products[[#This Row],[Cashback]], initialAdvance+Products[[#This Row],[Cont to Adv. Fees]]+Products[[#This Row],[Cont to Sols Fees]]+Products[[#This Row],[Cashback]])) ->  | T38: =IF(AND(ISBLANK(initialAdvance),Products[[#This Row],[Pack]]="Fees Package",Products[[#This Row],[Max loan]]>=20000),1, IF(AND(ISBLANK(initialAdvance),Products[[#This Row],[Pack]]="Elite",Products[[#This Row],[Max loan]]>725000),1, IF(AND(ISBLANK(initialAdvance),Products[[#This Row],[Pack]]="Standard",Products[[#This Row],[Max loan]]>=10000),1, IF(AND(initialAdvance>0,Products[[#This Row],[Pack]]="Fees Package",initialAdvance>=20000,Products[[#This Row],[Max loan]]>=initialAdvance),1, IF(AND(initialAdvance>0,Products[[#This Row],[Pack]]="Elite",initialAdvance>725000,Products[[#This Row],[Max loan]]>=initialAdvance),1, IF(AND(initialAdvance>0,Products[[#This Row],[Pack]]="Standard",initialAdvance>=10000,Products[[#This Row],[Max loan]]>=initialAdvance),1,0)))))) ->  | U38: =IF(Products[[#This Row],[Cashback]]>0,1,0) ->  | V38: =INDEX(Rates!$B$2:$B$7,MATCH(Products[[#This Row],[LTV Band]],Rates!$A$2:$A$7,0)) -> 0.0302 | W38: =IF(Products[[#This Row],[Pack]]="Elite",IFERROR(INDEX(Rates!$C$2:$C$7,MATCH(Products[[#This Row],[LTV Band]],Rates!$A$2:$A$7,0)),0),0) -> 0 | X38: =IFERROR(INDEX(Rates!$D$2:$D$7,MATCH(Products[[#This Row],[Pack]],Rates!$D$1,0)),) -> 0 | Y38: =IFERROR(INDEX(Rates!$E$2:$E$7,MATCH(Products[[#This Row],[Pack]],Rates!$E$1,0)),) -> 0.003 | Z38: =IFERROR(INDEX(Rates!$F$2:$F$7,MATCH(Products[[#This Row],[DD Cap]],Rates!$F$1,0)),0) -> 0 | AA38: =IFERROR(INDEX(Rates!$G$2:$G$7,MATCH(Products[[#This Row],[DD Cap]],Rates!$G$1,0)),0) -> 0.0015 | AB38: =IFERROR(INDEX(Rates!$H$2:$H$7,MATCH(Products[[#This Row],[DD Cap]],Rates!$H$1,0)),0) -> 0
A39: A | B39: Elite | C39: 1 | D39: =IF(Products[[#This Row],[DD Cap]]="LS", IF(Products[[#This Row],[Pack]]="Standard","SOVEREIGN "&Products[[#This Row],[Pack]]&" Lump Sum "&Products[[#This Row],[LTV Band]]&"_"&Products[[#This Row],[Rate]]*100&"% £10k+ "&LOWER(Products[[#This Row],[Single / Joint]])& " ("&SUM(Products[[#This Row],[Cont to Adv. Fees]:[Cont to Sols Fees]])&" cont to fees, "&"Arr Fee "&Products[[#This Row],[Arr` Fee]]&")", IF(Products[[#This Row],[Pack]]="Elite","SOVEREIGN "&Products[[#This Row],[Pack]]&" Lump Sum "&Products[[#This Row],[LTV Band]]&"_"&Products[[#This Row],[Rate]]*100&"% £10k+ "&LOWER(Products[[#This Row],[Single / Joint]])& " ("&SUM(Products[[#This Row],[Cont to Adv. Fees]:[Cont to Sols Fees]])&" cont to fees, "&"Arr Fee "&Products[[#This Row],[Arr` Fee]]&")", IF(Products[[#This Row],[Pack]]="Fees Package","SOVEREIGN "&Products[[#This Row],[Pack]]&" Lump Sum "&Products[[#This Row],[LTV Band]]&"_"&Products[[#This Row],[Rate]]*100&"% £10k+ "&LOWER(Products[[#This Row],[Single / Joint]])& " ("&SUM(Products[[#This Row],[Cont to Adv. Fees]:[Cont to Sols Fees]])&" cont to fees, "&"Arr Fee "&Products[[#This Row],[Arr` Fee]]&")(3% cash)"," "))), IF(AND(Products[[#This Row],[Pack]]="Standard",Products[[#This Row],[DD Cap]]<>0),"SOVEREIGN "&Products[[#This Row],[Pack]]&" DRAWDOWN "&Products[[#This Row],[LTV Band]]&"_"&Products[[#This Row],[Rate]]*100&"% £10k+ "&LOWER(Products[[#This Row],[Single / Joint]])& " ("&SUM(Products[[#This Row],[Cont to Adv. Fees]:[Cont to Sols Fees]])&" cont to fees, Arr Fee "&Products[[#This Row],[Arr` Fee]]&") Facility cap "&Products[[#This Row],[DD Cap]]&"x initial", IF(AND(Products[[#This Row],[Pack]]="Standard",Products[[#This Row],[DD Cap]]=0),"SOVEREIGN "&Products[[#This Row],[Pack]]&" DRAWDOWN "&Products[[#This Row],[LTV Band]]&"_"&Products[[#This Row],[Rate]]*100&"% £10k+ "&LOWER(Products[[#This Row],[Single / Joint]])& " ("&SUM(Products[[#This Row],[Cont to Adv. Fees]:[Cont to Sols Fees]])&" cont to fees, Arr Fee "&Products[[#This Row],[Arr` Fee]]&") No facility cap ", IF(AND(Products[[#This Row],[Pack]]="Elite",Products[[#This Row],[DD Cap]]<>0),"SOVEREIGN "&Products[[#This Row],[Pack]]&" DRAWDOWN "&Products[[#This Row],[LTV Band]]&"_"&Products[[#This Row],[Rate]]*100&"% £10k+ "&LOWER(Products[[#This Row],[Single / Joint]])& " ("&SUM(Products[[#This Row],[Cont to Adv. Fees]:[Cont to Sols Fees]])&" cont to fees, Arr Fee "&Products[[#This Row],[Arr` Fee]]&") Facility cap "&Products[[#This Row],[DD Cap]]&"x initial", IF(AND(Products[[#This Row],[Pack]]="Elite",Products[[#This Row],[DD Cap]]=0),"SOVEREIGN "&Products[[#This Row],[Pack]]&" DRAWDOWN "&Products[[#This Row],[LTV Band]]&"_"&Products[[#This Row],[Rate]]*100&"% £10k+ "&LOWER(Products[[#This Row],[Single / Joint]])& " ("&SUM(Products[[#This Row],[Cont to Adv. Fees]:[Cont to Sols Fees]])&" cont to fees, Arr Fee "&Products[[#This Row],[Arr` Fee]]&") No facility cap ", IF(AND(Products[[#This Row],[Pack]]="Fees Package",Products[[#This Row],[DD Cap]]<>0),"SOVEREIGN "&Products[[#This Row],[Pack]]&" DRAWDOWN "&Products[[#This Row],[LTV Band]]&"_"&Products[[#This Row],[Rate]]*100&"% £10k+ "&LOWER(Products[[#This Row],[Single / Joint]])& " ("&SUM(Products[[#This Row],[Cont to Adv. Fees]:[Cont to Sols Fees]])&" cont to fees, Arr Fee "&Products[[#This Row],[Arr` Fee]]&")(3% cash) Facility cap "&Products[[#This Row],[DD Cap]]&"x initial", IF(AND(Products[[#This Row],[Pack]]="Fees Package",Products[[#This Row],[DD Cap]]=0),"SOVEREIGN "&Products[[#This Row],[Pack]]&" DRAWDOWN "&Products[[#This Row],[LTV Band]]&"_"&Products[[#This Row],[Rate]]*100&"% £10k+ "&LOWER(Products[[#This Row],[Single / Joint]])& " ("&SUM(Products[[#This Row],[Cont to Adv. Fees]:[Cont to Sols Fees]])&" cont to fees, Arr Fee "&Products[[#This Row],[Arr` Fee]]&")(3% cash) No facility cap ", " "))))))) -> SOVEREIGN Elite DRAWDOWN A_3.51% £10k+ 0 (600 cont to fees, Arr Fee 895) Facility cap 1x initial | H39: =SUM(Products[[#This Row],[Base rate]:[x0]]) -> 0.0351 | I39: =IF(AND(ISBLANK(initialAdvance),Products[[#This Row],[Pack]]="Fees Package"),20000, IF(AND(ISBLANK(initialAdvance),Products[[#This Row],[Pack]]="Elite"),725001, IF(AND(ISBLANK(initialAdvance),Products[[#This Row],[Pack]]="Standard"),10000,IF(AND(initialAdvance<725001,Products[[#This Row],[Pack]]="Elite"),725001,initialAdvance)))) -> 725001 | J39: =IF(AND(Products[[#This Row],[LTV Band]]="A",Products[[#This Row],[Single / Joint]]="Single"), SUMIF(LTVs!$A$3:$A$38,Menu!$I$9,LTVs!$C$3:$C$38), IF(AND(Products[[#This Row],[LTV Band]]="A",Products[[#This Row],[Single / Joint]]="Joint"), SUMIF(LTVs!$A$3:$A$38,Menu!$I$9,LTVs!$D$3:$D$38), IF(AND(Products[[#This Row],[LTV Band]]="B",Products[[#This Row],[Single / Joint]]="Single"), SUMIF(LTVs!$A$3:$A$38,Menu!$I$9,LTVs!$E$3:$E$38), IF(AND(Products[[#This Row],[LTV Band]]="B",Products[[#This Row],[Single / Joint]]="Joint"), SUMIF(LTVs!$A$3:$A$38,Menu!$I$9,LTVs!$F$3:$F$38), IF(AND(Products[[#This Row],[LTV Band]]="C",Products[[#This Row],[Single / Joint]]="Single"), SUMIF(LTVs!$A$3:$A$38,Menu!$I$9,LTVs!$G$3:$G$38), IF(AND(Products[[#This Row],[LTV Band]]="C",Products[[#This Row],[Single / Joint]]="Joint"), SUMIF(LTVs!$A$3:$A$38,Menu!$I$9,LTVs!$H$3:$H$38), IF(AND(Products[[#This Row],[LTV Band]]="D",Products[[#This Row],[Single / Joint]]="Single"), SUMIF(LTVs!$A$3:$A$38,Menu!$I$9,LTVs!$I$3:$I$38), IF(AND(Products[[#This Row],[LTV Band]]="D",Products[[#This Row],[Single / Joint]]="Joint"), SUMIF(LTVs!$A$3:$A$38,Menu!$I$9,LTVs!$J$3:$J$38), IF(AND(Products[[#This Row],[LTV Band]]="E",Products[[#This Row],[Single / Joint]]="Single"), SUMIF(LTVs!$A$3:$A$38,Menu!$I$9,LTVs!$K$3:$K$38), IF(AND(Products[[#This Row],[LTV Band]]="E",Products[[#This Row],[Single / Joint]]="Joint"), SUMIF(LTVs!$A$3:$A$38,Menu!$I$9,LTVs!$L$3:$L$38), IF(AND(Products[[#This Row],[LTV Band]]="F",Products[[#This Row],[Single / Joint]]="Single"), SUMIF(LTVs!$A$3:$A$38,Menu!$I$9,LTVs!$M$3:$M$38), IF(AND(Products[[#This Row],[LTV Band]]="F",Products[[#This Row],[Single / Joint]]="Joint"), SUMIF(LTVs!$A$3:$A$38,Menu!$I$9,LTVs!$N$3:$N$38), " ")))))))))))) ->  | K39: =IF(AND(propertyValue*Products[[#This Row],[LTV ]]>725000,Products[[#This Row],[Pack]]<>"Elite"),725000,propertyValue*Products[[#This Row],[LTV ]]) ->  | L39: =IF(Products[[#This Row],[DD Cap]]="LS"," ",IF(reqrdDDamt<2000,"N/A",IF(reqrdDDamt<=Products[[#This Row],[Drawdown cap]],reqrdDDamt,"N/A"))) -> N/A | M39: =IF(Products[[#This Row],[DD Cap]]="LS"," ",IF(IF(Products[[#This Row],[DD Cap]]>=1,initialAdvance*Products[[#This Row],[DD Cap]],Products[[#This Row],[Max loan]]-initialAdvance)<Products[[#This Row],[Max loan]]-initialAdvance,IF(Products[[#This Row],[DD Cap]]>0,initialAdvance*Products[[#This Row],[DD Cap]],Products[[#This Row],[Max loan]]-initialAdvance),Products[[#This Row],[Max loan]]-initialAdvance)) ->  | N39: =IF(Products[[#This Row],[Pack]]="FP",895,895) -> 895 | O39: =IF(Products[[#This Row],[Pack]]="Fees Package",300,0) -> 0 | P39: 600 | Q39: =App_type -> 0 | R39: =IF(AND(ISBLANK(initialAdvance),Products[[#This Row],[Pack]]="Fees Package"),Products[[#This Row],[Max loan]]*3%, IF(AND(ISBLANK(initialAdvance),Products[[#This Row],[Pack]]="Fees Package"),Products[[#This Row],[Max loan]]*3%, IF(AND(initialAdvance>0,Products[[#This Row],[Pack]]="Fees Package"),initialAdvance*3%, IF(AND(initialAdvance>0,Products[[#This Row],[Pack]]="Fees Package"),initialAdvance*3%,0)))) -> 0 | S39: =IF(OR(ISBLANK(App_type),$I$9=0)," ", IF(ISBLANK(initialAdvance),Products[[#This Row],[Max loan]]+Products[[#This Row],[Cont to Adv. Fees]]+Products[[#This Row],[Cont to Sols Fees]]+Products[[#This Row],[Cashback]], initialAdvance+Products[[#This Row],[Cont to Adv. Fees]]+Products[[#This Row],[Cont to Sols Fees]]+Products[[#This Row],[Cashback]])) ->  | T39: =IF(AND(ISBLANK(initialAdvance),Products[[#This Row],[Pack]]="Fees Package",Products[[#This Row],[Max loan]]>=20000),1, IF(AND(ISBLANK(initialAdvance),Products[[#This Row],[Pack]]="Elite",Products[[#This Row],[Max loan]]>725000),1, IF(AND(ISBLANK(initialAdvance),Products[[#This Row],[Pack]]="Standard",Products[[#This Row],[Max loan]]>=10000),1, IF(AND(initialAdvance>0,Products[[#This Row],[Pack]]="Fees Package",initialAdvance>=20000,Products[[#This Row],[Max loan]]>=initialAdvance),1, IF(AND(initialAdvance>0,Products[[#This Row],[Pack]]="Elite",initialAdvance>725000,Products[[#This Row],[Max loan]]>=initialAdvance),1, IF(AND(initialAdvance>0,Products[[#This Row],[Pack]]="Standard",initialAdvance>=10000,Products[[#This Row],[Max loan]]>=initialAdvance),1,0)))))) ->  | U39: =IF(Products[[#This Row],[Cashback]]>0,1,0) -> 0 | V39: =INDEX(Rates!$B$2:$B$7,MATCH(Products[[#This Row],[LTV Band]],Rates!$A$2:$A$7,0)) -> 0.0291 | W39: =IF(Products[[#This Row],[Pack]]="Elite",IFERROR(INDEX(Rates!$C$2:$C$7,MATCH(Products[[#This Row],[LTV Band]],Rates!$A$2:$A$7,0)),0),0) -> 0.005 | X39: =IFERROR(INDEX(Rates!$D$2:$D$7,MATCH(Products[[#This Row],[Pack]],Rates!$D$1,0)),) -> 0 | Y39: =IFERROR(INDEX(Rates!$E$2:$E$7,MATCH(Products[[#This Row],[Pack]],Rates!$E$1,0)),) -> 0 | Z39: =IFERROR(INDEX(Rates!$F$2:$F$7,MATCH(Products[[#This Row],[DD Cap]],Rates!$F$1,0)),0) -> 0.001 | AA39: =IFERROR(INDEX(Rates!$G$2:$G$7,MATCH(Products[[#This Row],[DD Cap]],Rates!$G$1,0)),0) -> 0 | AB39: =IFERROR(INDEX(Rates!$H$2:$H$7,MATCH(Products[[#This Row],[DD Cap]],Rates!$H$1,0)),0) -> 0
A40: B | B40: Fees Package | C40: 0 | D40: =IF(Products[[#This Row],[DD Cap]]="LS", IF(Products[[#This Row],[Pack]]="Standard","SOVEREIGN "&Products[[#This Row],[Pack]]&" Lump Sum "&Products[[#This Row],[LTV Band]]&"_"&Products[[#This Row],[Rate]]*100&"% £10k+ "&LOWER(Products[[#This Row],[Single / Joint]])& " ("&SUM(Products[[#This Row],[Cont to Adv. Fees]:[Cont to Sols Fees]])&" cont to fees, "&"Arr Fee "&Products[[#This Row],[Arr` Fee]]&")", IF(Products[[#This Row],[Pack]]="Elite","SOVEREIGN "&Products[[#This Row],[Pack]]&" Lump Sum "&Products[[#This Row],[LTV Band]]&"_"&Products[[#This Row],[Rate]]*100&"% £10k+ "&LOWER(Products[[#This Row],[Single / Joint]])& " ("&SUM(Products[[#This Row],[Cont to Adv. Fees]:[Cont to Sols Fees]])&" cont to fees, "&"Arr Fee "&Products[[#This Row],[Arr` Fee]]&")", IF(Products[[#This Row],[Pack]]="Fees Package","SOVEREIGN "&Products[[#This Row],[Pack]]&" Lump Sum "&Products[[#This Row],[LTV Band]]&"_"&Products[[#This Row],[Rate]]*100&"% £10k+ "&LOWER(Products[[#This Row],[Single / Joint]])& " ("&SUM(Products[[#This Row],[Cont to Adv. Fees]:[Cont to Sols Fees]])&" cont to fees, "&"Arr Fee "&Products[[#This Row],[Arr` Fee]]&")(3% cash)"," "))), IF(AND(Products[[#This Row],[Pack]]="Standard",Products[[#This Row],[DD Cap]]<>0),"SOVEREIGN "&Products[[#This Row],[Pack]]&" DRAWDOWN "&Products[[#This Row],[LTV Band]]&"_"&Products[[#This Row],[Rate]]*100&"% £10k+ "&LOWER(Products[[#This Row],[Single / Joint]])& " ("&SUM(Products[[#This Row],[Cont to Adv. Fees]:[Cont to Sols Fees]])&" cont to fees, Arr Fee "&Products[[#This Row],[Arr` Fee]]&") Facility cap "&Products[[#This Row],[DD Cap]]&"x initial", IF(AND(Products[[#This Row],[Pack]]="Standard",Products[[#This Row],[DD Cap]]=0),"SOVEREIGN "&Products[[#This Row],[Pack]]&" DRAWDOWN "&Products[[#This Row],[LTV Band]]&"_"&Products[[#This Row],[Rate]]*100&"% £10k+ "&LOWER(Products[[#This Row],[Single / Joint]])& " ("&SUM(Products[[#This Row],[Cont to Adv. Fees]:[Cont to Sols Fees]])&" cont to fees, Arr Fee "&Products[[#This Row],[Arr` Fee]]&") No facility cap ", IF(AND(Products[[#This Row],[Pack]]="Elite",Products[[#This Row],[DD Cap]]<>0),"SOVEREIGN "&Products[[#This Row],[Pack]]&" DRAWDOWN "&Products[[#This Row],[LTV Band]]&"_"&Products[[#This Row],[Rate]]*100&"% £10k+ "&LOWER(Products[[#This Row],[Single / Joint]])& " ("&SUM(Products[[#This Row],[Cont to Adv. Fees]:[Cont to Sols Fees]])&" cont to fees, Arr Fee "&Products[[#This Row],[Arr` Fee]]&") Facility cap "&Products[[#This Row],[DD Cap]]&"x initial", IF(AND(Products[[#This Row],[Pack]]="Elite",Products[[#This Row],[DD Cap]]=0),"SOVEREIGN "&Products[[#This Row],[Pack]]&" DRAWDOWN "&Products[[#This Row],[LTV Band]]&"_"&Products[[#This Row],[Rate]]*100&"% £10k+ "&LOWER(Products[[#This Row],[Single / Joint]])& " ("&SUM(Products[[#This Row],[Cont to Adv. Fees]:[Cont to Sols Fees]])&" cont to fees, Arr Fee "&Products[[#This Row],[Arr` Fee]]&") No facility cap ", IF(AND(Products[[#This Row],[Pack]]="Fees Package",Products[[#This Row],[DD Cap]]<>0),"SOVEREIGN "&Products[[#This Row],[Pack]]&" DRAWDOWN "&Products[[#This Row],[LTV Band]]&"_"&Products[[#This Row],[Rate]]*100&"% £10k+ "&LOWER(Products[[#This Row],[Single / Joint]])& " ("&SUM(Products[[#This Row],[Cont to Adv. Fees]:[Cont to Sols Fees]])&" cont to fees, Arr Fee "&Products[[#This Row],[Arr` Fee]]&")(3% cash) Facility cap "&Products[[#This Row],[DD Cap]]&"x initial", IF(AND(Products[[#This Row],[Pack]]="Fees Package",Products[[#This Row],[DD Cap]]=0),"SOVEREIGN "&Products[[#This Row],[Pack]]&" DRAWDOWN "&Products[[#This Row],[LTV Band]]&"_"&Products[[#This Row],[Rate]]*100&"% £10k+ "&LOWER(Products[[#This Row],[Single / Joint]])& " ("&SUM(Products[[#This Row],[Cont to Adv. Fees]:[Cont to Sols Fees]])&" cont to fees, Arr Fee "&Products[[#This Row],[Arr` Fee]]&")(3% cash) No facility cap ", " "))))))) -> SOVEREIGN Fees Package DRAWDOWN B_3.52% £10k+ 0 (900 cont to fees, Arr Fee 895)(3% cash) No facility cap | H40: =SUM(Products[[#This Row],[Base rate]:[x0]]) -> 0.0352 | I40: =IF(AND(ISBLANK(initialAdvance),Products[[#This Row],[Pack]]="Fees Package"),20000, IF(AND(ISBLANK(initialAdvance),Products[[#This Row],[Pack]]="Elite"),725001, IF(AND(ISBLANK(initialAdvance),Products[[#This Row],[Pack]]="Standard"),10000,IF(AND(initialAdvance<725001,Products[[#This Row],[Pack]]="Elite"),725001,initialAdvance)))) -> 20000 | J40: =IF(AND(Products[[#This Row],[LTV Band]]="A",Products[[#This Row],[Single / Joint]]="Single"), SUMIF(LTVs!$A$3:$A$38,Menu!$I$9,LTVs!$C$3:$C$38), IF(AND(Products[[#This Row],[LTV Band]]="A",Products[[#This Row],[Single / Joint]]="Joint"), SUMIF(LTVs!$A$3:$A$38,Menu!$I$9,LTVs!$D$3:$D$38), IF(AND(Products[[#This Row],[LTV Band]]="B",Products[[#This Row],[Single / Joint]]="Single"), SUMIF(LTVs!$A$3:$A$38,Menu!$I$9,LTVs!$E$3:$E$38), IF(AND(Products[[#This Row],[LTV Band]]="B",Products[[#This Row],[Single / Joint]]="Joint"), SUMIF(LTVs!$A$3:$A$38,Menu!$I$9,LTVs!$F$3:$F$38), IF(AND(Products[[#This Row],[LTV Band]]="C",Products[[#This Row],[Single / Joint]]="Single"), SUMIF(LTVs!$A$3:$A$38,Menu!$I$9,LTVs!$G$3:$G$38), IF(AND(Products[[#This Row],[LTV Band]]="C",Products[[#This Row],[Single / Joint]]="Joint"), SUMIF(LTVs!$A$3:$A$38,Menu!$I$9,LTVs!$H$3:$H$38), IF(AND(Products[[#This Row],[LTV Band]]="D",Products[[#This Row],[Single / Joint]]="Single"), SUMIF(LTVs!$A$3:$A$38,Menu!$I$9,LTVs!$I$3:$I$38), IF(AND(Products[[#This Row],[LTV Band]]="D",Products[[#This Row],[Single / Joint]]="Joint"), SUMIF(LTVs!$A$3:$A$38,Menu!$I$9,LTVs!$J$3:$J$38), IF(AND(Products[[#This Row],[LTV Band]]="E",Products[[#This Row],[Single / Joint]]="Single"), SUMIF(LTVs!$A$3:$A$38,Menu!$I$9,LTVs!$K$3:$K$38), IF(AND(Products[[#This Row],[LTV Band]]="E",Products[[#This Row],[Single / Joint]]="Joint"), SUMIF(LTVs!$A$3:$A$38,Menu!$I$9,LTVs!$L$3:$L$38), IF(AND(Products[[#This Row],[LTV Band]]="F",Products[[#This Row],[Single / Joint]]="Single"), SUMIF(LTVs!$A$3:$A$38,Menu!$I$9,LTVs!$M$3:$M$38), IF(AND(Products[[#This Row],[LTV Band]]="F",Products[[#This Row],[Single / Joint]]="Joint"), SUMIF(LTVs!$A$3:$A$38,Menu!$I$9,LTVs!$N$3:$N$38), " ")))))))))))) ->  | K40: =IF(AND(propertyValue*Products[[#This Row],[LTV ]]>725000,Products[[#This Row],[Pack]]<>"Elite"),725000,propertyValue*Products[[#This Row],[LTV ]]) ->  | L40: =IF(Products[[#This Row],[DD Cap]]="LS"," ",IF(reqrdDDamt<2000,"N/A",IF(reqrdDDamt<=Products[[#This Row],[Drawdown cap]],reqrdDDamt,"N/A"))) -> N/A | M40: =IF(Products[[#This Row],[DD Cap]]="LS"," ",IF(IF(Products[[#This Row],[DD Cap]]>=1,initialAdvance*Products[[#This Row],[DD Cap]],Products[[#This Row],[Max loan]]-initialAdvance)<Products[[#This Row],[Max loan]]-initialAdvance,IF(Products[[#This Row],[DD Cap]]>0,initialAdvance*Products[[#This Row],[DD Cap]],Products[[#This Row],[Max loan]]-initialAdvance),Products[[#This Row],[Max loan]]-initialAdvance)) ->  | N40: =IF(Products[[#This Row],[Pack]]="FP",895,895) -> 895 | O40: =IF(Products[[#This Row],[Pack]]="Fees Package",300,0) -> 300 | P40: 600 | Q40: =App_type -> 0 | R40: =IF(AND(ISBLANK(initialAdvance),Products[[#This Row],[Pack]]="Fees Package"),Products[[#This Row],[Max loan]]*3%, IF(AND(ISBLANK(initialAdvance),Products[[#This Row],[Pack]]="Fees Package"),Products[[#This Row],[Max loan]]*3%, IF(AND(initialAdvance>0,Products[[#This Row],[Pack]]="Fees Package"),initialAdvance*3%, IF(AND(initialAdvance>0,Products[[#This Row],[Pack]]="Fees Package"),initialAdvance*3%,0)))) ->  | S40: =IF(OR(ISBLANK(App_type),$I$9=0)," ", IF(ISBLANK(initialAdvance),Products[[#This Row],[Max loan]]+Products[[#This Row],[Cont to Adv. Fees]]+Products[[#This Row],[Cont to Sols Fees]]+Products[[#This Row],[Cashback]], initialAdvance+Products[[#This Row],[Cont to Adv. Fees]]+Products[[#This Row],[Cont to Sols Fees]]+Products[[#This Row],[Cashback]])) ->  | T40: =IF(AND(ISBLANK(initialAdvance),Products[[#This Row],[Pack]]="Fees Package",Products[[#This Row],[Max loan]]>=20000),1, IF(AND(ISBLANK(initialAdvance),Products[[#This Row],[Pack]]="Elite",Products[[#This Row],[Max loan]]>725000),1, IF(AND(ISBLANK(initialAdvance),Products[[#This Row],[Pack]]="Standard",Products[[#This Row],[Max loan]]>=10000),1, IF(AND(initialAdvance>0,Products[[#This Row],[Pack]]="Fees Package",initialAdvance>=20000,Products[[#This Row],[Max loan]]>=initialAdvance),1, IF(AND(initialAdvance>0,Products[[#This Row],[Pack]]="Elite",initialAdvance>725000,Products[[#This Row],[Max loan]]>=initialAdvance),1, IF(AND(initialAdvance>0,Products[[#This Row],[Pack]]="Standard",initialAdvance>=10000,Products[[#This Row],[Max loan]]>=initialAdvance),1,0)))))) ->  | U40: =IF(Products[[#This Row],[Cashback]]>0,1,0) ->  | V40: =INDEX(Rates!$B$2:$B$7,MATCH(Products[[#This Row],[LTV Band]],Rates!$A$2:$A$7,0)) -> 0.0302 | W40: =IF(Products[[#This Row],[Pack]]="Elite",IFERROR(INDEX(Rates!$C$2:$C$7,MATCH(Products[[#This Row],[LTV Band]],Rates!$A$2:$A$7,0)),0),0) -> 0 | X40: =IFERROR(INDEX(Rates!$D$2:$D$7,MATCH(Products[[#This Row],[Pack]],Rates!$D$1,0)),) -> 0 | Y40: =IFERROR(INDEX(Rates!$E$2:$E$7,MATCH(Products[[#This Row],[Pack]],Rates!$E$1,0)),) -> 0.003 | Z40: =IFERROR(INDEX(Rates!$F$2:$F$7,MATCH(Products[[#This Row],[DD Cap]],Rates!$F$1,0)),0) -> 0 | AA40: =IFERROR(INDEX(Rates!$G$2:$G$7,MATCH(Products[[#This Row],[DD Cap]],Rates!$G$1,0)),0) -> 0 | AB40: =IFERROR(INDEX(Rates!$H$2:$H$7,MATCH(Products[[#This Row],[DD Cap]],Rates!$H$1,0)),0) -> 0.002
A41: B | B41: Elite | C41: LS | D41: =IF(Products[[#This Row],[DD Cap]]="LS", IF(Products[[#This Row],[Pack]]="Standard","SOVEREIGN "&Products[[#This Row],[Pack]]&" Lump Sum "&Products[[#This Row],[LTV Band]]&"_"&Products[[#This Row],[Rate]]*100&"% £10k+ "&LOWER(Products[[#This Row],[Single / Joint]])& " ("&SUM(Products[[#This Row],[Cont to Adv. Fees]:[Cont to Sols Fees]])&" cont to fees, "&"Arr Fee "&Products[[#This Row],[Arr` Fee]]&")", IF(Products[[#This Row],[Pack]]="Elite","SOVEREIGN "&Products[[#This Row],[Pack]]&" Lump Sum "&Products[[#This Row],[LTV Band]]&"_"&Products[[#This Row],[Rate]]*100&"% £10k+ "&LOWER(Products[[#This Row],[Single / Joint]])& " ("&SUM(Products[[#This Row],[Cont to Adv. Fees]:[Cont to Sols Fees]])&" cont to fees, "&"Arr Fee "&Products[[#This Row],[Arr` Fee]]&")", IF(Products[[#This Row],[Pack]]="Fees Package","SOVEREIGN "&Products[[#This Row],[Pack]]&" Lump Sum "&Products[[#This Row],[LTV Band]]&"_"&Products[[#This Row],[Rate]]*100&"% £10k+ "&LOWER(Products[[#This Row],[Single / Joint]])& " ("&SUM(Products[[#This Row],[Cont to Adv. Fees]:[Cont to Sols Fees]])&" cont to fees, "&"Arr Fee "&Products[[#This Row],[Arr` Fee]]&")(3% cash)"," "))), IF(AND(Products[[#This Row],[Pack]]="Standard",Products[[#This Row],[DD Cap]]<>0),"SOVEREIGN "&Products[[#This Row],[Pack]]&" DRAWDOWN "&Products[[#This Row],[LTV Band]]&"_"&Products[[#This Row],[Rate]]*100&"% £10k+ "&LOWER(Products[[#This Row],[Single / Joint]])& " ("&SUM(Products[[#This Row],[Cont to Adv. Fees]:[Cont to Sols Fees]])&" cont to fees, Arr Fee "&Products[[#This Row],[Arr` Fee]]&") Facility cap "&Products[[#This Row],[DD Cap]]&"x initial", IF(AND(Products[[#This Row],[Pack]]="Standard",Products[[#This Row],[DD Cap]]=0),"SOVEREIGN "&Products[[#This Row],[Pack]]&" DRAWDOWN "&Products[[#This Row],[LTV Band]]&"_"&Products[[#This Row],[Rate]]*100&"% £10k+ "&LOWER(Products[[#This Row],[Single / Joint]])& " ("&SUM(Products[[#This Row],[Cont to Adv. Fees]:[Cont to Sols Fees]])&" cont to fees, Arr Fee "&Products[[#This Row],[Arr` Fee]]&") No facility cap ", IF(AND(Products[[#This Row],[Pack]]="Elite",Products[[#This Row],[DD Cap]]<>0),"SOVEREIGN "&Products[[#This Row],[Pack]]&" DRAWDOWN "&Products[[#This Row],[LTV Band]]&"_"&Products[[#This Row],[Rate]]*100&"% £10k+ "&LOWER(Products[[#This Row],[Single / Joint]])& " ("&SUM(Products[[#This Row],[Cont to Adv. Fees]:[Cont to Sols Fees]])&" cont to fees, Arr Fee "&Products[[#This Row],[Arr` Fee]]&") Facility cap "&Products[[#This Row],[DD Cap]]&"x initial", IF(AND(Products[[#This Row],[Pack]]="Elite",Products[[#This Row],[DD Cap]]=0),"SOVEREIGN "&Products[[#This Row],[Pack]]&" DRAWDOWN "&Products[[#This Row],[LTV Band]]&"_"&Products[[#This Row],[Rate]]*100&"% £10k+ "&LOWER(Products[[#This Row],[Single / Joint]])& " ("&SUM(Products[[#This Row],[Cont to Adv. Fees]:[Cont to Sols Fees]])&" cont to fees, Arr Fee "&Products[[#This Row],[Arr` Fee]]&") No facility cap ", IF(AND(Products[[#This Row],[Pack]]="Fees Package",Products[[#This Row],[DD Cap]]<>0),"SOVEREIGN "&Products[[#This Row],[Pack]]&" DRAWDOWN "&Products[[#This Row],[LTV Band]]&"_"&Products[[#This Row],[Rate]]*100&"% £10k+ "&LOWER(Products[[#This Row],[Single / Joint]])& " ("&SUM(Products[[#This Row],[Cont to Adv. Fees]:[Cont to Sols Fees]])&" cont to fees, Arr Fee "&Products[[#This Row],[Arr` Fee]]&")(3% cash) Facility cap "&Products[[#This Row],[DD Cap]]&"x initial", IF(AND(Products[[#This Row],[Pack]]="Fees Package",Products[[#This Row],[DD Cap]]=0),"SOVEREIGN "&Products[[#This Row],[Pack]]&" DRAWDOWN "&Products[[#This Row],[LTV Band]]&"_"&Products[[#This Row],[Rate]]*100&"% £10k+ "&LOWER(Products[[#This Row],[Single / Joint]])& " ("&SUM(Products[[#This Row],[Cont to Adv. Fees]:[Cont to Sols Fees]])&" cont to fees, Arr Fee "&Products[[#This Row],[Arr` Fee]]&")(3% cash) No facility cap ", " "))))))) -> SOVEREIGN Elite Lump Sum B_3.52% £10k+ 0 (600 cont to fees, Arr Fee 895) | H41: =SUM(Products[[#This Row],[Base rate]:[x0]]) -> 0.0352 | I41: =IF(AND(ISBLANK(initialAdvance),Products[[#This Row],[Pack]]="Fees Package"),20000, IF(AND(ISBLANK(initialAdvance),Products[[#This Row],[Pack]]="Elite"),725001, IF(AND(ISBLANK(initialAdvance),Products[[#This Row],[Pack]]="Standard"),10000,IF(AND(initialAdvance<725001,Products[[#This Row],[Pack]]="Elite"),725001,initialAdvance)))) -> 725001 | J41: =IF(AND(Products[[#This Row],[LTV Band]]="A",Products[[#This Row],[Single / Joint]]="Single"), SUMIF(LTVs!$A$3:$A$38,Menu!$I$9,LTVs!$C$3:$C$38), IF(AND(Products[[#This Row],[LTV Band]]="A",Products[[#This Row],[Single / Joint]]="Joint"), SUMIF(LTVs!$A$3:$A$38,Menu!$I$9,LTVs!$D$3:$D$38), IF(AND(Products[[#This Row],[LTV Band]]="B",Products[[#This Row],[Single / Joint]]="Single"), SUMIF(LTVs!$A$3:$A$38,Menu!$I$9,LTVs!$E$3:$E$38), IF(AND(Products[[#This Row],[LTV Band]]="B",Products[[#This Row],[Single / Joint]]="Joint"), SUMIF(LTVs!$A$3:$A$38,Menu!$I$9,LTVs!$F$3:$F$38), IF(AND(Products[[#This Row],[LTV Band]]="C",Products[[#This Row],[Single / Joint]]="Single"), SUMIF(LTVs!$A$3:$A$38,Menu!$I$9,LTVs!$G$3:$G$38), IF(AND(Products[[#This Row],[LTV Band]]="C",Products[[#This Row],[Single / Joint]]="Joint"), SUMIF(LTVs!$A$3:$A$38,Menu!$I$9,LTVs!$H$3:$H$38), IF(AND(Products[[#This Row],[LTV Band]]="D",Products[[#This Row],[Single / Joint]]="Single"), SUMIF(LTVs!$A$3:$A$38,Menu!$I$9,LTVs!$I$3:$I$38), IF(AND(Products[[#This Row],[LTV Band]]="D",Products[[#This Row],[Single / Joint]]="Joint"), SUMIF(LTVs!$A$3:$A$38,Menu!$I$9,LTVs!$J$3:$J$38), IF(AND(Products[[#This Row],[LTV Band]]="E",Products[[#This Row],[Single / Joint]]="Single"), SUMIF(LTVs!$A$3:$A$38,Menu!$I$9,LTVs!$K$3:$K$38), IF(AND(Products[[#This Row],[LTV Band]]="E",Products[[#This Row],[Single / Joint]]="Joint"), SUMIF(LTVs!$A$3:$A$38,Menu!$I$9,LTVs!$L$3:$L$38), IF(AND(Products[[#This Row],[LTV Band]]="F",Products[[#This Row],[Single / Joint]]="Single"), SUMIF(LTVs!$A$3:$A$38,Menu!$I$9,LTVs!$M$3:$M$38), IF(AND(Products[[#This Row],[LTV Band]]="F",Products[[#This Row],[Single / Joint]]="Joint"), SUMIF(LTVs!$A$3:$A$38,Menu!$I$9,LTVs!$N$3:$N$38), " ")))))))))))) ->  | K41: =IF(AND(propertyValue*Products[[#This Row],[LTV ]]>725000,Products[[#This Row],[Pack]]<>"Elite"),725000,propertyValue*Products[[#This Row],[LTV ]]) ->  | L41: =IF(Products[[#This Row],[DD Cap]]="LS"," ",IF(reqrdDDamt<2000,"N/A",IF(reqrdDDamt<=Products[[#This Row],[Drawdown cap]],reqrdDDamt,"N/A"))) ->  | M41: =IF(Products[[#This Row],[DD Cap]]="LS"," ",IF(IF(Products[[#This Row],[DD Cap]]>=1,initialAdvance*Products[[#This Row],[DD Cap]],Products[[#This Row],[Max loan]]-initialAdvance)<Products[[#This Row],[Max loan]]-initialAdvance,IF(Products[[#This Row],[DD Cap]]>0,initialAdvance*Products[[#This Row],[DD Cap]],Products[[#This Row],[Max loan]]-initialAdvance),Products[[#This Row],[Max loan]]-initialAdvance)) ->  | N41: =IF(Products[[#This Row],[Pack]]="FP",895,895) -> 895 | O41: =IF(Products[[#This Row],[Pack]]="Fees Package",300,0) -> 0 | P41: 600 | Q41: =App_type -> 0 | R41: =IF(AND(ISBLANK(initialAdvance),Products[[#This Row],[Pack]]="Fees Package"),Products[[#This Row],[Max loan]]*3%, IF(AND(ISBLANK(initialAdvance),Products[[#This Row],[Pack]]="Fees Package"),Products[[#This Row],[Max loan]]*3%, IF(AND(initialAdvance>0,Products[[#This Row],[Pack]]="Fees Package"),initialAdvance*3%, IF(AND(initialAdvance>0,Products[[#This Row],[Pack]]="Fees Package"),initialAdvance*3%,0)))) -> 0 | S41: =IF(OR(ISBLANK(App_type),$I$9=0)," ", IF(ISBLANK(initialAdvance),Products[[#This Row],[Max loan]]+Products[[#This Row],[Cont to Adv. Fees]]+Products[[#This Row],[Cont to Sols Fees]]+Products[[#This Row],[Cashback]], initialAdvance+Products[[#This Row],[Cont to Adv. Fees]]+Products[[#This Row],[Cont to Sols Fees]]+Products[[#This Row],[Cashback]])) ->  | T41: =IF(AND(ISBLANK(initialAdvance),Products[[#This Row],[Pack]]="Fees Package",Products[[#This Row],[Max loan]]>=20000),1, IF(AND(ISBLANK(initialAdvance),Products[[#This Row],[Pack]]="Elite",Products[[#This Row],[Max loan]]>725000),1, IF(AND(ISBLANK(initialAdvance),Products[[#This Row],[Pack]]="Standard",Products[[#This Row],[Max loan]]>=10000),1, IF(AND(initialAdvance>0,Products[[#This Row],[Pack]]="Fees Package",initialAdvance>=20000,Products[[#This Row],[Max loan]]>=initialAdvance),1, IF(AND(initialAdvance>0,Products[[#This Row],[Pack]]="Elite",initialAdvance>725000,Products[[#This Row],[Max loan]]>=initialAdvance),1, IF(AND(initialAdvance>0,Products[[#This Row],[Pack]]="Standard",initialAdvance>=10000,Products[[#This Row],[Max loan]]>=initialAdvance),1,0)))))) ->  | U41: =IF(Products[[#This Row],[Cashback]]>0,1,0) -> 0 | V41: =INDEX(Rates!$B$2:$B$7,MATCH(Products[[#This Row],[LTV Band]],Rates!$A$2:$A$7,0)) -> 0.0302 | W41: =IF(Products[[#This Row],[Pack]]="Elite",IFERROR(INDEX(Rates!$C$2:$C$7,MATCH(Products[[#This Row],[LTV Band]],Rates!$A$2:$A$7,0)),0),0) -> 0.005 | X41: =IFERROR(INDEX(Rates!$D$2:$D$7,MATCH(Products[[#This Row],[Pack]],Rates!$D$1,0)),) -> 0 | Y41: =IFERROR(INDEX(Rates!$E$2:$E$7,MATCH(Products[[#This Row],[Pack]],Rates!$E$1,0)),) -> 0 | Z41: =IFERROR(INDEX(Rates!$F$2:$F$7,MATCH(Products[[#This Row],[DD Cap]],Rates!$F$1,0)),0) -> 0 | AA41: =IFERROR(INDEX(Rates!$G$2:$G$7,MATCH(Products[[#This Row],[DD Cap]],Rates!$G$1,0)),0) -> 0 | AB41: =IFERROR(INDEX(Rates!$H$2:$H$7,MATCH(Products[[#This Row],[DD Cap]],Rates!$H$1,0)),0) -> 0
A42: A | B42: Elite | C42: 1.5 | D42: =IF(Products[[#This Row],[DD Cap]]="LS", IF(Products[[#This Row],[Pack]]="Standard","SOVEREIGN "&Products[[#This Row],[Pack]]&" Lump Sum "&Products[[#This Row],[LTV Band]]&"_"&Products[[#This Row],[Rate]]*100&"% £10k+ "&LOWER(Products[[#This Row],[Single / Joint]])& " ("&SUM(Products[[#This Row],[Cont to Adv. Fees]:[Cont to Sols Fees]])&" cont to fees, "&"Arr Fee "&Products[[#This Row],[Arr` Fee]]&")", IF(Products[[#This Row],[Pack]]="Elite","SOVEREIGN "&Products[[#This Row],[Pack]]&" Lump Sum "&Products[[#This Row],[LTV Band]]&"_"&Products[[#This Row],[Rate]]*100&"% £10k+ "&LOWER(Products[[#This Row],[Single / Joint]])& " ("&SUM(Products[[#This Row],[Cont to Adv. Fees]:[Cont to Sols Fees]])&" cont to fees, "&"Arr Fee "&Products[[#This Row],[Arr` Fee]]&")", IF(Products[[#This Row],[Pack]]="Fees Package","SOVEREIGN "&Products[[#This Row],[Pack]]&" Lump Sum "&Products[[#This Row],[LTV Band]]&"_"&Products[[#This Row],[Rate]]*100&"% £10k+ "&LOWER(Products[[#This Row],[Single / Joint]])& " ("&SUM(Products[[#This Row],[Cont to Adv. Fees]:[Cont to Sols Fees]])&" cont to fees, "&"Arr Fee "&Products[[#This Row],[Arr` Fee]]&")(3% cash)"," "))), IF(AND(Products[[#This Row],[Pack]]="Standard",Products[[#This Row],[DD Cap]]<>0),"SOVEREIGN "&Products[[#This Row],[Pack]]&" DRAWDOWN "&Products[[#This Row],[LTV Band]]&"_"&Products[[#This Row],[Rate]]*100&"% £10k+ "&LOWER(Products[[#This Row],[Single / Joint]])& " ("&SUM(Products[[#This Row],[Cont to Adv. Fees]:[Cont to Sols Fees]])&" cont to fees, Arr Fee "&Products[[#This Row],[Arr` Fee]]&") Facility cap "&Products[[#This Row],[DD Cap]]&"x initial", IF(AND(Products[[#This Row],[Pack]]="Standard",Products[[#This Row],[DD Cap]]=0),"SOVEREIGN "&Products[[#This Row],[Pack]]&" DRAWDOWN "&Products[[#This Row],[LTV Band]]&"_"&Products[[#This Row],[Rate]]*100&"% £10k+ "&LOWER(Products[[#This Row],[Single / Joint]])& " ("&SUM(Products[[#This Row],[Cont to Adv. Fees]:[Cont to Sols Fees]])&" cont to fees, Arr Fee "&Products[[#This Row],[Arr` Fee]]&") No facility cap ", IF(AND(Products[[#This Row],[Pack]]="Elite",Products[[#This Row],[DD Cap]]<>0),"SOVEREIGN "&Products[[#This Row],[Pack]]&" DRAWDOWN "&Products[[#This Row],[LTV Band]]&"_"&Products[[#This Row],[Rate]]*100&"% £10k+ "&LOWER(Products[[#This Row],[Single / Joint]])& " ("&SUM(Products[[#This Row],[Cont to Adv. Fees]:[Cont to Sols Fees]])&" cont to fees, Arr Fee "&Products[[#This Row],[Arr` Fee]]&") Facility cap "&Products[[#This Row],[DD Cap]]&"x initial", IF(AND(Products[[#This Row],[Pack]]="Elite",Products[[#This Row],[DD Cap]]=0),"SOVEREIGN "&Products[[#This Row],[Pack]]&" DRAWDOWN "&Products[[#This Row],[LTV Band]]&"_"&Products[[#This Row],[Rate]]*100&"% £10k+ "&LOWER(Products[[#This Row],[Single / Joint]])& " ("&SUM(Products[[#This Row],[Cont to Adv. Fees]:[Cont to Sols Fees]])&" cont to fees, Arr Fee "&Products[[#This Row],[Arr` Fee]]&") No facility cap ", IF(AND(Products[[#This Row],[Pack]]="Fees Package",Products[[#This Row],[DD Cap]]<>0),"SOVEREIGN "&Products[[#This Row],[Pack]]&" DRAWDOWN "&Products[[#This Row],[LTV Band]]&"_"&Products[[#This Row],[Rate]]*100&"% £10k+ "&LOWER(Products[[#This Row],[Single / Joint]])& " ("&SUM(Products[[#This Row],[Cont to Adv. Fees]:[Cont to Sols Fees]])&" cont to fees, Arr Fee "&Products[[#This Row],[Arr` Fee]]&")(3% cash) Facility cap "&Products[[#This Row],[DD Cap]]&"x initial", IF(AND(Products[[#This Row],[Pack]]="Fees Package",Products[[#This Row],[DD Cap]]=0),"SOVEREIGN "&Products[[#This Row],[Pack]]&" DRAWDOWN "&Products[[#This Row],[LTV Band]]&"_"&Products[[#This Row],[Rate]]*100&"% £10k+ "&LOWER(Products[[#This Row],[Single / Joint]])& " ("&SUM(Products[[#This Row],[Cont to Adv. Fees]:[Cont to Sols Fees]])&" cont to fees, Arr Fee "&Products[[#This Row],[Arr` Fee]]&")(3% cash) No facility cap ", " "))))))) -> SOVEREIGN Elite DRAWDOWN A_3.56% £10k+ 0 (600 cont to fees, Arr Fee 895) Facility cap 1.5x initial | H42: =SUM(Products[[#This Row],[Base rate]:[x0]]) -> 0.0356 | I42: =IF(AND(ISBLANK(initialAdvance),Products[[#This Row],[Pack]]="Fees Package"),20000, IF(AND(ISBLANK(initialAdvance),Products[[#This Row],[Pack]]="Elite"),725001, IF(AND(ISBLANK(initialAdvance),Products[[#This Row],[Pack]]="Standard"),10000,IF(AND(initialAdvance<725001,Products[[#This Row],[Pack]]="Elite"),725001,initialAdvance)))) -> 725001 | J42: =IF(AND(Products[[#This Row],[LTV Band]]="A",Products[[#This Row],[Single / Joint]]="Single"), SUMIF(LTVs!$A$3:$A$38,Menu!$I$9,LTVs!$C$3:$C$38), IF(AND(Products[[#This Row],[LTV Band]]="A",Products[[#This Row],[Single / Joint]]="Joint"), SUMIF(LTVs!$A$3:$A$38,Menu!$I$9,LTVs!$D$3:$D$38), IF(AND(Products[[#This Row],[LTV Band]]="B",Products[[#This Row],[Single / Joint]]="Single"), SUMIF(LTVs!$A$3:$A$38,Menu!$I$9,LTVs!$E$3:$E$38), IF(AND(Products[[#This Row],[LTV Band]]="B",Products[[#This Row],[Single / Joint]]="Joint"), SUMIF(LTVs!$A$3:$A$38,Menu!$I$9,LTVs!$F$3:$F$38), IF(AND(Products[[#This Row],[LTV Band]]="C",Products[[#This Row],[Single / Joint]]="Single"), SUMIF(LTVs!$A$3:$A$38,Menu!$I$9,LTVs!$G$3:$G$38), IF(AND(Products[[#This Row],[LTV Band]]="C",Products[[#This Row],[Single / Joint]]="Joint"), SUMIF(LTVs!$A$3:$A$38,Menu!$I$9,LTVs!$H$3:$H$38), IF(AND(Products[[#This Row],[LTV Band]]="D",Products[[#This Row],[Single / Joint]]="Single"), SUMIF(LTVs!$A$3:$A$38,Menu!$I$9,LTVs!$I$3:$I$38), IF(AND(Products[[#This Row],[LTV Band]]="D",Products[[#This Row],[Single / Joint]]="Joint"), SUMIF(LTVs!$A$3:$A$38,Menu!$I$9,LTVs!$J$3:$J$38), IF(AND(Products[[#This Row],[LTV Band]]="E",Products[[#This Row],[Single / Joint]]="Single"), SUMIF(LTVs!$A$3:$A$38,Menu!$I$9,LTVs!$K$3:$K$38), IF(AND(Products[[#This Row],[LTV Band]]="E",Products[[#This Row],[Single / Joint]]="Joint"), SUMIF(LTVs!$A$3:$A$38,Menu!$I$9,LTVs!$L$3:$L$38), IF(AND(Products[[#This Row],[LTV Band]]="F",Products[[#This Row],[Single / Joint]]="Single"), SUMIF(LTVs!$A$3:$A$38,Menu!$I$9,LTVs!$M$3:$M$38), IF(AND(Products[[#This Row],[LTV Band]]="F",Products[[#This Row],[Single / Joint]]="Joint"), SUMIF(LTVs!$A$3:$A$38,Menu!$I$9,LTVs!$N$3:$N$38), " ")))))))))))) ->  | K42: =IF(AND(propertyValue*Products[[#This Row],[LTV ]]>725000,Products[[#This Row],[Pack]]<>"Elite"),725000,propertyValue*Products[[#This Row],[LTV ]]) ->  | L42: =IF(Products[[#This Row],[DD Cap]]="LS"," ",IF(reqrdDDamt<2000,"N/A",IF(reqrdDDamt<=Products[[#This Row],[Drawdown cap]],reqrdDDamt,"N/A"))) -> N/A | M42: =IF(Products[[#This Row],[DD Cap]]="LS"," ",IF(IF(Products[[#This Row],[DD Cap]]>=1,initialAdvance*Products[[#This Row],[DD Cap]],Products[[#This Row],[Max loan]]-initialAdvance)<Products[[#This Row],[Max loan]]-initialAdvance,IF(Products[[#This Row],[DD Cap]]>0,initialAdvance*Products[[#This Row],[DD Cap]],Products[[#This Row],[Max loan]]-initialAdvance),Products[[#This Row],[Max loan]]-initialAdvance)) ->  | N42: =IF(Products[[#This Row],[Pack]]="FP",895,895) -> 895 | O42: =IF(Products[[#This Row],[Pack]]="Fees Package",300,0) -> 0 | P42: 600 | Q42: =App_type -> 0 | R42: =IF(AND(ISBLANK(initialAdvance),Products[[#This Row],[Pack]]="Fees Package"),Products[[#This Row],[Max loan]]*3%, IF(AND(ISBLANK(initialAdvance),Products[[#This Row],[Pack]]="Fees Package"),Products[[#This Row],[Max loan]]*3%, IF(AND(initialAdvance>0,Products[[#This Row],[Pack]]="Fees Package"),initialAdvance*3%, IF(AND(initialAdvance>0,Products[[#This Row],[Pack]]="Fees Package"),initialAdvance*3%,0)))) -> 0 | S42: =IF(OR(ISBLANK(App_type),$I$9=0)," ", IF(ISBLANK(initialAdvance),Products[[#This Row],[Max loan]]+Products[[#This Row],[Cont to Adv. Fees]]+Products[[#This Row],[Cont to Sols Fees]]+Products[[#This Row],[Cashback]], initialAdvance+Products[[#This Row],[Cont to Adv. Fees]]+Products[[#This Row],[Cont to Sols Fees]]+Products[[#This Row],[Cashback]])) ->  | T42: =IF(AND(ISBLANK(initialAdvance),Products[[#This Row],[Pack]]="Fees Package",Products[[#This Row],[Max loan]]>=20000),1, IF(AND(ISBLANK(initialAdvance),Products[[#This Row],[Pack]]="Elite",Products[[#This Row],[Max loan]]>725000),1, IF(AND(ISBLANK(initialAdvance),Products[[#This Row],[Pack]]="Standard",Products[[#This Row],[Max loan]]>=10000),1, IF(AND(initialAdvance>0,Products[[#This Row],[Pack]]="Fees Package",initialAdvance>=20000,Products[[#This Row],[Max loan]]>=initialAdvance),1, IF(AND(initialAdvance>0,Products[[#This Row],[Pack]]="Elite",initialAdvance>725000,Products[[#This Row],[Max loan]]>=initialAdvance),1, IF(AND(initialAdvance>0,Products[[#This Row],[Pack]]="Standard",initialAdvance>=10000,Products[[#This Row],[Max loan]]>=initialAdvance),1,0)))))) ->  | U42: =IF(Products[[#This Row],[Cashback]]>0,1,0) -> 0 | V42: =INDEX(Rates!$B$2:$B$7,MATCH(Products[[#This Row],[LTV Band]],Rates!$A$2:$A$7,0)) -> 0.0291 | W42: =IF(Products[[#This Row],[Pack]]="Elite",IFERROR(INDEX(Rates!$C$2:$C$7,MATCH(Products[[#This Row],[LTV Band]],Rates!$A$2:$A$7,0)),0),0) -> 0.005 | X42: =IFERROR(INDEX(Rates!$D$2:$D$7,MATCH(Products[[#This Row],[Pack]],Rates!$D$1,0)),) -> 0 | Y42: =IFERROR(INDEX(Rates!$E$2:$E$7,MATCH(Products[[#This Row],[Pack]],Rates!$E$1,0)),) -> 0 | Z42: =IFERROR(INDEX(Rates!$F$2:$F$7,MATCH(Products[[#This Row],[DD Cap]],Rates!$F$1,0)),0) -> 0 | AA42: =IFERROR(INDEX(Rates!$G$2:$G$7,MATCH(Products[[#This Row],[DD Cap]],Rates!$G$1,0)),0) -> 0.0015 | AB42: =IFERROR(INDEX(Rates!$H$2:$H$7,MATCH(Products[[#This Row],[DD Cap]],Rates!$H$1,0)),0) -> 0
A43: C | B43: Standard | C43: LS | D43: =IF(Products[[#This Row],[DD Cap]]="LS", IF(Products[[#This Row],[Pack]]="Standard","SOVEREIGN "&Products[[#This Row],[Pack]]&" Lump Sum "&Products[[#This Row],[LTV Band]]&"_"&Products[[#This Row],[Rate]]*100&"% £10k+ "&LOWER(Products[[#This Row],[Single / Joint]])& " ("&SUM(Products[[#This Row],[Cont to Adv. Fees]:[Cont to Sols Fees]])&" cont to fees, "&"Arr Fee "&Products[[#This Row],[Arr` Fee]]&")", IF(Products[[#This Row],[Pack]]="Elite","SOVEREIGN "&Products[[#This Row],[Pack]]&" Lump Sum "&Products[[#This Row],[LTV Band]]&"_"&Products[[#This Row],[Rate]]*100&"% £10k+ "&LOWER(Products[[#This Row],[Single / Joint]])& " ("&SUM(Products[[#This Row],[Cont to Adv. Fees]:[Cont to Sols Fees]])&" cont to fees, "&"Arr Fee "&Products[[#This Row],[Arr` Fee]]&")", IF(Products[[#This Row],[Pack]]="Fees Package","SOVEREIGN "&Products[[#This Row],[Pack]]&" Lump Sum "&Products[[#This Row],[LTV Band]]&"_"&Products[[#This Row],[Rate]]*100&"% £10k+ "&LOWER(Products[[#This Row],[Single / Joint]])& " ("&SUM(Products[[#This Row],[Cont to Adv. Fees]:[Cont to Sols Fees]])&" cont to fees, "&"Arr Fee "&Products[[#This Row],[Arr` Fee]]&")(3% cash)"," "))), IF(AND(Products[[#This Row],[Pack]]="Standard",Products[[#This Row],[DD Cap]]<>0),"SOVEREIGN "&Products[[#This Row],[Pack]]&" DRAWDOWN "&Products[[#This Row],[LTV Band]]&"_"&Products[[#This Row],[Rate]]*100&"% £10k+ "&LOWER(Products[[#This Row],[Single / Joint]])& " ("&SUM(Products[[#This Row],[Cont to Adv. Fees]:[Cont to Sols Fees]])&" cont to fees, Arr Fee "&Products[[#This Row],[Arr` Fee]]&") Facility cap "&Products[[#This Row],[DD Cap]]&"x initial", IF(AND(Products[[#This Row],[Pack]]="Standard",Products[[#This Row],[DD Cap]]=0),"SOVEREIGN "&Products[[#This Row],[Pack]]&" DRAWDOWN "&Products[[#This Row],[LTV Band]]&"_"&Products[[#This Row],[Rate]]*100&"% £10k+ "&LOWER(Products[[#This Row],[Single / Joint]])& " ("&SUM(Products[[#This Row],[Cont to Adv. Fees]:[Cont to Sols Fees]])&" cont to fees, Arr Fee "&Products[[#This Row],[Arr` Fee]]&") No facility cap ", IF(AND(Products[[#This Row],[Pack]]="Elite",Products[[#This Row],[DD Cap]]<>0),"SOVEREIGN "&Products[[#This Row],[Pack]]&" DRAWDOWN "&Products[[#This Row],[LTV Band]]&"_"&Products[[#This Row],[Rate]]*100&"% £10k+ "&LOWER(Products[[#This Row],[Single / Joint]])& " ("&SUM(Products[[#This Row],[Cont to Adv. Fees]:[Cont to Sols Fees]])&" cont to fees, Arr Fee "&Products[[#This Row],[Arr` Fee]]&") Facility cap "&Products[[#This Row],[DD Cap]]&"x initial", IF(AND(Products[[#This Row],[Pack]]="Elite",Products[[#This Row],[DD Cap]]=0),"SOVEREIGN "&Products[[#This Row],[Pack]]&" DRAWDOWN "&Products[[#This Row],[LTV Band]]&"_"&Products[[#This Row],[Rate]]*100&"% £10k+ "&LOWER(Products[[#This Row],[Single / Joint]])& " ("&SUM(Products[[#This Row],[Cont to Adv. Fees]:[Cont to Sols Fees]])&" cont to fees, Arr Fee "&Products[[#This Row],[Arr` Fee]]&") No facility cap ", IF(AND(Products[[#This Row],[Pack]]="Fees Package",Products[[#This Row],[DD Cap]]<>0),"SOVEREIGN "&Products[[#This Row],[Pack]]&" DRAWDOWN "&Products[[#This Row],[LTV Band]]&"_"&Products[[#This Row],[Rate]]*100&"% £10k+ "&LOWER(Products[[#This Row],[Single / Joint]])& " ("&SUM(Products[[#This Row],[Cont to Adv. Fees]:[Cont to Sols Fees]])&" cont to fees, Arr Fee "&Products[[#This Row],[Arr` Fee]]&")(3% cash) Facility cap "&Products[[#This Row],[DD Cap]]&"x initial", IF(AND(Products[[#This Row],[Pack]]="Fees Package",Products[[#This Row],[DD Cap]]=0),"SOVEREIGN "&Products[[#This Row],[Pack]]&" DRAWDOWN "&Products[[#This Row],[LTV Band]]&"_"&Products[[#This Row],[Rate]]*100&"% £10k+ "&LOWER(Products[[#This Row],[Single / Joint]])& " ("&SUM(Products[[#This Row],[Cont to Adv. Fees]:[Cont to Sols Fees]])&" cont to fees, Arr Fee "&Products[[#This Row],[Arr` Fee]]&")(3% cash) No facility cap ", " "))))))) -> SOVEREIGN Standard Lump Sum C_3.59% £10k+ 0 (600 cont to fees, Arr Fee 895) | H43: =SUM(Products[[#This Row],[Base rate]:[x0]]) -> 0.0359 | I43: =IF(AND(ISBLANK(initialAdvance),Products[[#This Row],[Pack]]="Fees Package"),20000, IF(AND(ISBLANK(initialAdvance),Products[[#This Row],[Pack]]="Elite"),725001, IF(AND(ISBLANK(initialAdvance),Products[[#This Row],[Pack]]="Standard"),10000,IF(AND(initialAdvance<725001,Products[[#This Row],[Pack]]="Elite"),725001,initialAdvance)))) -> 10000 | J43: =IF(AND(Products[[#This Row],[LTV Band]]="A",Products[[#This Row],[Single / Joint]]="Single"), SUMIF(LTVs!$A$3:$A$38,Menu!$I$9,LTVs!$C$3:$C$38), IF(AND(Products[[#This Row],[LTV Band]]="A",Products[[#This Row],[Single / Joint]]="Joint"), SUMIF(LTVs!$A$3:$A$38,Menu!$I$9,LTVs!$D$3:$D$38), IF(AND(Products[[#This Row],[LTV Band]]="B",Products[[#This Row],[Single / Joint]]="Single"), SUMIF(LTVs!$A$3:$A$38,Menu!$I$9,LTVs!$E$3:$E$38), IF(AND(Products[[#This Row],[LTV Band]]="B",Products[[#This Row],[Single / Joint]]="Joint"), SUMIF(LTVs!$A$3:$A$38,Menu!$I$9,LTVs!$F$3:$F$38), IF(AND(Products[[#This Row],[LTV Band]]="C",Products[[#This Row],[Single / Joint]]="Single"), SUMIF(LTVs!$A$3:$A$38,Menu!$I$9,LTVs!$G$3:$G$38), IF(AND(Products[[#This Row],[LTV Band]]="C",Products[[#This Row],[Single / Joint]]="Joint"), SUMIF(LTVs!$A$3:$A$38,Menu!$I$9,LTVs!$H$3:$H$38), IF(AND(Products[[#This Row],[LTV Band]]="D",Products[[#This Row],[Single / Joint]]="Single"), SUMIF(LTVs!$A$3:$A$38,Menu!$I$9,LTVs!$I$3:$I$38), IF(AND(Products[[#This Row],[LTV Band]]="D",Products[[#This Row],[Single / Joint]]="Joint"), SUMIF(LTVs!$A$3:$A$38,Menu!$I$9,LTVs!$J$3:$J$38), IF(AND(Products[[#This Row],[LTV Band]]="E",Products[[#This Row],[Single / Joint]]="Single"), SUMIF(LTVs!$A$3:$A$38,Menu!$I$9,LTVs!$K$3:$K$38), IF(AND(Products[[#This Row],[LTV Band]]="E",Products[[#This Row],[Single / Joint]]="Joint"), SUMIF(LTVs!$A$3:$A$38,Menu!$I$9,LTVs!$L$3:$L$38), IF(AND(Products[[#This Row],[LTV Band]]="F",Products[[#This Row],[Single / Joint]]="Single"), SUMIF(LTVs!$A$3:$A$38,Menu!$I$9,LTVs!$M$3:$M$38), IF(AND(Products[[#This Row],[LTV Band]]="F",Products[[#This Row],[Single / Joint]]="Joint"), SUMIF(LTVs!$A$3:$A$38,Menu!$I$9,LTVs!$N$3:$N$38), " ")))))))))))) ->  | K43: =IF(AND(propertyValue*Products[[#This Row],[LTV ]]>725000,Products[[#This Row],[Pack]]<>"Elite"),725000,propertyValue*Products[[#This Row],[LTV ]]) ->  | L43: =IF(Products[[#This Row],[DD Cap]]="LS"," ",IF(reqrdDDamt<2000,"N/A",IF(reqrdDDamt<=Products[[#This Row],[Drawdown cap]],reqrdDDamt,"N/A"))) ->  | M43: =IF(Products[[#This Row],[DD Cap]]="LS"," ",IF(IF(Products[[#This Row],[DD Cap]]>=1,initialAdvance*Products[[#This Row],[DD Cap]],Products[[#This Row],[Max loan]]-initialAdvance)<Products[[#This Row],[Max loan]]-initialAdvance,IF(Products[[#This Row],[DD Cap]]>0,initialAdvance*Products[[#This Row],[DD Cap]],Products[[#This Row],[Max loan]]-initialAdvance),Products[[#This Row],[Max loan]]-initialAdvance)) ->  | N43: =IF(Products[[#This Row],[Pack]]="FP",895,895) -> 895 | O43: =IF(Products[[#This Row],[Pack]]="Fees Package",300,0) -> 0 | P43: 600 | Q43: =App_type -> 0 | R43: =IF(AND(ISBLANK(initialAdvance),Products[[#This Row],[Pack]]="Fees Package"),Products[[#This Row],[Max loan]]*3%, IF(AND(ISBLANK(initialAdvance),Products[[#This Row],[Pack]]="Fees Package"),Products[[#This Row],[Max loan]]*3%, IF(AND(initialAdvance>0,Products[[#This Row],[Pack]]="Fees Package"),initialAdvance*3%, IF(AND(initialAdvance>0,Products[[#This Row],[Pack]]="Fees Package"),initialAdvance*3%,0)))) -> 0 | S43: =IF(OR(ISBLANK(App_type),$I$9=0)," ", IF(ISBLANK(initialAdvance),Products[[#This Row],[Max loan]]+Products[[#This Row],[Cont to Adv. Fees]]+Products[[#This Row],[Cont to Sols Fees]]+Products[[#This Row],[Cashback]], initialAdvance+Products[[#This Row],[Cont to Adv. Fees]]+Products[[#This Row],[Cont to Sols Fees]]+Products[[#This Row],[Cashback]])) ->  | T43: =IF(AND(ISBLANK(initialAdvance),Products[[#This Row],[Pack]]="Fees Package",Products[[#This Row],[Max loan]]>=20000),1, IF(AND(ISBLANK(initialAdvance),Products[[#This Row],[Pack]]="Elite",Products[[#This Row],[Max loan]]>725000),1, IF(AND(ISBLANK(initialAdvance),Products[[#This Row],[Pack]]="Standard",Products[[#This Row],[Max loan]]>=10000),1, IF(AND(initialAdvance>0,Products[[#This Row],[Pack]]="Fees Package",initialAdvance>=20000,Products[[#This Row],[Max loan]]>=initialAdvance),1, IF(AND(initialAdvance>0,Products[[#This Row],[Pack]]="Elite",initialAdvance>725000,Products[[#This Row],[Max loan]]>=initialAdvance),1, IF(AND(initialAdvance>0,Products[[#This Row],[Pack]]="Standard",initialAdvance>=10000,Products[[#This Row],[Max loan]]>=initialAdvance),1,0)))))) ->  | U43: =IF(Products[[#This Row],[Cashback]]>0,1,0) -> 0 | V43: =INDEX(Rates!$B$2:$B$7,MATCH(Products[[#This Row],[LTV Band]],Rates!$A$2:$A$7,0)) -> 0.0359 | W43: =IF(Products[[#This Row],[Pack]]="Elite",IFERROR(INDEX(Rates!$C$2:$C$7,MATCH(Products[[#This Row],[LTV Band]],Rates!$A$2:$A$7,0)),0),0) -> 0 | X43: =IFERROR(INDEX(Rates!$D$2:$D$7,MATCH(Products[[#This Row],[Pack]],Rates!$D$1,0)),) -> 0 | Y43: =IFERROR(INDEX(Rates!$E$2:$E$7,MATCH(Products[[#This Row],[Pack]],Rates!$E$1,0)),) -> 0 | Z43: =IFERROR(INDEX(Rates!$F$2:$F$7,MATCH(Products[[#This Row],[DD Cap]],Rates!$F$1,0)),0) -> 0 | AA43: =IFERROR(INDEX(Rates!$G$2:$G$7,MATCH(Products[[#This Row],[DD Cap]],Rates!$G$1,0)),0) -> 0 | AB43: =IFERROR(INDEX(Rates!$H$2:$H$7,MATCH(Products[[#This Row],[DD Cap]],Rates!$H$1,0)),0) -> 0
A44: A | B44: Elite | C44: 0 | D44: =IF(Products[[#This Row],[DD Cap]]="LS", IF(Products[[#This Row],[Pack]]="Standard","SOVEREIGN "&Products[[#This Row],[Pack]]&" Lump Sum "&Products[[#This Row],[LTV Band]]&"_"&Products[[#This Row],[Rate]]*100&"% £10k+ "&LOWER(Products[[#This Row],[Single / Joint]])& " ("&SUM(Products[[#This Row],[Cont to Adv. Fees]:[Cont to Sols Fees]])&" cont to fees, "&"Arr Fee "&Products[[#This Row],[Arr` Fee]]&")", IF(Products[[#This Row],[Pack]]="Elite","SOVEREIGN "&Products[[#This Row],[Pack]]&" Lump Sum "&Products[[#This Row],[LTV Band]]&"_"&Products[[#This Row],[Rate]]*100&"% £10k+ "&LOWER(Products[[#This Row],[Single / Joint]])& " ("&SUM(Products[[#This Row],[Cont to Adv. Fees]:[Cont to Sols Fees]])&" cont to fees, "&"Arr Fee "&Products[[#This Row],[Arr` Fee]]&")", IF(Products[[#This Row],[Pack]]="Fees Package","SOVEREIGN "&Products[[#This Row],[Pack]]&" Lump Sum "&Products[[#This Row],[LTV Band]]&"_"&Products[[#This Row],[Rate]]*100&"% £10k+ "&LOWER(Products[[#This Row],[Single / Joint]])& " ("&SUM(Products[[#This Row],[Cont to Adv. Fees]:[Cont to Sols Fees]])&" cont to fees, "&"Arr Fee "&Products[[#This Row],[Arr` Fee]]&")(3% cash)"," "))), IF(AND(Products[[#This Row],[Pack]]="Standard",Products[[#This Row],[DD Cap]]<>0),"SOVEREIGN "&Products[[#This Row],[Pack]]&" DRAWDOWN "&Products[[#This Row],[LTV Band]]&"_"&Products[[#This Row],[Rate]]*100&"% £10k+ "&LOWER(Products[[#This Row],[Single / Joint]])& " ("&SUM(Products[[#This Row],[Cont to Adv. Fees]:[Cont to Sols Fees]])&" cont to fees, Arr Fee "&Products[[#This Row],[Arr` Fee]]&") Facility cap "&Products[[#This Row],[DD Cap]]&"x initial", IF(AND(Products[[#This Row],[Pack]]="Standard",Products[[#This Row],[DD Cap]]=0),"SOVEREIGN "&Products[[#This Row],[Pack]]&" DRAWDOWN "&Products[[#This Row],[LTV Band]]&"_"&Products[[#This Row],[Rate]]*100&"% £10k+ "&LOWER(Products[[#This Row],[Single / Joint]])& " ("&SUM(Products[[#This Row],[Cont to Adv. Fees]:[Cont to Sols Fees]])&" cont to fees, Arr Fee "&Products[[#This Row],[Arr` Fee]]&") No facility cap ", IF(AND(Products[[#This Row],[Pack]]="Elite",Products[[#This Row],[DD Cap]]<>0),"SOVEREIGN "&Products[[#This Row],[Pack]]&" DRAWDOWN "&Products[[#This Row],[LTV Band]]&"_"&Products[[#This Row],[Rate]]*100&"% £10k+ "&LOWER(Products[[#This Row],[Single / Joint]])& " ("&SUM(Products[[#This Row],[Cont to Adv. Fees]:[Cont to Sols Fees]])&" cont to fees, Arr Fee "&Products[[#This Row],[Arr` Fee]]&") Facility cap "&Products[[#This Row],[DD Cap]]&"x initial", IF(AND(Products[[#This Row],[Pack]]="Elite",Products[[#This Row],[DD Cap]]=0),"SOVEREIGN "&Products[[#This Row],[Pack]]&" DRAWDOWN "&Products[[#This Row],[LTV Band]]&"_"&Products[[#This Row],[Rate]]*100&"% £10k+ "&LOWER(Products[[#This Row],[Single / Joint]])& " ("&SUM(Products[[#This Row],[Cont to Adv. Fees]:[Cont to Sols Fees]])&" cont to fees, Arr Fee "&Products[[#This Row],[Arr` Fee]]&") No facility cap ", IF(AND(Products[[#This Row],[Pack]]="Fees Package",Products[[#This Row],[DD Cap]]<>0),"SOVEREIGN "&Products[[#This Row],[Pack]]&" DRAWDOWN "&Products[[#This Row],[LTV Band]]&"_"&Products[[#This Row],[Rate]]*100&"% £10k+ "&LOWER(Products[[#This Row],[Single / Joint]])& " ("&SUM(Products[[#This Row],[Cont to Adv. Fees]:[Cont to Sols Fees]])&" cont to fees, Arr Fee "&Products[[#This Row],[Arr` Fee]]&")(3% cash) Facility cap "&Products[[#This Row],[DD Cap]]&"x initial", IF(AND(Products[[#This Row],[Pack]]="Fees Package",Products[[#This Row],[DD Cap]]=0),"SOVEREIGN "&Products[[#This Row],[Pack]]&" DRAWDOWN "&Products[[#This Row],[LTV Band]]&"_"&Products[[#This Row],[Rate]]*100&"% £10k+ "&LOWER(Products[[#This Row],[Single / Joint]])& " ("&SUM(Products[[#This Row],[Cont to Adv. Fees]:[Cont to Sols Fees]])&" cont to fees, Arr Fee "&Products[[#This Row],[Arr` Fee]]&")(3% cash) No facility cap ", " "))))))) -> SOVEREIGN Elite DRAWDOWN A_3.61% £10k+ 0 (600 cont to fees, Arr Fee 895) No facility cap | H44: =SUM(Products[[#This Row],[Base rate]:[x0]]) -> 0.0361 | I44: =IF(AND(ISBLANK(initialAdvance),Products[[#This Row],[Pack]]="Fees Package"),20000, IF(AND(ISBLANK(initialAdvance),Products[[#This Row],[Pack]]="Elite"),725001, IF(AND(ISBLANK(initialAdvance),Products[[#This Row],[Pack]]="Standard"),10000,IF(AND(initialAdvance<725001,Products[[#This Row],[Pack]]="Elite"),725001,initialAdvance)))) -> 725001 | J44: =IF(AND(Products[[#This Row],[LTV Band]]="A",Products[[#This Row],[Single / Joint]]="Single"), SUMIF(LTVs!$A$3:$A$38,Menu!$I$9,LTVs!$C$3:$C$38), IF(AND(Products[[#This Row],[LTV Band]]="A",Products[[#This Row],[Single / Joint]]="Joint"), SUMIF(LTVs!$A$3:$A$38,Menu!$I$9,LTVs!$D$3:$D$38), IF(AND(Products[[#This Row],[LTV Band]]="B",Products[[#This Row],[Single / Joint]]="Single"), SUMIF(LTVs!$A$3:$A$38,Menu!$I$9,LTVs!$E$3:$E$38), IF(AND(Products[[#This Row],[LTV Band]]="B",Products[[#This Row],[Single / Joint]]="Joint"), SUMIF(LTVs!$A$3:$A$38,Menu!$I$9,LTVs!$F$3:$F$38), IF(AND(Products[[#This Row],[LTV Band]]="C",Products[[#This Row],[Single / Joint]]="Single"), SUMIF(LTVs!$A$3:$A$38,Menu!$I$9,LTVs!$G$3:$G$38), IF(AND(Products[[#This Row],[LTV Band]]="C",Products[[#This Row],[Single / Joint]]="Joint"), SUMIF(LTVs!$A$3:$A$38,Menu!$I$9,LTVs!$H$3:$H$38), IF(AND(Products[[#This Row],[LTV Band]]="D",Products[[#This Row],[Single / Joint]]="Single"), SUMIF(LTVs!$A$3:$A$38,Menu!$I$9,LTVs!$I$3:$I$38), IF(AND(Products[[#This Row],[LTV Band]]="D",Products[[#This Row],[Single / Joint]]="Joint"), SUMIF(LTVs!$A$3:$A$38,Menu!$I$9,LTVs!$J$3:$J$38), IF(AND(Products[[#This Row],[LTV Band]]="E",Products[[#This Row],[Single / Joint]]="Single"), SUMIF(LTVs!$A$3:$A$38,Menu!$I$9,LTVs!$K$3:$K$38), IF(AND(Products[[#This Row],[LTV Band]]="E",Products[[#This Row],[Single / Joint]]="Joint"), SUMIF(LTVs!$A$3:$A$38,Menu!$I$9,LTVs!$L$3:$L$38), IF(AND(Products[[#This Row],[LTV Band]]="F",Products[[#This Row],[Single / Joint]]="Single"), SUMIF(LTVs!$A$3:$A$38,Menu!$I$9,LTVs!$M$3:$M$38), IF(AND(Products[[#This Row],[LTV Band]]="F",Products[[#This Row],[Single / Joint]]="Joint"), SUMIF(LTVs!$A$3:$A$38,Menu!$I$9,LTVs!$N$3:$N$38), " ")))))))))))) ->  | K44: =IF(AND(propertyValue*Products[[#This Row],[LTV ]]>725000,Products[[#This Row],[Pack]]<>"Elite"),725000,propertyValue*Products[[#This Row],[LTV ]]) ->  | L44: =IF(Products[[#This Row],[DD Cap]]="LS"," ",IF(reqrdDDamt<2000,"N/A",IF(reqrdDDamt<=Products[[#This Row],[Drawdown cap]],reqrdDDamt,"N/A"))) -> N/A | M44: =IF(Products[[#This Row],[DD Cap]]="LS"," ",IF(IF(Products[[#This Row],[DD Cap]]>=1,initialAdvance*Products[[#This Row],[DD Cap]],Products[[#This Row],[Max loan]]-initialAdvance)<Products[[#This Row],[Max loan]]-initialAdvance,IF(Products[[#This Row],[DD Cap]]>0,initialAdvance*Products[[#This Row],[DD Cap]],Products[[#This Row],[Max loan]]-initialAdvance),Products[[#This Row],[Max loan]]-initialAdvance)) ->  | N44: =IF(Products[[#This Row],[Pack]]="FP",895,895) -> 895 | O44: =IF(Products[[#This Row],[Pack]]="Fees Package",300,0) -> 0 | P44: 600 | Q44: =App_type -> 0 | R44: =IF(AND(ISBLANK(initialAdvance),Products[[#This Row],[Pack]]="Fees Package"),Products[[#This Row],[Max loan]]*3%, IF(AND(ISBLANK(initialAdvance),Products[[#This Row],[Pack]]="Fees Package"),Products[[#This Row],[Max loan]]*3%, IF(AND(initialAdvance>0,Products[[#This Row],[Pack]]="Fees Package"),initialAdvance*3%, IF(AND(initialAdvance>0,Products[[#This Row],[Pack]]="Fees Package"),initialAdvance*3%,0)))) -> 0 | S44: =IF(OR(ISBLANK(App_type),$I$9=0)," ", IF(ISBLANK(initialAdvance),Products[[#This Row],[Max loan]]+Products[[#This Row],[Cont to Adv. Fees]]+Products[[#This Row],[Cont to Sols Fees]]+Products[[#This Row],[Cashback]], initialAdvance+Products[[#This Row],[Cont to Adv. Fees]]+Products[[#This Row],[Cont to Sols Fees]]+Products[[#This Row],[Cashback]])) ->  | T44: =IF(AND(ISBLANK(initialAdvance),Products[[#This Row],[Pack]]="Fees Package",Products[[#This Row],[Max loan]]>=20000),1, IF(AND(ISBLANK(initialAdvance),Products[[#This Row],[Pack]]="Elite",Products[[#This Row],[Max loan]]>725000),1, IF(AND(ISBLANK(initialAdvance),Products[[#This Row],[Pack]]="Standard",Products[[#This Row],[Max loan]]>=10000),1, IF(AND(initialAdvance>0,Products[[#This Row],[Pack]]="Fees Package",initialAdvance>=20000,Products[[#This Row],[Max loan]]>=initialAdvance),1, IF(AND(initialAdvance>0,Products[[#This Row],[Pack]]="Elite",initialAdvance>725000,Products[[#This Row],[Max loan]]>=initialAdvance),1, IF(AND(initialAdvance>0,Products[[#This Row],[Pack]]="Standard",initialAdvance>=10000,Products[[#This Row],[Max loan]]>=initialAdvance),1,0)))))) ->  | U44: =IF(Products[[#This Row],[Cashback]]>0,1,0) -> 0 | V44: =INDEX(Rates!$B$2:$B$7,MATCH(Products[[#This Row],[LTV Band]],Rates!$A$2:$A$7,0)) -> 0.0291 | W44: =IF(Products[[#This Row],[Pack]]="Elite",IFERROR(INDEX(Rates!$C$2:$C$7,MATCH(Products[[#This Row],[LTV Band]],Rates!$A$2:$A$7,0)),0),0) -> 0.005 | X44: =IFERROR(INDEX(Rates!$D$2:$D$7,MATCH(Products[[#This Row],[Pack]],Rates!$D$1,0)),) -> 0 | Y44: =IFERROR(INDEX(Rates!$E$2:$E$7,MATCH(Products[[#This Row],[Pack]],Rates!$E$1,0)),) -> 0 | Z44: =IFERROR(INDEX(Rates!$F$2:$F$7,MATCH(Products[[#This Row],[DD Cap]],Rates!$F$1,0)),0) -> 0 | AA44: =IFERROR(INDEX(Rates!$G$2:$G$7,MATCH(Products[[#This Row],[DD Cap]],Rates!$G$1,0)),0) -> 0 | AB44: =IFERROR(INDEX(Rates!$H$2:$H$7,MATCH(Products[[#This Row],[DD Cap]],Rates!$H$1,0)),0) -> 0.002
A45: B | B45: Elite | C45: 1 | D45: =IF(Products[[#This Row],[DD Cap]]="LS", IF(Products[[#This Row],[Pack]]="Standard","SOVEREIGN "&Products[[#This Row],[Pack]]&" Lump Sum "&Products[[#This Row],[LTV Band]]&"_"&Products[[#This Row],[Rate]]*100&"% £10k+ "&LOWER(Products[[#This Row],[Single / Joint]])& " ("&SUM(Products[[#This Row],[Cont to Adv. Fees]:[Cont to Sols Fees]])&" cont to fees, "&"Arr Fee "&Products[[#This Row],[Arr` Fee]]&")", IF(Products[[#This Row],[Pack]]="Elite","SOVEREIGN "&Products[[#This Row],[Pack]]&" Lump Sum "&Products[[#This Row],[LTV Band]]&"_"&Products[[#This Row],[Rate]]*100&"% £10k+ "&LOWER(Products[[#This Row],[Single / Joint]])& " ("&SUM(Products[[#This Row],[Cont to Adv. Fees]:[Cont to Sols Fees]])&" cont to fees, "&"Arr Fee "&Products[[#This Row],[Arr` Fee]]&")", IF(Products[[#This Row],[Pack]]="Fees Package","SOVEREIGN "&Products[[#This Row],[Pack]]&" Lump Sum "&Products[[#This Row],[LTV Band]]&"_"&Products[[#This Row],[Rate]]*100&"% £10k+ "&LOWER(Products[[#This Row],[Single / Joint]])& " ("&SUM(Products[[#This Row],[Cont to Adv. Fees]:[Cont to Sols Fees]])&" cont to fees, "&"Arr Fee "&Products[[#This Row],[Arr` Fee]]&")(3% cash)"," "))), IF(AND(Products[[#This Row],[Pack]]="Standard",Products[[#This Row],[DD Cap]]<>0),"SOVEREIGN "&Products[[#This Row],[Pack]]&" DRAWDOWN "&Products[[#This Row],[LTV Band]]&"_"&Products[[#This Row],[Rate]]*100&"% £10k+ "&LOWER(Products[[#This Row],[Single / Joint]])& " ("&SUM(Products[[#This Row],[Cont to Adv. Fees]:[Cont to Sols Fees]])&" cont to fees, Arr Fee "&Products[[#This Row],[Arr` Fee]]&") Facility cap "&Products[[#This Row],[DD Cap]]&"x initial", IF(AND(Products[[#This Row],[Pack]]="Standard",Products[[#This Row],[DD Cap]]=0),"SOVEREIGN "&Products[[#This Row],[Pack]]&" DRAWDOWN "&Products[[#This Row],[LTV Band]]&"_"&Products[[#This Row],[Rate]]*100&"% £10k+ "&LOWER(Products[[#This Row],[Single / Joint]])& " ("&SUM(Products[[#This Row],[Cont to Adv. Fees]:[Cont to Sols Fees]])&" cont to fees, Arr Fee "&Products[[#This Row],[Arr` Fee]]&") No facility cap ", IF(AND(Products[[#This Row],[Pack]]="Elite",Products[[#This Row],[DD Cap]]<>0),"SOVEREIGN "&Products[[#This Row],[Pack]]&" DRAWDOWN "&Products[[#This Row],[LTV Band]]&"_"&Products[[#This Row],[Rate]]*100&"% £10k+ "&LOWER(Products[[#This Row],[Single / Joint]])& " ("&SUM(Products[[#This Row],[Cont to Adv. Fees]:[Cont to Sols Fees]])&" cont to fees, Arr Fee "&Products[[#This Row],[Arr` Fee]]&") Facility cap "&Products[[#This Row],[DD Cap]]&"x initial", IF(AND(Products[[#This Row],[Pack]]="Elite",Products[[#This Row],[DD Cap]]=0),"SOVEREIGN "&Products[[#This Row],[Pack]]&" DRAWDOWN "&Products[[#This Row],[LTV Band]]&"_"&Products[[#This Row],[Rate]]*100&"% £10k+ "&LOWER(Products[[#This Row],[Single / Joint]])& " ("&SUM(Products[[#This Row],[Cont to Adv. Fees]:[Cont to Sols Fees]])&" cont to fees, Arr Fee "&Products[[#This Row],[Arr` Fee]]&") No facility cap ", IF(AND(Products[[#This Row],[Pack]]="Fees Package",Products[[#This Row],[DD Cap]]<>0),"SOVEREIGN "&Products[[#This Row],[Pack]]&" DRAWDOWN "&Products[[#This Row],[LTV Band]]&"_"&Products[[#This Row],[Rate]]*100&"% £10k+ "&LOWER(Products[[#This Row],[Single / Joint]])& " ("&SUM(Products[[#This Row],[Cont to Adv. Fees]:[Cont to Sols Fees]])&" cont to fees, Arr Fee "&Products[[#This Row],[Arr` Fee]]&")(3% cash) Facility cap "&Products[[#This Row],[DD Cap]]&"x initial", IF(AND(Products[[#This Row],[Pack]]="Fees Package",Products[[#This Row],[DD Cap]]=0),"SOVEREIGN "&Products[[#This Row],[Pack]]&" DRAWDOWN "&Products[[#This Row],[LTV Band]]&"_"&Products[[#This Row],[Rate]]*100&"% £10k+ "&LOWER(Products[[#This Row],[Single / Joint]])& " ("&SUM(Products[[#This Row],[Cont to Adv. Fees]:[Cont to Sols Fees]])&" cont to fees, Arr Fee "&Products[[#This Row],[Arr` Fee]]&")(3% cash) No facility cap ", " "))))))) -> SOVEREIGN Elite DRAWDOWN B_3.62% £10k+ 0 (600 cont to fees, Arr Fee 895) Facility cap 1x initial | H45: =SUM(Products[[#This Row],[Base rate]:[x0]]) -> 0.0362 | I45: =IF(AND(ISBLANK(initialAdvance),Products[[#This Row],[Pack]]="Fees Package"),20000, IF(AND(ISBLANK(initialAdvance),Products[[#This Row],[Pack]]="Elite"),725001, IF(AND(ISBLANK(initialAdvance),Products[[#This Row],[Pack]]="Standard"),10000,IF(AND(initialAdvance<725001,Products[[#This Row],[Pack]]="Elite"),725001,initialAdvance)))) -> 725001 | J45: =IF(AND(Products[[#This Row],[LTV Band]]="A",Products[[#This Row],[Single / Joint]]="Single"), SUMIF(LTVs!$A$3:$A$38,Menu!$I$9,LTVs!$C$3:$C$38), IF(AND(Products[[#This Row],[LTV Band]]="A",Products[[#This Row],[Single / Joint]]="Joint"), SUMIF(LTVs!$A$3:$A$38,Menu!$I$9,LTVs!$D$3:$D$38), IF(AND(Products[[#This Row],[LTV Band]]="B",Products[[#This Row],[Single / Joint]]="Single"), SUMIF(LTVs!$A$3:$A$38,Menu!$I$9,LTVs!$E$3:$E$38), IF(AND(Products[[#This Row],[LTV Band]]="B",Products[[#This Row],[Single / Joint]]="Joint"), SUMIF(LTVs!$A$3:$A$38,Menu!$I$9,LTVs!$F$3:$F$38), IF(AND(Products[[#This Row],[LTV Band]]="C",Products[[#This Row],[Single / Joint]]="Single"), SUMIF(LTVs!$A$3:$A$38,Menu!$I$9,LTVs!$G$3:$G$38), IF(AND(Products[[#This Row],[LTV Band]]="C",Products[[#This Row],[Single / Joint]]="Joint"), SUMIF(LTVs!$A$3:$A$38,Menu!$I$9,LTVs!$H$3:$H$38), IF(AND(Products[[#This Row],[LTV Band]]="D",Products[[#This Row],[Single / Joint]]="Single"), SUMIF(LTVs!$A$3:$A$38,Menu!$I$9,LTVs!$I$3:$I$38), IF(AND(Products[[#This Row],[LTV Band]]="D",Products[[#This Row],[Single / Joint]]="Joint"), SUMIF(LTVs!$A$3:$A$38,Menu!$I$9,LTVs!$J$3:$J$38), IF(AND(Products[[#This Row],[LTV Band]]="E",Products[[#This Row],[Single / Joint]]="Single"), SUMIF(LTVs!$A$3:$A$38,Menu!$I$9,LTVs!$K$3:$K$38), IF(AND(Products[[#This Row],[LTV Band]]="E",Products[[#This Row],[Single / Joint]]="Joint"), SUMIF(LTVs!$A$3:$A$38,Menu!$I$9,LTVs!$L$3:$L$38), IF(AND(Products[[#This Row],[LTV Band]]="F",Products[[#This Row],[Single / Joint]]="Single"), SUMIF(LTVs!$A$3:$A$38,Menu!$I$9,LTVs!$M$3:$M$38), IF(AND(Products[[#This Row],[LTV Band]]="F",Products[[#This Row],[Single / Joint]]="Joint"), SUMIF(LTVs!$A$3:$A$38,Menu!$I$9,LTVs!$N$3:$N$38), " ")))))))))))) ->  | K45: =IF(AND(propertyValue*Products[[#This Row],[LTV ]]>725000,Products[[#This Row],[Pack]]<>"Elite"),725000,propertyValue*Products[[#This Row],[LTV ]]) ->  | L45: =IF(Products[[#This Row],[DD Cap]]="LS"," ",IF(reqrdDDamt<2000,"N/A",IF(reqrdDDamt<=Products[[#This Row],[Drawdown cap]],reqrdDDamt,"N/A"))) -> N/A | M45: =IF(Products[[#This Row],[DD Cap]]="LS"," ",IF(IF(Products[[#This Row],[DD Cap]]>=1,initialAdvance*Products[[#This Row],[DD Cap]],Products[[#This Row],[Max loan]]-initialAdvance)<Products[[#This Row],[Max loan]]-initialAdvance,IF(Products[[#This Row],[DD Cap]]>0,initialAdvance*Products[[#This Row],[DD Cap]],Products[[#This Row],[Max loan]]-initialAdvance),Products[[#This Row],[Max loan]]-initialAdvance)) ->  | N45: =IF(Products[[#This Row],[Pack]]="FP",895,895) -> 895 | O45: =IF(Products[[#This Row],[Pack]]="Fees Package",300,0) -> 0 | P45: 600 | Q45: =App_type -> 0 | R45: =IF(AND(ISBLANK(initialAdvance),Products[[#This Row],[Pack]]="Fees Package"),Products[[#This Row],[Max loan]]*3%, IF(AND(ISBLANK(initialAdvance),Products[[#This Row],[Pack]]="Fees Package"),Products[[#This Row],[Max loan]]*3%, IF(AND(initialAdvance>0,Products[[#This Row],[Pack]]="Fees Package"),initialAdvance*3%, IF(AND(initialAdvance>0,Products[[#This Row],[Pack]]="Fees Package"),initialAdvance*3%,0)))) -> 0 | S45: =IF(OR(ISBLANK(App_type),$I$9=0)," ", IF(ISBLANK(initialAdvance),Products[[#This Row],[Max loan]]+Products[[#This Row],[Cont to Adv. Fees]]+Products[[#This Row],[Cont to Sols Fees]]+Products[[#This Row],[Cashback]], initialAdvance+Products[[#This Row],[Cont to Adv. Fees]]+Products[[#This Row],[Cont to Sols Fees]]+Products[[#This Row],[Cashback]])) ->  | T45: =IF(AND(ISBLANK(initialAdvance),Products[[#This Row],[Pack]]="Fees Package",Products[[#This Row],[Max loan]]>=20000),1, IF(AND(ISBLANK(initialAdvance),Products[[#This Row],[Pack]]="Elite",Products[[#This Row],[Max loan]]>725000),1, IF(AND(ISBLANK(initialAdvance),Products[[#This Row],[Pack]]="Standard",Products[[#This Row],[Max loan]]>=10000),1, IF(AND(initialAdvance>0,Products[[#This Row],[Pack]]="Fees Package",initialAdvance>=20000,Products[[#This Row],[Max loan]]>=initialAdvance),1, IF(AND(initialAdvance>0,Products[[#This Row],[Pack]]="Elite",initialAdvance>725000,Products[[#This Row],[Max loan]]>=initialAdvance),1, IF(AND(initialAdvance>0,Products[[#This Row],[Pack]]="Standard",initialAdvance>=10000,Products[[#This Row],[Max loan]]>=initialAdvance),1,0)))))) ->  | U45: =IF(Products[[#This Row],[Cashback]]>0,1,0) -> 0 | V45: =INDEX(Rates!$B$2:$B$7,MATCH(Products[[#This Row],[LTV Band]],Rates!$A$2:$A$7,0)) -> 0.0302 | W45: =IF(Products[[#This Row],[Pack]]="Elite",IFERROR(INDEX(Rates!$C$2:$C$7,MATCH(Products[[#This Row],[LTV Band]],Rates!$A$2:$A$7,0)),0),0) -> 0.005 | X45: =IFERROR(INDEX(Rates!$D$2:$D$7,MATCH(Products[[#This Row],[Pack]],Rates!$D$1,0)),) -> 0 | Y45: =IFERROR(INDEX(Rates!$E$2:$E$7,MATCH(Products[[#This Row],[Pack]],Rates!$E$1,0)),) -> 0 | Z45: =IFERROR(INDEX(Rates!$F$2:$F$7,MATCH(Products[[#This Row],[DD Cap]],Rates!$F$1,0)),0) -> 0.001 | AA45: =IFERROR(INDEX(Rates!$G$2:$G$7,MATCH(Products[[#This Row],[DD Cap]],Rates!$G$1,0)),0) -> 0 | AB45: =IFERROR(INDEX(Rates!$H$2:$H$7,MATCH(Products[[#This Row],[DD Cap]],Rates!$H$1,0)),0) -> 0
A46: B | B46: Elite | C46: 1.5 | D46: =IF(Products[[#This Row],[DD Cap]]="LS", IF(Products[[#This Row],[Pack]]="Standard","SOVEREIGN "&Products[[#This Row],[Pack]]&" Lump Sum "&Products[[#This Row],[LTV Band]]&"_"&Products[[#This Row],[Rate]]*100&"% £10k+ "&LOWER(Products[[#This Row],[Single / Joint]])& " ("&SUM(Products[[#This Row],[Cont to Adv. Fees]:[Cont to Sols Fees]])&" cont to fees, "&"Arr Fee "&Products[[#This Row],[Arr` Fee]]&")", IF(Products[[#This Row],[Pack]]="Elite","SOVEREIGN "&Products[[#This Row],[Pack]]&" Lump Sum "&Products[[#This Row],[LTV Band]]&"_"&Products[[#This Row],[Rate]]*100&"% £10k+ "&LOWER(Products[[#This Row],[Single / Joint]])& " ("&SUM(Products[[#This Row],[Cont to Adv. Fees]:[Cont to Sols Fees]])&" cont to fees, "&"Arr Fee "&Products[[#This Row],[Arr` Fee]]&")", IF(Products[[#This Row],[Pack]]="Fees Package","SOVEREIGN "&Products[[#This Row],[Pack]]&" Lump Sum "&Products[[#This Row],[LTV Band]]&"_"&Products[[#This Row],[Rate]]*100&"% £10k+ "&LOWER(Products[[#This Row],[Single / Joint]])& " ("&SUM(Products[[#This Row],[Cont to Adv. Fees]:[Cont to Sols Fees]])&" cont to fees, "&"Arr Fee "&Products[[#This Row],[Arr` Fee]]&")(3% cash)"," "))), IF(AND(Products[[#This Row],[Pack]]="Standard",Products[[#This Row],[DD Cap]]<>0),"SOVEREIGN "&Products[[#This Row],[Pack]]&" DRAWDOWN "&Products[[#This Row],[LTV Band]]&"_"&Products[[#This Row],[Rate]]*100&"% £10k+ "&LOWER(Products[[#This Row],[Single / Joint]])& " ("&SUM(Products[[#This Row],[Cont to Adv. Fees]:[Cont to Sols Fees]])&" cont to fees, Arr Fee "&Products[[#This Row],[Arr` Fee]]&") Facility cap "&Products[[#This Row],[DD Cap]]&"x initial", IF(AND(Products[[#This Row],[Pack]]="Standard",Products[[#This Row],[DD Cap]]=0),"SOVEREIGN "&Products[[#This Row],[Pack]]&" DRAWDOWN "&Products[[#This Row],[LTV Band]]&"_"&Products[[#This Row],[Rate]]*100&"% £10k+ "&LOWER(Products[[#This Row],[Single / Joint]])& " ("&SUM(Products[[#This Row],[Cont to Adv. Fees]:[Cont to Sols Fees]])&" cont to fees, Arr Fee "&Products[[#This Row],[Arr` Fee]]&") No facility cap ", IF(AND(Products[[#This Row],[Pack]]="Elite",Products[[#This Row],[DD Cap]]<>0),"SOVEREIGN "&Products[[#This Row],[Pack]]&" DRAWDOWN "&Products[[#This Row],[LTV Band]]&"_"&Products[[#This Row],[Rate]]*100&"% £10k+ "&LOWER(Products[[#This Row],[Single / Joint]])& " ("&SUM(Products[[#This Row],[Cont to Adv. Fees]:[Cont to Sols Fees]])&" cont to fees, Arr Fee "&Products[[#This Row],[Arr` Fee]]&") Facility cap "&Products[[#This Row],[DD Cap]]&"x initial", IF(AND(Products[[#This Row],[Pack]]="Elite",Products[[#This Row],[DD Cap]]=0),"SOVEREIGN "&Products[[#This Row],[Pack]]&" DRAWDOWN "&Products[[#This Row],[LTV Band]]&"_"&Products[[#This Row],[Rate]]*100&"% £10k+ "&LOWER(Products[[#This Row],[Single / Joint]])& " ("&SUM(Products[[#This Row],[Cont to Adv. Fees]:[Cont to Sols Fees]])&" cont to fees, Arr Fee "&Products[[#This Row],[Arr` Fee]]&") No facility cap ", IF(AND(Products[[#This Row],[Pack]]="Fees Package",Products[[#This Row],[DD Cap]]<>0),"SOVEREIGN "&Products[[#This Row],[Pack]]&" DRAWDOWN "&Products[[#This Row],[LTV Band]]&"_"&Products[[#This Row],[Rate]]*100&"% £10k+ "&LOWER(Products[[#This Row],[Single / Joint]])& " ("&SUM(Products[[#This Row],[Cont to Adv. Fees]:[Cont to Sols Fees]])&" cont to fees, Arr Fee "&Products[[#This Row],[Arr` Fee]]&")(3% cash) Facility cap "&Products[[#This Row],[DD Cap]]&"x initial", IF(AND(Products[[#This Row],[Pack]]="Fees Package",Products[[#This Row],[DD Cap]]=0),"SOVEREIGN "&Products[[#This Row],[Pack]]&" DRAWDOWN "&Products[[#This Row],[LTV Band]]&"_"&Products[[#This Row],[Rate]]*100&"% £10k+ "&LOWER(Products[[#This Row],[Single / Joint]])& " ("&SUM(Products[[#This Row],[Cont to Adv. Fees]:[Cont to Sols Fees]])&" cont to fees, Arr Fee "&Products[[#This Row],[Arr` Fee]]&")(3% cash) No facility cap ", " "))))))) -> SOVEREIGN Elite DRAWDOWN B_3.67% £10k+ 0 (600 cont to fees, Arr Fee 895) Facility cap 1.5x initial | H46: =SUM(Products[[#This Row],[Base rate]:[x0]]) -> 0.0367 | I46: =IF(AND(ISBLANK(initialAdvance),Products[[#This Row],[Pack]]="Fees Package"),20000, IF(AND(ISBLANK(initialAdvance),Products[[#This Row],[Pack]]="Elite"),725001, IF(AND(ISBLANK(initialAdvance),Products[[#This Row],[Pack]]="Standard"),10000,IF(AND(initialAdvance<725001,Products[[#This Row],[Pack]]="Elite"),725001,initialAdvance)))) -> 725001 | J46: =IF(AND(Products[[#This Row],[LTV Band]]="A",Products[[#This Row],[Single / Joint]]="Single"), SUMIF(LTVs!$A$3:$A$38,Menu!$I$9,LTVs!$C$3:$C$38), IF(AND(Products[[#This Row],[LTV Band]]="A",Products[[#This Row],[Single / Joint]]="Joint"), SUMIF(LTVs!$A$3:$A$38,Menu!$I$9,LTVs!$D$3:$D$38), IF(AND(Products[[#This Row],[LTV Band]]="B",Products[[#This Row],[Single / Joint]]="Single"), SUMIF(LTVs!$A$3:$A$38,Menu!$I$9,LTVs!$E$3:$E$38), IF(AND(Products[[#This Row],[LTV Band]]="B",Products[[#This Row],[Single / Joint]]="Joint"), SUMIF(LTVs!$A$3:$A$38,Menu!$I$9,LTVs!$F$3:$F$38), IF(AND(Products[[#This Row],[LTV Band]]="C",Products[[#This Row],[Single / Joint]]="Single"), SUMIF(LTVs!$A$3:$A$38,Menu!$I$9,LTVs!$G$3:$G$38), IF(AND(Products[[#This Row],[LTV Band]]="C",Products[[#This Row],[Single / Joint]]="Joint"), SUMIF(LTVs!$A$3:$A$38,Menu!$I$9,LTVs!$H$3:$H$38), IF(AND(Products[[#This Row],[LTV Band]]="D",Products[[#This Row],[Single / Joint]]="Single"), SUMIF(LTVs!$A$3:$A$38,Menu!$I$9,LTVs!$I$3:$I$38), IF(AND(Products[[#This Row],[LTV Band]]="D",Products[[#This Row],[Single / Joint]]="Joint"), SUMIF(LTVs!$A$3:$A$38,Menu!$I$9,LTVs!$J$3:$J$38), IF(AND(Products[[#This Row],[LTV Band]]="E",Products[[#This Row],[Single / Joint]]="Single"), SUMIF(LTVs!$A$3:$A$38,Menu!$I$9,LTVs!$K$3:$K$38), IF(AND(Products[[#This Row],[LTV Band]]="E",Products[[#This Row],[Single / Joint]]="Joint"), SUMIF(LTVs!$A$3:$A$38,Menu!$I$9,LTVs!$L$3:$L$38), IF(AND(Products[[#This Row],[LTV Band]]="F",Products[[#This Row],[Single / Joint]]="Single"), SUMIF(LTVs!$A$3:$A$38,Menu!$I$9,LTVs!$M$3:$M$38), IF(AND(Products[[#This Row],[LTV Band]]="F",Products[[#This Row],[Single / Joint]]="Joint"), SUMIF(LTVs!$A$3:$A$38,Menu!$I$9,LTVs!$N$3:$N$38), " ")))))))))))) ->  | K46: =IF(AND(propertyValue*Products[[#This Row],[LTV ]]>725000,Products[[#This Row],[Pack]]<>"Elite"),725000,propertyValue*Products[[#This Row],[LTV ]]) ->  | L46: =IF(Products[[#This Row],[DD Cap]]="LS"," ",IF(reqrdDDamt<2000,"N/A",IF(reqrdDDamt<=Products[[#This Row],[Drawdown cap]],reqrdDDamt,"N/A"))) -> N/A | M46: =IF(Products[[#This Row],[DD Cap]]="LS"," ",IF(IF(Products[[#This Row],[DD Cap]]>=1,initialAdvance*Products[[#This Row],[DD Cap]],Products[[#This Row],[Max loan]]-initialAdvance)<Products[[#This Row],[Max loan]]-initialAdvance,IF(Products[[#This Row],[DD Cap]]>0,initialAdvance*Products[[#This Row],[DD Cap]],Products[[#This Row],[Max loan]]-initialAdvance),Products[[#This Row],[Max loan]]-initialAdvance)) ->  | N46: =IF(Products[[#This Row],[Pack]]="FP",895,895) -> 895 | O46: =IF(Products[[#This Row],[Pack]]="Fees Package",300,0) -> 0 | P46: 600 | Q46: =App_type -> 0 | R46: =IF(AND(ISBLANK(initialAdvance),Products[[#This Row],[Pack]]="Fees Package"),Products[[#This Row],[Max loan]]*3%, IF(AND(ISBLANK(initialAdvance),Products[[#This Row],[Pack]]="Fees Package"),Products[[#This Row],[Max loan]]*3%, IF(AND(initialAdvance>0,Products[[#This Row],[Pack]]="Fees Package"),initialAdvance*3%, IF(AND(initialAdvance>0,Products[[#This Row],[Pack]]="Fees Package"),initialAdvance*3%,0)))) -> 0 | S46: =IF(OR(ISBLANK(App_type),$I$9=0)," ", IF(ISBLANK(initialAdvance),Products[[#This Row],[Max loan]]+Products[[#This Row],[Cont to Adv. Fees]]+Products[[#This Row],[Cont to Sols Fees]]+Products[[#This Row],[Cashback]], initialAdvance+Products[[#This Row],[Cont to Adv. Fees]]+Products[[#This Row],[Cont to Sols Fees]]+Products[[#This Row],[Cashback]])) ->  | T46: =IF(AND(ISBLANK(initialAdvance),Products[[#This Row],[Pack]]="Fees Package",Products[[#This Row],[Max loan]]>=20000),1, IF(AND(ISBLANK(initialAdvance),Products[[#This Row],[Pack]]="Elite",Products[[#This Row],[Max loan]]>725000),1, IF(AND(ISBLANK(initialAdvance),Products[[#This Row],[Pack]]="Standard",Products[[#This Row],[Max loan]]>=10000),1, IF(AND(initialAdvance>0,Products[[#This Row],[Pack]]="Fees Package",initialAdvance>=20000,Products[[#This Row],[Max loan]]>=initialAdvance),1, IF(AND(initialAdvance>0,Products[[#This Row],[Pack]]="Elite",initialAdvance>725000,Products[[#This Row],[Max loan]]>=initialAdvance),1, IF(AND(initialAdvance>0,Products[[#This Row],[Pack]]="Standard",initialAdvance>=10000,Products[[#This Row],[Max loan]]>=initialAdvance),1,0)))))) ->  | U46: =IF(Products[[#This Row],[Cashback]]>0,1,0) -> 0 | V46: =INDEX(Rates!$B$2:$B$7,MATCH(Products[[#This Row],[LTV Band]],Rates!$A$2:$A$7,0)) -> 0.0302 | W46: =IF(Products[[#This Row],[Pack]]="Elite",IFERROR(INDEX(Rates!$C$2:$C$7,MATCH(Products[[#This Row],[LTV Band]],Rates!$A$2:$A$7,0)),0),0) -> 0.005 | X46: =IFERROR(INDEX(Rates!$D$2:$D$7,MATCH(Products[[#This Row],[Pack]],Rates!$D$1,0)),) -> 0 | Y46: =IFERROR(INDEX(Rates!$E$2:$E$7,MATCH(Products[[#This Row],[Pack]],Rates!$E$1,0)),) -> 0 | Z46: =IFERROR(INDEX(Rates!$F$2:$F$7,MATCH(Products[[#This Row],[DD Cap]],Rates!$F$1,0)),0) -> 0 | AA46: =IFERROR(INDEX(Rates!$G$2:$G$7,MATCH(Products[[#This Row],[DD Cap]],Rates!$G$1,0)),0) -> 0.0015 | AB46: =IFERROR(INDEX(Rates!$H$2:$H$7,MATCH(Products[[#This Row],[DD Cap]],Rates!$H$1,0)),0) -> 0
A47: C | B47: Standard | C47: 1 | D47: =IF(Products[[#This Row],[DD Cap]]="LS", IF(Products[[#This Row],[Pack]]="Standard","SOVEREIGN "&Products[[#This Row],[Pack]]&" Lump Sum "&Products[[#This Row],[LTV Band]]&"_"&Products[[#This Row],[Rate]]*100&"% £10k+ "&LOWER(Products[[#This Row],[Single / Joint]])& " ("&SUM(Products[[#This Row],[Cont to Adv. Fees]:[Cont to Sols Fees]])&" cont to fees, "&"Arr Fee "&Products[[#This Row],[Arr` Fee]]&")", IF(Products[[#This Row],[Pack]]="Elite","SOVEREIGN "&Products[[#This Row],[Pack]]&" Lump Sum "&Products[[#This Row],[LTV Band]]&"_"&Products[[#This Row],[Rate]]*100&"% £10k+ "&LOWER(Products[[#This Row],[Single / Joint]])& " ("&SUM(Products[[#This Row],[Cont to Adv. Fees]:[Cont to Sols Fees]])&" cont to fees, "&"Arr Fee "&Products[[#This Row],[Arr` Fee]]&")", IF(Products[[#This Row],[Pack]]="Fees Package","SOVEREIGN "&Products[[#This Row],[Pack]]&" Lump Sum "&Products[[#This Row],[LTV Band]]&"_"&Products[[#This Row],[Rate]]*100&"% £10k+ "&LOWER(Products[[#This Row],[Single / Joint]])& " ("&SUM(Products[[#This Row],[Cont to Adv. Fees]:[Cont to Sols Fees]])&" cont to fees, "&"Arr Fee "&Products[[#This Row],[Arr` Fee]]&")(3% cash)"," "))), IF(AND(Products[[#This Row],[Pack]]="Standard",Products[[#This Row],[DD Cap]]<>0),"SOVEREIGN "&Products[[#This Row],[Pack]]&" DRAWDOWN "&Products[[#This Row],[LTV Band]]&"_"&Products[[#This Row],[Rate]]*100&"% £10k+ "&LOWER(Products[[#This Row],[Single / Joint]])& " ("&SUM(Products[[#This Row],[Cont to Adv. Fees]:[Cont to Sols Fees]])&" cont to fees, Arr Fee "&Products[[#This Row],[Arr` Fee]]&") Facility cap "&Products[[#This Row],[DD Cap]]&"x initial", IF(AND(Products[[#This Row],[Pack]]="Standard",Products[[#This Row],[DD Cap]]=0),"SOVEREIGN "&Products[[#This Row],[Pack]]&" DRAWDOWN "&Products[[#This Row],[LTV Band]]&"_"&Products[[#This Row],[Rate]]*100&"% £10k+ "&LOWER(Products[[#This Row],[Single / Joint]])& " ("&SUM(Products[[#This Row],[Cont to Adv. Fees]:[Cont to Sols Fees]])&" cont to fees, Arr Fee "&Products[[#This Row],[Arr` Fee]]&") No facility cap ", IF(AND(Products[[#This Row],[Pack]]="Elite",Products[[#This Row],[DD Cap]]<>0),"SOVEREIGN "&Products[[#This Row],[Pack]]&" DRAWDOWN "&Products[[#This Row],[LTV Band]]&"_"&Products[[#This Row],[Rate]]*100&"% £10k+ "&LOWER(Products[[#This Row],[Single / Joint]])& " ("&SUM(Products[[#This Row],[Cont to Adv. Fees]:[Cont to Sols Fees]])&" cont to fees, Arr Fee "&Products[[#This Row],[Arr` Fee]]&") Facility cap "&Products[[#This Row],[DD Cap]]&"x initial", IF(AND(Products[[#This Row],[Pack]]="Elite",Products[[#This Row],[DD Cap]]=0),"SOVEREIGN "&Products[[#This Row],[Pack]]&" DRAWDOWN "&Products[[#This Row],[LTV Band]]&"_"&Products[[#This Row],[Rate]]*100&"% £10k+ "&LOWER(Products[[#This Row],[Single / Joint]])& " ("&SUM(Products[[#This Row],[Cont to Adv. Fees]:[Cont to Sols Fees]])&" cont to fees, Arr Fee "&Products[[#This Row],[Arr` Fee]]&") No facility cap ", IF(AND(Products[[#This Row],[Pack]]="Fees Package",Products[[#This Row],[DD Cap]]<>0),"SOVEREIGN "&Products[[#This Row],[Pack]]&" DRAWDOWN "&Products[[#This Row],[LTV Band]]&"_"&Products[[#This Row],[Rate]]*100&"% £10k+ "&LOWER(Products[[#This Row],[Single / Joint]])& " ("&SUM(Products[[#This Row],[Cont to Adv. Fees]:[Cont to Sols Fees]])&" cont to fees, Arr Fee "&Products[[#This Row],[Arr` Fee]]&")(3% cash) Facility cap "&Products[[#This Row],[DD Cap]]&"x initial", IF(AND(Products[[#This Row],[Pack]]="Fees Package",Products[[#This Row],[DD Cap]]=0),"SOVEREIGN "&Products[[#This Row],[Pack]]&" DRAWDOWN "&Products[[#This Row],[LTV Band]]&"_"&Products[[#This Row],[Rate]]*100&"% £10k+ "&LOWER(Products[[#This Row],[Single / Joint]])& " ("&SUM(Products[[#This Row],[Cont to Adv. Fees]:[Cont to Sols Fees]])&" cont to fees, Arr Fee "&Products[[#This Row],[Arr` Fee]]&")(3% cash) No facility cap ", " "))))))) -> SOVEREIGN Standard DRAWDOWN C_3.69% £10k+ 0 (600 cont to fees, Arr Fee 895) Facility cap 1x initial | H47: =SUM(Products[[#This Row],[Base rate]:[x0]]) -> 0.0369 | I47: =IF(AND(ISBLANK(initialAdvance),Products[[#This Row],[Pack]]="Fees Package"),20000, IF(AND(ISBLANK(initialAdvance),Products[[#This Row],[Pack]]="Elite"),725001, IF(AND(ISBLANK(initialAdvance),Products[[#This Row],[Pack]]="Standard"),10000,IF(AND(initialAdvance<725001,Products[[#This Row],[Pack]]="Elite"),725001,initialAdvance)))) -> 10000 | J47: =IF(AND(Products[[#This Row],[LTV Band]]="A",Products[[#This Row],[Single / Joint]]="Single"), SUMIF(LTVs!$A$3:$A$38,Menu!$I$9,LTVs!$C$3:$C$38), IF(AND(Products[[#This Row],[LTV Band]]="A",Products[[#This Row],[Single / Joint]]="Joint"), SUMIF(LTVs!$A$3:$A$38,Menu!$I$9,LTVs!$D$3:$D$38), IF(AND(Products[[#This Row],[LTV Band]]="B",Products[[#This Row],[Single / Joint]]="Single"), SUMIF(LTVs!$A$3:$A$38,Menu!$I$9,LTVs!$E$3:$E$38), IF(AND(Products[[#This Row],[LTV Band]]="B",Products[[#This Row],[Single / Joint]]="Joint"), SUMIF(LTVs!$A$3:$A$38,Menu!$I$9,LTVs!$F$3:$F$38), IF(AND(Products[[#This Row],[LTV Band]]="C",Products[[#This Row],[Single / Joint]]="Single"), SUMIF(LTVs!$A$3:$A$38,Menu!$I$9,LTVs!$G$3:$G$38), IF(AND(Products[[#This Row],[LTV Band]]="C",Products[[#This Row],[Single / Joint]]="Joint"), SUMIF(LTVs!$A$3:$A$38,Menu!$I$9,LTVs!$H$3:$H$38), IF(AND(Products[[#This Row],[LTV Band]]="D",Products[[#This Row],[Single / Joint]]="Single"), SUMIF(LTVs!$A$3:$A$38,Menu!$I$9,LTVs!$I$3:$I$38), IF(AND(Products[[#This Row],[LTV Band]]="D",Products[[#This Row],[Single / Joint]]="Joint"), SUMIF(LTVs!$A$3:$A$38,Menu!$I$9,LTVs!$J$3:$J$38), IF(AND(Products[[#This Row],[LTV Band]]="E",Products[[#This Row],[Single / Joint]]="Single"), SUMIF(LTVs!$A$3:$A$38,Menu!$I$9,LTVs!$K$3:$K$38), IF(AND(Products[[#This Row],[LTV Band]]="E",Products[[#This Row],[Single / Joint]]="Joint"), SUMIF(LTVs!$A$3:$A$38,Menu!$I$9,LTVs!$L$3:$L$38), IF(AND(Products[[#This Row],[LTV Band]]="F",Products[[#This Row],[Single / Joint]]="Single"), SUMIF(LTVs!$A$3:$A$38,Menu!$I$9,LTVs!$M$3:$M$38), IF(AND(Products[[#This Row],[LTV Band]]="F",Products[[#This Row],[Single / Joint]]="Joint"), SUMIF(LTVs!$A$3:$A$38,Menu!$I$9,LTVs!$N$3:$N$38), " ")))))))))))) ->  | K47: =IF(AND(propertyValue*Products[[#This Row],[LTV ]]>725000,Products[[#This Row],[Pack]]<>"Elite"),725000,propertyValue*Products[[#This Row],[LTV ]]) ->  | L47: =IF(Products[[#This Row],[DD Cap]]="LS"," ",IF(reqrdDDamt<2000,"N/A",IF(reqrdDDamt<=Products[[#This Row],[Drawdown cap]],reqrdDDamt,"N/A"))) -> N/A | M47: =IF(Products[[#This Row],[DD Cap]]="LS"," ",IF(IF(Products[[#This Row],[DD Cap]]>=1,initialAdvance*Products[[#This Row],[DD Cap]],Products[[#This Row],[Max loan]]-initialAdvance)<Products[[#This Row],[Max loan]]-initialAdvance,IF(Products[[#This Row],[DD Cap]]>0,initialAdvance*Products[[#This Row],[DD Cap]],Products[[#This Row],[Max loan]]-initialAdvance),Products[[#This Row],[Max loan]]-initialAdvance)) ->  | N47: =IF(Products[[#This Row],[Pack]]="FP",895,895) -> 895 | O47: =IF(Products[[#This Row],[Pack]]="Fees Package",300,0) -> 0 | P47: 600 | Q47: =App_type -> 0 | R47: =IF(AND(ISBLANK(initialAdvance),Products[[#This Row],[Pack]]="Fees Package"),Products[[#This Row],[Max loan]]*3%, IF(AND(ISBLANK(initialAdvance),Products[[#This Row],[Pack]]="Fees Package"),Products[[#This Row],[Max loan]]*3%, IF(AND(initialAdvance>0,Products[[#This Row],[Pack]]="Fees Package"),initialAdvance*3%, IF(AND(initialAdvance>0,Products[[#This Row],[Pack]]="Fees Package"),initialAdvance*3%,0)))) -> 0 | S47: =IF(OR(ISBLANK(App_type),$I$9=0)," ", IF(ISBLANK(initialAdvance),Products[[#This Row],[Max loan]]+Products[[#This Row],[Cont to Adv. Fees]]+Products[[#This Row],[Cont to Sols Fees]]+Products[[#This Row],[Cashback]], initialAdvance+Products[[#This Row],[Cont to Adv. Fees]]+Products[[#This Row],[Cont to Sols Fees]]+Products[[#This Row],[Cashback]])) ->  | T47: =IF(AND(ISBLANK(initialAdvance),Products[[#This Row],[Pack]]="Fees Package",Products[[#This Row],[Max loan]]>=20000),1, IF(AND(ISBLANK(initialAdvance),Products[[#This Row],[Pack]]="Elite",Products[[#This Row],[Max loan]]>725000),1, IF(AND(ISBLANK(initialAdvance),Products[[#This Row],[Pack]]="Standard",Products[[#This Row],[Max loan]]>=10000),1, IF(AND(initialAdvance>0,Products[[#This Row],[Pack]]="Fees Package",initialAdvance>=20000,Products[[#This Row],[Max loan]]>=initialAdvance),1, IF(AND(initialAdvance>0,Products[[#This Row],[Pack]]="Elite",initialAdvance>725000,Products[[#This Row],[Max loan]]>=initialAdvance),1, IF(AND(initialAdvance>0,Products[[#This Row],[Pack]]="Standard",initialAdvance>=10000,Products[[#This Row],[Max loan]]>=initialAdvance),1,0)))))) ->  | U47: =IF(Products[[#This Row],[Cashback]]>0,1,0) -> 0 | V47: =INDEX(Rates!$B$2:$B$7,MATCH(Products[[#This Row],[LTV Band]],Rates!$A$2:$A$7,0)) -> 0.0359 | W47: =IF(Products[[#This Row],[Pack]]="Elite",IFERROR(INDEX(Rates!$C$2:$C$7,MATCH(Products[[#This Row],[LTV Band]],Rates!$A$2:$A$7,0)),0),0) -> 0 | X47: =IFERROR(INDEX(Rates!$D$2:$D$7,MATCH(Products[[#This Row],[Pack]],Rates!$D$1,0)),) -> 0 | Y47: =IFERROR(INDEX(Rates!$E$2:$E$7,MATCH(Products[[#This Row],[Pack]],Rates!$E$1,0)),) -> 0 | Z47: =IFERROR(INDEX(Rates!$F$2:$F$7,MATCH(Products[[#This Row],[DD Cap]],Rates!$F$1,0)),0) -> 0.001 | AA47: =IFERROR(INDEX(Rates!$G$2:$G$7,MATCH(Products[[#This Row],[DD Cap]],Rates!$G$1,0)),0) -> 0 | AB47: =IFERROR(INDEX(Rates!$H$2:$H$7,MATCH(Products[[#This Row],[DD Cap]],Rates!$H$1,0)),0) -> 0
A48: B | B48: Elite | C48: 0 | D48: =IF(Products[[#This Row],[DD Cap]]="LS", IF(Products[[#This Row],[Pack]]="Standard","SOVEREIGN "&Products[[#This Row],[Pack]]&" Lump Sum "&Products[[#This Row],[LTV Band]]&"_"&Products[[#This Row],[Rate]]*100&"% £10k+ "&LOWER(Products[[#This Row],[Single / Joint]])& " ("&SUM(Products[[#This Row],[Cont to Adv. Fees]:[Cont to Sols Fees]])&" cont to fees, "&"Arr Fee "&Products[[#This Row],[Arr` Fee]]&")", IF(Products[[#This Row],[Pack]]="Elite","SOVEREIGN "&Products[[#This Row],[Pack]]&" Lump Sum "&Products[[#This Row],[LTV Band]]&"_"&Products[[#This Row],[Rate]]*100&"% £10k+ "&LOWER(Products[[#This Row],[Single / Joint]])& " ("&SUM(Products[[#This Row],[Cont to Adv. Fees]:[Cont to Sols Fees]])&" cont to fees, "&"Arr Fee "&Products[[#This Row],[Arr` Fee]]&")", IF(Products[[#This Row],[Pack]]="Fees Package","SOVEREIGN "&Products[[#This Row],[Pack]]&" Lump Sum "&Products[[#This Row],[LTV Band]]&"_"&Products[[#This Row],[Rate]]*100&"% £10k+ "&LOWER(Products[[#This Row],[Single / Joint]])& " ("&SUM(Products[[#This Row],[Cont to Adv. Fees]:[Cont to Sols Fees]])&" cont to fees, "&"Arr Fee "&Products[[#This Row],[Arr` Fee]]&")(3% cash)"," "))), IF(AND(Products[[#This Row],[Pack]]="Standard",Products[[#This Row],[DD Cap]]<>0),"SOVEREIGN "&Products[[#This Row],[Pack]]&" DRAWDOWN "&Products[[#This Row],[LTV Band]]&"_"&Products[[#This Row],[Rate]]*100&"% £10k+ "&LOWER(Products[[#This Row],[Single / Joint]])& " ("&SUM(Products[[#This Row],[Cont to Adv. Fees]:[Cont to Sols Fees]])&" cont to fees, Arr Fee "&Products[[#This Row],[Arr` Fee]]&") Facility cap "&Products[[#This Row],[DD Cap]]&"x initial", IF(AND(Products[[#This Row],[Pack]]="Standard",Products[[#This Row],[DD Cap]]=0),"SOVEREIGN "&Products[[#This Row],[Pack]]&" DRAWDOWN "&Products[[#This Row],[LTV Band]]&"_"&Products[[#This Row],[Rate]]*100&"% £10k+ "&LOWER(Products[[#This Row],[Single / Joint]])& " ("&SUM(Products[[#This Row],[Cont to Adv. Fees]:[Cont to Sols Fees]])&" cont to fees, Arr Fee "&Products[[#This Row],[Arr` Fee]]&") No facility cap ", IF(AND(Products[[#This Row],[Pack]]="Elite",Products[[#This Row],[DD Cap]]<>0),"SOVEREIGN "&Products[[#This Row],[Pack]]&" DRAWDOWN "&Products[[#This Row],[LTV Band]]&"_"&Products[[#This Row],[Rate]]*100&"% £10k+ "&LOWER(Products[[#This Row],[Single / Joint]])& " ("&SUM(Products[[#This Row],[Cont to Adv. Fees]:[Cont to Sols Fees]])&" cont to fees, Arr Fee "&Products[[#This Row],[Arr` Fee]]&") Facility cap "&Products[[#This Row],[DD Cap]]&"x initial", IF(AND(Products[[#This Row],[Pack]]="Elite",Products[[#This Row],[DD Cap]]=0),"SOVEREIGN "&Products[[#This Row],[Pack]]&" DRAWDOWN "&Products[[#This Row],[LTV Band]]&"_"&Products[[#This Row],[Rate]]*100&"% £10k+ "&LOWER(Products[[#This Row],[Single / Joint]])& " ("&SUM(Products[[#This Row],[Cont to Adv. Fees]:[Cont to Sols Fees]])&" cont to fees, Arr Fee "&Products[[#This Row],[Arr` Fee]]&") No facility cap ", IF(AND(Products[[#This Row],[Pack]]="Fees Package",Products[[#This Row],[DD Cap]]<>0),"SOVEREIGN "&Products[[#This Row],[Pack]]&" DRAWDOWN "&Products[[#This Row],[LTV Band]]&"_"&Products[[#This Row],[Rate]]*100&"% £10k+ "&LOWER(Products[[#This Row],[Single / Joint]])& " ("&SUM(Products[[#This Row],[Cont to Adv. Fees]:[Cont to Sols Fees]])&" cont to fees, Arr Fee "&Products[[#This Row],[Arr` Fee]]&")(3% cash) Facility cap "&Products[[#This Row],[DD Cap]]&"x initial", IF(AND(Products[[#This Row],[Pack]]="Fees Package",Products[[#This Row],[DD Cap]]=0),"SOVEREIGN "&Products[[#This Row],[Pack]]&" DRAWDOWN "&Products[[#This Row],[LTV Band]]&"_"&Products[[#This Row],[Rate]]*100&"% £10k+ "&LOWER(Products[[#This Row],[Single / Joint]])& " ("&SUM(Products[[#This Row],[Cont to Adv. Fees]:[Cont to Sols Fees]])&" cont to fees, Arr Fee "&Products[[#This Row],[Arr` Fee]]&")(3% cash) No facility cap ", " "))))))) -> SOVEREIGN Elite DRAWDOWN B_3.72% £10k+ 0 (600 cont to fees, Arr Fee 895) No facility cap | H48: =SUM(Products[[#This Row],[Base rate]:[x0]]) -> 0.0372 | I48: =IF(AND(ISBLANK(initialAdvance),Products[[#This Row],[Pack]]="Fees Package"),20000, IF(AND(ISBLANK(initialAdvance),Products[[#This Row],[Pack]]="Elite"),725001, IF(AND(ISBLANK(initialAdvance),Products[[#This Row],[Pack]]="Standard"),10000,IF(AND(initialAdvance<725001,Products[[#This Row],[Pack]]="Elite"),725001,initialAdvance)))) -> 725001 | J48: =IF(AND(Products[[#This Row],[LTV Band]]="A",Products[[#This Row],[Single / Joint]]="Single"), SUMIF(LTVs!$A$3:$A$38,Menu!$I$9,LTVs!$C$3:$C$38), IF(AND(Products[[#This Row],[LTV Band]]="A",Products[[#This Row],[Single / Joint]]="Joint"), SUMIF(LTVs!$A$3:$A$38,Menu!$I$9,LTVs!$D$3:$D$38), IF(AND(Products[[#This Row],[LTV Band]]="B",Products[[#This Row],[Single / Joint]]="Single"), SUMIF(LTVs!$A$3:$A$38,Menu!$I$9,LTVs!$E$3:$E$38), IF(AND(Products[[#This Row],[LTV Band]]="B",Products[[#This Row],[Single / Joint]]="Joint"), SUMIF(LTVs!$A$3:$A$38,Menu!$I$9,LTVs!$F$3:$F$38), IF(AND(Products[[#This Row],[LTV Band]]="C",Products[[#This Row],[Single / Joint]]="Single"), SUMIF(LTVs!$A$3:$A$38,Menu!$I$9,LTVs!$G$3:$G$38), IF(AND(Products[[#This Row],[LTV Band]]="C",Products[[#This Row],[Single / Joint]]="Joint"), SUMIF(LTVs!$A$3:$A$38,Menu!$I$9,LTVs!$H$3:$H$38), IF(AND(Products[[#This Row],[LTV Band]]="D",Products[[#This Row],[Single / Joint]]="Single"), SUMIF(LTVs!$A$3:$A$38,Menu!$I$9,LTVs!$I$3:$I$38), IF(AND(Products[[#This Row],[LTV Band]]="D",Products[[#This Row],[Single / Joint]]="Joint"), SUMIF(LTVs!$A$3:$A$38,Menu!$I$9,LTVs!$J$3:$J$38), IF(AND(Products[[#This Row],[LTV Band]]="E",Products[[#This Row],[Single / Joint]]="Single"), SUMIF(LTVs!$A$3:$A$38,Menu!$I$9,LTVs!$K$3:$K$38), IF(AND(Products[[#This Row],[LTV Band]]="E",Products[[#This Row],[Single / Joint]]="Joint"), SUMIF(LTVs!$A$3:$A$38,Menu!$I$9,LTVs!$L$3:$L$38), IF(AND(Products[[#This Row],[LTV Band]]="F",Products[[#This Row],[Single / Joint]]="Single"), SUMIF(LTVs!$A$3:$A$38,Menu!$I$9,LTVs!$M$3:$M$38), IF(AND(Products[[#This Row],[LTV Band]]="F",Products[[#This Row],[Single / Joint]]="Joint"), SUMIF(LTVs!$A$3:$A$38,Menu!$I$9,LTVs!$N$3:$N$38), " ")))))))))))) ->  | K48: =IF(AND(propertyValue*Products[[#This Row],[LTV ]]>725000,Products[[#This Row],[Pack]]<>"Elite"),725000,propertyValue*Products[[#This Row],[LTV ]]) ->  | L48: =IF(Products[[#This Row],[DD Cap]]="LS"," ",IF(reqrdDDamt<2000,"N/A",IF(reqrdDDamt<=Products[[#This Row],[Drawdown cap]],reqrdDDamt,"N/A"))) -> N/A | M48: =IF(Products[[#This Row],[DD Cap]]="LS"," ",IF(IF(Products[[#This Row],[DD Cap]]>=1,initialAdvance*Products[[#This Row],[DD Cap]],Products[[#This Row],[Max loan]]-initialAdvance)<Products[[#This Row],[Max loan]]-initialAdvance,IF(Products[[#This Row],[DD Cap]]>0,initialAdvance*Products[[#This Row],[DD Cap]],Products[[#This Row],[Max loan]]-initialAdvance),Products[[#This Row],[Max loan]]-initialAdvance)) ->  | N48: =IF(Products[[#This Row],[Pack]]="FP",895,895) -> 895 | O48: =IF(Products[[#This Row],[Pack]]="Fees Package",300,0) -> 0 | P48: 600 | Q48: =App_type -> 0 | R48: =IF(AND(ISBLANK(initialAdvance),Products[[#This Row],[Pack]]="Fees Package"),Products[[#This Row],[Max loan]]*3%, IF(AND(ISBLANK(initialAdvance),Products[[#This Row],[Pack]]="Fees Package"),Products[[#This Row],[Max loan]]*3%, IF(AND(initialAdvance>0,Products[[#This Row],[Pack]]="Fees Package"),initialAdvance*3%, IF(AND(initialAdvance>0,Products[[#This Row],[Pack]]="Fees Package"),initialAdvance*3%,0)))) -> 0 | S48: =IF(OR(ISBLANK(App_type),$I$9=0)," ", IF(ISBLANK(initialAdvance),Products[[#This Row],[Max loan]]+Products[[#This Row],[Cont to Adv. Fees]]+Products[[#This Row],[Cont to Sols Fees]]+Products[[#This Row],[Cashback]], initialAdvance+Products[[#This Row],[Cont to Adv. Fees]]+Products[[#This Row],[Cont to Sols Fees]]+Products[[#This Row],[Cashback]])) ->  | T48: =IF(AND(ISBLANK(initialAdvance),Products[[#This Row],[Pack]]="Fees Package",Products[[#This Row],[Max loan]]>=20000),1, IF(AND(ISBLANK(initialAdvance),Products[[#This Row],[Pack]]="Elite",Products[[#This Row],[Max loan]]>725000),1, IF(AND(ISBLANK(initialAdvance),Products[[#This Row],[Pack]]="Standard",Products[[#This Row],[Max loan]]>=10000),1, IF(AND(initialAdvance>0,Products[[#This Row],[Pack]]="Fees Package",initialAdvance>=20000,Products[[#This Row],[Max loan]]>=initialAdvance),1, IF(AND(initialAdvance>0,Products[[#This Row],[Pack]]="Elite",initialAdvance>725000,Products[[#This Row],[Max loan]]>=initialAdvance),1, IF(AND(initialAdvance>0,Products[[#This Row],[Pack]]="Standard",initialAdvance>=10000,Products[[#This Row],[Max loan]]>=initialAdvance),1,0)))))) ->  | U48: =IF(Products[[#This Row],[Cashback]]>0,1,0) -> 0 | V48: =INDEX(Rates!$B$2:$B$7,MATCH(Products[[#This Row],[LTV Band]],Rates!$A$2:$A$7,0)) -> 0.0302 | W48: =IF(Products[[#This Row],[Pack]]="Elite",IFERROR(INDEX(Rates!$C$2:$C$7,MATCH(Products[[#This Row],[LTV Band]],Rates!$A$2:$A$7,0)),0),0) -> 0.005 | X48: =IFERROR(INDEX(Rates!$D$2:$D$7,MATCH(Products[[#This Row],[Pack]],Rates!$D$1,0)),) -> 0 | Y48: =IFERROR(INDEX(Rates!$E$2:$E$7,MATCH(Products[[#This Row],[Pack]],Rates!$E$1,0)),) -> 0 | Z48: =IFERROR(INDEX(Rates!$F$2:$F$7,MATCH(Products[[#This Row],[DD Cap]],Rates!$F$1,0)),0) -> 0 | AA48: =IFERROR(INDEX(Rates!$G$2:$G$7,MATCH(Products[[#This Row],[DD Cap]],Rates!$G$1,0)),0) -> 0 | AB48: =IFERROR(INDEX(Rates!$H$2:$H$7,MATCH(Products[[#This Row],[DD Cap]],Rates!$H$1,0)),0) -> 0.002
A49: C | B49: Standard | C49: 1.5 | D49: =IF(Products[[#This Row],[DD Cap]]="LS", IF(Products[[#This Row],[Pack]]="Standard","SOVEREIGN "&Products[[#This Row],[Pack]]&" Lump Sum "&Products[[#This Row],[LTV Band]]&"_"&Products[[#This Row],[Rate]]*100&"% £10k+ "&LOWER(Products[[#This Row],[Single / Joint]])& " ("&SUM(Products[[#This Row],[Cont to Adv. Fees]:[Cont to Sols Fees]])&" cont to fees, "&"Arr Fee "&Products[[#This Row],[Arr` Fee]]&")", IF(Products[[#This Row],[Pack]]="Elite","SOVEREIGN "&Products[[#This Row],[Pack]]&" Lump Sum "&Products[[#This Row],[LTV Band]]&"_"&Products[[#This Row],[Rate]]*100&"% £10k+ "&LOWER(Products[[#This Row],[Single / Joint]])& " ("&SUM(Products[[#This Row],[Cont to Adv. Fees]:[Cont to Sols Fees]])&" cont to fees, "&"Arr Fee "&Products[[#This Row],[Arr` Fee]]&")", IF(Products[[#This Row],[Pack]]="Fees Package","SOVEREIGN "&Products[[#This Row],[Pack]]&" Lump Sum "&Products[[#This Row],[LTV Band]]&"_"&Products[[#This Row],[Rate]]*100&"% £10k+ "&LOWER(Products[[#This Row],[Single / Joint]])& " ("&SUM(Products[[#This Row],[Cont to Adv. Fees]:[Cont to Sols Fees]])&" cont to fees, "&"Arr Fee "&Products[[#This Row],[Arr` Fee]]&")(3% cash)"," "))), IF(AND(Products[[#This Row],[Pack]]="Standard",Products[[#This Row],[DD Cap]]<>0),"SOVEREIGN "&Products[[#This Row],[Pack]]&" DRAWDOWN "&Products[[#This Row],[LTV Band]]&"_"&Products[[#This Row],[Rate]]*100&"% £10k+ "&LOWER(Products[[#This Row],[Single / Joint]])& " ("&SUM(Products[[#This Row],[Cont to Adv. Fees]:[Cont to Sols Fees]])&" cont to fees, Arr Fee "&Products[[#This Row],[Arr` Fee]]&") Facility cap "&Products[[#This Row],[DD Cap]]&"x initial", IF(AND(Products[[#This Row],[Pack]]="Standard",Products[[#This Row],[DD Cap]]=0),"SOVEREIGN "&Products[[#This Row],[Pack]]&" DRAWDOWN "&Products[[#This Row],[LTV Band]]&"_"&Products[[#This Row],[Rate]]*100&"% £10k+ "&LOWER(Products[[#This Row],[Single / Joint]])& " ("&SUM(Products[[#This Row],[Cont to Adv. Fees]:[Cont to Sols Fees]])&" cont to fees, Arr Fee "&Products[[#This Row],[Arr` Fee]]&") No facility cap ", IF(AND(Products[[#This Row],[Pack]]="Elite",Products[[#This Row],[DD Cap]]<>0),"SOVEREIGN "&Products[[#This Row],[Pack]]&" DRAWDOWN "&Products[[#This Row],[LTV Band]]&"_"&Products[[#This Row],[Rate]]*100&"% £10k+ "&LOWER(Products[[#This Row],[Single / Joint]])& " ("&SUM(Products[[#This Row],[Cont to Adv. Fees]:[Cont to Sols Fees]])&" cont to fees, Arr Fee "&Products[[#This Row],[Arr` Fee]]&") Facility cap "&Products[[#This Row],[DD Cap]]&"x initial", IF(AND(Products[[#This Row],[Pack]]="Elite",Products[[#This Row],[DD Cap]]=0),"SOVEREIGN "&Products[[#This Row],[Pack]]&" DRAWDOWN "&Products[[#This Row],[LTV Band]]&"_"&Products[[#This Row],[Rate]]*100&"% £10k+ "&LOWER(Products[[#This Row],[Single / Joint]])& " ("&SUM(Products[[#This Row],[Cont to Adv. Fees]:[Cont to Sols Fees]])&" cont to fees, Arr Fee "&Products[[#This Row],[Arr` Fee]]&") No facility cap ", IF(AND(Products[[#This Row],[Pack]]="Fees Package",Products[[#This Row],[DD Cap]]<>0),"SOVEREIGN "&Products[[#This Row],[Pack]]&" DRAWDOWN "&Products[[#This Row],[LTV Band]]&"_"&Products[[#This Row],[Rate]]*100&"% £10k+ "&LOWER(Products[[#This Row],[Single / Joint]])& " ("&SUM(Products[[#This Row],[Cont to Adv. Fees]:[Cont to Sols Fees]])&" cont to fees, Arr Fee "&Products[[#This Row],[Arr` Fee]]&")(3% cash) Facility cap "&Products[[#This Row],[DD Cap]]&"x initial", IF(AND(Products[[#This Row],[Pack]]="Fees Package",Products[[#This Row],[DD Cap]]=0),"SOVEREIGN "&Products[[#This Row],[Pack]]&" DRAWDOWN "&Products[[#This Row],[LTV Band]]&"_"&Products[[#This Row],[Rate]]*100&"% £10k+ "&LOWER(Products[[#This Row],[Single / Joint]])& " ("&SUM(Products[[#This Row],[Cont to Adv. Fees]:[Cont to Sols Fees]])&" cont to fees, Arr Fee "&Products[[#This Row],[Arr` Fee]]&")(3% cash) No facility cap ", " "))))))) -> SOVEREIGN Standard DRAWDOWN C_3.74% £10k+ 0 (600 cont to fees, Arr Fee 895) Facility cap 1.5x initial | H49: =SUM(Products[[#This Row],[Base rate]:[x0]]) -> 0.0374 | I49: =IF(AND(ISBLANK(initialAdvance),Products[[#This Row],[Pack]]="Fees Package"),20000, IF(AND(ISBLANK(initialAdvance),Products[[#This Row],[Pack]]="Elite"),725001, IF(AND(ISBLANK(initialAdvance),Products[[#This Row],[Pack]]="Standard"),10000,IF(AND(initialAdvance<725001,Products[[#This Row],[Pack]]="Elite"),725001,initialAdvance)))) -> 10000 | J49: =IF(AND(Products[[#This Row],[LTV Band]]="A",Products[[#This Row],[Single / Joint]]="Single"), SUMIF(LTVs!$A$3:$A$38,Menu!$I$9,LTVs!$C$3:$C$38), IF(AND(Products[[#This Row],[LTV Band]]="A",Products[[#This Row],[Single / Joint]]="Joint"), SUMIF(LTVs!$A$3:$A$38,Menu!$I$9,LTVs!$D$3:$D$38), IF(AND(Products[[#This Row],[LTV Band]]="B",Products[[#This Row],[Single / Joint]]="Single"), SUMIF(LTVs!$A$3:$A$38,Menu!$I$9,LTVs!$E$3:$E$38), IF(AND(Products[[#This Row],[LTV Band]]="B",Products[[#This Row],[Single / Joint]]="Joint"), SUMIF(LTVs!$A$3:$A$38,Menu!$I$9,LTVs!$F$3:$F$38), IF(AND(Products[[#This Row],[LTV Band]]="C",Products[[#This Row],[Single / Joint]]="Single"), SUMIF(LTVs!$A$3:$A$38,Menu!$I$9,LTVs!$G$3:$G$38), IF(AND(Products[[#This Row],[LTV Band]]="C",Products[[#This Row],[Single / Joint]]="Joint"), SUMIF(LTVs!$A$3:$A$38,Menu!$I$9,LTVs!$H$3:$H$38), IF(AND(Products[[#This Row],[LTV Band]]="D",Products[[#This Row],[Single / Joint]]="Single"), SUMIF(LTVs!$A$3:$A$38,Menu!$I$9,LTVs!$I$3:$I$38), IF(AND(Products[[#This Row],[LTV Band]]="D",Products[[#This Row],[Single / Joint]]="Joint"), SUMIF(LTVs!$A$3:$A$38,Menu!$I$9,LTVs!$J$3:$J$38), IF(AND(Products[[#This Row],[LTV Band]]="E",Products[[#This Row],[Single / Joint]]="Single"), SUMIF(LTVs!$A$3:$A$38,Menu!$I$9,LTVs!$K$3:$K$38), IF(AND(Products[[#This Row],[LTV Band]]="E",Products[[#This Row],[Single / Joint]]="Joint"), SUMIF(LTVs!$A$3:$A$38,Menu!$I$9,LTVs!$L$3:$L$38), IF(AND(Products[[#This Row],[LTV Band]]="F",Products[[#This Row],[Single / Joint]]="Single"), SUMIF(LTVs!$A$3:$A$38,Menu!$I$9,LTVs!$M$3:$M$38), IF(AND(Products[[#This Row],[LTV Band]]="F",Products[[#This Row],[Single / Joint]]="Joint"), SUMIF(LTVs!$A$3:$A$38,Menu!$I$9,LTVs!$N$3:$N$38), " ")))))))))))) ->  | K49: =IF(AND(propertyValue*Products[[#This Row],[LTV ]]>725000,Products[[#This Row],[Pack]]<>"Elite"),725000,propertyValue*Products[[#This Row],[LTV ]]) ->  | L49: =IF(Products[[#This Row],[DD Cap]]="LS"," ",IF(reqrdDDamt<2000,"N/A",IF(reqrdDDamt<=Products[[#This Row],[Drawdown cap]],reqrdDDamt,"N/A"))) -> N/A | M49: =IF(Products[[#This Row],[DD Cap]]="LS"," ",IF(IF(Products[[#This Row],[DD Cap]]>=1,initialAdvance*Products[[#This Row],[DD Cap]],Products[[#This Row],[Max loan]]-initialAdvance)<Products[[#This Row],[Max loan]]-initialAdvance,IF(Products[[#This Row],[DD Cap]]>0,initialAdvance*Products[[#This Row],[DD Cap]],Products[[#This Row],[Max loan]]-initialAdvance),Products[[#This Row],[Max loan]]-initialAdvance)) ->  | N49: =IF(Products[[#This Row],[Pack]]="FP",895,895) -> 895 | O49: =IF(Products[[#This Row],[Pack]]="Fees Package",300,0) -> 0 | P49: 600 | Q49: =App_type -> 0 | R49: =IF(AND(ISBLANK(initialAdvance),Products[[#This Row],[Pack]]="Fees Package"),Products[[#This Row],[Max loan]]*3%, IF(AND(ISBLANK(initialAdvance),Products[[#This Row],[Pack]]="Fees Package"),Products[[#This Row],[Max loan]]*3%, IF(AND(initialAdvance>0,Products[[#This Row],[Pack]]="Fees Package"),initialAdvance*3%, IF(AND(initialAdvance>0,Products[[#This Row],[Pack]]="Fees Package"),initialAdvance*3%,0)))) -> 0 | S49: =IF(OR(ISBLANK(App_type),$I$9=0)," ", IF(ISBLANK(initialAdvance),Products[[#This Row],[Max loan]]+Products[[#This Row],[Cont to Adv. Fees]]+Products[[#This Row],[Cont to Sols Fees]]+Products[[#This Row],[Cashback]], initialAdvance+Products[[#This Row],[Cont to Adv. Fees]]+Products[[#This Row],[Cont to Sols Fees]]+Products[[#This Row],[Cashback]])) ->  | T49: =IF(AND(ISBLANK(initialAdvance),Products[[#This Row],[Pack]]="Fees Package",Products[[#This Row],[Max loan]]>=20000),1, IF(AND(ISBLANK(initialAdvance),Products[[#This Row],[Pack]]="Elite",Products[[#This Row],[Max loan]]>725000),1, IF(AND(ISBLANK(initialAdvance),Products[[#This Row],[Pack]]="Standard",Products[[#This Row],[Max loan]]>=10000),1, IF(AND(initialAdvance>0,Products[[#This Row],[Pack]]="Fees Package",initialAdvance>=20000,Products[[#This Row],[Max loan]]>=initialAdvance),1, IF(AND(initialAdvance>0,Products[[#This Row],[Pack]]="Elite",initialAdvance>725000,Products[[#This Row],[Max loan]]>=initialAdvance),1, IF(AND(initialAdvance>0,Products[[#This Row],[Pack]]="Standard",initialAdvance>=10000,Products[[#This Row],[Max loan]]>=initialAdvance),1,0)))))) ->  | U49: =IF(Products[[#This Row],[Cashback]]>0,1,0) -> 0 | V49: =INDEX(Rates!$B$2:$B$7,MATCH(Products[[#This Row],[LTV Band]],Rates!$A$2:$A$7,0)) -> 0.0359 | W49: =IF(Products[[#This Row],[Pack]]="Elite",IFERROR(INDEX(Rates!$C$2:$C$7,MATCH(Products[[#This Row],[LTV Band]],Rates!$A$2:$A$7,0)),0),0) -> 0 | X49: =IFERROR(INDEX(Rates!$D$2:$D$7,MATCH(Products[[#This Row],[Pack]],Rates!$D$1,0)),) -> 0 | Y49: =IFERROR(INDEX(Rates!$E$2:$E$7,MATCH(Products[[#This Row],[Pack]],Rates!$E$1,0)),) -> 0 | Z49: =IFERROR(INDEX(Rates!$F$2:$F$7,MATCH(Products[[#This Row],[DD Cap]],Rates!$F$1,0)),0) -> 0 | AA49: =IFERROR(INDEX(Rates!$G$2:$G$7,MATCH(Products[[#This Row],[DD Cap]],Rates!$G$1,0)),0) -> 0.0015 | AB49: =IFERROR(INDEX(Rates!$H$2:$H$7,MATCH(Products[[#This Row],[DD Cap]],Rates!$H$1,0)),0) -> 0
A50: C | B50: Standard | C50: 0 | D50: =IF(Products[[#This Row],[DD Cap]]="LS", IF(Products[[#This Row],[Pack]]="Standard","SOVEREIGN "&Products[[#This Row],[Pack]]&" Lump Sum "&Products[[#This Row],[LTV Band]]&"_"&Products[[#This Row],[Rate]]*100&"% £10k+ "&LOWER(Products[[#This Row],[Single / Joint]])& " ("&SUM(Products[[#This Row],[Cont to Adv. Fees]:[Cont to Sols Fees]])&" cont to fees, "&"Arr Fee "&Products[[#This Row],[Arr` Fee]]&")", IF(Products[[#This Row],[Pack]]="Elite","SOVEREIGN "&Products[[#This Row],[Pack]]&" Lump Sum "&Products[[#This Row],[LTV Band]]&"_"&Products[[#This Row],[Rate]]*100&"% £10k+ "&LOWER(Products[[#This Row],[Single / Joint]])& " ("&SUM(Products[[#This Row],[Cont to Adv. Fees]:[Cont to Sols Fees]])&" cont to fees, "&"Arr Fee "&Products[[#This Row],[Arr` Fee]]&")", IF(Products[[#This Row],[Pack]]="Fees Package","SOVEREIGN "&Products[[#This Row],[Pack]]&" Lump Sum "&Products[[#This Row],[LTV Band]]&"_"&Products[[#This Row],[Rate]]*100&"% £10k+ "&LOWER(Products[[#This Row],[Single / Joint]])& " ("&SUM(Products[[#This Row],[Cont to Adv. Fees]:[Cont to Sols Fees]])&" cont to fees, "&"Arr Fee "&Products[[#This Row],[Arr` Fee]]&")(3% cash)"," "))), IF(AND(Products[[#This Row],[Pack]]="Standard",Products[[#This Row],[DD Cap]]<>0),"SOVEREIGN "&Products[[#This Row],[Pack]]&" DRAWDOWN "&Products[[#This Row],[LTV Band]]&"_"&Products[[#This Row],[Rate]]*100&"% £10k+ "&LOWER(Products[[#This Row],[Single / Joint]])& " ("&SUM(Products[[#This Row],[Cont to Adv. Fees]:[Cont to Sols Fees]])&" cont to fees, Arr Fee "&Products[[#This Row],[Arr` Fee]]&") Facility cap "&Products[[#This Row],[DD Cap]]&"x initial", IF(AND(Products[[#This Row],[Pack]]="Standard",Products[[#This Row],[DD Cap]]=0),"SOVEREIGN "&Products[[#This Row],[Pack]]&" DRAWDOWN "&Products[[#This Row],[LTV Band]]&"_"&Products[[#This Row],[Rate]]*100&"% £10k+ "&LOWER(Products[[#This Row],[Single / Joint]])& " ("&SUM(Products[[#This Row],[Cont to Adv. Fees]:[Cont to Sols Fees]])&" cont to fees, Arr Fee "&Products[[#This Row],[Arr` Fee]]&") No facility cap ", IF(AND(Products[[#This Row],[Pack]]="Elite",Products[[#This Row],[DD Cap]]<>0),"SOVEREIGN "&Products[[#This Row],[Pack]]&" DRAWDOWN "&Products[[#This Row],[LTV Band]]&"_"&Products[[#This Row],[Rate]]*100&"% £10k+ "&LOWER(Products[[#This Row],[Single / Joint]])& " ("&SUM(Products[[#This Row],[Cont to Adv. Fees]:[Cont to Sols Fees]])&" cont to fees, Arr Fee "&Products[[#This Row],[Arr` Fee]]&") Facility cap "&Products[[#This Row],[DD Cap]]&"x initial", IF(AND(Products[[#This Row],[Pack]]="Elite",Products[[#This Row],[DD Cap]]=0),"SOVEREIGN "&Products[[#This Row],[Pack]]&" DRAWDOWN "&Products[[#This Row],[LTV Band]]&"_"&Products[[#This Row],[Rate]]*100&"% £10k+ "&LOWER(Products[[#This Row],[Single / Joint]])& " ("&SUM(Products[[#This Row],[Cont to Adv. Fees]:[Cont to Sols Fees]])&" cont to fees, Arr Fee "&Products[[#This Row],[Arr` Fee]]&") No facility cap ", IF(AND(Products[[#This Row],[Pack]]="Fees Package",Products[[#This Row],[DD Cap]]<>0),"SOVEREIGN "&Products[[#This Row],[Pack]]&" DRAWDOWN "&Products[[#This Row],[LTV Band]]&"_"&Products[[#This Row],[Rate]]*100&"% £10k+ "&LOWER(Products[[#This Row],[Single / Joint]])& " ("&SUM(Products[[#This Row],[Cont to Adv. Fees]:[Cont to Sols Fees]])&" cont to fees, Arr Fee "&Products[[#This Row],[Arr` Fee]]&")(3% cash) Facility cap "&Products[[#This Row],[DD Cap]]&"x initial", IF(AND(Products[[#This Row],[Pack]]="Fees Package",Products[[#This Row],[DD Cap]]=0),"SOVEREIGN "&Products[[#This Row],[Pack]]&" DRAWDOWN "&Products[[#This Row],[LTV Band]]&"_"&Products[[#This Row],[Rate]]*100&"% £10k+ "&LOWER(Products[[#This Row],[Single / Joint]])& " ("&SUM(Products[[#This Row],[Cont to Adv. Fees]:[Cont to Sols Fees]])&" cont to fees, Arr Fee "&Products[[#This Row],[Arr` Fee]]&")(3% cash) No facility cap ", " "))))))) -> SOVEREIGN Standard DRAWDOWN C_3.79% £10k+ 0 (600 cont to fees, Arr Fee 895) No facility cap | H50: =SUM(Products[[#This Row],[Base rate]:[x0]]) -> 0.0379 | I50: =IF(AND(ISBLANK(initialAdvance),Products[[#This Row],[Pack]]="Fees Package"),20000, IF(AND(ISBLANK(initialAdvance),Products[[#This Row],[Pack]]="Elite"),725001, IF(AND(ISBLANK(initialAdvance),Products[[#This Row],[Pack]]="Standard"),10000,IF(AND(initialAdvance<725001,Products[[#This Row],[Pack]]="Elite"),725001,initialAdvance)))) -> 10000 | J50: =IF(AND(Products[[#This Row],[LTV Band]]="A",Products[[#This Row],[Single / Joint]]="Single"), SUMIF(LTVs!$A$3:$A$38,Menu!$I$9,LTVs!$C$3:$C$38), IF(AND(Products[[#This Row],[LTV Band]]="A",Products[[#This Row],[Single / Joint]]="Joint"), SUMIF(LTVs!$A$3:$A$38,Menu!$I$9,LTVs!$D$3:$D$38), IF(AND(Products[[#This Row],[LTV Band]]="B",Products[[#This Row],[Single / Joint]]="Single"), SUMIF(LTVs!$A$3:$A$38,Menu!$I$9,LTVs!$E$3:$E$38), IF(AND(Products[[#This Row],[LTV Band]]="B",Products[[#This Row],[Single / Joint]]="Joint"), SUMIF(LTVs!$A$3:$A$38,Menu!$I$9,LTVs!$F$3:$F$38), IF(AND(Products[[#This Row],[LTV Band]]="C",Products[[#This Row],[Single / Joint]]="Single"), SUMIF(LTVs!$A$3:$A$38,Menu!$I$9,LTVs!$G$3:$G$38), IF(AND(Products[[#This Row],[LTV Band]]="C",Products[[#This Row],[Single / Joint]]="Joint"), SUMIF(LTVs!$A$3:$A$38,Menu!$I$9,LTVs!$H$3:$H$38), IF(AND(Products[[#This Row],[LTV Band]]="D",Products[[#This Row],[Single / Joint]]="Single"), SUMIF(LTVs!$A$3:$A$38,Menu!$I$9,LTVs!$I$3:$I$38), IF(AND(Products[[#This Row],[LTV Band]]="D",Products[[#This Row],[Single / Joint]]="Joint"), SUMIF(LTVs!$A$3:$A$38,Menu!$I$9,LTVs!$J$3:$J$38), IF(AND(Products[[#This Row],[LTV Band]]="E",Products[[#This Row],[Single / Joint]]="Single"), SUMIF(LTVs!$A$3:$A$38,Menu!$I$9,LTVs!$K$3:$K$38), IF(AND(Products[[#This Row],[LTV Band]]="E",Products[[#This Row],[Single / Joint]]="Joint"), SUMIF(LTVs!$A$3:$A$38,Menu!$I$9,LTVs!$L$3:$L$38), IF(AND(Products[[#This Row],[LTV Band]]="F",Products[[#This Row],[Single / Joint]]="Single"), SUMIF(LTVs!$A$3:$A$38,Menu!$I$9,LTVs!$M$3:$M$38), IF(AND(Products[[#This Row],[LTV Band]]="F",Products[[#This Row],[Single / Joint]]="Joint"), SUMIF(LTVs!$A$3:$A$38,Menu!$I$9,LTVs!$N$3:$N$38), " ")))))))))))) ->  | K50: =IF(AND(propertyValue*Products[[#This Row],[LTV ]]>725000,Products[[#This Row],[Pack]]<>"Elite"),725000,propertyValue*Products[[#This Row],[LTV ]]) ->  | L50: =IF(Products[[#This Row],[DD Cap]]="LS"," ",IF(reqrdDDamt<2000,"N/A",IF(reqrdDDamt<=Products[[#This Row],[Drawdown cap]],reqrdDDamt,"N/A"))) -> N/A | M50: =IF(Products[[#This Row],[DD Cap]]="LS"," ",IF(IF(Products[[#This Row],[DD Cap]]>=1,initialAdvance*Products[[#This Row],[DD Cap]],Products[[#This Row],[Max loan]]-initialAdvance)<Products[[#This Row],[Max loan]]-initialAdvance,IF(Products[[#This Row],[DD Cap]]>0,initialAdvance*Products[[#This Row],[DD Cap]],Products[[#This Row],[Max loan]]-initialAdvance),Products[[#This Row],[Max loan]]-initialAdvance)) ->  | N50: =IF(Products[[#This Row],[Pack]]="FP",895,895) -> 895 | O50: =IF(Products[[#This Row],[Pack]]="Fees Package",300,0) -> 0 | P50: 600 | Q50: =App_type -> 0 | R50: =IF(AND(ISBLANK(initialAdvance),Products[[#This Row],[Pack]]="Fees Package"),Products[[#This Row],[Max loan]]*3%, IF(AND(ISBLANK(initialAdvance),Products[[#This Row],[Pack]]="Fees Package"),Products[[#This Row],[Max loan]]*3%, IF(AND(initialAdvance>0,Products[[#This Row],[Pack]]="Fees Package"),initialAdvance*3%, IF(AND(initialAdvance>0,Products[[#This Row],[Pack]]="Fees Package"),initialAdvance*3%,0)))) -> 0 | S50: =IF(OR(ISBLANK(App_type),$I$9=0)," ", IF(ISBLANK(initialAdvance),Products[[#This Row],[Max loan]]+Products[[#This Row],[Cont to Adv. Fees]]+Products[[#This Row],[Cont to Sols Fees]]+Products[[#This Row],[Cashback]], initialAdvance+Products[[#This Row],[Cont to Adv. Fees]]+Products[[#This Row],[Cont to Sols Fees]]+Products[[#This Row],[Cashback]])) ->  | T50: =IF(AND(ISBLANK(initialAdvance),Products[[#This Row],[Pack]]="Fees Package",Products[[#This Row],[Max loan]]>=20000),1, IF(AND(ISBLANK(initialAdvance),Products[[#This Row],[Pack]]="Elite",Products[[#This Row],[Max loan]]>725000),1, IF(AND(ISBLANK(initialAdvance),Products[[#This Row],[Pack]]="Standard",Products[[#This Row],[Max loan]]>=10000),1, IF(AND(initialAdvance>0,Products[[#This Row],[Pack]]="Fees Package",initialAdvance>=20000,Products[[#This Row],[Max loan]]>=initialAdvance),1, IF(AND(initialAdvance>0,Products[[#This Row],[Pack]]="Elite",initialAdvance>725000,Products[[#This Row],[Max loan]]>=initialAdvance),1, IF(AND(initialAdvance>0,Products[[#This Row],[Pack]]="Standard",initialAdvance>=10000,Products[[#This Row],[Max loan]]>=initialAdvance),1,0)))))) ->  | U50: =IF(Products[[#This Row],[Cashback]]>0,1,0) -> 0 | V50: =INDEX(Rates!$B$2:$B$7,MATCH(Products[[#This Row],[LTV Band]],Rates!$A$2:$A$7,0)) -> 0.0359 | W50: =IF(Products[[#This Row],[Pack]]="Elite",IFERROR(INDEX(Rates!$C$2:$C$7,MATCH(Products[[#This Row],[LTV Band]],Rates!$A$2:$A$7,0)),0),0) -> 0 | X50: =IFERROR(INDEX(Rates!$D$2:$D$7,MATCH(Products[[#This Row],[Pack]],Rates!$D$1,0)),) -> 0 | Y50: =IFERROR(INDEX(Rates!$E$2:$E$7,MATCH(Products[[#This Row],[Pack]],Rates!$E$1,0)),) -> 0 | Z50: =IFERROR(INDEX(Rates!$F$2:$F$7,MATCH(Products[[#This Row],[DD Cap]],Rates!$F$1,0)),0) -> 0 | AA50: =IFERROR(INDEX(Rates!$G$2:$G$7,MATCH(Products[[#This Row],[DD Cap]],Rates!$G$1,0)),0) -> 0 | AB50: =IFERROR(INDEX(Rates!$H$2:$H$7,MATCH(Products[[#This Row],[DD Cap]],Rates!$H$1,0)),0) -> 0.002
A51: C | B51: Fees Package | C51: LS | D51: =IF(Products[[#This Row],[DD Cap]]="LS", IF(Products[[#This Row],[Pack]]="Standard","SOVEREIGN "&Products[[#This Row],[Pack]]&" Lump Sum "&Products[[#This Row],[LTV Band]]&"_"&Products[[#This Row],[Rate]]*100&"% £10k+ "&LOWER(Products[[#This Row],[Single / Joint]])& " ("&SUM(Products[[#This Row],[Cont to Adv. Fees]:[Cont to Sols Fees]])&" cont to fees, "&"Arr Fee "&Products[[#This Row],[Arr` Fee]]&")", IF(Products[[#This Row],[Pack]]="Elite","SOVEREIGN "&Products[[#This Row],[Pack]]&" Lump Sum "&Products[[#This Row],[LTV Band]]&"_"&Products[[#This Row],[Rate]]*100&"% £10k+ "&LOWER(Products[[#This Row],[Single / Joint]])& " ("&SUM(Products[[#This Row],[Cont to Adv. Fees]:[Cont to Sols Fees]])&" cont to fees, "&"Arr Fee "&Products[[#This Row],[Arr` Fee]]&")", IF(Products[[#This Row],[Pack]]="Fees Package","SOVEREIGN "&Products[[#This Row],[Pack]]&" Lump Sum "&Products[[#This Row],[LTV Band]]&"_"&Products[[#This Row],[Rate]]*100&"% £10k+ "&LOWER(Products[[#This Row],[Single / Joint]])& " ("&SUM(Products[[#This Row],[Cont to Adv. Fees]:[Cont to Sols Fees]])&" cont to fees, "&"Arr Fee "&Products[[#This Row],[Arr` Fee]]&")(3% cash)"," "))), IF(AND(Products[[#This Row],[Pack]]="Standard",Products[[#This Row],[DD Cap]]<>0),"SOVEREIGN "&Products[[#This Row],[Pack]]&" DRAWDOWN "&Products[[#This Row],[LTV Band]]&"_"&Products[[#This Row],[Rate]]*100&"% £10k+ "&LOWER(Products[[#This Row],[Single / Joint]])& " ("&SUM(Products[[#This Row],[Cont to Adv. Fees]:[Cont to Sols Fees]])&" cont to fees, Arr Fee "&Products[[#This Row],[Arr` Fee]]&") Facility cap "&Products[[#This Row],[DD Cap]]&"x initial", IF(AND(Products[[#This Row],[Pack]]="Standard",Products[[#This Row],[DD Cap]]=0),"SOVEREIGN "&Products[[#This Row],[Pack]]&" DRAWDOWN "&Products[[#This Row],[LTV Band]]&"_"&Products[[#This Row],[Rate]]*100&"% £10k+ "&LOWER(Products[[#This Row],[Single / Joint]])& " ("&SUM(Products[[#This Row],[Cont to Adv. Fees]:[Cont to Sols Fees]])&" cont to fees, Arr Fee "&Products[[#This Row],[Arr` Fee]]&") No facility cap ", IF(AND(Products[[#This Row],[Pack]]="Elite",Products[[#This Row],[DD Cap]]<>0),"SOVEREIGN "&Products[[#This Row],[Pack]]&" DRAWDOWN "&Products[[#This Row],[LTV Band]]&"_"&Products[[#This Row],[Rate]]*100&"% £10k+ "&LOWER(Products[[#This Row],[Single / Joint]])& " ("&SUM(Products[[#This Row],[Cont to Adv. Fees]:[Cont to Sols Fees]])&" cont to fees, Arr Fee "&Products[[#This Row],[Arr` Fee]]&") Facility cap "&Products[[#This Row],[DD Cap]]&"x initial", IF(AND(Products[[#This Row],[Pack]]="Elite",Products[[#This Row],[DD Cap]]=0),"SOVEREIGN "&Products[[#This Row],[Pack]]&" DRAWDOWN "&Products[[#This Row],[LTV Band]]&"_"&Products[[#This Row],[Rate]]*100&"% £10k+ "&LOWER(Products[[#This Row],[Single / Joint]])& " ("&SUM(Products[[#This Row],[Cont to Adv. Fees]:[Cont to Sols Fees]])&" cont to fees, Arr Fee "&Products[[#This Row],[Arr` Fee]]&") No facility cap ", IF(AND(Products[[#This Row],[Pack]]="Fees Package",Products[[#This Row],[DD Cap]]<>0),"SOVEREIGN "&Products[[#This Row],[Pack]]&" DRAWDOWN "&Products[[#This Row],[LTV Band]]&"_"&Products[[#This Row],[Rate]]*100&"% £10k+ "&LOWER(Products[[#This Row],[Single / Joint]])& " ("&SUM(Products[[#This Row],[Cont to Adv. Fees]:[Cont to Sols Fees]])&" cont to fees, Arr Fee "&Products[[#This Row],[Arr` Fee]]&")(3% cash) Facility cap "&Products[[#This Row],[DD Cap]]&"x initial", IF(AND(Products[[#This Row],[Pack]]="Fees Package",Products[[#This Row],[DD Cap]]=0),"SOVEREIGN "&Products[[#This Row],[Pack]]&" DRAWDOWN "&Products[[#This Row],[LTV Band]]&"_"&Products[[#This Row],[Rate]]*100&"% £10k+ "&LOWER(Products[[#This Row],[Single / Joint]])& " ("&SUM(Products[[#This Row],[Cont to Adv. Fees]:[Cont to Sols Fees]])&" cont to fees, Arr Fee "&Products[[#This Row],[Arr` Fee]]&")(3% cash) No facility cap ", " "))))))) -> SOVEREIGN Fees Package Lump Sum C_3.89% £10k+ 0 (900 cont to fees, Arr Fee 895)(3% cash) | H51: =SUM(Products[[#This Row],[Base rate]:[x0]]) -> 0.0389 | I51: =IF(AND(ISBLANK(initialAdvance),Products[[#This Row],[Pack]]="Fees Package"),20000, IF(AND(ISBLANK(initialAdvance),Products[[#This Row],[Pack]]="Elite"),725001, IF(AND(ISBLANK(initialAdvance),Products[[#This Row],[Pack]]="Standard"),10000,IF(AND(initialAdvance<725001,Products[[#This Row],[Pack]]="Elite"),725001,initialAdvance)))) -> 20000 | J51: =IF(AND(Products[[#This Row],[LTV Band]]="A",Products[[#This Row],[Single / Joint]]="Single"), SUMIF(LTVs!$A$3:$A$38,Menu!$I$9,LTVs!$C$3:$C$38), IF(AND(Products[[#This Row],[LTV Band]]="A",Products[[#This Row],[Single / Joint]]="Joint"), SUMIF(LTVs!$A$3:$A$38,Menu!$I$9,LTVs!$D$3:$D$38), IF(AND(Products[[#This Row],[LTV Band]]="B",Products[[#This Row],[Single / Joint]]="Single"), SUMIF(LTVs!$A$3:$A$38,Menu!$I$9,LTVs!$E$3:$E$38), IF(AND(Products[[#This Row],[LTV Band]]="B",Products[[#This Row],[Single / Joint]]="Joint"), SUMIF(LTVs!$A$3:$A$38,Menu!$I$9,LTVs!$F$3:$F$38), IF(AND(Products[[#This Row],[LTV Band]]="C",Products[[#This Row],[Single / Joint]]="Single"), SUMIF(LTVs!$A$3:$A$38,Menu!$I$9,LTVs!$G$3:$G$38), IF(AND(Products[[#This Row],[LTV Band]]="C",Products[[#This Row],[Single / Joint]]="Joint"), SUMIF(LTVs!$A$3:$A$38,Menu!$I$9,LTVs!$H$3:$H$38), IF(AND(Products[[#This Row],[LTV Band]]="D",Products[[#This Row],[Single / Joint]]="Single"), SUMIF(LTVs!$A$3:$A$38,Menu!$I$9,LTVs!$I$3:$I$38), IF(AND(Products[[#This Row],[LTV Band]]="D",Products[[#This Row],[Single / Joint]]="Joint"), SUMIF(LTVs!$A$3:$A$38,Menu!$I$9,LTVs!$J$3:$J$38), IF(AND(Products[[#This Row],[LTV Band]]="E",Products[[#This Row],[Single / Joint]]="Single"), SUMIF(LTVs!$A$3:$A$38,Menu!$I$9,LTVs!$K$3:$K$38), IF(AND(Products[[#This Row],[LTV Band]]="E",Products[[#This Row],[Single / Joint]]="Joint"), SUMIF(LTVs!$A$3:$A$38,Menu!$I$9,LTVs!$L$3:$L$38), IF(AND(Products[[#This Row],[LTV Band]]="F",Products[[#This Row],[Single / Joint]]="Single"), SUMIF(LTVs!$A$3:$A$38,Menu!$I$9,LTVs!$M$3:$M$38), IF(AND(Products[[#This Row],[LTV Band]]="F",Products[[#This Row],[Single / Joint]]="Joint"), SUMIF(LTVs!$A$3:$A$38,Menu!$I$9,LTVs!$N$3:$N$38), " ")))))))))))) ->  | K51: =IF(AND(propertyValue*Products[[#This Row],[LTV ]]>725000,Products[[#This Row],[Pack]]<>"Elite"),725000,propertyValue*Products[[#This Row],[LTV ]]) ->  | L51: =IF(Products[[#This Row],[DD Cap]]="LS"," ",IF(reqrdDDamt<2000,"N/A",IF(reqrdDDamt<=Products[[#This Row],[Drawdown cap]],reqrdDDamt,"N/A"))) ->  | M51: =IF(Products[[#This Row],[DD Cap]]="LS"," ",IF(IF(Products[[#This Row],[DD Cap]]>=1,initialAdvance*Products[[#This Row],[DD Cap]],Products[[#This Row],[Max loan]]-initialAdvance)<Products[[#This Row],[Max loan]]-initialAdvance,IF(Products[[#This Row],[DD Cap]]>0,initialAdvance*Products[[#This Row],[DD Cap]],Products[[#This Row],[Max loan]]-initialAdvance),Products[[#This Row],[Max loan]]-initialAdvance)) ->  | N51: =IF(Products[[#This Row],[Pack]]="FP",895,895) -> 895 | O51: =IF(Products[[#This Row],[Pack]]="Fees Package",300,0) -> 300 | P51: 600 | Q51: =App_type -> 0 | R51: =IF(AND(ISBLANK(initialAdvance),Products[[#This Row],[Pack]]="Fees Package"),Products[[#This Row],[Max loan]]*3%, IF(AND(ISBLANK(initialAdvance),Products[[#This Row],[Pack]]="Fees Package"),Products[[#This Row],[Max loan]]*3%, IF(AND(initialAdvance>0,Products[[#This Row],[Pack]]="Fees Package"),initialAdvance*3%, IF(AND(initialAdvance>0,Products[[#This Row],[Pack]]="Fees Package"),initialAdvance*3%,0)))) ->  | S51: =IF(OR(ISBLANK(App_type),$I$9=0)," ", IF(ISBLANK(initialAdvance),Products[[#This Row],[Max loan]]+Products[[#This Row],[Cont to Adv. Fees]]+Products[[#This Row],[Cont to Sols Fees]]+Products[[#This Row],[Cashback]], initialAdvance+Products[[#This Row],[Cont to Adv. Fees]]+Products[[#This Row],[Cont to Sols Fees]]+Products[[#This Row],[Cashback]])) ->  | T51: =IF(AND(ISBLANK(initialAdvance),Products[[#This Row],[Pack]]="Fees Package",Products[[#This Row],[Max loan]]>=20000),1, IF(AND(ISBLANK(initialAdvance),Products[[#This Row],[Pack]]="Elite",Products[[#This Row],[Max loan]]>725000),1, IF(AND(ISBLANK(initialAdvance),Products[[#This Row],[Pack]]="Standard",Products[[#This Row],[Max loan]]>=10000),1, IF(AND(initialAdvance>0,Products[[#This Row],[Pack]]="Fees Package",initialAdvance>=20000,Products[[#This Row],[Max loan]]>=initialAdvance),1, IF(AND(initialAdvance>0,Products[[#This Row],[Pack]]="Elite",initialAdvance>725000,Products[[#This Row],[Max loan]]>=initialAdvance),1, IF(AND(initialAdvance>0,Products[[#This Row],[Pack]]="Standard",initialAdvance>=10000,Products[[#This Row],[Max loan]]>=initialAdvance),1,0)))))) ->  | U51: =IF(Products[[#This Row],[Cashback]]>0,1,0) ->  | V51: =INDEX(Rates!$B$2:$B$7,MATCH(Products[[#This Row],[LTV Band]],Rates!$A$2:$A$7,0)) -> 0.0359 | W51: =IF(Products[[#This Row],[Pack]]="Elite",IFERROR(INDEX(Rates!$C$2:$C$7,MATCH(Products[[#This Row],[LTV Band]],Rates!$A$2:$A$7,0)),0),0) -> 0 | X51: =IFERROR(INDEX(Rates!$D$2:$D$7,MATCH(Products[[#This Row],[Pack]],Rates!$D$1,0)),) -> 0 | Y51: =IFERROR(INDEX(Rates!$E$2:$E$7,MATCH(Products[[#This Row],[Pack]],Rates!$E$1,0)),) -> 0.003 | Z51: =IFERROR(INDEX(Rates!$F$2:$F$7,MATCH(Products[[#This Row],[DD Cap]],Rates!$F$1,0)),0) -> 0 | AA51: =IFERROR(INDEX(Rates!$G$2:$G$7,MATCH(Products[[#This Row],[DD Cap]],Rates!$G$1,0)),0) -> 0 | AB51: =IFERROR(INDEX(Rates!$H$2:$H$7,MATCH(Products[[#This Row],[DD Cap]],Rates!$H$1,0)),0) -> 0
A52: C | B52: Fees Package | C52: 1 | D52: =IF(Products[[#This Row],[DD Cap]]="LS", IF(Products[[#This Row],[Pack]]="Standard","SOVEREIGN "&Products[[#This Row],[Pack]]&" Lump Sum "&Products[[#This Row],[LTV Band]]&"_"&Products[[#This Row],[Rate]]*100&"% £10k+ "&LOWER(Products[[#This Row],[Single / Joint]])& " ("&SUM(Products[[#This Row],[Cont to Adv. Fees]:[Cont to Sols Fees]])&" cont to fees, "&"Arr Fee "&Products[[#This Row],[Arr` Fee]]&")", IF(Products[[#This Row],[Pack]]="Elite","SOVEREIGN "&Products[[#This Row],[Pack]]&" Lump Sum "&Products[[#This Row],[LTV Band]]&"_"&Products[[#This Row],[Rate]]*100&"% £10k+ "&LOWER(Products[[#This Row],[Single / Joint]])& " ("&SUM(Products[[#This Row],[Cont to Adv. Fees]:[Cont to Sols Fees]])&" cont to fees, "&"Arr Fee "&Products[[#This Row],[Arr` Fee]]&")", IF(Products[[#This Row],[Pack]]="Fees Package","SOVEREIGN "&Products[[#This Row],[Pack]]&" Lump Sum "&Products[[#This Row],[LTV Band]]&"_"&Products[[#This Row],[Rate]]*100&"% £10k+ "&LOWER(Products[[#This Row],[Single / Joint]])& " ("&SUM(Products[[#This Row],[Cont to Adv. Fees]:[Cont to Sols Fees]])&" cont to fees, "&"Arr Fee "&Products[[#This Row],[Arr` Fee]]&")(3% cash)"," "))), IF(AND(Products[[#This Row],[Pack]]="Standard",Products[[#This Row],[DD Cap]]<>0),"SOVEREIGN "&Products[[#This Row],[Pack]]&" DRAWDOWN "&Products[[#This Row],[LTV Band]]&"_"&Products[[#This Row],[Rate]]*100&"% £10k+ "&LOWER(Products[[#This Row],[Single / Joint]])& " ("&SUM(Products[[#This Row],[Cont to Adv. Fees]:[Cont to Sols Fees]])&" cont to fees, Arr Fee "&Products[[#This Row],[Arr` Fee]]&") Facility cap "&Products[[#This Row],[DD Cap]]&"x initial", IF(AND(Products[[#This Row],[Pack]]="Standard",Products[[#This Row],[DD Cap]]=0),"SOVEREIGN "&Products[[#This Row],[Pack]]&" DRAWDOWN "&Products[[#This Row],[LTV Band]]&"_"&Products[[#This Row],[Rate]]*100&"% £10k+ "&LOWER(Products[[#This Row],[Single / Joint]])& " ("&SUM(Products[[#This Row],[Cont to Adv. Fees]:[Cont to Sols Fees]])&" cont to fees, Arr Fee "&Products[[#This Row],[Arr` Fee]]&") No facility cap ", IF(AND(Products[[#This Row],[Pack]]="Elite",Products[[#This Row],[DD Cap]]<>0),"SOVEREIGN "&Products[[#This Row],[Pack]]&" DRAWDOWN "&Products[[#This Row],[LTV Band]]&"_"&Products[[#This Row],[Rate]]*100&"% £10k+ "&LOWER(Products[[#This Row],[Single / Joint]])& " ("&SUM(Products[[#This Row],[Cont to Adv. Fees]:[Cont to Sols Fees]])&" cont to fees, Arr Fee "&Products[[#This Row],[Arr` Fee]]&") Facility cap "&Products[[#This Row],[DD Cap]]&"x initial", IF(AND(Products[[#This Row],[Pack]]="Elite",Products[[#This Row],[DD Cap]]=0),"SOVEREIGN "&Products[[#This Row],[Pack]]&" DRAWDOWN "&Products[[#This Row],[LTV Band]]&"_"&Products[[#This Row],[Rate]]*100&"% £10k+ "&LOWER(Products[[#This Row],[Single / Joint]])& " ("&SUM(Products[[#This Row],[Cont to Adv. Fees]:[Cont to Sols Fees]])&" cont to fees, Arr Fee "&Products[[#This Row],[Arr` Fee]]&") No facility cap ", IF(AND(Products[[#This Row],[Pack]]="Fees Package",Products[[#This Row],[DD Cap]]<>0),"SOVEREIGN "&Products[[#This Row],[Pack]]&" DRAWDOWN "&Products[[#This Row],[LTV Band]]&"_"&Products[[#This Row],[Rate]]*100&"% £10k+ "&LOWER(Products[[#This Row],[Single / Joint]])& " ("&SUM(Products[[#This Row],[Cont to Adv. Fees]:[Cont to Sols Fees]])&" cont to fees, Arr Fee "&Products[[#This Row],[Arr` Fee]]&")(3% cash) Facility cap "&Products[[#This Row],[DD Cap]]&"x initial", IF(AND(Products[[#This Row],[Pack]]="Fees Package",Products[[#This Row],[DD Cap]]=0),"SOVEREIGN "&Products[[#This Row],[Pack]]&" DRAWDOWN "&Products[[#This Row],[LTV Band]]&"_"&Products[[#This Row],[Rate]]*100&"% £10k+ "&LOWER(Products[[#This Row],[Single / Joint]])& " ("&SUM(Products[[#This Row],[Cont to Adv. Fees]:[Cont to Sols Fees]])&" cont to fees, Arr Fee "&Products[[#This Row],[Arr` Fee]]&")(3% cash) No facility cap ", " "))))))) -> SOVEREIGN Fees Package DRAWDOWN C_3.99% £10k+ 0 (900 cont to fees, Arr Fee 895)(3% cash) Facility cap 1x initial | H52: =SUM(Products[[#This Row],[Base rate]:[x0]]) -> 0.0399 | I52: =IF(AND(ISBLANK(initialAdvance),Products[[#This Row],[Pack]]="Fees Package"),20000, IF(AND(ISBLANK(initialAdvance),Products[[#This Row],[Pack]]="Elite"),725001, IF(AND(ISBLANK(initialAdvance),Products[[#This Row],[Pack]]="Standard"),10000,IF(AND(initialAdvance<725001,Products[[#This Row],[Pack]]="Elite"),725001,initialAdvance)))) -> 20000 | J52: =IF(AND(Products[[#This Row],[LTV Band]]="A",Products[[#This Row],[Single / Joint]]="Single"), SUMIF(LTVs!$A$3:$A$38,Menu!$I$9,LTVs!$C$3:$C$38), IF(AND(Products[[#This Row],[LTV Band]]="A",Products[[#This Row],[Single / Joint]]="Joint"), SUMIF(LTVs!$A$3:$A$38,Menu!$I$9,LTVs!$D$3:$D$38), IF(AND(Products[[#This Row],[LTV Band]]="B",Products[[#This Row],[Single / Joint]]="Single"), SUMIF(LTVs!$A$3:$A$38,Menu!$I$9,LTVs!$E$3:$E$38), IF(AND(Products[[#This Row],[LTV Band]]="B",Products[[#This Row],[Single / Joint]]="Joint"), SUMIF(LTVs!$A$3:$A$38,Menu!$I$9,LTVs!$F$3:$F$38), IF(AND(Products[[#This Row],[LTV Band]]="C",Products[[#This Row],[Single / Joint]]="Single"), SUMIF(LTVs!$A$3:$A$38,Menu!$I$9,LTVs!$G$3:$G$38), IF(AND(Products[[#This Row],[LTV Band]]="C",Products[[#This Row],[Single / Joint]]="Joint"), SUMIF(LTVs!$A$3:$A$38,Menu!$I$9,LTVs!$H$3:$H$38), IF(AND(Products[[#This Row],[LTV Band]]="D",Products[[#This Row],[Single / Joint]]="Single"), SUMIF(LTVs!$A$3:$A$38,Menu!$I$9,LTVs!$I$3:$I$38), IF(AND(Products[[#This Row],[LTV Band]]="D",Products[[#This Row],[Single / Joint]]="Joint"), SUMIF(LTVs!$A$3:$A$38,Menu!$I$9,LTVs!$J$3:$J$38), IF(AND(Products[[#This Row],[LTV Band]]="E",Products[[#This Row],[Single / Joint]]="Single"), SUMIF(LTVs!$A$3:$A$38,Menu!$I$9,LTVs!$K$3:$K$38), IF(AND(Products[[#This Row],[LTV Band]]="E",Products[[#This Row],[Single / Joint]]="Joint"), SUMIF(LTVs!$A$3:$A$38,Menu!$I$9,LTVs!$L$3:$L$38), IF(AND(Products[[#This Row],[LTV Band]]="F",Products[[#This Row],[Single / Joint]]="Single"), SUMIF(LTVs!$A$3:$A$38,Menu!$I$9,LTVs!$M$3:$M$38), IF(AND(Products[[#This Row],[LTV Band]]="F",Products[[#This Row],[Single / Joint]]="Joint"), SUMIF(LTVs!$A$3:$A$38,Menu!$I$9,LTVs!$N$3:$N$38), " ")))))))))))) ->  | K52: =IF(AND(propertyValue*Products[[#This Row],[LTV ]]>725000,Products[[#This Row],[Pack]]<>"Elite"),725000,propertyValue*Products[[#This Row],[LTV ]]) ->  | L52: =IF(Products[[#This Row],[DD Cap]]="LS"," ",IF(reqrdDDamt<2000,"N/A",IF(reqrdDDamt<=Products[[#This Row],[Drawdown cap]],reqrdDDamt,"N/A"))) -> N/A | M52: =IF(Products[[#This Row],[DD Cap]]="LS"," ",IF(IF(Products[[#This Row],[DD Cap]]>=1,initialAdvance*Products[[#This Row],[DD Cap]],Products[[#This Row],[Max loan]]-initialAdvance)<Products[[#This Row],[Max loan]]-initialAdvance,IF(Products[[#This Row],[DD Cap]]>0,initialAdvance*Products[[#This Row],[DD Cap]],Products[[#This Row],[Max loan]]-initialAdvance),Products[[#This Row],[Max loan]]-initialAdvance)) ->  | N52: =IF(Products[[#This Row],[Pack]]="FP",895,895) -> 895 | O52: =IF(Products[[#This Row],[Pack]]="Fees Package",300,0) -> 300 | P52: 600 | Q52: =App_type -> 0 | R52: =IF(AND(ISBLANK(initialAdvance),Products[[#This Row],[Pack]]="Fees Package"),Products[[#This Row],[Max loan]]*3%, IF(AND(ISBLANK(initialAdvance),Products[[#This Row],[Pack]]="Fees Package"),Products[[#This Row],[Max loan]]*3%, IF(AND(initialAdvance>0,Products[[#This Row],[Pack]]="Fees Package"),initialAdvance*3%, IF(AND(initialAdvance>0,Products[[#This Row],[Pack]]="Fees Package"),initialAdvance*3%,0)))) ->  | S52: =IF(OR(ISBLANK(App_type),$I$9=0)," ", IF(ISBLANK(initialAdvance),Products[[#This Row],[Max loan]]+Products[[#This Row],[Cont to Adv. Fees]]+Products[[#This Row],[Cont to Sols Fees]]+Products[[#This Row],[Cashback]], initialAdvance+Products[[#This Row],[Cont to Adv. Fees]]+Products[[#This Row],[Cont to Sols Fees]]+Products[[#This Row],[Cashback]])) ->  | T52: =IF(AND(ISBLANK(initialAdvance),Products[[#This Row],[Pack]]="Fees Package",Products[[#This Row],[Max loan]]>=20000),1, IF(AND(ISBLANK(initialAdvance),Products[[#This Row],[Pack]]="Elite",Products[[#This Row],[Max loan]]>725000),1, IF(AND(ISBLANK(initialAdvance),Products[[#This Row],[Pack]]="Standard",Products[[#This Row],[Max loan]]>=10000),1, IF(AND(initialAdvance>0,Products[[#This Row],[Pack]]="Fees Package",initialAdvance>=20000,Products[[#This Row],[Max loan]]>=initialAdvance),1, IF(AND(initialAdvance>0,Products[[#This Row],[Pack]]="Elite",initialAdvance>725000,Products[[#This Row],[Max loan]]>=initialAdvance),1, IF(AND(initialAdvance>0,Products[[#This Row],[Pack]]="Standard",initialAdvance>=10000,Products[[#This Row],[Max loan]]>=initialAdvance),1,0)))))) ->  | U52: =IF(Products[[#This Row],[Cashback]]>0,1,0) ->  | V52: =INDEX(Rates!$B$2:$B$7,MATCH(Products[[#This Row],[LTV Band]],Rates!$A$2:$A$7,0)) -> 0.0359 | W52: =IF(Products[[#This Row],[Pack]]="Elite",IFERROR(INDEX(Rates!$C$2:$C$7,MATCH(Products[[#This Row],[LTV Band]],Rates!$A$2:$A$7,0)),0),0) -> 0 | X52: =IFERROR(INDEX(Rates!$D$2:$D$7,MATCH(Products[[#This Row],[Pack]],Rates!$D$1,0)),) -> 0 | Y52: =IFERROR(INDEX(Rates!$E$2:$E$7,MATCH(Products[[#This Row],[Pack]],Rates!$E$1,0)),) -> 0.003 | Z52: =IFERROR(INDEX(Rates!$F$2:$F$7,MATCH(Products[[#This Row],[DD Cap]],Rates!$F$1,0)),0) -> 0.001 | AA52: =IFERROR(INDEX(Rates!$G$2:$G$7,MATCH(Products[[#This Row],[DD Cap]],Rates!$G$1,0)),0) -> 0 | AB52: =IFERROR(INDEX(Rates!$H$2:$H$7,MATCH(Products[[#This Row],[DD Cap]],Rates!$H$1,0)),0) -> 0
A53: C | B53: Fees Package | C53: 1.5 | D53: =IF(Products[[#This Row],[DD Cap]]="LS", IF(Products[[#This Row],[Pack]]="Standard","SOVEREIGN "&Products[[#This Row],[Pack]]&" Lump Sum "&Products[[#This Row],[LTV Band]]&"_"&Products[[#This Row],[Rate]]*100&"% £10k+ "&LOWER(Products[[#This Row],[Single / Joint]])& " ("&SUM(Products[[#This Row],[Cont to Adv. Fees]:[Cont to Sols Fees]])&" cont to fees, "&"Arr Fee "&Products[[#This Row],[Arr` Fee]]&")", IF(Products[[#This Row],[Pack]]="Elite","SOVEREIGN "&Products[[#This Row],[Pack]]&" Lump Sum "&Products[[#This Row],[LTV Band]]&"_"&Products[[#This Row],[Rate]]*100&"% £10k+ "&LOWER(Products[[#This Row],[Single / Joint]])& " ("&SUM(Products[[#This Row],[Cont to Adv. Fees]:[Cont to Sols Fees]])&" cont to fees, "&"Arr Fee "&Products[[#This Row],[Arr` Fee]]&")", IF(Products[[#This Row],[Pack]]="Fees Package","SOVEREIGN "&Products[[#This Row],[Pack]]&" Lump Sum "&Products[[#This Row],[LTV Band]]&"_"&Products[[#This Row],[Rate]]*100&"% £10k+ "&LOWER(Products[[#This Row],[Single / Joint]])& " ("&SUM(Products[[#This Row],[Cont to Adv. Fees]:[Cont to Sols Fees]])&" cont to fees, "&"Arr Fee "&Products[[#This Row],[Arr` Fee]]&")(3% cash)"," "))), IF(AND(Products[[#This Row],[Pack]]="Standard",Products[[#This Row],[DD Cap]]<>0),"SOVEREIGN "&Products[[#This Row],[Pack]]&" DRAWDOWN "&Products[[#This Row],[LTV Band]]&"_"&Products[[#This Row],[Rate]]*100&"% £10k+ "&LOWER(Products[[#This Row],[Single / Joint]])& " ("&SUM(Products[[#This Row],[Cont to Adv. Fees]:[Cont to Sols Fees]])&" cont to fees, Arr Fee "&Products[[#This Row],[Arr` Fee]]&") Facility cap "&Products[[#This Row],[DD Cap]]&"x initial", IF(AND(Products[[#This Row],[Pack]]="Standard",Products[[#This Row],[DD Cap]]=0),"SOVEREIGN "&Products[[#This Row],[Pack]]&" DRAWDOWN "&Products[[#This Row],[LTV Band]]&"_"&Products[[#This Row],[Rate]]*100&"% £10k+ "&LOWER(Products[[#This Row],[Single / Joint]])& " ("&SUM(Products[[#This Row],[Cont to Adv. Fees]:[Cont to Sols Fees]])&" cont to fees, Arr Fee "&Products[[#This Row],[Arr` Fee]]&") No facility cap ", IF(AND(Products[[#This Row],[Pack]]="Elite",Products[[#This Row],[DD Cap]]<>0),"SOVEREIGN "&Products[[#This Row],[Pack]]&" DRAWDOWN "&Products[[#This Row],[LTV Band]]&"_"&Products[[#This Row],[Rate]]*100&"% £10k+ "&LOWER(Products[[#This Row],[Single / Joint]])& " ("&SUM(Products[[#This Row],[Cont to Adv. Fees]:[Cont to Sols Fees]])&" cont to fees, Arr Fee "&Products[[#This Row],[Arr` Fee]]&") Facility cap "&Products[[#This Row],[DD Cap]]&"x initial", IF(AND(Products[[#This Row],[Pack]]="Elite",Products[[#This Row],[DD Cap]]=0),"SOVEREIGN "&Products[[#This Row],[Pack]]&" DRAWDOWN "&Products[[#This Row],[LTV Band]]&"_"&Products[[#This Row],[Rate]]*100&"% £10k+ "&LOWER(Products[[#This Row],[Single / Joint]])& " ("&SUM(Products[[#This Row],[Cont to Adv. Fees]:[Cont to Sols Fees]])&" cont to fees, Arr Fee "&Products[[#This Row],[Arr` Fee]]&") No facility cap ", IF(AND(Products[[#This Row],[Pack]]="Fees Package",Products[[#This Row],[DD Cap]]<>0),"SOVEREIGN "&Products[[#This Row],[Pack]]&" DRAWDOWN "&Products[[#This Row],[LTV Band]]&"_"&Products[[#This Row],[Rate]]*100&"% £10k+ "&LOWER(Products[[#This Row],[Single / Joint]])& " ("&SUM(Products[[#This Row],[Cont to Adv. Fees]:[Cont to Sols Fees]])&" cont to fees, Arr Fee "&Products[[#This Row],[Arr` Fee]]&")(3% cash) Facility cap "&Products[[#This Row],[DD Cap]]&"x initial", IF(AND(Products[[#This Row],[Pack]]="Fees Package",Products[[#This Row],[DD Cap]]=0),"SOVEREIGN "&Products[[#This Row],[Pack]]&" DRAWDOWN "&Products[[#This Row],[LTV Band]]&"_"&Products[[#This Row],[Rate]]*100&"% £10k+ "&LOWER(Products[[#This Row],[Single / Joint]])& " ("&SUM(Products[[#This Row],[Cont to Adv. Fees]:[Cont to Sols Fees]])&" cont to fees, Arr Fee "&Products[[#This Row],[Arr` Fee]]&")(3% cash) No facility cap ", " "))))))) -> SOVEREIGN Fees Package DRAWDOWN C_4.04% £10k+ 0 (900 cont to fees, Arr Fee 895)(3% cash) Facility cap 1.5x initial | H53: =SUM(Products[[#This Row],[Base rate]:[x0]]) -> 0.0404 | I53: =IF(AND(ISBLANK(initialAdvance),Products[[#This Row],[Pack]]="Fees Package"),20000, IF(AND(ISBLANK(initialAdvance),Products[[#This Row],[Pack]]="Elite"),725001, IF(AND(ISBLANK(initialAdvance),Products[[#This Row],[Pack]]="Standard"),10000,IF(AND(initialAdvance<725001,Products[[#This Row],[Pack]]="Elite"),725001,initialAdvance)))) -> 20000 | J53: =IF(AND(Products[[#This Row],[LTV Band]]="A",Products[[#This Row],[Single / Joint]]="Single"), SUMIF(LTVs!$A$3:$A$38,Menu!$I$9,LTVs!$C$3:$C$38), IF(AND(Products[[#This Row],[LTV Band]]="A",Products[[#This Row],[Single / Joint]]="Joint"), SUMIF(LTVs!$A$3:$A$38,Menu!$I$9,LTVs!$D$3:$D$38), IF(AND(Products[[#This Row],[LTV Band]]="B",Products[[#This Row],[Single / Joint]]="Single"), SUMIF(LTVs!$A$3:$A$38,Menu!$I$9,LTVs!$E$3:$E$38), IF(AND(Products[[#This Row],[LTV Band]]="B",Products[[#This Row],[Single / Joint]]="Joint"), SUMIF(LTVs!$A$3:$A$38,Menu!$I$9,LTVs!$F$3:$F$38), IF(AND(Products[[#This Row],[LTV Band]]="C",Products[[#This Row],[Single / Joint]]="Single"), SUMIF(LTVs!$A$3:$A$38,Menu!$I$9,LTVs!$G$3:$G$38), IF(AND(Products[[#This Row],[LTV Band]]="C",Products[[#This Row],[Single / Joint]]="Joint"), SUMIF(LTVs!$A$3:$A$38,Menu!$I$9,LTVs!$H$3:$H$38), IF(AND(Products[[#This Row],[LTV Band]]="D",Products[[#This Row],[Single / Joint]]="Single"), SUMIF(LTVs!$A$3:$A$38,Menu!$I$9,LTVs!$I$3:$I$38), IF(AND(Products[[#This Row],[LTV Band]]="D",Products[[#This Row],[Single / Joint]]="Joint"), SUMIF(LTVs!$A$3:$A$38,Menu!$I$9,LTVs!$J$3:$J$38), IF(AND(Products[[#This Row],[LTV Band]]="E",Products[[#This Row],[Single / Joint]]="Single"), SUMIF(LTVs!$A$3:$A$38,Menu!$I$9,LTVs!$K$3:$K$38), IF(AND(Products[[#This Row],[LTV Band]]="E",Products[[#This Row],[Single / Joint]]="Joint"), SUMIF(LTVs!$A$3:$A$38,Menu!$I$9,LTVs!$L$3:$L$38), IF(AND(Products[[#This Row],[LTV Band]]="F",Products[[#This Row],[Single / Joint]]="Single"), SUMIF(LTVs!$A$3:$A$38,Menu!$I$9,LTVs!$M$3:$M$38), IF(AND(Products[[#This Row],[LTV Band]]="F",Products[[#This Row],[Single / Joint]]="Joint"), SUMIF(LTVs!$A$3:$A$38,Menu!$I$9,LTVs!$N$3:$N$38), " ")))))))))))) ->  | K53: =IF(AND(propertyValue*Products[[#This Row],[LTV ]]>725000,Products[[#This Row],[Pack]]<>"Elite"),725000,propertyValue*Products[[#This Row],[LTV ]]) ->  | L53: =IF(Products[[#This Row],[DD Cap]]="LS"," ",IF(reqrdDDamt<2000,"N/A",IF(reqrdDDamt<=Products[[#This Row],[Drawdown cap]],reqrdDDamt,"N/A"))) -> N/A | M53: =IF(Products[[#This Row],[DD Cap]]="LS"," ",IF(IF(Products[[#This Row],[DD Cap]]>=1,initialAdvance*Products[[#This Row],[DD Cap]],Products[[#This Row],[Max loan]]-initialAdvance)<Products[[#This Row],[Max loan]]-initialAdvance,IF(Products[[#This Row],[DD Cap]]>0,initialAdvance*Products[[#This Row],[DD Cap]],Products[[#This Row],[Max loan]]-initialAdvance),Products[[#This Row],[Max loan]]-initialAdvance)) ->  | N53: =IF(Products[[#This Row],[Pack]]="FP",895,895) -> 895 | O53: =IF(Products[[#This Row],[Pack]]="Fees Package",300,0) -> 300 | P53: 600 | Q53: =App_type -> 0 | R53: =IF(AND(ISBLANK(initialAdvance),Products[[#This Row],[Pack]]="Fees Package"),Products[[#This Row],[Max loan]]*3%, IF(AND(ISBLANK(initialAdvance),Products[[#This Row],[Pack]]="Fees Package"),Products[[#This Row],[Max loan]]*3%, IF(AND(initialAdvance>0,Products[[#This Row],[Pack]]="Fees Package"),initialAdvance*3%, IF(AND(initialAdvance>0,Products[[#This Row],[Pack]]="Fees Package"),initialAdvance*3%,0)))) ->  | S53: =IF(OR(ISBLANK(App_type),$I$9=0)," ", IF(ISBLANK(initialAdvance),Products[[#This Row],[Max loan]]+Products[[#This Row],[Cont to Adv. Fees]]+Products[[#This Row],[Cont to Sols Fees]]+Products[[#This Row],[Cashback]], initialAdvance+Products[[#This Row],[Cont to Adv. Fees]]+Products[[#This Row],[Cont to Sols Fees]]+Products[[#This Row],[Cashback]])) ->  | T53: =IF(AND(ISBLANK(initialAdvance),Products[[#This Row],[Pack]]="Fees Package",Products[[#This Row],[Max loan]]>=20000),1, IF(AND(ISBLANK(initialAdvance),Products[[#This Row],[Pack]]="Elite",Products[[#This Row],[Max loan]]>725000),1, IF(AND(ISBLANK(initialAdvance),Products[[#This Row],[Pack]]="Standard",Products[[#This Row],[Max loan]]>=10000),1, IF(AND(initialAdvance>0,Products[[#This Row],[Pack]]="Fees Package",initialAdvance>=20000,Products[[#This Row],[Max loan]]>=initialAdvance),1, IF(AND(initialAdvance>0,Products[[#This Row],[Pack]]="Elite",initialAdvance>725000,Products[[#This Row],[Max loan]]>=initialAdvance),1, IF(AND(initialAdvance>0,Products[[#This Row],[Pack]]="Standard",initialAdvance>=10000,Products[[#This Row],[Max loan]]>=initialAdvance),1,0)))))) ->  | U53: =IF(Products[[#This Row],[Cashback]]>0,1,0) ->  | V53: =INDEX(Rates!$B$2:$B$7,MATCH(Products[[#This Row],[LTV Band]],Rates!$A$2:$A$7,0)) -> 0.0359 | W53: =IF(Products[[#This Row],[Pack]]="Elite",IFERROR(INDEX(Rates!$C$2:$C$7,MATCH(Products[[#This Row],[LTV Band]],Rates!$A$2:$A$7,0)),0),0) -> 0 | X53: =IFERROR(INDEX(Rates!$D$2:$D$7,MATCH(Products[[#This Row],[Pack]],Rates!$D$1,0)),) -> 0 | Y53: =IFERROR(INDEX(Rates!$E$2:$E$7,MATCH(Products[[#This Row],[Pack]],Rates!$E$1,0)),) -> 0.003 | Z53: =IFERROR(INDEX(Rates!$F$2:$F$7,MATCH(Products[[#This Row],[DD Cap]],Rates!$F$1,0)),0) -> 0 | AA53: =IFERROR(INDEX(Rates!$G$2:$G$7,MATCH(Products[[#This Row],[DD Cap]],Rates!$G$1,0)),0) -> 0.0015 | AB53: =IFERROR(INDEX(Rates!$H$2:$H$7,MATCH(Products[[#This Row],[DD Cap]],Rates!$H$1,0)),0) -> 0
